Workbook

Sheet Data_Tech
A1: мес | B1: год | C1: изд | D1: партия | E1: коэф | F1: Ф. И. О. | G1: р/р | H1: 1 | I1: 2 | J1: 3 | K1: 4 | L1: 5 | M1: 6 | N1: 7 | O1: 8 | P1: 9 | Q1: 10 | R1: 11 | S1: 12 | T1: 13 | U1: 14 | V1: 15 | W1: 16 | X1: 17 | Y1: 18 | Z1: 19 | AA1: 20 | AB1: 21 | AC1: 22 | AD1: 23 | AE1: 24 | AF1: 25 | AG1: 26 | AH1: 27 | AI1: 28 | AJ1: 29 | AK1: 30 | AL1: 31 | AM1: сумма | AN1: Столбец1 | AO1: Столбец2 | AP1: Столбец3 | AQ1: бригада | AR1: разряд работника | AU1: =AV1=расчет!Z446 -> FALSE | AV1: =SUM(AO:AO) -> 759952.752 | AW1: =расчет!Z446 -> 759952.76 | AY1: =SUM(AN3:AN83) -> 197 | AZ1: ='наряд выходн'!Y446 -> 197
A2: месяц | B2: год | C2: изд | D2: партия | E2: коэф | F2: Ф. И. О. | G2: р/р | H2: =--(1&A3&B3) ->  | I2: =IF(($H$2+COLUMN(A:A))>EOMONTH($H$2,0),0,$H$2+COLUMN(A:A)) ->  | AM2: сумма | AN2: сумма2 | AW2: =AV1-AW1 -> -0.008000000031 | AY2: =SUM(AP3:AP83) -> 71052.12 | AZ2: ='наряд выходн'!Z446 -> 71052.12
A3: декабрь | B3: 2023 | C3: 7Б7 | D3: 28-23 | E3: 1,5 | F3: Аработник1 | G3: 4/8 | H3: 7.2 | I3: 7.2 | AM3: =IF(AQ3=1,SUM(H3:I3,L3:O3,R3:U3,X3:AA3,AD3:AG3,AI3:AK3), IF(AQ3=2,SUM(H3:K3,N3:Q3,T3:W3,Z3:AC3,AF3:AI3), IF(AQ3=3,SUM(J3:M3,P3:S3,V3:Y3,AB3:AE3,AH3:AK3),SUM(Таблица1[[#This Row],[1]:[31]])-Таблица1[[#This Row],[Столбец1]]))) -> 14.4 | AN3: =IF(AQ3=1,SUM(J3:K3,P3:Q3,V3:W3,AB3:AC3,AH3:AI3), IF(AQ3=2,SUM(L3:M3,R3:S3,X3:Y3,AD3:AE3), IF(AQ3=3,SUM(H3:I3,N3:O3,T3:U3,Z3:AA3,AF3:AG3), SUM(IFERROR(WEEKDAY($H$2:$AL$2,2)>5,)*H3:AL3)))) -> 0 | AO3: =IF(AR3<=3,(IF((G3="5/24"),((база!$M$6*Таблица1[[#This Row],[сумма]]*Таблица1[[#This Row],[коэф]])), IF((G3="4/24"),((база!$M$5*Таблица1[[#This Row],[сумма]]*Таблица1[[#This Row],[коэф]])), IF((G3="3/24"),((база!$M$4*Таблица1[[#This Row],[сумма]]*Таблица1[[#This Row],[коэф]])), IF((G3="5/16"),((база!$L$6*Таблица1[[#This Row],[сумма]]*Таблица1[[#This Row],[коэф]])), IF((G3="4/16"),((база!$L$5*Таблица1[[#This Row],[сумма]]*Таблица1[[#This Row],[коэф]])), IF((G3="3/16"),((база!$L$4*Таблица1[[#This Row],[сумма]]*Таблица1[[#This Row],[коэф]])), IF((G3="4/4"),((база!$I$5*Таблица1[[#This Row],[сумма]]*Таблица1[[#This Row],[коэф]])), IF(OR(G3="2/4",G3="3/4"),((база!$I$4*Таблица1[[#This Row],[сумма]]*Таблица1[[#This Row],[коэф]])), IF((G3="5/8"),((база!$J$6*Таблица1[[#This Row],[сумма]]*Таблица1[[#This Row],[коэф]])), IF((G3="4/8"),((база!$J$5*Таблица1[[#This Row],[сумма]]*Таблица1[[#This Row],[коэф]])), IF(OR(G3="3/8",G3="2/8"),((база!$J$4*Таблица1[[#This Row],[сумма]]*Таблица1[[#This Row],[коэф]])))))))))))))), (IF((G3="5/24"),((база!$M$6*Таблица1[[#This Row],[сумма]]*Таблица1[[#This Row],[коэф]])), IF(OR(G3="4/24",G3="3/24"),((база!$M$5*Таблица1[[#This Row],[сумма]]*Таблица1[[#This Row],[коэф]])), IF((G3="5/16"),((база!$L$6*Таблица1[[#This Row],[сумма]]*Таблица1[[#This Row],[коэф]])), IF(OR(G3="4/16",G3="3/16"),((база!$L$5*Таблица1[[#This Row],[сумма]]*Таблица1[[#This Row],[коэф]])), IF(OR(G3="2/4",G3="3/4",G3="4/4"),((база!$I$5*Таблица1[[#This Row],[сумма]]*Таблица1[[#This Row],[коэф]])), IF((G3="5/8"),((база!$J$6*Таблица1[[#This Row],[сумма]]*Таблица1[[#This Row],[коэф]])), IF(OR(G3="4/8",G3="3/8",G3="2/8"),((база!$J$5*Таблица1[[#This Row],[сумма]]*Таблица1[[#This Row],[коэф]]))))))))))) -> 3499.2 | AP3: =IF(AR3<=3,(IF((G3="5/24"),((база!$M$6*2*Таблица1[[#This Row],[Столбец1]]*Таблица1[[#This Row],[коэф]])), IF((G3="4/24"),((база!$M$5*2*Таблица1[[#This Row],[Столбец1]]*Таблица1[[#This Row],[коэф]])), IF((G3="3/24"),((база!$M$4*2*Таблица1[[#This Row],[Столбец1]]*Таблица1[[#This Row],[коэф]])), IF((G3="5/16"),((база!$L$6*2*Таблица1[[#This Row],[Столбец1]]*Таблица1[[#This Row],[коэф]])), IF((G3="4/16"),((база!$L$5*2*Таблица1[[#This Row],[Столбец1]]*Таблица1[[#This Row],[коэф]])), IF((G3="3/16"),((база!$L$4*2*Таблица1[[#This Row],[Столбец1]]*Таблица1[[#This Row],[коэф]])), IF((G3="4/4"),((база!$I$5*2*Таблица1[[#This Row],[Столбец1]]*Таблица1[[#This Row],[коэф]])), IF(OR(G3="2/4",G3="3/4"),((база!$I$4*2*Таблица1[[#This Row],[Столбец1]]*Таблица1[[#This Row],[коэф]])), IF((G3="5/8"),((база!$J$6*2*Таблица1[[#This Row],[Столбец1]]*Таблица1[[#This Row],[коэф]])), IF((G3="4/8"),((база!$J$5*2*Таблица1[[#This Row],[Столбец1]]*Таблица1[[#This Row],[коэф]])), IF(OR(G3="3/8",G3="2/8"),((база!$J$4*2*Таблица1[[#This Row],[Столбец1]]*Таблица1[[#This Row],[коэф]])))))))))))))), (IF((G3="5/24"),((база!$M$6*2*Таблица1[[#This Row],[Столбец1]]*Таблица1[[#This Row],[коэф]])), IF(OR(G3="4/24",G3="3/24"),((база!$M$5*2*Таблица1[[#This Row],[Столбец1]]*Таблица1[[#This Row],[коэф]])), IF((G3="5/16"),((база!$L$6*2*Таблица1[[#This Row],[Столбец1]]*Таблица1[[#This Row],[коэф]])), IF(OR(G3="4/16",G3="3/16"),((база!$L$5*2*Таблица1[[#This Row],[Столбец1]]*Таблица1[[#This Row],[коэф]])), IF(OR(G3="2/4",G3="3/4",G3="4/4"),((база!$I$5*2*Таблица1[[#This Row],[Столбец1]]*Таблица1[[#This Row],[коэф]])), IF((G3="5/8"),((база!$J$6*2*Таблица1[[#This Row],[Столбец1]]*Таблица1[[#This Row],[коэф]])), IF(OR(G3="4/8",G3="3/8",G3="2/8"),((база!$J$5*2*Таблица1[[#This Row],[Столбец1]]*Таблица1[[#This Row],[коэф]]))))))))))) -> 0 | AQ3: =IFERROR(INDEX(база!T:T, MATCH(F3,база!Q:Q,0)),"") -> 2 | AR3: =IFERROR(INDEX(база!D:D, MATCH(F3,база!B:B,0)),"") -> 4 | AY3: =AY1-AZ1 -> 0 | AZ3: =AY2-AZ2 -> 0
A4: =A3 -> декабрь | B4: 2023 | C4: БО-01 | D4: 118-23 | E4: 1,5 | F4: Аработник1 | G4: 4/8 | J4: 7.2 | K4: 7.2 | L4: 7 | N4: 7.2 | O4: 6.2 | P4: 7.2 | Q4: 7.2 | AM4: =IF(AQ4=1,SUM(H4:I4,L4:O4,R4:U4,X4:AA4,AD4:AG4,AI4:AK4), IF(AQ4=2,SUM(H4:K4,N4:Q4,T4:W4,Z4:AC4,AF4:AI4), IF(AQ4=3,SUM(J4:M4,P4:S4,V4:Y4,AB4:AE4,AH4:AK4),SUM(Таблица1[[#This Row],[1]:[31]])-Таблица1[[#This Row],[Столбец1]]))) -> 42.2 | AN4: =IF(AQ4=1,SUM(J4:K4,P4:Q4,V4:W4,AB4:AC4,AH4:AI4), IF(AQ4=2,SUM(L4:M4,R4:S4,X4:Y4,AD4:AE4), IF(AQ4=3,SUM(H4:I4,N4:O4,T4:U4,Z4:AA4,AF4:AG4), SUM(IFERROR(WEEKDAY($H$2:$AL$2,2)>5,)*H4:AL4)))) -> 7 | AO4: =IF(AR4<=3,(IF((G4="5/24"),((база!$M$6*Таблица1[[#This Row],[сумма]]*Таблица1[[#This Row],[коэф]])), IF((G4="4/24"),((база!$M$5*Таблица1[[#This Row],[сумма]]*Таблица1[[#This Row],[коэф]])), IF((G4="3/24"),((база!$M$4*Таблица1[[#This Row],[сумма]]*Таблица1[[#This Row],[коэф]])), IF((G4="5/16"),((база!$L$6*Таблица1[[#This Row],[сумма]]*Таблица1[[#This Row],[коэф]])), IF((G4="4/16"),((база!$L$5*Таблица1[[#This Row],[сумма]]*Таблица1[[#This Row],[коэф]])), IF((G4="3/16"),((база!$L$4*Таблица1[[#This Row],[сумма]]*Таблица1[[#This Row],[коэф]])), IF((G4="4/4"),((база!$I$5*Таблица1[[#This Row],[сумма]]*Таблица1[[#This Row],[коэф]])), IF(OR(G4="2/4",G4="3/4"),((база!$I$4*Таблица1[[#This Row],[сумма]]*Таблица1[[#This Row],[коэф]])), IF((G4="5/8"),((база!$J$6*Таблица1[[#This Row],[сумма]]*Таблица1[[#This Row],[коэф]])), IF((G4="4/8"),((база!$J$5*Таблица1[[#This Row],[сумма]]*Таблица1[[#This Row],[коэф]])), IF(OR(G4="3/8",G4="2/8"),((база!$J$4*Таблица1[[#This Row],[сумма]]*Таблица1[[#This Row],[коэф]])))))))))))))), (IF((G4="5/24"),((база!$M$6*Таблица1[[#This Row],[сумма]]*Таблица1[[#This Row],[коэф]])), IF(OR(G4="4/24",G4="3/24"),((база!$M$5*Таблица1[[#This Row],[сумма]]*Таблица1[[#This Row],[коэф]])), IF((G4="5/16"),((база!$L$6*Таблица1[[#This Row],[сумма]]*Таблица1[[#This Row],[коэф]])), IF(OR(G4="4/16",G4="3/16"),((база!$L$5*Таблица1[[#This Row],[сумма]]*Таблица1[[#This Row],[коэф]])), IF(OR(G4="2/4",G4="3/4",G4="4/4"),((база!$I$5*Таблица1[[#This Row],[сумма]]*Таблица1[[#This Row],[коэф]])), IF((G4="5/8"),((база!$J$6*Таблица1[[#This Row],[сумма]]*Таблица1[[#This Row],[коэф]])), IF(OR(G4="4/8",G4="3/8",G4="2/8"),((база!$J$5*Таблица1[[#This Row],[сумма]]*Таблица1[[#This Row],[коэф]]))))))))))) -> 10254.6 | AP4: =IF(AR4<=3,(IF((G4="5/24"),((база!$M$6*2*Таблица1[[#This Row],[Столбец1]]*Таблица1[[#This Row],[коэф]])), IF((G4="4/24"),((база!$M$5*2*Таблица1[[#This Row],[Столбец1]]*Таблица1[[#This Row],[коэф]])), IF((G4="3/24"),((база!$M$4*2*Таблица1[[#This Row],[Столбец1]]*Таблица1[[#This Row],[коэф]])), IF((G4="5/16"),((база!$L$6*2*Таблица1[[#This Row],[Столбец1]]*Таблица1[[#This Row],[коэф]])), IF((G4="4/16"),((база!$L$5*2*Таблица1[[#This Row],[Столбец1]]*Таблица1[[#This Row],[коэф]])), IF((G4="3/16"),((база!$L$4*2*Таблица1[[#This Row],[Столбец1]]*Таблица1[[#This Row],[коэф]])), IF((G4="4/4"),((база!$I$5*2*Таблица1[[#This Row],[Столбец1]]*Таблица1[[#This Row],[коэф]])), IF(OR(G4="2/4",G4="3/4"),((база!$I$4*2*Таблица1[[#This Row],[Столбец1]]*Таблица1[[#This Row],[коэф]])), IF((G4="5/8"),((база!$J$6*2*Таблица1[[#This Row],[Столбец1]]*Таблица1[[#This Row],[коэф]])), IF((G4="4/8"),((база!$J$5*2*Таблица1[[#This Row],[Столбец1]]*Таблица1[[#This Row],[коэф]])), IF(OR(G4="3/8",G4="2/8"),((база!$J$4*2*Таблица1[[#This Row],[Столбец1]]*Таблица1[[#This Row],[коэф]])))))))))))))), (IF((G4="5/24"),((база!$M$6*2*Таблица1[[#This Row],[Столбец1]]*Таблица1[[#This Row],[коэф]])), IF(OR(G4="4/24",G4="3/24"),((база!$M$5*2*Таблица1[[#This Row],[Столбец1]]*Таблица1[[#This Row],[коэф]])), IF((G4="5/16"),((база!$L$6*2*Таблица1[[#This Row],[Столбец1]]*Таблица1[[#This Row],[коэф]])), IF(OR(G4="4/16",G4="3/16"),((база!$L$5*2*Таблица1[[#This Row],[Столбец1]]*Таблица1[[#This Row],[коэф]])), IF(OR(G4="2/4",G4="3/4",G4="4/4"),((база!$I$5*2*Таблица1[[#This Row],[Столбец1]]*Таблица1[[#This Row],[коэф]])), IF((G4="5/8"),((база!$J$6*2*Таблица1[[#This Row],[Столбец1]]*Таблица1[[#This Row],[коэф]])), IF(OR(G4="4/8",G4="3/8",G4="2/8"),((база!$J$5*2*Таблица1[[#This Row],[Столбец1]]*Таблица1[[#This Row],[коэф]]))))))))))) -> 3402 | AQ4: =IFERROR(INDEX(база!T:T, MATCH(F4,база!Q:Q,0)),"") -> 2 | AR4: =IFERROR(INDEX(база!D:D, MATCH(F4,база!B:B,0)),"") -> 4
A5: =A4 -> декабрь | B5: 2023 | C5: 7Б7 | D5: 28-23 | E5: 1,5 | F5: Гработник1 | G5: 4/8 | X5: 7.2 | Y5: 7.2 | Z5: 7.2 | AA5: 7.2 | AC5: 6 | AD5: 7.2 | AM5: =IF(AQ5=1,SUM(H5:I5,L5:O5,R5:U5,X5:AA5,AD5:AG5,AI5:AK5), IF(AQ5=2,SUM(H5:K5,N5:Q5,T5:W5,Z5:AC5,AF5:AI5), IF(AQ5=3,SUM(J5:M5,P5:S5,V5:Y5,AB5:AE5,AH5:AK5),SUM(Таблица1[[#This Row],[1]:[31]])-Таблица1[[#This Row],[Столбец1]]))) -> 36 | AN5: =IF(AQ5=1,SUM(J5:K5,P5:Q5,V5:W5,AB5:AC5,AH5:AI5), IF(AQ5=2,SUM(L5:M5,R5:S5,X5:Y5,AD5:AE5), IF(AQ5=3,SUM(H5:I5,N5:O5,T5:U5,Z5:AA5,AF5:AG5), SUM(IFERROR(WEEKDAY($H$2:$AL$2,2)>5,)*H5:AL5)))) -> 6 | AO5: =IF(AR5<=3,(IF((G5="5/24"),((база!$M$6*Таблица1[[#This Row],[сумма]]*Таблица1[[#This Row],[коэф]])), IF((G5="4/24"),((база!$M$5*Таблица1[[#This Row],[сумма]]*Таблица1[[#This Row],[коэф]])), IF((G5="3/24"),((база!$M$4*Таблица1[[#This Row],[сумма]]*Таблица1[[#This Row],[коэф]])), IF((G5="5/16"),((база!$L$6*Таблица1[[#This Row],[сумма]]*Таблица1[[#This Row],[коэф]])), IF((G5="4/16"),((база!$L$5*Таблица1[[#This Row],[сумма]]*Таблица1[[#This Row],[коэф]])), IF((G5="3/16"),((база!$L$4*Таблица1[[#This Row],[сумма]]*Таблица1[[#This Row],[коэф]])), IF((G5="4/4"),((база!$I$5*Таблица1[[#This Row],[сумма]]*Таблица1[[#This Row],[коэф]])), IF(OR(G5="2/4",G5="3/4"),((база!$I$4*Таблица1[[#This Row],[сумма]]*Таблица1[[#This Row],[коэф]])), IF((G5="5/8"),((база!$J$6*Таблица1[[#This Row],[сумма]]*Таблица1[[#This Row],[коэф]])), IF((G5="4/8"),((база!$J$5*Таблица1[[#This Row],[сумма]]*Таблица1[[#This Row],[коэф]])), IF(OR(G5="3/8",G5="2/8"),((база!$J$4*Таблица1[[#This Row],[сумма]]*Таблица1[[#This Row],[коэф]])))))))))))))), (IF((G5="5/24"),((база!$M$6*Таблица1[[#This Row],[сумма]]*Таблица1[[#This Row],[коэф]])), IF(OR(G5="4/24",G5="3/24"),((база!$M$5*Таблица1[[#This Row],[сумма]]*Таблица1[[#This Row],[коэф]])), IF((G5="5/16"),((база!$L$6*Таблица1[[#This Row],[сумма]]*Таблица1[[#This Row],[коэф]])), IF(OR(G5="4/16",G5="3/16"),((база!$L$5*Таблица1[[#This Row],[сумма]]*Таблица1[[#This Row],[коэф]])), IF(OR(G5="2/4",G5="3/4",G5="4/4"),((база!$I$5*Таблица1[[#This Row],[сумма]]*Таблица1[[#This Row],[коэф]])), IF((G5="5/8"),((база!$J$6*Таблица1[[#This Row],[сумма]]*Таблица1[[#This Row],[коэф]])), IF(OR(G5="4/8",G5="3/8",G5="2/8"),((база!$J$5*Таблица1[[#This Row],[сумма]]*Таблица1[[#This Row],[коэф]]))))))))))) -> 8748 | AP5: =IF(AR5<=3,(IF((G5="5/24"),((база!$M$6*2*Таблица1[[#This Row],[Столбец1]]*Таблица1[[#This Row],[коэф]])), IF((G5="4/24"),((база!$M$5*2*Таблица1[[#This Row],[Столбец1]]*Таблица1[[#This Row],[коэф]])), IF((G5="3/24"),((база!$M$4*2*Таблица1[[#This Row],[Столбец1]]*Таблица1[[#This Row],[коэф]])), IF((G5="5/16"),((база!$L$6*2*Таблица1[[#This Row],[Столбец1]]*Таблица1[[#This Row],[коэф]])), IF((G5="4/16"),((база!$L$5*2*Таблица1[[#This Row],[Столбец1]]*Таблица1[[#This Row],[коэф]])), IF((G5="3/16"),((база!$L$4*2*Таблица1[[#This Row],[Столбец1]]*Таблица1[[#This Row],[коэф]])), IF((G5="4/4"),((база!$I$5*2*Таблица1[[#This Row],[Столбец1]]*Таблица1[[#This Row],[коэф]])), IF(OR(G5="2/4",G5="3/4"),((база!$I$4*2*Таблица1[[#This Row],[Столбец1]]*Таблица1[[#This Row],[коэф]])), IF((G5="5/8"),((база!$J$6*2*Таблица1[[#This Row],[Столбец1]]*Таблица1[[#This Row],[коэф]])), IF((G5="4/8"),((база!$J$5*2*Таблица1[[#This Row],[Столбец1]]*Таблица1[[#This Row],[коэф]])), IF(OR(G5="3/8",G5="2/8"),((база!$J$4*2*Таблица1[[#This Row],[Столбец1]]*Таблица1[[#This Row],[коэф]])))))))))))))), (IF((G5="5/24"),((база!$M$6*2*Таблица1[[#This Row],[Столбец1]]*Таблица1[[#This Row],[коэф]])), IF(OR(G5="4/24",G5="3/24"),((база!$M$5*2*Таблица1[[#This Row],[Столбец1]]*Таблица1[[#This Row],[коэф]])), IF((G5="5/16"),((база!$L$6*2*Таблица1[[#This Row],[Столбец1]]*Таблица1[[#This Row],[коэф]])), IF(OR(G5="4/16",G5="3/16"),((база!$L$5*2*Таблица1[[#This Row],[Столбец1]]*Таблица1[[#This Row],[коэф]])), IF(OR(G5="2/4",G5="3/4",G5="4/4"),((база!$I$5*2*Таблица1[[#This Row],[Столбец1]]*Таблица1[[#This Row],[коэф]])), IF((G5="5/8"),((база!$J$6*2*Таблица1[[#This Row],[Столбец1]]*Таблица1[[#This Row],[коэф]])), IF(OR(G5="4/8",G5="3/8",G5="2/8"),((база!$J$5*2*Таблица1[[#This Row],[Столбец1]]*Таблица1[[#This Row],[коэф]]))))))))))) -> 2916 | AQ5: =IFERROR(INDEX(база!T:T, MATCH(F5,база!Q:Q,0)),"") -> 1 | AR5: =IFERROR(INDEX(база!D:D, MATCH(F5,база!B:B,0)),"") -> 3
A6: =A5 -> декабрь | B6: 2023 | C6: 7Б7 | D6: 28-23 | E6: 1 | F6: Аработник2 | G6: 2/4 | H6: 7.2 | I6: 7.2 | Z6: 7.2 | AA6: 7.2 | AD6: 7.2 | AE6: 7.2 | AF6: 7.2 | AG6: 7.2 | AJ6: 7.2 | AK6: 7.2 | AM6: =IF(AQ6=1,SUM(H6:I6,L6:O6,R6:U6,X6:AA6,AD6:AG6,AI6:AK6), IF(AQ6=2,SUM(H6:K6,N6:Q6,T6:W6,Z6:AC6,AF6:AI6), IF(AQ6=3,SUM(J6:M6,P6:S6,V6:Y6,AB6:AE6,AH6:AK6),SUM(Таблица1[[#This Row],[1]:[31]])-Таблица1[[#This Row],[Столбец1]]))) -> 72 | AN6: =IF(AQ6=1,SUM(J6:K6,P6:Q6,V6:W6,AB6:AC6,AH6:AI6), IF(AQ6=2,SUM(L6:M6,R6:S6,X6:Y6,AD6:AE6), IF(AQ6=3,SUM(H6:I6,N6:O6,T6:U6,Z6:AA6,AF6:AG6), SUM(IFERROR(WEEKDAY($H$2:$AL$2,2)>5,)*H6:AL6)))) -> 0 | AO6: =IF(AR6<=3,(IF((G6="5/24"),((база!$M$6*Таблица1[[#This Row],[сумма]]*Таблица1[[#This Row],[коэф]])), IF((G6="4/24"),((база!$M$5*Таблица1[[#This Row],[сумма]]*Таблица1[[#This Row],[коэф]])), IF((G6="3/24"),((база!$M$4*Таблица1[[#This Row],[сумма]]*Таблица1[[#This Row],[коэф]])), IF((G6="5/16"),((база!$L$6*Таблица1[[#This Row],[сумма]]*Таблица1[[#This Row],[коэф]])), IF((G6="4/16"),((база!$L$5*Таблица1[[#This Row],[сумма]]*Таблица1[[#This Row],[коэф]])), IF((G6="3/16"),((база!$L$4*Таблица1[[#This Row],[сумма]]*Таблица1[[#This Row],[коэф]])), IF((G6="4/4"),((база!$I$5*Таблица1[[#This Row],[сумма]]*Таблица1[[#This Row],[коэф]])), IF(OR(G6="2/4",G6="3/4"),((база!$I$4*Таблица1[[#This Row],[сумма]]*Таблица1[[#This Row],[коэф]])), IF((G6="5/8"),((база!$J$6*Таблица1[[#This Row],[сумма]]*Таблица1[[#This Row],[коэф]])), IF((G6="4/8"),((база!$J$5*Таблица1[[#This Row],[сумма]]*Таблица1[[#This Row],[коэф]])), IF(OR(G6="3/8",G6="2/8"),((база!$J$4*Таблица1[[#This Row],[сумма]]*Таблица1[[#This Row],[коэф]])))))))))))))), (IF((G6="5/24"),((база!$M$6*Таблица1[[#This Row],[сумма]]*Таблица1[[#This Row],[коэф]])), IF(OR(G6="4/24",G6="3/24"),((база!$M$5*Таблица1[[#This Row],[сумма]]*Таблица1[[#This Row],[коэф]])), IF((G6="5/16"),((база!$L$6*Таблица1[[#This Row],[сумма]]*Таблица1[[#This Row],[коэф]])), IF(OR(G6="4/16",G6="3/16"),((база!$L$5*Таблица1[[#This Row],[сумма]]*Таблица1[[#This Row],[коэф]])), IF(OR(G6="2/4",G6="3/4",G6="4/4"),((база!$I$5*Таблица1[[#This Row],[сумма]]*Таблица1[[#This Row],[коэф]])), IF((G6="5/8"),((база!$J$6*Таблица1[[#This Row],[сумма]]*Таблица1[[#This Row],[коэф]])), IF(OR(G6="4/8",G6="3/8",G6="2/8"),((база!$J$5*Таблица1[[#This Row],[сумма]]*Таблица1[[#This Row],[коэф]]))))))))))) -> 9734.4 | AP6: =IF(AR6<=3,(IF((G6="5/24"),((база!$M$6*2*Таблица1[[#This Row],[Столбец1]]*Таблица1[[#This Row],[коэф]])), IF((G6="4/24"),((база!$M$5*2*Таблица1[[#This Row],[Столбец1]]*Таблица1[[#This Row],[коэф]])), IF((G6="3/24"),((база!$M$4*2*Таблица1[[#This Row],[Столбец1]]*Таблица1[[#This Row],[коэф]])), IF((G6="5/16"),((база!$L$6*2*Таблица1[[#This Row],[Столбец1]]*Таблица1[[#This Row],[коэф]])), IF((G6="4/16"),((база!$L$5*2*Таблица1[[#This Row],[Столбец1]]*Таблица1[[#This Row],[коэф]])), IF((G6="3/16"),((база!$L$4*2*Таблица1[[#This Row],[Столбец1]]*Таблица1[[#This Row],[коэф]])), IF((G6="4/4"),((база!$I$5*2*Таблица1[[#This Row],[Столбец1]]*Таблица1[[#This Row],[коэф]])), IF(OR(G6="2/4",G6="3/4"),((база!$I$4*2*Таблица1[[#This Row],[Столбец1]]*Таблица1[[#This Row],[коэф]])), IF((G6="5/8"),((база!$J$6*2*Таблица1[[#This Row],[Столбец1]]*Таблица1[[#This Row],[коэф]])), IF((G6="4/8"),((база!$J$5*2*Таблица1[[#This Row],[Столбец1]]*Таблица1[[#This Row],[коэф]])), IF(OR(G6="3/8",G6="2/8"),((база!$J$4*2*Таблица1[[#This Row],[Столбец1]]*Таблица1[[#This Row],[коэф]])))))))))))))), (IF((G6="5/24"),((база!$M$6*2*Таблица1[[#This Row],[Столбец1]]*Таблица1[[#This Row],[коэф]])), IF(OR(G6="4/24",G6="3/24"),((база!$M$5*2*Таблица1[[#This Row],[Столбец1]]*Таблица1[[#This Row],[коэф]])), IF((G6="5/16"),((база!$L$6*2*Таблица1[[#This Row],[Столбец1]]*Таблица1[[#This Row],[коэф]])), IF(OR(G6="4/16",G6="3/16"),((база!$L$5*2*Таблица1[[#This Row],[Столбец1]]*Таблица1[[#This Row],[коэф]])), IF(OR(G6="2/4",G6="3/4",G6="4/4"),((база!$I$5*2*Таблица1[[#This Row],[Столбец1]]*Таблица1[[#This Row],[коэф]])), IF((G6="5/8"),((база!$J$6*2*Таблица1[[#This Row],[Столбец1]]*Таблица1[[#This Row],[коэф]])), IF(OR(G6="4/8",G6="3/8",G6="2/8"),((база!$J$5*2*Таблица1[[#This Row],[Столбец1]]*Таблица1[[#This Row],[коэф]]))))))))))) -> 0 | AQ6: =IFERROR(INDEX(база!T:T, MATCH(F6,база!Q:Q,0)),"") -> 1 | AR6: =IFERROR(INDEX(база!D:D, MATCH(F6,база!B:B,0)),"") -> 3 | AU6: мастер
A7: =A6 -> декабрь | B7: 2023 | C7: В5 | D7: 13-23 | E7: 1 | F7: Бработник1 | G7: 3/16 | AF7: 7.2 | AG7: 7.2 | AH7: 7.2 | AI7: 7.2 | AJ7: 7.2 | AM7: =IF(AQ7=1,SUM(H7:I7,L7:O7,R7:U7,X7:AA7,AD7:AG7,AI7:AK7), IF(AQ7=2,SUM(H7:K7,N7:Q7,T7:W7,Z7:AC7,AF7:AI7), IF(AQ7=3,SUM(J7:M7,P7:S7,V7:Y7,AB7:AE7,AH7:AK7),SUM(Таблица1[[#This Row],[1]:[31]])-Таблица1[[#This Row],[Столбец1]]))) -> 36 | AN7: =IF(AQ7=1,SUM(J7:K7,P7:Q7,V7:W7,AB7:AC7,AH7:AI7), IF(AQ7=2,SUM(L7:M7,R7:S7,X7:Y7,AD7:AE7), IF(AQ7=3,SUM(H7:I7,N7:O7,T7:U7,Z7:AA7,AF7:AG7), SUM(IFERROR(WEEKDAY($H$2:$AL$2,2)>5,)*H7:AL7)))) -> 0 | AO7: =IF(AR7<=3,(IF((G7="5/24"),((база!$M$6*Таблица1[[#This Row],[сумма]]*Таблица1[[#This Row],[коэф]])), IF((G7="4/24"),((база!$M$5*Таблица1[[#This Row],[сумма]]*Таблица1[[#This Row],[коэф]])), IF((G7="3/24"),((база!$M$4*Таблица1[[#This Row],[сумма]]*Таблица1[[#This Row],[коэф]])), IF((G7="5/16"),((база!$L$6*Таблица1[[#This Row],[сумма]]*Таблица1[[#This Row],[коэф]])), IF((G7="4/16"),((база!$L$5*Таблица1[[#This Row],[сумма]]*Таблица1[[#This Row],[коэф]])), IF((G7="3/16"),((база!$L$4*Таблица1[[#This Row],[сумма]]*Таблица1[[#This Row],[коэф]])), IF((G7="4/4"),((база!$I$5*Таблица1[[#This Row],[сумма]]*Таблица1[[#This Row],[коэф]])), IF(OR(G7="2/4",G7="3/4"),((база!$I$4*Таблица1[[#This Row],[сумма]]*Таблица1[[#This Row],[коэф]])), IF((G7="5/8"),((база!$J$6*Таблица1[[#This Row],[сумма]]*Таблица1[[#This Row],[коэф]])), IF((G7="4/8"),((база!$J$5*Таблица1[[#This Row],[сумма]]*Таблица1[[#This Row],[коэф]])), IF(OR(G7="3/8",G7="2/8"),((база!$J$4*Таблица1[[#This Row],[сумма]]*Таблица1[[#This Row],[коэф]])))))))))))))), (IF((G7="5/24"),((база!$M$6*Таблица1[[#This Row],[сумма]]*Таблица1[[#This Row],[коэф]])), IF(OR(G7="4/24",G7="3/24"),((база!$M$5*Таблица1[[#This Row],[сумма]]*Таблица1[[#This Row],[коэф]])), IF((G7="5/16"),((база!$L$6*Таблица1[[#This Row],[сумма]]*Таблица1[[#This Row],[коэф]])), IF(OR(G7="4/16",G7="3/16"),((база!$L$5*Таблица1[[#This Row],[сумма]]*Таблица1[[#This Row],[коэф]])), IF(OR(G7="2/4",G7="3/4",G7="4/4"),((база!$I$5*Таблица1[[#This Row],[сумма]]*Таблица1[[#This Row],[коэф]])), IF((G7="5/8"),((база!$J$6*Таблица1[[#This Row],[сумма]]*Таблица1[[#This Row],[коэф]])), IF(OR(G7="4/8",G7="3/8",G7="2/8"),((база!$J$5*Таблица1[[#This Row],[сумма]]*Таблица1[[#This Row],[коэф]]))))))))))) -> 5428.8 | AP7: =IF(AR7<=3,(IF((G7="5/24"),((база!$M$6*2*Таблица1[[#This Row],[Столбец1]]*Таблица1[[#This Row],[коэф]])), IF((G7="4/24"),((база!$M$5*2*Таблица1[[#This Row],[Столбец1]]*Таблица1[[#This Row],[коэф]])), IF((G7="3/24"),((база!$M$4*2*Таблица1[[#This Row],[Столбец1]]*Таблица1[[#This Row],[коэф]])), IF((G7="5/16"),((база!$L$6*2*Таблица1[[#This Row],[Столбец1]]*Таблица1[[#This Row],[коэф]])), IF((G7="4/16"),((база!$L$5*2*Таблица1[[#This Row],[Столбец1]]*Таблица1[[#This Row],[коэф]])), IF((G7="3/16"),((база!$L$4*2*Таблица1[[#This Row],[Столбец1]]*Таблица1[[#This Row],[коэф]])), IF((G7="4/4"),((база!$I$5*2*Таблица1[[#This Row],[Столбец1]]*Таблица1[[#This Row],[коэф]])), IF(OR(G7="2/4",G7="3/4"),((база!$I$4*2*Таблица1[[#This Row],[Столбец1]]*Таблица1[[#This Row],[коэф]])), IF((G7="5/8"),((база!$J$6*2*Таблица1[[#This Row],[Столбец1]]*Таблица1[[#This Row],[коэф]])), IF((G7="4/8"),((база!$J$5*2*Таблица1[[#This Row],[Столбец1]]*Таблица1[[#This Row],[коэф]])), IF(OR(G7="3/8",G7="2/8"),((база!$J$4*2*Таблица1[[#This Row],[Столбец1]]*Таблица1[[#This Row],[коэф]])))))))))))))), (IF((G7="5/24"),((база!$M$6*2*Таблица1[[#This Row],[Столбец1]]*Таблица1[[#This Row],[коэф]])), IF(OR(G7="4/24",G7="3/24"),((база!$M$5*2*Таблица1[[#This Row],[Столбец1]]*Таблица1[[#This Row],[коэф]])), IF((G7="5/16"),((база!$L$6*2*Таблица1[[#This Row],[Столбец1]]*Таблица1[[#This Row],[коэф]])), IF(OR(G7="4/16",G7="3/16"),((база!$L$5*2*Таблица1[[#This Row],[Столбец1]]*Таблица1[[#This Row],[коэф]])), IF(OR(G7="2/4",G7="3/4",G7="4/4"),((база!$I$5*2*Таблица1[[#This Row],[Столбец1]]*Таблица1[[#This Row],[коэф]])), IF((G7="5/8"),((база!$J$6*2*Таблица1[[#This Row],[Столбец1]]*Таблица1[[#This Row],[коэф]])), IF(OR(G7="4/8",G7="3/8",G7="2/8"),((база!$J$5*2*Таблица1[[#This Row],[Столбец1]]*Таблица1[[#This Row],[коэф]]))))))))))) -> 0 | AQ7: =IFERROR(INDEX(база!T:T, MATCH(F7,база!Q:Q,0)),"") -> 0 | AR7: =IFERROR(INDEX(база!D:D, MATCH(F7,база!B:B,0)),"") -> 3 | AU7: Кулдов А.Г.
A8: =A7 -> декабрь | B8: 2023 | C8: БО-01 | D8: 118-23 | E8: 1,4 | F8: Бработник2 | G8: 3/16 | H8: 5.5 | J8: 7.2 | K8: 7.2 | L8: 7.2 | M8: 7.2 | P8: 7.2 | Q8: 7.2 | R8: 7.2 | S8: 7.2 | AM8: =IF(AQ8=1,SUM(H8:I8,L8:O8,R8:U8,X8:AA8,AD8:AG8,AI8:AK8), IF(AQ8=2,SUM(H8:K8,N8:Q8,T8:W8,Z8:AC8,AF8:AI8), IF(AQ8=3,SUM(J8:M8,P8:S8,V8:Y8,AB8:AE8,AH8:AK8),SUM(Таблица1[[#This Row],[1]:[31]])-Таблица1[[#This Row],[Столбец1]]))) -> 57.6 | AN8: =IF(AQ8=1,SUM(J8:K8,P8:Q8,V8:W8,AB8:AC8,AH8:AI8), IF(AQ8=2,SUM(L8:M8,R8:S8,X8:Y8,AD8:AE8), IF(AQ8=3,SUM(H8:I8,N8:O8,T8:U8,Z8:AA8,AF8:AG8), SUM(IFERROR(WEEKDAY($H$2:$AL$2,2)>5,)*H8:AL8)))) -> 5.5 | AO8: =IF(AR8<=3,(IF((G8="5/24"),((база!$M$6*Таблица1[[#This Row],[сумма]]*Таблица1[[#This Row],[коэф]])), IF((G8="4/24"),((база!$M$5*Таблица1[[#This Row],[сумма]]*Таблица1[[#This Row],[коэф]])), IF((G8="3/24"),((база!$M$4*Таблица1[[#This Row],[сумма]]*Таблица1[[#This Row],[коэф]])), IF((G8="5/16"),((база!$L$6*Таблица1[[#This Row],[сумма]]*Таблица1[[#This Row],[коэф]])), IF((G8="4/16"),((база!$L$5*Таблица1[[#This Row],[сумма]]*Таблица1[[#This Row],[коэф]])), IF((G8="3/16"),((база!$L$4*Таблица1[[#This Row],[сумма]]*Таблица1[[#This Row],[коэф]])), IF((G8="4/4"),((база!$I$5*Таблица1[[#This Row],[сумма]]*Таблица1[[#This Row],[коэф]])), IF(OR(G8="2/4",G8="3/4"),((база!$I$4*Таблица1[[#This Row],[сумма]]*Таблица1[[#This Row],[коэф]])), IF((G8="5/8"),((база!$J$6*Таблица1[[#This Row],[сумма]]*Таблица1[[#This Row],[коэф]])), IF((G8="4/8"),((база!$J$5*Таблица1[[#This Row],[сумма]]*Таблица1[[#This Row],[коэф]])), IF(OR(G8="3/8",G8="2/8"),((база!$J$4*Таблица1[[#This Row],[сумма]]*Таблица1[[#This Row],[коэф]])))))))))))))), (IF((G8="5/24"),((база!$M$6*Таблица1[[#This Row],[сумма]]*Таблица1[[#This Row],[коэф]])), IF(OR(G8="4/24",G8="3/24"),((база!$M$5*Таблица1[[#This Row],[сумма]]*Таблица1[[#This Row],[коэф]])), IF((G8="5/16"),((база!$L$6*Таблица1[[#This Row],[сумма]]*Таблица1[[#This Row],[коэф]])), IF(OR(G8="4/16",G8="3/16"),((база!$L$5*Таблица1[[#This Row],[сумма]]*Таблица1[[#This Row],[коэф]])), IF(OR(G8="2/4",G8="3/4",G8="4/4"),((база!$I$5*Таблица1[[#This Row],[сумма]]*Таблица1[[#This Row],[коэф]])), IF((G8="5/8"),((база!$J$6*Таблица1[[#This Row],[сумма]]*Таблица1[[#This Row],[коэф]])), IF(OR(G8="4/8",G8="3/8",G8="2/8"),((база!$J$5*Таблица1[[#This Row],[сумма]]*Таблица1[[#This Row],[коэф]]))))))))))) -> 12160.512 | AP8: =IF(AR8<=3,(IF((G8="5/24"),((база!$M$6*2*Таблица1[[#This Row],[Столбец1]]*Таблица1[[#This Row],[коэф]])), IF((G8="4/24"),((база!$M$5*2*Таблица1[[#This Row],[Столбец1]]*Таблица1[[#This Row],[коэф]])), IF((G8="3/24"),((база!$M$4*2*Таблица1[[#This Row],[Столбец1]]*Таблица1[[#This Row],[коэф]])), IF((G8="5/16"),((база!$L$6*2*Таблица1[[#This Row],[Столбец1]]*Таблица1[[#This Row],[коэф]])), IF((G8="4/16"),((база!$L$5*2*Таблица1[[#This Row],[Столбец1]]*Таблица1[[#This Row],[коэф]])), IF((G8="3/16"),((база!$L$4*2*Таблица1[[#This Row],[Столбец1]]*Таблица1[[#This Row],[коэф]])), IF((G8="4/4"),((база!$I$5*2*Таблица1[[#This Row],[Столбец1]]*Таблица1[[#This Row],[коэф]])), IF(OR(G8="2/4",G8="3/4"),((база!$I$4*2*Таблица1[[#This Row],[Столбец1]]*Таблица1[[#This Row],[коэф]])), IF((G8="5/8"),((база!$J$6*2*Таблица1[[#This Row],[Столбец1]]*Таблица1[[#This Row],[коэф]])), IF((G8="4/8"),((база!$J$5*2*Таблица1[[#This Row],[Столбец1]]*Таблица1[[#This Row],[коэф]])), IF(OR(G8="3/8",G8="2/8"),((база!$J$4*2*Таблица1[[#This Row],[Столбец1]]*Таблица1[[#This Row],[коэф]])))))))))))))), (IF((G8="5/24"),((база!$M$6*2*Таблица1[[#This Row],[Столбец1]]*Таблица1[[#This Row],[коэф]])), IF(OR(G8="4/24",G8="3/24"),((база!$M$5*2*Таблица1[[#This Row],[Столбец1]]*Таблица1[[#This Row],[коэф]])), IF((G8="5/16"),((база!$L$6*2*Таблица1[[#This Row],[Столбец1]]*Таблица1[[#This Row],[коэф]])), IF(OR(G8="4/16",G8="3/16"),((база!$L$5*2*Таблица1[[#This Row],[Столбец1]]*Таблица1[[#This Row],[коэф]])), IF(OR(G8="2/4",G8="3/4",G8="4/4"),((база!$I$5*2*Таблица1[[#This Row],[Столбец1]]*Таблица1[[#This Row],[коэф]])), IF((G8="5/8"),((база!$J$6*2*Таблица1[[#This Row],[Столбец1]]*Таблица1[[#This Row],[коэф]])), IF(OR(G8="4/8",G8="3/8",G8="2/8"),((база!$J$5*2*Таблица1[[#This Row],[Столбец1]]*Таблица1[[#This Row],[коэф]]))))))))))) -> 2322.32 | AQ8: =IFERROR(INDEX(база!T:T, MATCH(F8,база!Q:Q,0)),"") -> 3 | AR8: =IFERROR(INDEX(база!D:D, MATCH(F8,база!B:B,0)),"") -> 3
A9: =A8 -> декабрь | B9: 2023 | C9: БО-01 | D9: 118-23 | E9: 1,5 | F9: Гработник1 | G9: 4/8 | Q9: 5.5 | R9: 7.2 | S9: 7.2 | T9: 7.2 | U9: 7.2 | V9: 6 | AM9: =IF(AQ9=1,SUM(H9:I9,L9:O9,R9:U9,X9:AA9,AD9:AG9,AI9:AK9), IF(AQ9=2,SUM(H9:K9,N9:Q9,T9:W9,Z9:AC9,AF9:AI9), IF(AQ9=3,SUM(J9:M9,P9:S9,V9:Y9,AB9:AE9,AH9:AK9),SUM(Таблица1[[#This Row],[1]:[31]])-Таблица1[[#This Row],[Столбец1]]))) -> 28.8 | AN9: =IF(AQ9=1,SUM(J9:K9,P9:Q9,V9:W9,AB9:AC9,AH9:AI9), IF(AQ9=2,SUM(L9:M9,R9:S9,X9:Y9,AD9:AE9), IF(AQ9=3,SUM(H9:I9,N9:O9,T9:U9,Z9:AA9,AF9:AG9), SUM(IFERROR(WEEKDAY($H$2:$AL$2,2)>5,)*H9:AL9)))) -> 11.5 | AO9: =IF(AR9<=3,(IF((G9="5/24"),((база!$M$6*Таблица1[[#This Row],[сумма]]*Таблица1[[#This Row],[коэф]])), IF((G9="4/24"),((база!$M$5*Таблица1[[#This Row],[сумма]]*Таблица1[[#This Row],[коэф]])), IF((G9="3/24"),((база!$M$4*Таблица1[[#This Row],[сумма]]*Таблица1[[#This Row],[коэф]])), IF((G9="5/16"),((база!$L$6*Таблица1[[#This Row],[сумма]]*Таблица1[[#This Row],[коэф]])), IF((G9="4/16"),((база!$L$5*Таблица1[[#This Row],[сумма]]*Таблица1[[#This Row],[коэф]])), IF((G9="3/16"),((база!$L$4*Таблица1[[#This Row],[сумма]]*Таблица1[[#This Row],[коэф]])), IF((G9="4/4"),((база!$I$5*Таблица1[[#This Row],[сумма]]*Таблица1[[#This Row],[коэф]])), IF(OR(G9="2/4",G9="3/4"),((база!$I$4*Таблица1[[#This Row],[сумма]]*Таблица1[[#This Row],[коэф]])), IF((G9="5/8"),((база!$J$6*Таблица1[[#This Row],[сумма]]*Таблица1[[#This Row],[коэф]])), IF((G9="4/8"),((база!$J$5*Таблица1[[#This Row],[сумма]]*Таблица1[[#This Row],[коэф]])), IF(OR(G9="3/8",G9="2/8"),((база!$J$4*Таблица1[[#This Row],[сумма]]*Таблица1[[#This Row],[коэф]])))))))))))))), (IF((G9="5/24"),((база!$M$6*Таблица1[[#This Row],[сумма]]*Таблица1[[#This Row],[коэф]])), IF(OR(G9="4/24",G9="3/24"),((база!$M$5*Таблица1[[#This Row],[сумма]]*Таблица1[[#This Row],[коэф]])), IF((G9="5/16"),((база!$L$6*Таблица1[[#This Row],[сумма]]*Таблица1[[#This Row],[коэф]])), IF(OR(G9="4/16",G9="3/16"),((база!$L$5*Таблица1[[#This Row],[сумма]]*Таблица1[[#This Row],[коэф]])), IF(OR(G9="2/4",G9="3/4",G9="4/4"),((база!$I$5*Таблица1[[#This Row],[сумма]]*Таблица1[[#This Row],[коэф]])), IF((G9="5/8"),((база!$J$6*Таблица1[[#This Row],[сумма]]*Таблица1[[#This Row],[коэф]])), IF(OR(G9="4/8",G9="3/8",G9="2/8"),((база!$J$5*Таблица1[[#This Row],[сумма]]*Таблица1[[#This Row],[коэф]]))))))))))) -> 6998.4 | AP9: =IF(AR9<=3,(IF((G9="5/24"),((база!$M$6*2*Таблица1[[#This Row],[Столбец1]]*Таблица1[[#This Row],[коэф]])), IF((G9="4/24"),((база!$M$5*2*Таблица1[[#This Row],[Столбец1]]*Таблица1[[#This Row],[коэф]])), IF((G9="3/24"),((база!$M$4*2*Таблица1[[#This Row],[Столбец1]]*Таблица1[[#This Row],[коэф]])), IF((G9="5/16"),((база!$L$6*2*Таблица1[[#This Row],[Столбец1]]*Таблица1[[#This Row],[коэф]])), IF((G9="4/16"),((база!$L$5*2*Таблица1[[#This Row],[Столбец1]]*Таблица1[[#This Row],[коэф]])), IF((G9="3/16"),((база!$L$4*2*Таблица1[[#This Row],[Столбец1]]*Таблица1[[#This Row],[коэф]])), IF((G9="4/4"),((база!$I$5*2*Таблица1[[#This Row],[Столбец1]]*Таблица1[[#This Row],[коэф]])), IF(OR(G9="2/4",G9="3/4"),((база!$I$4*2*Таблица1[[#This Row],[Столбец1]]*Таблица1[[#This Row],[коэф]])), IF((G9="5/8"),((база!$J$6*2*Таблица1[[#This Row],[Столбец1]]*Таблица1[[#This Row],[коэф]])), IF((G9="4/8"),((база!$J$5*2*Таблица1[[#This Row],[Столбец1]]*Таблица1[[#This Row],[коэф]])), IF(OR(G9="3/8",G9="2/8"),((база!$J$4*2*Таблица1[[#This Row],[Столбец1]]*Таблица1[[#This Row],[коэф]])))))))))))))), (IF((G9="5/24"),((база!$M$6*2*Таблица1[[#This Row],[Столбец1]]*Таблица1[[#This Row],[коэф]])), IF(OR(G9="4/24",G9="3/24"),((база!$M$5*2*Таблица1[[#This Row],[Столбец1]]*Таблица1[[#This Row],[коэф]])), IF((G9="5/16"),((база!$L$6*2*Таблица1[[#This Row],[Столбец1]]*Таблица1[[#This Row],[коэф]])), IF(OR(G9="4/16",G9="3/16"),((база!$L$5*2*Таблица1[[#This Row],[Столбец1]]*Таблица1[[#This Row],[коэф]])), IF(OR(G9="2/4",G9="3/4",G9="4/4"),((база!$I$5*2*Таблица1[[#This Row],[Столбец1]]*Таблица1[[#This Row],[коэф]])), IF((G9="5/8"),((база!$J$6*2*Таблица1[[#This Row],[Столбец1]]*Таблица1[[#This Row],[коэф]])), IF(OR(G9="4/8",G9="3/8",G9="2/8"),((база!$J$5*2*Таблица1[[#This Row],[Столбец1]]*Таблица1[[#This Row],[коэф]]))))))))))) -> 5589 | AQ9: =IFERROR(INDEX(база!T:T, MATCH(F9,база!Q:Q,0)),"") -> 1 | AR9: =IFERROR(INDEX(база!D:D, MATCH(F9,база!B:B,0)),"") -> 3
A10: декабрь | B10: 2023 | C10: БО-01 | D10: 5-24 | E10: 1,5 | F10: Аработник1 | G10: 4/8 | R10: 7 | T10: 7.2 | U10: 7.2 | V10: 7.2 | W10: 7.2 | AM10: =IF(AQ10=1,SUM(H10:I10,L10:O10,R10:U10,X10:AA10,AD10:AG10,AI10:AK10), IF(AQ10=2,SUM(H10:K10,N10:Q10,T10:W10,Z10:AC10,AF10:AI10), IF(AQ10=3,SUM(J10:M10,P10:S10,V10:Y10,AB10:AE10,AH10:AK10),SUM(Таблица1[[#This Row],[1]:[31]])-Таблица1[[#This Row],[Столбец1]]))) -> 28.8 | AN10: =IF(AQ10=1,SUM(J10:K10,P10:Q10,V10:W10,AB10:AC10,AH10:AI10), IF(AQ10=2,SUM(L10:M10,R10:S10,X10:Y10,AD10:AE10), IF(AQ10=3,SUM(H10:I10,N10:O10,T10:U10,Z10:AA10,AF10:AG10), SUM(IFERROR(WEEKDAY($H$2:$AL$2,2)>5,)*H10:AL10)))) -> 7 | AO10: =IF(AR10<=3,(IF((G10="5/24"),((база!$M$6*Таблица1[[#This Row],[сумма]]*Таблица1[[#This Row],[коэф]])), IF((G10="4/24"),((база!$M$5*Таблица1[[#This Row],[сумма]]*Таблица1[[#This Row],[коэф]])), IF((G10="3/24"),((база!$M$4*Таблица1[[#This Row],[сумма]]*Таблица1[[#This Row],[коэф]])), IF((G10="5/16"),((база!$L$6*Таблица1[[#This Row],[сумма]]*Таблица1[[#This Row],[коэф]])), IF((G10="4/16"),((база!$L$5*Таблица1[[#This Row],[сумма]]*Таблица1[[#This Row],[коэф]])), IF((G10="3/16"),((база!$L$4*Таблица1[[#This Row],[сумма]]*Таблица1[[#This Row],[коэф]])), IF((G10="4/4"),((база!$I$5*Таблица1[[#This Row],[сумма]]*Таблица1[[#This Row],[коэф]])), IF(OR(G10="2/4",G10="3/4"),((база!$I$4*Таблица1[[#This Row],[сумма]]*Таблица1[[#This Row],[коэф]])), IF((G10="5/8"),((база!$J$6*Таблица1[[#This Row],[сумма]]*Таблица1[[#This Row],[коэф]])), IF((G10="4/8"),((база!$J$5*Таблица1[[#This Row],[сумма]]*Таблица1[[#This Row],[коэф]])), IF(OR(G10="3/8",G10="2/8"),((база!$J$4*Таблица1[[#This Row],[сумма]]*Таблица1[[#This Row],[коэф]])))))))))))))), (IF((G10="5/24"),((база!$M$6*Таблица1[[#This Row],[сумма]]*Таблица1[[#This Row],[коэф]])), IF(OR(G10="4/24",G10="3/24"),((база!$M$5*Таблица1[[#This Row],[сумма]]*Таблица1[[#This Row],[коэф]])), IF((G10="5/16"),((база!$L$6*Таблица1[[#This Row],[сумма]]*Таблица1[[#This Row],[коэф]])), IF(OR(G10="4/16",G10="3/16"),((база!$L$5*Таблица1[[#This Row],[сумма]]*Таблица1[[#This Row],[коэф]])), IF(OR(G10="2/4",G10="3/4",G10="4/4"),((база!$I$5*Таблица1[[#This Row],[сумма]]*Таблица1[[#This Row],[коэф]])), IF((G10="5/8"),((база!$J$6*Таблица1[[#This Row],[сумма]]*Таблица1[[#This Row],[коэф]])), IF(OR(G10="4/8",G10="3/8",G10="2/8"),((база!$J$5*Таблица1[[#This Row],[сумма]]*Таблица1[[#This Row],[коэф]]))))))))))) -> 6998.4 | AP10: =IF(AR10<=3,(IF((G10="5/24"),((база!$M$6*2*Таблица1[[#This Row],[Столбец1]]*Таблица1[[#This Row],[коэф]])), IF((G10="4/24"),((база!$M$5*2*Таблица1[[#This Row],[Столбец1]]*Таблица1[[#This Row],[коэф]])), IF((G10="3/24"),((база!$M$4*2*Таблица1[[#This Row],[Столбец1]]*Таблица1[[#This Row],[коэф]])), IF((G10="5/16"),((база!$L$6*2*Таблица1[[#This Row],[Столбец1]]*Таблица1[[#This Row],[коэф]])), IF((G10="4/16"),((база!$L$5*2*Таблица1[[#This Row],[Столбец1]]*Таблица1[[#This Row],[коэф]])), IF((G10="3/16"),((база!$L$4*2*Таблица1[[#This Row],[Столбец1]]*Таблица1[[#This Row],[коэф]])), IF((G10="4/4"),((база!$I$5*2*Таблица1[[#This Row],[Столбец1]]*Таблица1[[#This Row],[коэф]])), IF(OR(G10="2/4",G10="3/4"),((база!$I$4*2*Таблица1[[#This Row],[Столбец1]]*Таблица1[[#This Row],[коэф]])), IF((G10="5/8"),((база!$J$6*2*Таблица1[[#This Row],[Столбец1]]*Таблица1[[#This Row],[коэф]])), IF((G10="4/8"),((база!$J$5*2*Таблица1[[#This Row],[Столбец1]]*Таблица1[[#This Row],[коэф]])), IF(OR(G10="3/8",G10="2/8"),((база!$J$4*2*Таблица1[[#This Row],[Столбец1]]*Таблица1[[#This Row],[коэф]])))))))))))))), (IF((G10="5/24"),((база!$M$6*2*Таблица1[[#This Row],[Столбец1]]*Таблица1[[#This Row],[коэф]])), IF(OR(G10="4/24",G10="3/24"),((база!$M$5*2*Таблица1[[#This Row],[Столбец1]]*Таблица1[[#This Row],[коэф]])), IF((G10="5/16"),((база!$L$6*2*Таблица1[[#This Row],[Столбец1]]*Таблица1[[#This Row],[коэф]])), IF(OR(G10="4/16",G10="3/16"),((база!$L$5*2*Таблица1[[#This Row],[Столбец1]]*Таблица1[[#This Row],[коэф]])), IF(OR(G10="2/4",G10="3/4",G10="4/4"),((база!$I$5*2*Таблица1[[#This Row],[Столбец1]]*Таблица1[[#This Row],[коэф]])), IF((G10="5/8"),((база!$J$6*2*Таблица1[[#This Row],[Столбец1]]*Таблица1[[#This Row],[коэф]])), IF(OR(G10="4/8",G10="3/8",G10="2/8"),((база!$J$5*2*Таблица1[[#This Row],[Столбец1]]*Таблица1[[#This Row],[коэф]]))))))))))) -> 3402 | AQ10: =IFERROR(INDEX(база!T:T, MATCH(F10,база!Q:Q,0)),"") -> 2 | AR10: =IFERROR(INDEX(база!D:D, MATCH(F10,база!B:B,0)),"") -> 4
A11: декабрь | B11: 2023 | C11: 7Б7 | D11: 26-23 | E11: 1,5 | F11: Гработник1 | G11: 4/8 | H11: 7.2 | I11: 7.2 | J11: 6 | L11: 7.2 | M11: 7.2 | N11: 7.2 | O11: 7.2 | AM11: =IF(AQ11=1,SUM(H11:I11,L11:O11,R11:U11,X11:AA11,AD11:AG11,AI11:AK11), IF(AQ11=2,SUM(H11:K11,N11:Q11,T11:W11,Z11:AC11,AF11:AI11), IF(AQ11=3,SUM(J11:M11,P11:S11,V11:Y11,AB11:AE11,AH11:AK11),SUM(Таблица1[[#This Row],[1]:[31]])-Таблица1[[#This Row],[Столбец1]]))) -> 43.2 | AN11: =IF(AQ11=1,SUM(J11:K11,P11:Q11,V11:W11,AB11:AC11,AH11:AI11), IF(AQ11=2,SUM(L11:M11,R11:S11,X11:Y11,AD11:AE11), IF(AQ11=3,SUM(H11:I11,N11:O11,T11:U11,Z11:AA11,AF11:AG11), SUM(IFERROR(WEEKDAY($H$2:$AL$2,2)>5,)*H11:AL11)))) -> 6 | AO11: =IF(AR11<=3,(IF((G11="5/24"),((база!$M$6*Таблица1[[#This Row],[сумма]]*Таблица1[[#This Row],[коэф]])), IF((G11="4/24"),((база!$M$5*Таблица1[[#This Row],[сумма]]*Таблица1[[#This Row],[коэф]])), IF((G11="3/24"),((база!$M$4*Таблица1[[#This Row],[сумма]]*Таблица1[[#This Row],[коэф]])), IF((G11="5/16"),((база!$L$6*Таблица1[[#This Row],[сумма]]*Таблица1[[#This Row],[коэф]])), IF((G11="4/16"),((база!$L$5*Таблица1[[#This Row],[сумма]]*Таблица1[[#This Row],[коэф]])), IF((G11="3/16"),((база!$L$4*Таблица1[[#This Row],[сумма]]*Таблица1[[#This Row],[коэф]])), IF((G11="4/4"),((база!$I$5*Таблица1[[#This Row],[сумма]]*Таблица1[[#This Row],[коэф]])), IF(OR(G11="2/4",G11="3/4"),((база!$I$4*Таблица1[[#This Row],[сумма]]*Таблица1[[#This Row],[коэф]])), IF((G11="5/8"),((база!$J$6*Таблица1[[#This Row],[сумма]]*Таблица1[[#This Row],[коэф]])), IF((G11="4/8"),((база!$J$5*Таблица1[[#This Row],[сумма]]*Таблица1[[#This Row],[коэф]])), IF(OR(G11="3/8",G11="2/8"),((база!$J$4*Таблица1[[#This Row],[сумма]]*Таблица1[[#This Row],[коэф]])))))))))))))), (IF((G11="5/24"),((база!$M$6*Таблица1[[#This Row],[сумма]]*Таблица1[[#This Row],[коэф]])), IF(OR(G11="4/24",G11="3/24"),((база!$M$5*Таблица1[[#This Row],[сумма]]*Таблица1[[#This Row],[коэф]])), IF((G11="5/16"),((база!$L$6*Таблица1[[#This Row],[сумма]]*Таблица1[[#This Row],[коэф]])), IF(OR(G11="4/16",G11="3/16"),((база!$L$5*Таблица1[[#This Row],[сумма]]*Таблица1[[#This Row],[коэф]])), IF(OR(G11="2/4",G11="3/4",G11="4/4"),((база!$I$5*Таблица1[[#This Row],[сумма]]*Таблица1[[#This Row],[коэф]])), IF((G11="5/8"),((база!$J$6*Таблица1[[#This Row],[сумма]]*Таблица1[[#This Row],[коэф]])), IF(OR(G11="4/8",G11="3/8",G11="2/8"),((база!$J$5*Таблица1[[#This Row],[сумма]]*Таблица1[[#This Row],[коэф]]))))))))))) -> 10497.6 | AP11: =IF(AR11<=3,(IF((G11="5/24"),((база!$M$6*2*Таблица1[[#This Row],[Столбец1]]*Таблица1[[#This Row],[коэф]])), IF((G11="4/24"),((база!$M$5*2*Таблица1[[#This Row],[Столбец1]]*Таблица1[[#This Row],[коэф]])), IF((G11="3/24"),((база!$M$4*2*Таблица1[[#This Row],[Столбец1]]*Таблица1[[#This Row],[коэф]])), IF((G11="5/16"),((база!$L$6*2*Таблица1[[#This Row],[Столбец1]]*Таблица1[[#This Row],[коэф]])), IF((G11="4/16"),((база!$L$5*2*Таблица1[[#This Row],[Столбец1]]*Таблица1[[#This Row],[коэф]])), IF((G11="3/16"),((база!$L$4*2*Таблица1[[#This Row],[Столбец1]]*Таблица1[[#This Row],[коэф]])), IF((G11="4/4"),((база!$I$5*2*Таблица1[[#This Row],[Столбец1]]*Таблица1[[#This Row],[коэф]])), IF(OR(G11="2/4",G11="3/4"),((база!$I$4*2*Таблица1[[#This Row],[Столбец1]]*Таблица1[[#This Row],[коэф]])), IF((G11="5/8"),((база!$J$6*2*Таблица1[[#This Row],[Столбец1]]*Таблица1[[#This Row],[коэф]])), IF((G11="4/8"),((база!$J$5*2*Таблица1[[#This Row],[Столбец1]]*Таблица1[[#This Row],[коэф]])), IF(OR(G11="3/8",G11="2/8"),((база!$J$4*2*Таблица1[[#This Row],[Столбец1]]*Таблица1[[#This Row],[коэф]])))))))))))))), (IF((G11="5/24"),((база!$M$6*2*Таблица1[[#This Row],[Столбец1]]*Таблица1[[#This Row],[коэф]])), IF(OR(G11="4/24",G11="3/24"),((база!$M$5*2*Таблица1[[#This Row],[Столбец1]]*Таблица1[[#This Row],[коэф]])), IF((G11="5/16"),((база!$L$6*2*Таблица1[[#This Row],[Столбец1]]*Таблица1[[#This Row],[коэф]])), IF(OR(G11="4/16",G11="3/16"),((база!$L$5*2*Таблица1[[#This Row],[Столбец1]]*Таблица1[[#This Row],[коэф]])), IF(OR(G11="2/4",G11="3/4",G11="4/4"),((база!$I$5*2*Таблица1[[#This Row],[Столбец1]]*Таблица1[[#This Row],[коэф]])), IF((G11="5/8"),((база!$J$6*2*Таблица1[[#This Row],[Столбец1]]*Таблица1[[#This Row],[коэф]])), IF(OR(G11="4/8",G11="3/8",G11="2/8"),((база!$J$5*2*Таблица1[[#This Row],[Столбец1]]*Таблица1[[#This Row],[коэф]]))))))))))) -> 2916 | AQ11: =IFERROR(INDEX(база!T:T, MATCH(F11,база!Q:Q,0)),"") -> 1 | AR11: =IFERROR(INDEX(база!D:D, MATCH(F11,база!B:B,0)),"") -> 3
A12: =A11 -> декабрь | B12: 2023 | C12: БО-01 | D12: 118-23 | E12: 1,4 | F12: Дработник1 | G12: 3/16 | I12: 7.2 | N12: 7.2 | O12: 7.2 | P12: 7.2 | Q12: 7.2 | AM12: =IF(AQ12=1,SUM(H12:I12,L12:O12,R12:U12,X12:AA12,AD12:AG12,AI12:AK12), IF(AQ12=2,SUM(H12:K12,N12:Q12,T12:W12,Z12:AC12,AF12:AI12), IF(AQ12=3,SUM(J12:M12,P12:S12,V12:Y12,AB12:AE12,AH12:AK12),SUM(Таблица1[[#This Row],[1]:[31]])-Таблица1[[#This Row],[Столбец1]]))) -> 36 | AN12: =IF(AQ12=1,SUM(J12:K12,P12:Q12,V12:W12,AB12:AC12,AH12:AI12), IF(AQ12=2,SUM(L12:M12,R12:S12,X12:Y12,AD12:AE12), IF(AQ12=3,SUM(H12:I12,N12:O12,T12:U12,Z12:AA12,AF12:AG12), SUM(IFERROR(WEEKDAY($H$2:$AL$2,2)>5,)*H12:AL12)))) -> 0 | AO12: =IF(AR12<=3,(IF((G12="5/24"),((база!$M$6*Таблица1[[#This Row],[сумма]]*Таблица1[[#This Row],[коэф]])), IF((G12="4/24"),((база!$M$5*Таблица1[[#This Row],[сумма]]*Таблица1[[#This Row],[коэф]])), IF((G12="3/24"),((база!$M$4*Таблица1[[#This Row],[сумма]]*Таблица1[[#This Row],[коэф]])), IF((G12="5/16"),((база!$L$6*Таблица1[[#This Row],[сумма]]*Таблица1[[#This Row],[коэф]])), IF((G12="4/16"),((база!$L$5*Таблица1[[#This Row],[сумма]]*Таблица1[[#This Row],[коэф]])), IF((G12="3/16"),((база!$L$4*Таблица1[[#This Row],[сумма]]*Таблица1[[#This Row],[коэф]])), IF((G12="4/4"),((база!$I$5*Таблица1[[#This Row],[сумма]]*Таблица1[[#This Row],[коэф]])), IF(OR(G12="2/4",G12="3/4"),((база!$I$4*Таблица1[[#This Row],[сумма]]*Таблица1[[#This Row],[коэф]])), IF((G12="5/8"),((база!$J$6*Таблица1[[#This Row],[сумма]]*Таблица1[[#This Row],[коэф]])), IF((G12="4/8"),((база!$J$5*Таблица1[[#This Row],[сумма]]*Таблица1[[#This Row],[коэф]])), IF(OR(G12="3/8",G12="2/8"),((база!$J$4*Таблица1[[#This Row],[сумма]]*Таблица1[[#This Row],[коэф]])))))))))))))), (IF((G12="5/24"),((база!$M$6*Таблица1[[#This Row],[сумма]]*Таблица1[[#This Row],[коэф]])), IF(OR(G12="4/24",G12="3/24"),((база!$M$5*Таблица1[[#This Row],[сумма]]*Таблица1[[#This Row],[коэф]])), IF((G12="5/16"),((база!$L$6*Таблица1[[#This Row],[сумма]]*Таблица1[[#This Row],[коэф]])), IF(OR(G12="4/16",G12="3/16"),((база!$L$5*Таблица1[[#This Row],[сумма]]*Таблица1[[#This Row],[коэф]])), IF(OR(G12="2/4",G12="3/4",G12="4/4"),((база!$I$5*Таблица1[[#This Row],[сумма]]*Таблица1[[#This Row],[коэф]])), IF((G12="5/8"),((база!$J$6*Таблица1[[#This Row],[сумма]]*Таблица1[[#This Row],[коэф]])), IF(OR(G12="4/8",G12="3/8",G12="2/8"),((база!$J$5*Таблица1[[#This Row],[сумма]]*Таблица1[[#This Row],[коэф]]))))))))))) -> 7600.32 | AP12: =IF(AR12<=3,(IF((G12="5/24"),((база!$M$6*2*Таблица1[[#This Row],[Столбец1]]*Таблица1[[#This Row],[коэф]])), IF((G12="4/24"),((база!$M$5*2*Таблица1[[#This Row],[Столбец1]]*Таблица1[[#This Row],[коэф]])), IF((G12="3/24"),((база!$M$4*2*Таблица1[[#This Row],[Столбец1]]*Таблица1[[#This Row],[коэф]])), IF((G12="5/16"),((база!$L$6*2*Таблица1[[#This Row],[Столбец1]]*Таблица1[[#This Row],[коэф]])), IF((G12="4/16"),((база!$L$5*2*Таблица1[[#This Row],[Столбец1]]*Таблица1[[#This Row],[коэф]])), IF((G12="3/16"),((база!$L$4*2*Таблица1[[#This Row],[Столбец1]]*Таблица1[[#This Row],[коэф]])), IF((G12="4/4"),((база!$I$5*2*Таблица1[[#This Row],[Столбец1]]*Таблица1[[#This Row],[коэф]])), IF(OR(G12="2/4",G12="3/4"),((база!$I$4*2*Таблица1[[#This Row],[Столбец1]]*Таблица1[[#This Row],[коэф]])), IF((G12="5/8"),((база!$J$6*2*Таблица1[[#This Row],[Столбец1]]*Таблица1[[#This Row],[коэф]])), IF((G12="4/8"),((база!$J$5*2*Таблица1[[#This Row],[Столбец1]]*Таблица1[[#This Row],[коэф]])), IF(OR(G12="3/8",G12="2/8"),((база!$J$4*2*Таблица1[[#This Row],[Столбец1]]*Таблица1[[#This Row],[коэф]])))))))))))))), (IF((G12="5/24"),((база!$M$6*2*Таблица1[[#This Row],[Столбец1]]*Таблица1[[#This Row],[коэф]])), IF(OR(G12="4/24",G12="3/24"),((база!$M$5*2*Таблица1[[#This Row],[Столбец1]]*Таблица1[[#This Row],[коэф]])), IF((G12="5/16"),((база!$L$6*2*Таблица1[[#This Row],[Столбец1]]*Таблица1[[#This Row],[коэф]])), IF(OR(G12="4/16",G12="3/16"),((база!$L$5*2*Таблица1[[#This Row],[Столбец1]]*Таблица1[[#This Row],[коэф]])), IF(OR(G12="2/4",G12="3/4",G12="4/4"),((база!$I$5*2*Таблица1[[#This Row],[Столбец1]]*Таблица1[[#This Row],[коэф]])), IF((G12="5/8"),((база!$J$6*2*Таблица1[[#This Row],[Столбец1]]*Таблица1[[#This Row],[коэф]])), IF(OR(G12="4/8",G12="3/8",G12="2/8"),((база!$J$5*2*Таблица1[[#This Row],[Столбец1]]*Таблица1[[#This Row],[коэф]]))))))))))) -> 0 | AQ12: =IFERROR(INDEX(база!T:T, MATCH(F12,база!Q:Q,0)),"") -> 2 | AR12: =IFERROR(INDEX(база!D:D, MATCH(F12,база!B:B,0)),"") -> 3
A13: декабрь | B13: 2023 | C13: В5 | D13: 13-23 | E13: 1,5 | F13: Еработник1 | G13: 4/8 | K13: 7.2 | L13: 7.2 | M13: 7.2 | N13: 7.2 | O13: 7.2 | P13: 6 | R13: 7.2 | S13: 7.2 | T13: 7.2 | U13: 7.2 | V13: 7.2 | W13: 6 | Y13: 7.2 | Z13: 7.2 | AA13: 7.2 | AB13: 7.2 | AC13: 7.2 | AE13: 6 | AF13: 7.2 | AG13: 7.2 | AH13: 7.2 | AI13: 7.2 | AJ13: 7.2 | AM13: =IF(AQ13=1,SUM(H13:I13,L13:O13,R13:U13,X13:AA13,AD13:AG13,AI13:AK13), IF(AQ13=2,SUM(H13:K13,N13:Q13,T13:W13,Z13:AC13,AF13:AI13), IF(AQ13=3,SUM(J13:M13,P13:S13,V13:Y13,AB13:AE13,AH13:AK13),SUM(Таблица1[[#This Row],[1]:[31]])-Таблица1[[#This Row],[Столбец1]]))) -> 162 | AN13: =IF(AQ13=1,SUM(J13:K13,P13:Q13,V13:W13,AB13:AC13,AH13:AI13), IF(AQ13=2,SUM(L13:M13,R13:S13,X13:Y13,AD13:AE13), IF(AQ13=3,SUM(H13:I13,N13:O13,T13:U13,Z13:AA13,AF13:AG13), SUM(IFERROR(WEEKDAY($H$2:$AL$2,2)>5,)*H13:AL13)))) -> 0 | AO13: =IF(AR13<=3,(IF((G13="5/24"),((база!$M$6*Таблица1[[#This Row],[сумма]]*Таблица1[[#This Row],[коэф]])), IF((G13="4/24"),((база!$M$5*Таблица1[[#This Row],[сумма]]*Таблица1[[#This Row],[коэф]])), IF((G13="3/24"),((база!$M$4*Таблица1[[#This Row],[сумма]]*Таблица1[[#This Row],[коэф]])), IF((G13="5/16"),((база!$L$6*Таблица1[[#This Row],[сумма]]*Таблица1[[#This Row],[коэф]])), IF((G13="4/16"),((база!$L$5*Таблица1[[#This Row],[сумма]]*Таблица1[[#This Row],[коэф]])), IF((G13="3/16"),((база!$L$4*Таблица1[[#This Row],[сумма]]*Таблица1[[#This Row],[коэф]])), IF((G13="4/4"),((база!$I$5*Таблица1[[#This Row],[сумма]]*Таблица1[[#This Row],[коэф]])), IF(OR(G13="2/4",G13="3/4"),((база!$I$4*Таблица1[[#This Row],[сумма]]*Таблица1[[#This Row],[коэф]])), IF((G13="5/8"),((база!$J$6*Таблица1[[#This Row],[сумма]]*Таблица1[[#This Row],[коэф]])), IF((G13="4/8"),((база!$J$5*Таблица1[[#This Row],[сумма]]*Таблица1[[#This Row],[коэф]])), IF(OR(G13="3/8",G13="2/8"),((база!$J$4*Таблица1[[#This Row],[сумма]]*Таблица1[[#This Row],[коэф]])))))))))))))), (IF((G13="5/24"),((база!$M$6*Таблица1[[#This Row],[сумма]]*Таблица1[[#This Row],[коэф]])), IF(OR(G13="4/24",G13="3/24"),((база!$M$5*Таблица1[[#This Row],[сумма]]*Таблица1[[#This Row],[коэф]])), IF((G13="5/16"),((база!$L$6*Таблица1[[#This Row],[сумма]]*Таблица1[[#This Row],[коэф]])), IF(OR(G13="4/16",G13="3/16"),((база!$L$5*Таблица1[[#This Row],[сумма]]*Таблица1[[#This Row],[коэф]])), IF(OR(G13="2/4",G13="3/4",G13="4/4"),((база!$I$5*Таблица1[[#This Row],[сумма]]*Таблица1[[#This Row],[коэф]])), IF((G13="5/8"),((база!$J$6*Таблица1[[#This Row],[сумма]]*Таблица1[[#This Row],[коэф]])), IF(OR(G13="4/8",G13="3/8",G13="2/8"),((база!$J$5*Таблица1[[#This Row],[сумма]]*Таблица1[[#This Row],[коэф]]))))))))))) -> 39366 | AP13: =IF(AR13<=3,(IF((G13="5/24"),((база!$M$6*2*Таблица1[[#This Row],[Столбец1]]*Таблица1[[#This Row],[коэф]])), IF((G13="4/24"),((база!$M$5*2*Таблица1[[#This Row],[Столбец1]]*Таблица1[[#This Row],[коэф]])), IF((G13="3/24"),((база!$M$4*2*Таблица1[[#This Row],[Столбец1]]*Таблица1[[#This Row],[коэф]])), IF((G13="5/16"),((база!$L$6*2*Таблица1[[#This Row],[Столбец1]]*Таблица1[[#This Row],[коэф]])), IF((G13="4/16"),((база!$L$5*2*Таблица1[[#This Row],[Столбец1]]*Таблица1[[#This Row],[коэф]])), IF((G13="3/16"),((база!$L$4*2*Таблица1[[#This Row],[Столбец1]]*Таблица1[[#This Row],[коэф]])), IF((G13="4/4"),((база!$I$5*2*Таблица1[[#This Row],[Столбец1]]*Таблица1[[#This Row],[коэф]])), IF(OR(G13="2/4",G13="3/4"),((база!$I$4*2*Таблица1[[#This Row],[Столбец1]]*Таблица1[[#This Row],[коэф]])), IF((G13="5/8"),((база!$J$6*2*Таблица1[[#This Row],[Столбец1]]*Таблица1[[#This Row],[коэф]])), IF((G13="4/8"),((база!$J$5*2*Таблица1[[#This Row],[Столбец1]]*Таблица1[[#This Row],[коэф]])), IF(OR(G13="3/8",G13="2/8"),((база!$J$4*2*Таблица1[[#This Row],[Столбец1]]*Таблица1[[#This Row],[коэф]])))))))))))))), (IF((G13="5/24"),((база!$M$6*2*Таблица1[[#This Row],[Столбец1]]*Таблица1[[#This Row],[коэф]])), IF(OR(G13="4/24",G13="3/24"),((база!$M$5*2*Таблица1[[#This Row],[Столбец1]]*Таблица1[[#This Row],[коэф]])), IF((G13="5/16"),((база!$L$6*2*Таблица1[[#This Row],[Столбец1]]*Таблица1[[#This Row],[коэф]])), IF(OR(G13="4/16",G13="3/16"),((база!$L$5*2*Таблица1[[#This Row],[Столбец1]]*Таблица1[[#This Row],[коэф]])), IF(OR(G13="2/4",G13="3/4",G13="4/4"),((база!$I$5*2*Таблица1[[#This Row],[Столбец1]]*Таблица1[[#This Row],[коэф]])), IF((G13="5/8"),((база!$J$6*2*Таблица1[[#This Row],[Столбец1]]*Таблица1[[#This Row],[коэф]])), IF(OR(G13="4/8",G13="3/8",G13="2/8"),((база!$J$5*2*Таблица1[[#This Row],[Столбец1]]*Таблица1[[#This Row],[коэф]]))))))))))) -> 0 | AQ13: =IFERROR(INDEX(база!T:T, MATCH(F13,база!Q:Q,0)),"") -> 0 | AR13: =IFERROR(INDEX(база!D:D, MATCH(F13,база!B:B,0)),"") -> 3
A14: декабрь | B14: 2023 | C14: В5 | D14: 13-23 | E14: 1 | F14: Еработник2 | G14: 3/24 | H14: 7.2 | K14: 7.2 | M14: 7.2 | N14: 7.2 | O14: 7.2 | R14: 7.2 | S14: 7.2 | T14: 7.2 | AM14: =IF(AQ14=1,SUM(H14:I14,L14:O14,R14:U14,X14:AA14,AD14:AG14,AI14:AK14), IF(AQ14=2,SUM(H14:K14,N14:Q14,T14:W14,Z14:AC14,AF14:AI14), IF(AQ14=3,SUM(J14:M14,P14:S14,V14:Y14,AB14:AE14,AH14:AK14),SUM(Таблица1[[#This Row],[1]:[31]])-Таблица1[[#This Row],[Столбец1]]))) -> 57.6 | AN14: =IF(AQ14=1,SUM(J14:K14,P14:Q14,V14:W14,AB14:AC14,AH14:AI14), IF(AQ14=2,SUM(L14:M14,R14:S14,X14:Y14,AD14:AE14), IF(AQ14=3,SUM(H14:I14,N14:O14,T14:U14,Z14:AA14,AF14:AG14), SUM(IFERROR(WEEKDAY($H$2:$AL$2,2)>5,)*H14:AL14)))) -> 0 | AO14: =IF(AR14<=3,(IF((G14="5/24"),((база!$M$6*Таблица1[[#This Row],[сумма]]*Таблица1[[#This Row],[коэф]])), IF((G14="4/24"),((база!$M$5*Таблица1[[#This Row],[сумма]]*Таблица1[[#This Row],[коэф]])), IF((G14="3/24"),((база!$M$4*Таблица1[[#This Row],[сумма]]*Таблица1[[#This Row],[коэф]])), IF((G14="5/16"),((база!$L$6*Таблица1[[#This Row],[сумма]]*Таблица1[[#This Row],[коэф]])), IF((G14="4/16"),((база!$L$5*Таблица1[[#This Row],[сумма]]*Таблица1[[#This Row],[коэф]])), IF((G14="3/16"),((база!$L$4*Таблица1[[#This Row],[сумма]]*Таблица1[[#This Row],[коэф]])), IF((G14="4/4"),((база!$I$5*Таблица1[[#This Row],[сумма]]*Таблица1[[#This Row],[коэф]])), IF(OR(G14="2/4",G14="3/4"),((база!$I$4*Таблица1[[#This Row],[сумма]]*Таблица1[[#This Row],[коэф]])), IF((G14="5/8"),((база!$J$6*Таблица1[[#This Row],[сумма]]*Таблица1[[#This Row],[коэф]])), IF((G14="4/8"),((база!$J$5*Таблица1[[#This Row],[сумма]]*Таблица1[[#This Row],[коэф]])), IF(OR(G14="3/8",G14="2/8"),((база!$J$4*Таблица1[[#This Row],[сумма]]*Таблица1[[#This Row],[коэф]])))))))))))))), (IF((G14="5/24"),((база!$M$6*Таблица1[[#This Row],[сумма]]*Таблица1[[#This Row],[коэф]])), IF(OR(G14="4/24",G14="3/24"),((база!$M$5*Таблица1[[#This Row],[сумма]]*Таблица1[[#This Row],[коэф]])), IF((G14="5/16"),((база!$L$6*Таблица1[[#This Row],[сумма]]*Таблица1[[#This Row],[коэф]])), IF(OR(G14="4/16",G14="3/16"),((база!$L$5*Таблица1[[#This Row],[сумма]]*Таблица1[[#This Row],[коэф]])), IF(OR(G14="2/4",G14="3/4",G14="4/4"),((база!$I$5*Таблица1[[#This Row],[сумма]]*Таблица1[[#This Row],[коэф]])), IF((G14="5/8"),((база!$J$6*Таблица1[[#This Row],[сумма]]*Таблица1[[#This Row],[коэф]])), IF(OR(G14="4/8",G14="3/8",G14="2/8"),((база!$J$5*Таблица1[[#This Row],[сумма]]*Таблица1[[#This Row],[коэф]]))))))))))) -> 9285.12 | AP14: =IF(AR14<=3,(IF((G14="5/24"),((база!$M$6*2*Таблица1[[#This Row],[Столбец1]]*Таблица1[[#This Row],[коэф]])), IF((G14="4/24"),((база!$M$5*2*Таблица1[[#This Row],[Столбец1]]*Таблица1[[#This Row],[коэф]])), IF((G14="3/24"),((база!$M$4*2*Таблица1[[#This Row],[Столбец1]]*Таблица1[[#This Row],[коэф]])), IF((G14="5/16"),((база!$L$6*2*Таблица1[[#This Row],[Столбец1]]*Таблица1[[#This Row],[коэф]])), IF((G14="4/16"),((база!$L$5*2*Таблица1[[#This Row],[Столбец1]]*Таблица1[[#This Row],[коэф]])), IF((G14="3/16"),((база!$L$4*2*Таблица1[[#This Row],[Столбец1]]*Таблица1[[#This Row],[коэф]])), IF((G14="4/4"),((база!$I$5*2*Таблица1[[#This Row],[Столбец1]]*Таблица1[[#This Row],[коэф]])), IF(OR(G14="2/4",G14="3/4"),((база!$I$4*2*Таблица1[[#This Row],[Столбец1]]*Таблица1[[#This Row],[коэф]])), IF((G14="5/8"),((база!$J$6*2*Таблица1[[#This Row],[Столбец1]]*Таблица1[[#This Row],[коэф]])), IF((G14="4/8"),((база!$J$5*2*Таблица1[[#This Row],[Столбец1]]*Таблица1[[#This Row],[коэф]])), IF(OR(G14="3/8",G14="2/8"),((база!$J$4*2*Таблица1[[#This Row],[Столбец1]]*Таблица1[[#This Row],[коэф]])))))))))))))), (IF((G14="5/24"),((база!$M$6*2*Таблица1[[#This Row],[Столбец1]]*Таблица1[[#This Row],[коэф]])), IF(OR(G14="4/24",G14="3/24"),((база!$M$5*2*Таблица1[[#This Row],[Столбец1]]*Таблица1[[#This Row],[коэф]])), IF((G14="5/16"),((база!$L$6*2*Таблица1[[#This Row],[Столбец1]]*Таблица1[[#This Row],[коэф]])), IF(OR(G14="4/16",G14="3/16"),((база!$L$5*2*Таблица1[[#This Row],[Столбец1]]*Таблица1[[#This Row],[коэф]])), IF(OR(G14="2/4",G14="3/4",G14="4/4"),((база!$I$5*2*Таблица1[[#This Row],[Столбец1]]*Таблица1[[#This Row],[коэф]])), IF((G14="5/8"),((база!$J$6*2*Таблица1[[#This Row],[Столбец1]]*Таблица1[[#This Row],[коэф]])), IF(OR(G14="4/8",G14="3/8",G14="2/8"),((база!$J$5*2*Таблица1[[#This Row],[Столбец1]]*Таблица1[[#This Row],[коэф]]))))))))))) -> 0 | AQ14: =IFERROR(INDEX(база!T:T, MATCH(F14,база!Q:Q,0)),"") -> 0 | AR14: =IFERROR(INDEX(база!D:D, MATCH(F14,база!B:B,0)),"") -> 3
A15: =A14 -> декабрь | B15: 2023 | C15: 7Б7 | D15: 26-23 | E15: 1 | F15: Еработник3 | G15: 3/16 | H15: 7.2 | I15: 7.2 | L15: 7.2 | M15: 7.2 | N15: 7.2 | O15: 7.2 | R15: 7.2 | S15: 7.2 | T15: 7.2 | U15: 7.2 | AM15: =IF(AQ15=1,SUM(H15:I15,L15:O15,R15:U15,X15:AA15,AD15:AG15,AI15:AK15), IF(AQ15=2,SUM(H15:K15,N15:Q15,T15:W15,Z15:AC15,AF15:AI15), IF(AQ15=3,SUM(J15:M15,P15:S15,V15:Y15,AB15:AE15,AH15:AK15),SUM(Таблица1[[#This Row],[1]:[31]])-Таблица1[[#This Row],[Столбец1]]))) -> 72 | AN15: =IF(AQ15=1,SUM(J15:K15,P15:Q15,V15:W15,AB15:AC15,AH15:AI15), IF(AQ15=2,SUM(L15:M15,R15:S15,X15:Y15,AD15:AE15), IF(AQ15=3,SUM(H15:I15,N15:O15,T15:U15,Z15:AA15,AF15:AG15), SUM(IFERROR(WEEKDAY($H$2:$AL$2,2)>5,)*H15:AL15)))) -> 0 | AO15: =IF(AR15<=3,(IF((G15="5/24"),((база!$M$6*Таблица1[[#This Row],[сумма]]*Таблица1[[#This Row],[коэф]])), IF((G15="4/24"),((база!$M$5*Таблица1[[#This Row],[сумма]]*Таблица1[[#This Row],[коэф]])), IF((G15="3/24"),((база!$M$4*Таблица1[[#This Row],[сумма]]*Таблица1[[#This Row],[коэф]])), IF((G15="5/16"),((база!$L$6*Таблица1[[#This Row],[сумма]]*Таблица1[[#This Row],[коэф]])), IF((G15="4/16"),((база!$L$5*Таблица1[[#This Row],[сумма]]*Таблица1[[#This Row],[коэф]])), IF((G15="3/16"),((база!$L$4*Таблица1[[#This Row],[сумма]]*Таблица1[[#This Row],[коэф]])), IF((G15="4/4"),((база!$I$5*Таблица1[[#This Row],[сумма]]*Таблица1[[#This Row],[коэф]])), IF(OR(G15="2/4",G15="3/4"),((база!$I$4*Таблица1[[#This Row],[сумма]]*Таблица1[[#This Row],[коэф]])), IF((G15="5/8"),((база!$J$6*Таблица1[[#This Row],[сумма]]*Таблица1[[#This Row],[коэф]])), IF((G15="4/8"),((база!$J$5*Таблица1[[#This Row],[сумма]]*Таблица1[[#This Row],[коэф]])), IF(OR(G15="3/8",G15="2/8"),((база!$J$4*Таблица1[[#This Row],[сумма]]*Таблица1[[#This Row],[коэф]])))))))))))))), (IF((G15="5/24"),((база!$M$6*Таблица1[[#This Row],[сумма]]*Таблица1[[#This Row],[коэф]])), IF(OR(G15="4/24",G15="3/24"),((база!$M$5*Таблица1[[#This Row],[сумма]]*Таблица1[[#This Row],[коэф]])), IF((G15="5/16"),((база!$L$6*Таблица1[[#This Row],[сумма]]*Таблица1[[#This Row],[коэф]])), IF(OR(G15="4/16",G15="3/16"),((база!$L$5*Таблица1[[#This Row],[сумма]]*Таблица1[[#This Row],[коэф]])), IF(OR(G15="2/4",G15="3/4",G15="4/4"),((база!$I$5*Таблица1[[#This Row],[сумма]]*Таблица1[[#This Row],[коэф]])), IF((G15="5/8"),((база!$J$6*Таблица1[[#This Row],[сумма]]*Таблица1[[#This Row],[коэф]])), IF(OR(G15="4/8",G15="3/8",G15="2/8"),((база!$J$5*Таблица1[[#This Row],[сумма]]*Таблица1[[#This Row],[коэф]]))))))))))) -> 10857.6 | AP15: =IF(AR15<=3,(IF((G15="5/24"),((база!$M$6*2*Таблица1[[#This Row],[Столбец1]]*Таблица1[[#This Row],[коэф]])), IF((G15="4/24"),((база!$M$5*2*Таблица1[[#This Row],[Столбец1]]*Таблица1[[#This Row],[коэф]])), IF((G15="3/24"),((база!$M$4*2*Таблица1[[#This Row],[Столбец1]]*Таблица1[[#This Row],[коэф]])), IF((G15="5/16"),((база!$L$6*2*Таблица1[[#This Row],[Столбец1]]*Таблица1[[#This Row],[коэф]])), IF((G15="4/16"),((база!$L$5*2*Таблица1[[#This Row],[Столбец1]]*Таблица1[[#This Row],[коэф]])), IF((G15="3/16"),((база!$L$4*2*Таблица1[[#This Row],[Столбец1]]*Таблица1[[#This Row],[коэф]])), IF((G15="4/4"),((база!$I$5*2*Таблица1[[#This Row],[Столбец1]]*Таблица1[[#This Row],[коэф]])), IF(OR(G15="2/4",G15="3/4"),((база!$I$4*2*Таблица1[[#This Row],[Столбец1]]*Таблица1[[#This Row],[коэф]])), IF((G15="5/8"),((база!$J$6*2*Таблица1[[#This Row],[Столбец1]]*Таблица1[[#This Row],[коэф]])), IF((G15="4/8"),((база!$J$5*2*Таблица1[[#This Row],[Столбец1]]*Таблица1[[#This Row],[коэф]])), IF(OR(G15="3/8",G15="2/8"),((база!$J$4*2*Таблица1[[#This Row],[Столбец1]]*Таблица1[[#This Row],[коэф]])))))))))))))), (IF((G15="5/24"),((база!$M$6*2*Таблица1[[#This Row],[Столбец1]]*Таблица1[[#This Row],[коэф]])), IF(OR(G15="4/24",G15="3/24"),((база!$M$5*2*Таблица1[[#This Row],[Столбец1]]*Таблица1[[#This Row],[коэф]])), IF((G15="5/16"),((база!$L$6*2*Таблица1[[#This Row],[Столбец1]]*Таблица1[[#This Row],[коэф]])), IF(OR(G15="4/16",G15="3/16"),((база!$L$5*2*Таблица1[[#This Row],[Столбец1]]*Таблица1[[#This Row],[коэф]])), IF(OR(G15="2/4",G15="3/4",G15="4/4"),((база!$I$5*2*Таблица1[[#This Row],[Столбец1]]*Таблица1[[#This Row],[коэф]])), IF((G15="5/8"),((база!$J$6*2*Таблица1[[#This Row],[Столбец1]]*Таблица1[[#This Row],[коэф]])), IF(OR(G15="4/8",G15="3/8",G15="2/8"),((база!$J$5*2*Таблица1[[#This Row],[Столбец1]]*Таблица1[[#This Row],[коэф]]))))))))))) -> 0 | AQ15: =IFERROR(INDEX(база!T:T, MATCH(F15,база!Q:Q,0)),"") -> 1 | AR15: =IFERROR(INDEX(база!D:D, MATCH(F15,база!B:B,0)),"") -> 3
A16: декабрь | B16: 2023 | C16: В5 | D16: 12-23 | E16: 1,4 | F16: Жработник1 | G16: 3/24 | H16: 7 | K16: 7 | L16: 7 | M16: 7 | N16: 7 | O16: 7 | P16: 7 | R16: 7 | S16: 7 | T16: 7 | U16: 7 | V16: 7 | W16: 7 | Y16: 7 | Z16: 7 | AA16: 7 | AB16: 7 | AC16: 7 | AF16: 7 | AG16: 7 | AH16: 7 | AI16: 7 | AJ16: 7 | AM16: =IF(AQ16=1,SUM(H16:I16,L16:O16,R16:U16,X16:AA16,AD16:AG16,AI16:AK16), IF(AQ16=2,SUM(H16:K16,N16:Q16,T16:W16,Z16:AC16,AF16:AI16), IF(AQ16=3,SUM(J16:M16,P16:S16,V16:Y16,AB16:AE16,AH16:AK16),SUM(Таблица1[[#This Row],[1]:[31]])-Таблица1[[#This Row],[Столбец1]]))) -> 161 | AN16: =IF(AQ16=1,SUM(J16:K16,P16:Q16,V16:W16,AB16:AC16,AH16:AI16), IF(AQ16=2,SUM(L16:M16,R16:S16,X16:Y16,AD16:AE16), IF(AQ16=3,SUM(H16:I16,N16:O16,T16:U16,Z16:AA16,AF16:AG16), SUM(IFERROR(WEEKDAY($H$2:$AL$2,2)>5,)*H16:AL16)))) -> 0 | AO16: =IF(AR16<=3,(IF((G16="5/24"),((база!$M$6*Таблица1[[#This Row],[сумма]]*Таблица1[[#This Row],[коэф]])), IF((G16="4/24"),((база!$M$5*Таблица1[[#This Row],[сумма]]*Таблица1[[#This Row],[коэф]])), IF((G16="3/24"),((база!$M$4*Таблица1[[#This Row],[сумма]]*Таблица1[[#This Row],[коэф]])), IF((G16="5/16"),((база!$L$6*Таблица1[[#This Row],[сумма]]*Таблица1[[#This Row],[коэф]])), IF((G16="4/16"),((база!$L$5*Таблица1[[#This Row],[сумма]]*Таблица1[[#This Row],[коэф]])), IF((G16="3/16"),((база!$L$4*Таблица1[[#This Row],[сумма]]*Таблица1[[#This Row],[коэф]])), IF((G16="4/4"),((база!$I$5*Таблица1[[#This Row],[сумма]]*Таблица1[[#This Row],[коэф]])), IF(OR(G16="2/4",G16="3/4"),((база!$I$4*Таблица1[[#This Row],[сумма]]*Таблица1[[#This Row],[коэф]])), IF((G16="5/8"),((база!$J$6*Таблица1[[#This Row],[сумма]]*Таблица1[[#This Row],[коэф]])), IF((G16="4/8"),((база!$J$5*Таблица1[[#This Row],[сумма]]*Таблица1[[#This Row],[коэф]])), IF(OR(G16="3/8",G16="2/8"),((база!$J$4*Таблица1[[#This Row],[сумма]]*Таблица1[[#This Row],[коэф]])))))))))))))), (IF((G16="5/24"),((база!$M$6*Таблица1[[#This Row],[сумма]]*Таблица1[[#This Row],[коэф]])), IF(OR(G16="4/24",G16="3/24"),((база!$M$5*Таблица1[[#This Row],[сумма]]*Таблица1[[#This Row],[коэф]])), IF((G16="5/16"),((база!$L$6*Таблица1[[#This Row],[сумма]]*Таблица1[[#This Row],[коэф]])), IF(OR(G16="4/16",G16="3/16"),((база!$L$5*Таблица1[[#This Row],[сумма]]*Таблица1[[#This Row],[коэф]])), IF(OR(G16="2/4",G16="3/4",G16="4/4"),((база!$I$5*Таблица1[[#This Row],[сумма]]*Таблица1[[#This Row],[коэф]])), IF((G16="5/8"),((база!$J$6*Таблица1[[#This Row],[сумма]]*Таблица1[[#This Row],[коэф]])), IF(OR(G16="4/8",G16="3/8",G16="2/8"),((база!$J$5*Таблица1[[#This Row],[сумма]]*Таблица1[[#This Row],[коэф]]))))))))))) -> 36334.48 | AP16: =IF(AR16<=3,(IF((G16="5/24"),((база!$M$6*2*Таблица1[[#This Row],[Столбец1]]*Таблица1[[#This Row],[коэф]])), IF((G16="4/24"),((база!$M$5*2*Таблица1[[#This Row],[Столбец1]]*Таблица1[[#This Row],[коэф]])), IF((G16="3/24"),((база!$M$4*2*Таблица1[[#This Row],[Столбец1]]*Таблица1[[#This Row],[коэф]])), IF((G16="5/16"),((база!$L$6*2*Таблица1[[#This Row],[Столбец1]]*Таблица1[[#This Row],[коэф]])), IF((G16="4/16"),((база!$L$5*2*Таблица1[[#This Row],[Столбец1]]*Таблица1[[#This Row],[коэф]])), IF((G16="3/16"),((база!$L$4*2*Таблица1[[#This Row],[Столбец1]]*Таблица1[[#This Row],[коэф]])), IF((G16="4/4"),((база!$I$5*2*Таблица1[[#This Row],[Столбец1]]*Таблица1[[#This Row],[коэф]])), IF(OR(G16="2/4",G16="3/4"),((база!$I$4*2*Таблица1[[#This Row],[Столбец1]]*Таблица1[[#This Row],[коэф]])), IF((G16="5/8"),((база!$J$6*2*Таблица1[[#This Row],[Столбец1]]*Таблица1[[#This Row],[коэф]])), IF((G16="4/8"),((база!$J$5*2*Таблица1[[#This Row],[Столбец1]]*Таблица1[[#This Row],[коэф]])), IF(OR(G16="3/8",G16="2/8"),((база!$J$4*2*Таблица1[[#This Row],[Столбец1]]*Таблица1[[#This Row],[коэф]])))))))))))))), (IF((G16="5/24"),((база!$M$6*2*Таблица1[[#This Row],[Столбец1]]*Таблица1[[#This Row],[коэф]])), IF(OR(G16="4/24",G16="3/24"),((база!$M$5*2*Таблица1[[#This Row],[Столбец1]]*Таблица1[[#This Row],[коэф]])), IF((G16="5/16"),((база!$L$6*2*Таблица1[[#This Row],[Столбец1]]*Таблица1[[#This Row],[коэф]])), IF(OR(G16="4/16",G16="3/16"),((база!$L$5*2*Таблица1[[#This Row],[Столбец1]]*Таблица1[[#This Row],[коэф]])), IF(OR(G16="2/4",G16="3/4",G16="4/4"),((база!$I$5*2*Таблица1[[#This Row],[Столбец1]]*Таблица1[[#This Row],[коэф]])), IF((G16="5/8"),((база!$J$6*2*Таблица1[[#This Row],[Столбец1]]*Таблица1[[#This Row],[коэф]])), IF(OR(G16="4/8",G16="3/8",G16="2/8"),((база!$J$5*2*Таблица1[[#This Row],[Столбец1]]*Таблица1[[#This Row],[коэф]]))))))))))) -> 0 | AQ16: =IFERROR(INDEX(база!T:T, MATCH(F16,база!Q:Q,0)),"") -> 0 | AR16: =IFERROR(INDEX(база!D:D, MATCH(F16,база!B:B,0)),"") -> 3
A17: декабрь | B17: 2023 | C17: БО-00 | D17: 126-23 | E17: 1 | F17: Зработник1 | G17: 3/16 | H17: 7 | J17: 7.2 | K17: 7.2 | L17: 7.2 | M17: 7.2 | N17: 7 | P17: 7.2 | Q17: 7.2 | AM17: =IF(AQ17=1,SUM(H17:I17,L17:O17,R17:U17,X17:AA17,AD17:AG17,AI17:AK17), IF(AQ17=2,SUM(H17:K17,N17:Q17,T17:W17,Z17:AC17,AF17:AI17), IF(AQ17=3,SUM(J17:M17,P17:S17,V17:Y17,AB17:AE17,AH17:AK17),SUM(Таблица1[[#This Row],[1]:[31]])-Таблица1[[#This Row],[Столбец1]]))) -> 43.2 | AN17: =IF(AQ17=1,SUM(J17:K17,P17:Q17,V17:W17,AB17:AC17,AH17:AI17), IF(AQ17=2,SUM(L17:M17,R17:S17,X17:Y17,AD17:AE17), IF(AQ17=3,SUM(H17:I17,N17:O17,T17:U17,Z17:AA17,AF17:AG17), SUM(IFERROR(WEEKDAY($H$2:$AL$2,2)>5,)*H17:AL17)))) -> 14 | AO17: =IF(AR17<=3,(IF((G17="5/24"),((база!$M$6*Таблица1[[#This Row],[сумма]]*Таблица1[[#This Row],[коэф]])), IF((G17="4/24"),((база!$M$5*Таблица1[[#This Row],[сумма]]*Таблица1[[#This Row],[коэф]])), IF((G17="3/24"),((база!$M$4*Таблица1[[#This Row],[сумма]]*Таблица1[[#This Row],[коэф]])), IF((G17="5/16"),((база!$L$6*Таблица1[[#This Row],[сумма]]*Таблица1[[#This Row],[коэф]])), IF((G17="4/16"),((база!$L$5*Таблица1[[#This Row],[сумма]]*Таблица1[[#This Row],[коэф]])), IF((G17="3/16"),((база!$L$4*Таблица1[[#This Row],[сумма]]*Таблица1[[#This Row],[коэф]])), IF((G17="4/4"),((база!$I$5*Таблица1[[#This Row],[сумма]]*Таблица1[[#This Row],[коэф]])), IF(OR(G17="2/4",G17="3/4"),((база!$I$4*Таблица1[[#This Row],[сумма]]*Таблица1[[#This Row],[коэф]])), IF((G17="5/8"),((база!$J$6*Таблица1[[#This Row],[сумма]]*Таблица1[[#This Row],[коэф]])), IF((G17="4/8"),((база!$J$5*Таблица1[[#This Row],[сумма]]*Таблица1[[#This Row],[коэф]])), IF(OR(G17="3/8",G17="2/8"),((база!$J$4*Таблица1[[#This Row],[сумма]]*Таблица1[[#This Row],[коэф]])))))))))))))), (IF((G17="5/24"),((база!$M$6*Таблица1[[#This Row],[сумма]]*Таблица1[[#This Row],[коэф]])), IF(OR(G17="4/24",G17="3/24"),((база!$M$5*Таблица1[[#This Row],[сумма]]*Таблица1[[#This Row],[коэф]])), IF((G17="5/16"),((база!$L$6*Таблица1[[#This Row],[сумма]]*Таблица1[[#This Row],[коэф]])), IF(OR(G17="4/16",G17="3/16"),((база!$L$5*Таблица1[[#This Row],[сумма]]*Таблица1[[#This Row],[коэф]])), IF(OR(G17="2/4",G17="3/4",G17="4/4"),((база!$I$5*Таблица1[[#This Row],[сумма]]*Таблица1[[#This Row],[коэф]])), IF((G17="5/8"),((база!$J$6*Таблица1[[#This Row],[сумма]]*Таблица1[[#This Row],[коэф]])), IF(OR(G17="4/8",G17="3/8",G17="2/8"),((база!$J$5*Таблица1[[#This Row],[сумма]]*Таблица1[[#This Row],[коэф]]))))))))))) -> 6514.56 | AP17: =IF(AR17<=3,(IF((G17="5/24"),((база!$M$6*2*Таблица1[[#This Row],[Столбец1]]*Таблица1[[#This Row],[коэф]])), IF((G17="4/24"),((база!$M$5*2*Таблица1[[#This Row],[Столбец1]]*Таблица1[[#This Row],[коэф]])), IF((G17="3/24"),((база!$M$4*2*Таблица1[[#This Row],[Столбец1]]*Таблица1[[#This Row],[коэф]])), IF((G17="5/16"),((база!$L$6*2*Таблица1[[#This Row],[Столбец1]]*Таблица1[[#This Row],[коэф]])), IF((G17="4/16"),((база!$L$5*2*Таблица1[[#This Row],[Столбец1]]*Таблица1[[#This Row],[коэф]])), IF((G17="3/16"),((база!$L$4*2*Таблица1[[#This Row],[Столбец1]]*Таблица1[[#This Row],[коэф]])), IF((G17="4/4"),((база!$I$5*2*Таблица1[[#This Row],[Столбец1]]*Таблица1[[#This Row],[коэф]])), IF(OR(G17="2/4",G17="3/4"),((база!$I$4*2*Таблица1[[#This Row],[Столбец1]]*Таблица1[[#This Row],[коэф]])), IF((G17="5/8"),((база!$J$6*2*Таблица1[[#This Row],[Столбец1]]*Таблица1[[#This Row],[коэф]])), IF((G17="4/8"),((база!$J$5*2*Таблица1[[#This Row],[Столбец1]]*Таблица1[[#This Row],[коэф]])), IF(OR(G17="3/8",G17="2/8"),((база!$J$4*2*Таблица1[[#This Row],[Столбец1]]*Таблица1[[#This Row],[коэф]])))))))))))))), (IF((G17="5/24"),((база!$M$6*2*Таблица1[[#This Row],[Столбец1]]*Таблица1[[#This Row],[коэф]])), IF(OR(G17="4/24",G17="3/24"),((база!$M$5*2*Таблица1[[#This Row],[Столбец1]]*Таблица1[[#This Row],[коэф]])), IF((G17="5/16"),((база!$L$6*2*Таблица1[[#This Row],[Столбец1]]*Таблица1[[#This Row],[коэф]])), IF(OR(G17="4/16",G17="3/16"),((база!$L$5*2*Таблица1[[#This Row],[Столбец1]]*Таблица1[[#This Row],[коэф]])), IF(OR(G17="2/4",G17="3/4",G17="4/4"),((база!$I$5*2*Таблица1[[#This Row],[Столбец1]]*Таблица1[[#This Row],[коэф]])), IF((G17="5/8"),((база!$J$6*2*Таблица1[[#This Row],[Столбец1]]*Таблица1[[#This Row],[коэф]])), IF(OR(G17="4/8",G17="3/8",G17="2/8"),((база!$J$5*2*Таблица1[[#This Row],[Столбец1]]*Таблица1[[#This Row],[коэф]]))))))))))) -> 4222.4 | AQ17: =IFERROR(INDEX(база!T:T, MATCH(F17,база!Q:Q,0)),"") -> 3 | AR17: =IFERROR(INDEX(база!D:D, MATCH(F17,база!B:B,0)),"") -> 3
A18: декабрь | B18: 2023 | C18: БО-01 | D18: 118-23 | E18: 1 | F18: Иработник1 | G18: 3/16 | V18: 7.2 | W18: 7.2 | X18: 7.2 | Y18: 7.2 | AI18: 7.2 | AJ18: 7.2 | AK18: 7.2 | AM18: =IF(AQ18=1,SUM(H18:I18,L18:O18,R18:U18,X18:AA18,AD18:AG18,AI18:AK18), IF(AQ18=2,SUM(H18:K18,N18:Q18,T18:W18,Z18:AC18,AF18:AI18), IF(AQ18=3,SUM(J18:M18,P18:S18,V18:Y18,AB18:AE18,AH18:AK18),SUM(Таблица1[[#This Row],[1]:[31]])-Таблица1[[#This Row],[Столбец1]]))) -> 50.4 | AN18: =IF(AQ18=1,SUM(J18:K18,P18:Q18,V18:W18,AB18:AC18,AH18:AI18), IF(AQ18=2,SUM(L18:M18,R18:S18,X18:Y18,AD18:AE18), IF(AQ18=3,SUM(H18:I18,N18:O18,T18:U18,Z18:AA18,AF18:AG18), SUM(IFERROR(WEEKDAY($H$2:$AL$2,2)>5,)*H18:AL18)))) -> 0 | AO18: =IF(AR18<=3,(IF((G18="5/24"),((база!$M$6*Таблица1[[#This Row],[сумма]]*Таблица1[[#This Row],[коэф]])), IF((G18="4/24"),((база!$M$5*Таблица1[[#This Row],[сумма]]*Таблица1[[#This Row],[коэф]])), IF((G18="3/24"),((база!$M$4*Таблица1[[#This Row],[сумма]]*Таблица1[[#This Row],[коэф]])), IF((G18="5/16"),((база!$L$6*Таблица1[[#This Row],[сумма]]*Таблица1[[#This Row],[коэф]])), IF((G18="4/16"),((база!$L$5*Таблица1[[#This Row],[сумма]]*Таблица1[[#This Row],[коэф]])), IF((G18="3/16"),((база!$L$4*Таблица1[[#This Row],[сумма]]*Таблица1[[#This Row],[коэф]])), IF((G18="4/4"),((база!$I$5*Таблица1[[#This Row],[сумма]]*Таблица1[[#This Row],[коэф]])), IF(OR(G18="2/4",G18="3/4"),((база!$I$4*Таблица1[[#This Row],[сумма]]*Таблица1[[#This Row],[коэф]])), IF((G18="5/8"),((база!$J$6*Таблица1[[#This Row],[сумма]]*Таблица1[[#This Row],[коэф]])), IF((G18="4/8"),((база!$J$5*Таблица1[[#This Row],[сумма]]*Таблица1[[#This Row],[коэф]])), IF(OR(G18="3/8",G18="2/8"),((база!$J$4*Таблица1[[#This Row],[сумма]]*Таблица1[[#This Row],[коэф]])))))))))))))), (IF((G18="5/24"),((база!$M$6*Таблица1[[#This Row],[сумма]]*Таблица1[[#This Row],[коэф]])), IF(OR(G18="4/24",G18="3/24"),((база!$M$5*Таблица1[[#This Row],[сумма]]*Таблица1[[#This Row],[коэф]])), IF((G18="5/16"),((база!$L$6*Таблица1[[#This Row],[сумма]]*Таблица1[[#This Row],[коэф]])), IF(OR(G18="4/16",G18="3/16"),((база!$L$5*Таблица1[[#This Row],[сумма]]*Таблица1[[#This Row],[коэф]])), IF(OR(G18="2/4",G18="3/4",G18="4/4"),((база!$I$5*Таблица1[[#This Row],[сумма]]*Таблица1[[#This Row],[коэф]])), IF((G18="5/8"),((база!$J$6*Таблица1[[#This Row],[сумма]]*Таблица1[[#This Row],[коэф]])), IF(OR(G18="4/8",G18="3/8",G18="2/8"),((база!$J$5*Таблица1[[#This Row],[сумма]]*Таблица1[[#This Row],[коэф]]))))))))))) -> 7600.32 | AP18: =IF(AR18<=3,(IF((G18="5/24"),((база!$M$6*2*Таблица1[[#This Row],[Столбец1]]*Таблица1[[#This Row],[коэф]])), IF((G18="4/24"),((база!$M$5*2*Таблица1[[#This Row],[Столбец1]]*Таблица1[[#This Row],[коэф]])), IF((G18="3/24"),((база!$M$4*2*Таблица1[[#This Row],[Столбец1]]*Таблица1[[#This Row],[коэф]])), IF((G18="5/16"),((база!$L$6*2*Таблица1[[#This Row],[Столбец1]]*Таблица1[[#This Row],[коэф]])), IF((G18="4/16"),((база!$L$5*2*Таблица1[[#This Row],[Столбец1]]*Таблица1[[#This Row],[коэф]])), IF((G18="3/16"),((база!$L$4*2*Таблица1[[#This Row],[Столбец1]]*Таблица1[[#This Row],[коэф]])), IF((G18="4/4"),((база!$I$5*2*Таблица1[[#This Row],[Столбец1]]*Таблица1[[#This Row],[коэф]])), IF(OR(G18="2/4",G18="3/4"),((база!$I$4*2*Таблица1[[#This Row],[Столбец1]]*Таблица1[[#This Row],[коэф]])), IF((G18="5/8"),((база!$J$6*2*Таблица1[[#This Row],[Столбец1]]*Таблица1[[#This Row],[коэф]])), IF((G18="4/8"),((база!$J$5*2*Таблица1[[#This Row],[Столбец1]]*Таблица1[[#This Row],[коэф]])), IF(OR(G18="3/8",G18="2/8"),((база!$J$4*2*Таблица1[[#This Row],[Столбец1]]*Таблица1[[#This Row],[коэф]])))))))))))))), (IF((G18="5/24"),((база!$M$6*2*Таблица1[[#This Row],[Столбец1]]*Таблица1[[#This Row],[коэф]])), IF(OR(G18="4/24",G18="3/24"),((база!$M$5*2*Таблица1[[#This Row],[Столбец1]]*Таблица1[[#This Row],[коэф]])), IF((G18="5/16"),((база!$L$6*2*Таблица1[[#This Row],[Столбец1]]*Таблица1[[#This Row],[коэф]])), IF(OR(G18="4/16",G18="3/16"),((база!$L$5*2*Таблица1[[#This Row],[Столбец1]]*Таблица1[[#This Row],[коэф]])), IF(OR(G18="2/4",G18="3/4",G18="4/4"),((база!$I$5*2*Таблица1[[#This Row],[Столбец1]]*Таблица1[[#This Row],[коэф]])), IF((G18="5/8"),((база!$J$6*2*Таблица1[[#This Row],[Столбец1]]*Таблица1[[#This Row],[коэф]])), IF(OR(G18="4/8",G18="3/8",G18="2/8"),((база!$J$5*2*Таблица1[[#This Row],[Столбец1]]*Таблица1[[#This Row],[коэф]]))))))))))) -> 0 | AQ18: =IFERROR(INDEX(база!T:T, MATCH(F18,база!Q:Q,0)),"") -> 3 | AR18: =IFERROR(INDEX(база!D:D, MATCH(F18,база!B:B,0)),"") -> 3
A19: декабрь | B19: 2023 | C19: В5 | D19: 12-23 | E19: 1 | F19: Иработник2 | G19: 3/16 | H19: 7.2 | K19: 7.2 | L19: 7.2 | M19: 7.2 | N19: 7.2 | O19: 7.2 | R19: 7.2 | S19: 7.2 | T19: 7.2 | U19: 7.2 | V19: 7.2 | AM19: =IF(AQ19=1,SUM(H19:I19,L19:O19,R19:U19,X19:AA19,AD19:AG19,AI19:AK19), IF(AQ19=2,SUM(H19:K19,N19:Q19,T19:W19,Z19:AC19,AF19:AI19), IF(AQ19=3,SUM(J19:M19,P19:S19,V19:Y19,AB19:AE19,AH19:AK19),SUM(Таблица1[[#This Row],[1]:[31]])-Таблица1[[#This Row],[Столбец1]]))) -> 79.2 | AN19: =IF(AQ19=1,SUM(J19:K19,P19:Q19,V19:W19,AB19:AC19,AH19:AI19), IF(AQ19=2,SUM(L19:M19,R19:S19,X19:Y19,AD19:AE19), IF(AQ19=3,SUM(H19:I19,N19:O19,T19:U19,Z19:AA19,AF19:AG19), SUM(IFERROR(WEEKDAY($H$2:$AL$2,2)>5,)*H19:AL19)))) -> 0 | AO19: =IF(AR19<=3,(IF((G19="5/24"),((база!$M$6*Таблица1[[#This Row],[сумма]]*Таблица1[[#This Row],[коэф]])), IF((G19="4/24"),((база!$M$5*Таблица1[[#This Row],[сумма]]*Таблица1[[#This Row],[коэф]])), IF((G19="3/24"),((база!$M$4*Таблица1[[#This Row],[сумма]]*Таблица1[[#This Row],[коэф]])), IF((G19="5/16"),((база!$L$6*Таблица1[[#This Row],[сумма]]*Таблица1[[#This Row],[коэф]])), IF((G19="4/16"),((база!$L$5*Таблица1[[#This Row],[сумма]]*Таблица1[[#This Row],[коэф]])), IF((G19="3/16"),((база!$L$4*Таблица1[[#This Row],[сумма]]*Таблица1[[#This Row],[коэф]])), IF((G19="4/4"),((база!$I$5*Таблица1[[#This Row],[сумма]]*Таблица1[[#This Row],[коэф]])), IF(OR(G19="2/4",G19="3/4"),((база!$I$4*Таблица1[[#This Row],[сумма]]*Таблица1[[#This Row],[коэф]])), IF((G19="5/8"),((база!$J$6*Таблица1[[#This Row],[сумма]]*Таблица1[[#This Row],[коэф]])), IF((G19="4/8"),((база!$J$5*Таблица1[[#This Row],[сумма]]*Таблица1[[#This Row],[коэф]])), IF(OR(G19="3/8",G19="2/8"),((база!$J$4*Таблица1[[#This Row],[сумма]]*Таблица1[[#This Row],[коэф]])))))))))))))), (IF((G19="5/24"),((база!$M$6*Таблица1[[#This Row],[сумма]]*Таблица1[[#This Row],[коэф]])), IF(OR(G19="4/24",G19="3/24"),((база!$M$5*Таблица1[[#This Row],[сумма]]*Таблица1[[#This Row],[коэф]])), IF((G19="5/16"),((база!$L$6*Таблица1[[#This Row],[сумма]]*Таблица1[[#This Row],[коэф]])), IF(OR(G19="4/16",G19="3/16"),((база!$L$5*Таблица1[[#This Row],[сумма]]*Таблица1[[#This Row],[коэф]])), IF(OR(G19="2/4",G19="3/4",G19="4/4"),((база!$I$5*Таблица1[[#This Row],[сумма]]*Таблица1[[#This Row],[коэф]])), IF((G19="5/8"),((база!$J$6*Таблица1[[#This Row],[сумма]]*Таблица1[[#This Row],[коэф]])), IF(OR(G19="4/8",G19="3/8",G19="2/8"),((база!$J$5*Таблица1[[#This Row],[сумма]]*Таблица1[[#This Row],[коэф]]))))))))))) -> 11943.36 | AP19: =IF(AR19<=3,(IF((G19="5/24"),((база!$M$6*2*Таблица1[[#This Row],[Столбец1]]*Таблица1[[#This Row],[коэф]])), IF((G19="4/24"),((база!$M$5*2*Таблица1[[#This Row],[Столбец1]]*Таблица1[[#This Row],[коэф]])), IF((G19="3/24"),((база!$M$4*2*Таблица1[[#This Row],[Столбец1]]*Таблица1[[#This Row],[коэф]])), IF((G19="5/16"),((база!$L$6*2*Таблица1[[#This Row],[Столбец1]]*Таблица1[[#This Row],[коэф]])), IF((G19="4/16"),((база!$L$5*2*Таблица1[[#This Row],[Столбец1]]*Таблица1[[#This Row],[коэф]])), IF((G19="3/16"),((база!$L$4*2*Таблица1[[#This Row],[Столбец1]]*Таблица1[[#This Row],[коэф]])), IF((G19="4/4"),((база!$I$5*2*Таблица1[[#This Row],[Столбец1]]*Таблица1[[#This Row],[коэф]])), IF(OR(G19="2/4",G19="3/4"),((база!$I$4*2*Таблица1[[#This Row],[Столбец1]]*Таблица1[[#This Row],[коэф]])), IF((G19="5/8"),((база!$J$6*2*Таблица1[[#This Row],[Столбец1]]*Таблица1[[#This Row],[коэф]])), IF((G19="4/8"),((база!$J$5*2*Таблица1[[#This Row],[Столбец1]]*Таблица1[[#This Row],[коэф]])), IF(OR(G19="3/8",G19="2/8"),((база!$J$4*2*Таблица1[[#This Row],[Столбец1]]*Таблица1[[#This Row],[коэф]])))))))))))))), (IF((G19="5/24"),((база!$M$6*2*Таблица1[[#This Row],[Столбец1]]*Таблица1[[#This Row],[коэф]])), IF(OR(G19="4/24",G19="3/24"),((база!$M$5*2*Таблица1[[#This Row],[Столбец1]]*Таблица1[[#This Row],[коэф]])), IF((G19="5/16"),((база!$L$6*2*Таблица1[[#This Row],[Столбец1]]*Таблица1[[#This Row],[коэф]])), IF(OR(G19="4/16",G19="3/16"),((база!$L$5*2*Таблица1[[#This Row],[Столбец1]]*Таблица1[[#This Row],[коэф]])), IF(OR(G19="2/4",G19="3/4",G19="4/4"),((база!$I$5*2*Таблица1[[#This Row],[Столбец1]]*Таблица1[[#This Row],[коэф]])), IF((G19="5/8"),((база!$J$6*2*Таблица1[[#This Row],[Столбец1]]*Таблица1[[#This Row],[коэф]])), IF(OR(G19="4/8",G19="3/8",G19="2/8"),((база!$J$5*2*Таблица1[[#This Row],[Столбец1]]*Таблица1[[#This Row],[коэф]]))))))))))) -> 0 | AQ19: =IFERROR(INDEX(база!T:T, MATCH(F19,база!Q:Q,0)),"") -> 0 | AR19: =IFERROR(INDEX(база!D:D, MATCH(F19,база!B:B,0)),"") -> 3
A20: =A19 -> декабрь | B20: 2023 | C20: БО-00 | D20: 126-23 | E20: 1 | F20: Кработник3 | G20: 3/16 | H20: 7.2 | I20: 7 | K20: 7.2 | L20: 7.2 | M20: 7.2 | N20: 7.2 | O20: 7.2 | R20: 7.2 | S20: 7.2 | T20: 7.2 | U20: 7.2 | V20: 7.2 | AM20: =IF(AQ20=1,SUM(H20:I20,L20:O20,R20:U20,X20:AA20,AD20:AG20,AI20:AK20), IF(AQ20=2,SUM(H20:K20,N20:Q20,T20:W20,Z20:AC20,AF20:AI20), IF(AQ20=3,SUM(J20:M20,P20:S20,V20:Y20,AB20:AE20,AH20:AK20),SUM(Таблица1[[#This Row],[1]:[31]])-Таблица1[[#This Row],[Столбец1]]))) -> 86.2 | AN20: =IF(AQ20=1,SUM(J20:K20,P20:Q20,V20:W20,AB20:AC20,AH20:AI20), IF(AQ20=2,SUM(L20:M20,R20:S20,X20:Y20,AD20:AE20), IF(AQ20=3,SUM(H20:I20,N20:O20,T20:U20,Z20:AA20,AF20:AG20), SUM(IFERROR(WEEKDAY($H$2:$AL$2,2)>5,)*H20:AL20)))) -> 0 | AO20: =IF(AR20<=3,(IF((G20="5/24"),((база!$M$6*Таблица1[[#This Row],[сумма]]*Таблица1[[#This Row],[коэф]])), IF((G20="4/24"),((база!$M$5*Таблица1[[#This Row],[сумма]]*Таблица1[[#This Row],[коэф]])), IF((G20="3/24"),((база!$M$4*Таблица1[[#This Row],[сумма]]*Таблица1[[#This Row],[коэф]])), IF((G20="5/16"),((база!$L$6*Таблица1[[#This Row],[сумма]]*Таблица1[[#This Row],[коэф]])), IF((G20="4/16"),((база!$L$5*Таблица1[[#This Row],[сумма]]*Таблица1[[#This Row],[коэф]])), IF((G20="3/16"),((база!$L$4*Таблица1[[#This Row],[сумма]]*Таблица1[[#This Row],[коэф]])), IF((G20="4/4"),((база!$I$5*Таблица1[[#This Row],[сумма]]*Таблица1[[#This Row],[коэф]])), IF(OR(G20="2/4",G20="3/4"),((база!$I$4*Таблица1[[#This Row],[сумма]]*Таблица1[[#This Row],[коэф]])), IF((G20="5/8"),((база!$J$6*Таблица1[[#This Row],[сумма]]*Таблица1[[#This Row],[коэф]])), IF((G20="4/8"),((база!$J$5*Таблица1[[#This Row],[сумма]]*Таблица1[[#This Row],[коэф]])), IF(OR(G20="3/8",G20="2/8"),((база!$J$4*Таблица1[[#This Row],[сумма]]*Таблица1[[#This Row],[коэф]])))))))))))))), (IF((G20="5/24"),((база!$M$6*Таблица1[[#This Row],[сумма]]*Таблица1[[#This Row],[коэф]])), IF(OR(G20="4/24",G20="3/24"),((база!$M$5*Таблица1[[#This Row],[сумма]]*Таблица1[[#This Row],[коэф]])), IF((G20="5/16"),((база!$L$6*Таблица1[[#This Row],[сумма]]*Таблица1[[#This Row],[коэф]])), IF(OR(G20="4/16",G20="3/16"),((база!$L$5*Таблица1[[#This Row],[сумма]]*Таблица1[[#This Row],[коэф]])), IF(OR(G20="2/4",G20="3/4",G20="4/4"),((база!$I$5*Таблица1[[#This Row],[сумма]]*Таблица1[[#This Row],[коэф]])), IF((G20="5/8"),((база!$J$6*Таблица1[[#This Row],[сумма]]*Таблица1[[#This Row],[коэф]])), IF(OR(G20="4/8",G20="3/8",G20="2/8"),((база!$J$5*Таблица1[[#This Row],[сумма]]*Таблица1[[#This Row],[коэф]]))))))))))) -> 12998.96 | AP20: =IF(AR20<=3,(IF((G20="5/24"),((база!$M$6*2*Таблица1[[#This Row],[Столбец1]]*Таблица1[[#This Row],[коэф]])), IF((G20="4/24"),((база!$M$5*2*Таблица1[[#This Row],[Столбец1]]*Таблица1[[#This Row],[коэф]])), IF((G20="3/24"),((база!$M$4*2*Таблица1[[#This Row],[Столбец1]]*Таблица1[[#This Row],[коэф]])), IF((G20="5/16"),((база!$L$6*2*Таблица1[[#This Row],[Столбец1]]*Таблица1[[#This Row],[коэф]])), IF((G20="4/16"),((база!$L$5*2*Таблица1[[#This Row],[Столбец1]]*Таблица1[[#This Row],[коэф]])), IF((G20="3/16"),((база!$L$4*2*Таблица1[[#This Row],[Столбец1]]*Таблица1[[#This Row],[коэф]])), IF((G20="4/4"),((база!$I$5*2*Таблица1[[#This Row],[Столбец1]]*Таблица1[[#This Row],[коэф]])), IF(OR(G20="2/4",G20="3/4"),((база!$I$4*2*Таблица1[[#This Row],[Столбец1]]*Таблица1[[#This Row],[коэф]])), IF((G20="5/8"),((база!$J$6*2*Таблица1[[#This Row],[Столбец1]]*Таблица1[[#This Row],[коэф]])), IF((G20="4/8"),((база!$J$5*2*Таблица1[[#This Row],[Столбец1]]*Таблица1[[#This Row],[коэф]])), IF(OR(G20="3/8",G20="2/8"),((база!$J$4*2*Таблица1[[#This Row],[Столбец1]]*Таблица1[[#This Row],[коэф]])))))))))))))), (IF((G20="5/24"),((база!$M$6*2*Таблица1[[#This Row],[Столбец1]]*Таблица1[[#This Row],[коэф]])), IF(OR(G20="4/24",G20="3/24"),((база!$M$5*2*Таблица1[[#This Row],[Столбец1]]*Таблица1[[#This Row],[коэф]])), IF((G20="5/16"),((база!$L$6*2*Таблица1[[#This Row],[Столбец1]]*Таблица1[[#This Row],[коэф]])), IF(OR(G20="4/16",G20="3/16"),((база!$L$5*2*Таблица1[[#This Row],[Столбец1]]*Таблица1[[#This Row],[коэф]])), IF(OR(G20="2/4",G20="3/4",G20="4/4"),((база!$I$5*2*Таблица1[[#This Row],[Столбец1]]*Таблица1[[#This Row],[коэф]])), IF((G20="5/8"),((база!$J$6*2*Таблица1[[#This Row],[Столбец1]]*Таблица1[[#This Row],[коэф]])), IF(OR(G20="4/8",G20="3/8",G20="2/8"),((база!$J$5*2*Таблица1[[#This Row],[Столбец1]]*Таблица1[[#This Row],[коэф]]))))))))))) -> 0 | AQ20: =IFERROR(INDEX(база!T:T, MATCH(F20,база!Q:Q,0)),"") -> 0 | AR20: =IFERROR(INDEX(база!D:D, MATCH(F20,база!B:B,0)),"") -> 3
A21: декабрь | B21: 2023 | C21: 1В5 | D21: 23-23 | E21: 1,5 | F21: Кработник1 | G21: 4/8 | H21: 7.2 | I21: 6 | K21: 7.2 | L21: 7.2 | M21: 7.2 | N21: 7.2 | O21: 7.2 | R21: 7.2 | Z21: 7.2 | AA21: 7.2 | AB21: 7.2 | AC21: 7.2 | AF21: 7.2 | AG21: 7.2 | AH21: 7.2 | AM21: =IF(AQ21=1,SUM(H21:I21,L21:O21,R21:U21,X21:AA21,AD21:AG21,AI21:AK21), IF(AQ21=2,SUM(H21:K21,N21:Q21,T21:W21,Z21:AC21,AF21:AI21), IF(AQ21=3,SUM(J21:M21,P21:S21,V21:Y21,AB21:AE21,AH21:AK21),SUM(Таблица1[[#This Row],[1]:[31]])-Таблица1[[#This Row],[Столбец1]]))) -> 106.8 | AN21: =IF(AQ21=1,SUM(J21:K21,P21:Q21,V21:W21,AB21:AC21,AH21:AI21), IF(AQ21=2,SUM(L21:M21,R21:S21,X21:Y21,AD21:AE21), IF(AQ21=3,SUM(H21:I21,N21:O21,T21:U21,Z21:AA21,AF21:AG21), SUM(IFERROR(WEEKDAY($H$2:$AL$2,2)>5,)*H21:AL21)))) -> 0 | AO21: =IF(AR21<=3,(IF((G21="5/24"),((база!$M$6*Таблица1[[#This Row],[сумма]]*Таблица1[[#This Row],[коэф]])), IF((G21="4/24"),((база!$M$5*Таблица1[[#This Row],[сумма]]*Таблица1[[#This Row],[коэф]])), IF((G21="3/24"),((база!$M$4*Таблица1[[#This Row],[сумма]]*Таблица1[[#This Row],[коэф]])), IF((G21="5/16"),((база!$L$6*Таблица1[[#This Row],[сумма]]*Таблица1[[#This Row],[коэф]])), IF((G21="4/16"),((база!$L$5*Таблица1[[#This Row],[сумма]]*Таблица1[[#This Row],[коэф]])), IF((G21="3/16"),((база!$L$4*Таблица1[[#This Row],[сумма]]*Таблица1[[#This Row],[коэф]])), IF((G21="4/4"),((база!$I$5*Таблица1[[#This Row],[сумма]]*Таблица1[[#This Row],[коэф]])), IF(OR(G21="2/4",G21="3/4"),((база!$I$4*Таблица1[[#This Row],[сумма]]*Таблица1[[#This Row],[коэф]])), IF((G21="5/8"),((база!$J$6*Таблица1[[#This Row],[сумма]]*Таблица1[[#This Row],[коэф]])), IF((G21="4/8"),((база!$J$5*Таблица1[[#This Row],[сумма]]*Таблица1[[#This Row],[коэф]])), IF(OR(G21="3/8",G21="2/8"),((база!$J$4*Таблица1[[#This Row],[сумма]]*Таблица1[[#This Row],[коэф]])))))))))))))), (IF((G21="5/24"),((база!$M$6*Таблица1[[#This Row],[сумма]]*Таблица1[[#This Row],[коэф]])), IF(OR(G21="4/24",G21="3/24"),((база!$M$5*Таблица1[[#This Row],[сумма]]*Таблица1[[#This Row],[коэф]])), IF((G21="5/16"),((база!$L$6*Таблица1[[#This Row],[сумма]]*Таблица1[[#This Row],[коэф]])), IF(OR(G21="4/16",G21="3/16"),((база!$L$5*Таблица1[[#This Row],[сумма]]*Таблица1[[#This Row],[коэф]])), IF(OR(G21="2/4",G21="3/4",G21="4/4"),((база!$I$5*Таблица1[[#This Row],[сумма]]*Таблица1[[#This Row],[коэф]])), IF((G21="5/8"),((база!$J$6*Таблица1[[#This Row],[сумма]]*Таблица1[[#This Row],[коэф]])), IF(OR(G21="4/8",G21="3/8",G21="2/8"),((база!$J$5*Таблица1[[#This Row],[сумма]]*Таблица1[[#This Row],[коэф]]))))))))))) -> 25952.4 | AP21: =IF(AR21<=3,(IF((G21="5/24"),((база!$M$6*2*Таблица1[[#This Row],[Столбец1]]*Таблица1[[#This Row],[коэф]])), IF((G21="4/24"),((база!$M$5*2*Таблица1[[#This Row],[Столбец1]]*Таблица1[[#This Row],[коэф]])), IF((G21="3/24"),((база!$M$4*2*Таблица1[[#This Row],[Столбец1]]*Таблица1[[#This Row],[коэф]])), IF((G21="5/16"),((база!$L$6*2*Таблица1[[#This Row],[Столбец1]]*Таблица1[[#This Row],[коэф]])), IF((G21="4/16"),((база!$L$5*2*Таблица1[[#This Row],[Столбец1]]*Таблица1[[#This Row],[коэф]])), IF((G21="3/16"),((база!$L$4*2*Таблица1[[#This Row],[Столбец1]]*Таблица1[[#This Row],[коэф]])), IF((G21="4/4"),((база!$I$5*2*Таблица1[[#This Row],[Столбец1]]*Таблица1[[#This Row],[коэф]])), IF(OR(G21="2/4",G21="3/4"),((база!$I$4*2*Таблица1[[#This Row],[Столбец1]]*Таблица1[[#This Row],[коэф]])), IF((G21="5/8"),((база!$J$6*2*Таблица1[[#This Row],[Столбец1]]*Таблица1[[#This Row],[коэф]])), IF((G21="4/8"),((база!$J$5*2*Таблица1[[#This Row],[Столбец1]]*Таблица1[[#This Row],[коэф]])), IF(OR(G21="3/8",G21="2/8"),((база!$J$4*2*Таблица1[[#This Row],[Столбец1]]*Таблица1[[#This Row],[коэф]])))))))))))))), (IF((G21="5/24"),((база!$M$6*2*Таблица1[[#This Row],[Столбец1]]*Таблица1[[#This Row],[коэф]])), IF(OR(G21="4/24",G21="3/24"),((база!$M$5*2*Таблица1[[#This Row],[Столбец1]]*Таблица1[[#This Row],[коэф]])), IF((G21="5/16"),((база!$L$6*2*Таблица1[[#This Row],[Столбец1]]*Таблица1[[#This Row],[коэф]])), IF(OR(G21="4/16",G21="3/16"),((база!$L$5*2*Таблица1[[#This Row],[Столбец1]]*Таблица1[[#This Row],[коэф]])), IF(OR(G21="2/4",G21="3/4",G21="4/4"),((база!$I$5*2*Таблица1[[#This Row],[Столбец1]]*Таблица1[[#This Row],[коэф]])), IF((G21="5/8"),((база!$J$6*2*Таблица1[[#This Row],[Столбец1]]*Таблица1[[#This Row],[коэф]])), IF(OR(G21="4/8",G21="3/8",G21="2/8"),((база!$J$5*2*Таблица1[[#This Row],[Столбец1]]*Таблица1[[#This Row],[коэф]]))))))))))) -> 0 | AQ21: =IFERROR(INDEX(база!T:T, MATCH(F21,база!Q:Q,0)),"") -> 0 | AR21: =IFERROR(INDEX(база!D:D, MATCH(F21,база!B:B,0)),"") -> 3
A22: =A21 -> декабрь | B22: 2023 | C22: 1В5 | D22: 22-23 | E22: 1 | F22: Кработник2 | G22: 3/24 | H22: 6 | J22: 7.2 | K22: 7.2 | L22: 7.2 | M22: 7.2 | N22: 5.5 | P22: 7.2 | Q22: 7.2 | R22: 7.2 | S22: 7.2 | V22: 7.2 | W22: 7.2 | X22: 7.2 | Y22: 7.2 | AB22: 7.2 | AC22: 7.2 | AD22: 7.2 | AE22: 7.2 | AH22: 7.2 | AI22: 7.2 | AJ22: 7.2 | AK22: 7.2 | AM22: =IF(AQ22=1,SUM(H22:I22,L22:O22,R22:U22,X22:AA22,AD22:AG22,AI22:AK22), IF(AQ22=2,SUM(H22:K22,N22:Q22,T22:W22,Z22:AC22,AF22:AI22), IF(AQ22=3,SUM(J22:M22,P22:S22,V22:Y22,AB22:AE22,AH22:AK22),SUM(Таблица1[[#This Row],[1]:[31]])-Таблица1[[#This Row],[Столбец1]]))) -> 144 | AN22: =IF(AQ22=1,SUM(J22:K22,P22:Q22,V22:W22,AB22:AC22,AH22:AI22), IF(AQ22=2,SUM(L22:M22,R22:S22,X22:Y22,AD22:AE22), IF(AQ22=3,SUM(H22:I22,N22:O22,T22:U22,Z22:AA22,AF22:AG22), SUM(IFERROR(WEEKDAY($H$2:$AL$2,2)>5,)*H22:AL22)))) -> 11.5 | AO22: =IF(AR22<=3,(IF((G22="5/24"),((база!$M$6*Таблица1[[#This Row],[сумма]]*Таблица1[[#This Row],[коэф]])), IF((G22="4/24"),((база!$M$5*Таблица1[[#This Row],[сумма]]*Таблица1[[#This Row],[коэф]])), IF((G22="3/24"),((база!$M$4*Таблица1[[#This Row],[сумма]]*Таблица1[[#This Row],[коэф]])), IF((G22="5/16"),((база!$L$6*Таблица1[[#This Row],[сумма]]*Таблица1[[#This Row],[коэф]])), IF((G22="4/16"),((база!$L$5*Таблица1[[#This Row],[сумма]]*Таблица1[[#This Row],[коэф]])), IF((G22="3/16"),((база!$L$4*Таблица1[[#This Row],[сумма]]*Таблица1[[#This Row],[коэф]])), IF((G22="4/4"),((база!$I$5*Таблица1[[#This Row],[сумма]]*Таблица1[[#This Row],[коэф]])), IF(OR(G22="2/4",G22="3/4"),((база!$I$4*Таблица1[[#This Row],[сумма]]*Таблица1[[#This Row],[коэф]])), IF((G22="5/8"),((база!$J$6*Таблица1[[#This Row],[сумма]]*Таблица1[[#This Row],[коэф]])), IF((G22="4/8"),((база!$J$5*Таблица1[[#This Row],[сумма]]*Таблица1[[#This Row],[коэф]])), IF(OR(G22="3/8",G22="2/8"),((база!$J$4*Таблица1[[#This Row],[сумма]]*Таблица1[[#This Row],[коэф]])))))))))))))), (IF((G22="5/24"),((база!$M$6*Таблица1[[#This Row],[сумма]]*Таблица1[[#This Row],[коэф]])), IF(OR(G22="4/24",G22="3/24"),((база!$M$5*Таблица1[[#This Row],[сумма]]*Таблица1[[#This Row],[коэф]])), IF((G22="5/16"),((база!$L$6*Таблица1[[#This Row],[сумма]]*Таблица1[[#This Row],[коэф]])), IF(OR(G22="4/16",G22="3/16"),((база!$L$5*Таблица1[[#This Row],[сумма]]*Таблица1[[#This Row],[коэф]])), IF(OR(G22="2/4",G22="3/4",G22="4/4"),((база!$I$5*Таблица1[[#This Row],[сумма]]*Таблица1[[#This Row],[коэф]])), IF((G22="5/8"),((база!$J$6*Таблица1[[#This Row],[сумма]]*Таблица1[[#This Row],[коэф]])), IF(OR(G22="4/8",G22="3/8",G22="2/8"),((база!$J$5*Таблица1[[#This Row],[сумма]]*Таблица1[[#This Row],[коэф]]))))))))))) -> 23212.8 | AP22: =IF(AR22<=3,(IF((G22="5/24"),((база!$M$6*2*Таблица1[[#This Row],[Столбец1]]*Таблица1[[#This Row],[коэф]])), IF((G22="4/24"),((база!$M$5*2*Таблица1[[#This Row],[Столбец1]]*Таблица1[[#This Row],[коэф]])), IF((G22="3/24"),((база!$M$4*2*Таблица1[[#This Row],[Столбец1]]*Таблица1[[#This Row],[коэф]])), IF((G22="5/16"),((база!$L$6*2*Таблица1[[#This Row],[Столбец1]]*Таблица1[[#This Row],[коэф]])), IF((G22="4/16"),((база!$L$5*2*Таблица1[[#This Row],[Столбец1]]*Таблица1[[#This Row],[коэф]])), IF((G22="3/16"),((база!$L$4*2*Таблица1[[#This Row],[Столбец1]]*Таблица1[[#This Row],[коэф]])), IF((G22="4/4"),((база!$I$5*2*Таблица1[[#This Row],[Столбец1]]*Таблица1[[#This Row],[коэф]])), IF(OR(G22="2/4",G22="3/4"),((база!$I$4*2*Таблица1[[#This Row],[Столбец1]]*Таблица1[[#This Row],[коэф]])), IF((G22="5/8"),((база!$J$6*2*Таблица1[[#This Row],[Столбец1]]*Таблица1[[#This Row],[коэф]])), IF((G22="4/8"),((база!$J$5*2*Таблица1[[#This Row],[Столбец1]]*Таблица1[[#This Row],[коэф]])), IF(OR(G22="3/8",G22="2/8"),((база!$J$4*2*Таблица1[[#This Row],[Столбец1]]*Таблица1[[#This Row],[коэф]])))))))))))))), (IF((G22="5/24"),((база!$M$6*2*Таблица1[[#This Row],[Столбец1]]*Таблица1[[#This Row],[коэф]])), IF(OR(G22="4/24",G22="3/24"),((база!$M$5*2*Таблица1[[#This Row],[Столбец1]]*Таблица1[[#This Row],[коэф]])), IF((G22="5/16"),((база!$L$6*2*Таблица1[[#This Row],[Столбец1]]*Таблица1[[#This Row],[коэф]])), IF(OR(G22="4/16",G22="3/16"),((база!$L$5*2*Таблица1[[#This Row],[Столбец1]]*Таблица1[[#This Row],[коэф]])), IF(OR(G22="2/4",G22="3/4",G22="4/4"),((база!$I$5*2*Таблица1[[#This Row],[Столбец1]]*Таблица1[[#This Row],[коэф]])), IF((G22="5/8"),((база!$J$6*2*Таблица1[[#This Row],[Столбец1]]*Таблица1[[#This Row],[коэф]])), IF(OR(G22="4/8",G22="3/8",G22="2/8"),((база!$J$5*2*Таблица1[[#This Row],[Столбец1]]*Таблица1[[#This Row],[коэф]]))))))))))) -> 3707.6 | AQ22: =IFERROR(INDEX(база!T:T, MATCH(F22,база!Q:Q,0)),"") -> 3 | AR22: =IFERROR(INDEX(база!D:D, MATCH(F22,база!B:B,0)),"") -> 3
A23: декабрь | B23: 2023 | C23: БО-01 | D23: 1-24 | E23: 1 | F23: Лработник1 | G23: 3/16 | N23: 7.2 | O23: 7.2 | AM23: =IF(AQ23=1,SUM(H23:I23,L23:O23,R23:U23,X23:AA23,AD23:AG23,AI23:AK23), IF(AQ23=2,SUM(H23:K23,N23:Q23,T23:W23,Z23:AC23,AF23:AI23), IF(AQ23=3,SUM(J23:M23,P23:S23,V23:Y23,AB23:AE23,AH23:AK23),SUM(Таблица1[[#This Row],[1]:[31]])-Таблица1[[#This Row],[Столбец1]]))) -> 14.4 | AN23: =IF(AQ23=1,SUM(J23:K23,P23:Q23,V23:W23,AB23:AC23,AH23:AI23), IF(AQ23=2,SUM(L23:M23,R23:S23,X23:Y23,AD23:AE23), IF(AQ23=3,SUM(H23:I23,N23:O23,T23:U23,Z23:AA23,AF23:AG23), SUM(IFERROR(WEEKDAY($H$2:$AL$2,2)>5,)*H23:AL23)))) -> 0 | AO23: =IF(AR23<=3,(IF((G23="5/24"),((база!$M$6*Таблица1[[#This Row],[сумма]]*Таблица1[[#This Row],[коэф]])), IF((G23="4/24"),((база!$M$5*Таблица1[[#This Row],[сумма]]*Таблица1[[#This Row],[коэф]])), IF((G23="3/24"),((база!$M$4*Таблица1[[#This Row],[сумма]]*Таблица1[[#This Row],[коэф]])), IF((G23="5/16"),((база!$L$6*Таблица1[[#This Row],[сумма]]*Таблица1[[#This Row],[коэф]])), IF((G23="4/16"),((база!$L$5*Таблица1[[#This Row],[сумма]]*Таблица1[[#This Row],[коэф]])), IF((G23="3/16"),((база!$L$4*Таблица1[[#This Row],[сумма]]*Таблица1[[#This Row],[коэф]])), IF((G23="4/4"),((база!$I$5*Таблица1[[#This Row],[сумма]]*Таблица1[[#This Row],[коэф]])), IF(OR(G23="2/4",G23="3/4"),((база!$I$4*Таблица1[[#This Row],[сумма]]*Таблица1[[#This Row],[коэф]])), IF((G23="5/8"),((база!$J$6*Таблица1[[#This Row],[сумма]]*Таблица1[[#This Row],[коэф]])), IF((G23="4/8"),((база!$J$5*Таблица1[[#This Row],[сумма]]*Таблица1[[#This Row],[коэф]])), IF(OR(G23="3/8",G23="2/8"),((база!$J$4*Таблица1[[#This Row],[сумма]]*Таблица1[[#This Row],[коэф]])))))))))))))), (IF((G23="5/24"),((база!$M$6*Таблица1[[#This Row],[сумма]]*Таблица1[[#This Row],[коэф]])), IF(OR(G23="4/24",G23="3/24"),((база!$M$5*Таблица1[[#This Row],[сумма]]*Таблица1[[#This Row],[коэф]])), IF((G23="5/16"),((база!$L$6*Таблица1[[#This Row],[сумма]]*Таблица1[[#This Row],[коэф]])), IF(OR(G23="4/16",G23="3/16"),((база!$L$5*Таблица1[[#This Row],[сумма]]*Таблица1[[#This Row],[коэф]])), IF(OR(G23="2/4",G23="3/4",G23="4/4"),((база!$I$5*Таблица1[[#This Row],[сумма]]*Таблица1[[#This Row],[коэф]])), IF((G23="5/8"),((база!$J$6*Таблица1[[#This Row],[сумма]]*Таблица1[[#This Row],[коэф]])), IF(OR(G23="4/8",G23="3/8",G23="2/8"),((база!$J$5*Таблица1[[#This Row],[сумма]]*Таблица1[[#This Row],[коэф]]))))))))))) -> 2171.52 | AP23: =IF(AR23<=3,(IF((G23="5/24"),((база!$M$6*2*Таблица1[[#This Row],[Столбец1]]*Таблица1[[#This Row],[коэф]])), IF((G23="4/24"),((база!$M$5*2*Таблица1[[#This Row],[Столбец1]]*Таблица1[[#This Row],[коэф]])), IF((G23="3/24"),((база!$M$4*2*Таблица1[[#This Row],[Столбец1]]*Таблица1[[#This Row],[коэф]])), IF((G23="5/16"),((база!$L$6*2*Таблица1[[#This Row],[Столбец1]]*Таблица1[[#This Row],[коэф]])), IF((G23="4/16"),((база!$L$5*2*Таблица1[[#This Row],[Столбец1]]*Таблица1[[#This Row],[коэф]])), IF((G23="3/16"),((база!$L$4*2*Таблица1[[#This Row],[Столбец1]]*Таблица1[[#This Row],[коэф]])), IF((G23="4/4"),((база!$I$5*2*Таблица1[[#This Row],[Столбец1]]*Таблица1[[#This Row],[коэф]])), IF(OR(G23="2/4",G23="3/4"),((база!$I$4*2*Таблица1[[#This Row],[Столбец1]]*Таблица1[[#This Row],[коэф]])), IF((G23="5/8"),((база!$J$6*2*Таблица1[[#This Row],[Столбец1]]*Таблица1[[#This Row],[коэф]])), IF((G23="4/8"),((база!$J$5*2*Таблица1[[#This Row],[Столбец1]]*Таблица1[[#This Row],[коэф]])), IF(OR(G23="3/8",G23="2/8"),((база!$J$4*2*Таблица1[[#This Row],[Столбец1]]*Таблица1[[#This Row],[коэф]])))))))))))))), (IF((G23="5/24"),((база!$M$6*2*Таблица1[[#This Row],[Столбец1]]*Таблица1[[#This Row],[коэф]])), IF(OR(G23="4/24",G23="3/24"),((база!$M$5*2*Таблица1[[#This Row],[Столбец1]]*Таблица1[[#This Row],[коэф]])), IF((G23="5/16"),((база!$L$6*2*Таблица1[[#This Row],[Столбец1]]*Таблица1[[#This Row],[коэф]])), IF(OR(G23="4/16",G23="3/16"),((база!$L$5*2*Таблица1[[#This Row],[Столбец1]]*Таблица1[[#This Row],[коэф]])), IF(OR(G23="2/4",G23="3/4",G23="4/4"),((база!$I$5*2*Таблица1[[#This Row],[Столбец1]]*Таблица1[[#This Row],[коэф]])), IF((G23="5/8"),((база!$J$6*2*Таблица1[[#This Row],[Столбец1]]*Таблица1[[#This Row],[коэф]])), IF(OR(G23="4/8",G23="3/8",G23="2/8"),((база!$J$5*2*Таблица1[[#This Row],[Столбец1]]*Таблица1[[#This Row],[коэф]]))))))))))) -> 0 | AQ23: =IFERROR(INDEX(база!T:T, MATCH(F23,база!Q:Q,0)),"") -> 2 | AR23: =IFERROR(INDEX(база!D:D, MATCH(F23,база!B:B,0)),"") -> 3
A24: декабрь | B24: 2023 | C24: БО-00 | D24: 126-23 | E24: 1 | F24: Мработник1 | G24: 3/16 | H24: 7.2 | I24: 6 | N24: 7.2 | O24: 7.2 | P24: 6 | R24: 7.2 | S24: 7.2 | T24: 7.2 | U24: 7.2 | V24: 7.2 | W24: 6 | AM24: =IF(AQ24=1,SUM(H24:I24,L24:O24,R24:U24,X24:AA24,AD24:AG24,AI24:AK24), IF(AQ24=2,SUM(H24:K24,N24:Q24,T24:W24,Z24:AC24,AF24:AI24), IF(AQ24=3,SUM(J24:M24,P24:S24,V24:Y24,AB24:AE24,AH24:AK24),SUM(Таблица1[[#This Row],[1]:[31]])-Таблица1[[#This Row],[Столбец1]]))) -> 75.6 | AN24: =IF(AQ24=1,SUM(J24:K24,P24:Q24,V24:W24,AB24:AC24,AH24:AI24), IF(AQ24=2,SUM(L24:M24,R24:S24,X24:Y24,AD24:AE24), IF(AQ24=3,SUM(H24:I24,N24:O24,T24:U24,Z24:AA24,AF24:AG24), SUM(IFERROR(WEEKDAY($H$2:$AL$2,2)>5,)*H24:AL24)))) -> 0 | AO24: =IF(AR24<=3,(IF((G24="5/24"),((база!$M$6*Таблица1[[#This Row],[сумма]]*Таблица1[[#This Row],[коэф]])), IF((G24="4/24"),((база!$M$5*Таблица1[[#This Row],[сумма]]*Таблица1[[#This Row],[коэф]])), IF((G24="3/24"),((база!$M$4*Таблица1[[#This Row],[сумма]]*Таблица1[[#This Row],[коэф]])), IF((G24="5/16"),((база!$L$6*Таблица1[[#This Row],[сумма]]*Таблица1[[#This Row],[коэф]])), IF((G24="4/16"),((база!$L$5*Таблица1[[#This Row],[сумма]]*Таблица1[[#This Row],[коэф]])), IF((G24="3/16"),((база!$L$4*Таблица1[[#This Row],[сумма]]*Таблица1[[#This Row],[коэф]])), IF((G24="4/4"),((база!$I$5*Таблица1[[#This Row],[сумма]]*Таблица1[[#This Row],[коэф]])), IF(OR(G24="2/4",G24="3/4"),((база!$I$4*Таблица1[[#This Row],[сумма]]*Таблица1[[#This Row],[коэф]])), IF((G24="5/8"),((база!$J$6*Таблица1[[#This Row],[сумма]]*Таблица1[[#This Row],[коэф]])), IF((G24="4/8"),((база!$J$5*Таблица1[[#This Row],[сумма]]*Таблица1[[#This Row],[коэф]])), IF(OR(G24="3/8",G24="2/8"),((база!$J$4*Таблица1[[#This Row],[сумма]]*Таблица1[[#This Row],[коэф]])))))))))))))), (IF((G24="5/24"),((база!$M$6*Таблица1[[#This Row],[сумма]]*Таблица1[[#This Row],[коэф]])), IF(OR(G24="4/24",G24="3/24"),((база!$M$5*Таблица1[[#This Row],[сумма]]*Таблица1[[#This Row],[коэф]])), IF((G24="5/16"),((база!$L$6*Таблица1[[#This Row],[сумма]]*Таблица1[[#This Row],[коэф]])), IF(OR(G24="4/16",G24="3/16"),((база!$L$5*Таблица1[[#This Row],[сумма]]*Таблица1[[#This Row],[коэф]])), IF(OR(G24="2/4",G24="3/4",G24="4/4"),((база!$I$5*Таблица1[[#This Row],[сумма]]*Таблица1[[#This Row],[коэф]])), IF((G24="5/8"),((база!$J$6*Таблица1[[#This Row],[сумма]]*Таблица1[[#This Row],[коэф]])), IF(OR(G24="4/8",G24="3/8",G24="2/8"),((база!$J$5*Таблица1[[#This Row],[сумма]]*Таблица1[[#This Row],[коэф]]))))))))))) -> 11400.48 | AP24: =IF(AR24<=3,(IF((G24="5/24"),((база!$M$6*2*Таблица1[[#This Row],[Столбец1]]*Таблица1[[#This Row],[коэф]])), IF((G24="4/24"),((база!$M$5*2*Таблица1[[#This Row],[Столбец1]]*Таблица1[[#This Row],[коэф]])), IF((G24="3/24"),((база!$M$4*2*Таблица1[[#This Row],[Столбец1]]*Таблица1[[#This Row],[коэф]])), IF((G24="5/16"),((база!$L$6*2*Таблица1[[#This Row],[Столбец1]]*Таблица1[[#This Row],[коэф]])), IF((G24="4/16"),((база!$L$5*2*Таблица1[[#This Row],[Столбец1]]*Таблица1[[#This Row],[коэф]])), IF((G24="3/16"),((база!$L$4*2*Таблица1[[#This Row],[Столбец1]]*Таблица1[[#This Row],[коэф]])), IF((G24="4/4"),((база!$I$5*2*Таблица1[[#This Row],[Столбец1]]*Таблица1[[#This Row],[коэф]])), IF(OR(G24="2/4",G24="3/4"),((база!$I$4*2*Таблица1[[#This Row],[Столбец1]]*Таблица1[[#This Row],[коэф]])), IF((G24="5/8"),((база!$J$6*2*Таблица1[[#This Row],[Столбец1]]*Таблица1[[#This Row],[коэф]])), IF((G24="4/8"),((база!$J$5*2*Таблица1[[#This Row],[Столбец1]]*Таблица1[[#This Row],[коэф]])), IF(OR(G24="3/8",G24="2/8"),((база!$J$4*2*Таблица1[[#This Row],[Столбец1]]*Таблица1[[#This Row],[коэф]])))))))))))))), (IF((G24="5/24"),((база!$M$6*2*Таблица1[[#This Row],[Столбец1]]*Таблица1[[#This Row],[коэф]])), IF(OR(G24="4/24",G24="3/24"),((база!$M$5*2*Таблица1[[#This Row],[Столбец1]]*Таблица1[[#This Row],[коэф]])), IF((G24="5/16"),((база!$L$6*2*Таблица1[[#This Row],[Столбец1]]*Таблица1[[#This Row],[коэф]])), IF(OR(G24="4/16",G24="3/16"),((база!$L$5*2*Таблица1[[#This Row],[Столбец1]]*Таблица1[[#This Row],[коэф]])), IF(OR(G24="2/4",G24="3/4",G24="4/4"),((база!$I$5*2*Таблица1[[#This Row],[Столбец1]]*Таблица1[[#This Row],[коэф]])), IF((G24="5/8"),((база!$J$6*2*Таблица1[[#This Row],[Столбец1]]*Таблица1[[#This Row],[коэф]])), IF(OR(G24="4/8",G24="3/8",G24="2/8"),((база!$J$5*2*Таблица1[[#This Row],[Столбец1]]*Таблица1[[#This Row],[коэф]]))))))))))) -> 0 | AQ24: =IFERROR(INDEX(база!T:T, MATCH(F24,база!Q:Q,0)),"") -> 0 | AR24: =IFERROR(INDEX(база!D:D, MATCH(F24,база!B:B,0)),"") -> 3
A25: декабрь | B25: 2023 | C25: 7Б7 | D25: 26-23 | E25: 1 | F25: Мработник2 | G25: 3/16 | H25: 7.2 | I25: 7.2 | L25: 7.2 | M25: 7.2 | N25: 7.2 | O25: 7.2 | P25: 6 | R25: 7.2 | S25: 7.2 | T25: 7.2 | U25: 7.2 | V25: 7 | AB25: 7 | AM25: =IF(AQ25=1,SUM(H25:I25,L25:O25,R25:U25,X25:AA25,AD25:AG25,AI25:AK25), IF(AQ25=2,SUM(H25:K25,N25:Q25,T25:W25,Z25:AC25,AF25:AI25), IF(AQ25=3,SUM(J25:M25,P25:S25,V25:Y25,AB25:AE25,AH25:AK25),SUM(Таблица1[[#This Row],[1]:[31]])-Таблица1[[#This Row],[Столбец1]]))) -> 72 | AN25: =IF(AQ25=1,SUM(J25:K25,P25:Q25,V25:W25,AB25:AC25,AH25:AI25), IF(AQ25=2,SUM(L25:M25,R25:S25,X25:Y25,AD25:AE25), IF(AQ25=3,SUM(H25:I25,N25:O25,T25:U25,Z25:AA25,AF25:AG25), SUM(IFERROR(WEEKDAY($H$2:$AL$2,2)>5,)*H25:AL25)))) -> 20 | AO25: =IF(AR25<=3,(IF((G25="5/24"),((база!$M$6*Таблица1[[#This Row],[сумма]]*Таблица1[[#This Row],[коэф]])), IF((G25="4/24"),((база!$M$5*Таблица1[[#This Row],[сумма]]*Таблица1[[#This Row],[коэф]])), IF((G25="3/24"),((база!$M$4*Таблица1[[#This Row],[сумма]]*Таблица1[[#This Row],[коэф]])), IF((G25="5/16"),((база!$L$6*Таблица1[[#This Row],[сумма]]*Таблица1[[#This Row],[коэф]])), IF((G25="4/16"),((база!$L$5*Таблица1[[#This Row],[сумма]]*Таблица1[[#This Row],[коэф]])), IF((G25="3/16"),((база!$L$4*Таблица1[[#This Row],[сумма]]*Таблица1[[#This Row],[коэф]])), IF((G25="4/4"),((база!$I$5*Таблица1[[#This Row],[сумма]]*Таблица1[[#This Row],[коэф]])), IF(OR(G25="2/4",G25="3/4"),((база!$I$4*Таблица1[[#This Row],[сумма]]*Таблица1[[#This Row],[коэф]])), IF((G25="5/8"),((база!$J$6*Таблица1[[#This Row],[сумма]]*Таблица1[[#This Row],[коэф]])), IF((G25="4/8"),((база!$J$5*Таблица1[[#This Row],[сумма]]*Таблица1[[#This Row],[коэф]])), IF(OR(G25="3/8",G25="2/8"),((база!$J$4*Таблица1[[#This Row],[сумма]]*Таблица1[[#This Row],[коэф]])))))))))))))), (IF((G25="5/24"),((база!$M$6*Таблица1[[#This Row],[сумма]]*Таблица1[[#This Row],[коэф]])), IF(OR(G25="4/24",G25="3/24"),((база!$M$5*Таблица1[[#This Row],[сумма]]*Таблица1[[#This Row],[коэф]])), IF((G25="5/16"),((база!$L$6*Таблица1[[#This Row],[сумма]]*Таблица1[[#This Row],[коэф]])), IF(OR(G25="4/16",G25="3/16"),((база!$L$5*Таблица1[[#This Row],[сумма]]*Таблица1[[#This Row],[коэф]])), IF(OR(G25="2/4",G25="3/4",G25="4/4"),((база!$I$5*Таблица1[[#This Row],[сумма]]*Таблица1[[#This Row],[коэф]])), IF((G25="5/8"),((база!$J$6*Таблица1[[#This Row],[сумма]]*Таблица1[[#This Row],[коэф]])), IF(OR(G25="4/8",G25="3/8",G25="2/8"),((база!$J$5*Таблица1[[#This Row],[сумма]]*Таблица1[[#This Row],[коэф]]))))))))))) -> 10857.6 | AP25: =IF(AR25<=3,(IF((G25="5/24"),((база!$M$6*2*Таблица1[[#This Row],[Столбец1]]*Таблица1[[#This Row],[коэф]])), IF((G25="4/24"),((база!$M$5*2*Таблица1[[#This Row],[Столбец1]]*Таблица1[[#This Row],[коэф]])), IF((G25="3/24"),((база!$M$4*2*Таблица1[[#This Row],[Столбец1]]*Таблица1[[#This Row],[коэф]])), IF((G25="5/16"),((база!$L$6*2*Таблица1[[#This Row],[Столбец1]]*Таблица1[[#This Row],[коэф]])), IF((G25="4/16"),((база!$L$5*2*Таблица1[[#This Row],[Столбец1]]*Таблица1[[#This Row],[коэф]])), IF((G25="3/16"),((база!$L$4*2*Таблица1[[#This Row],[Столбец1]]*Таблица1[[#This Row],[коэф]])), IF((G25="4/4"),((база!$I$5*2*Таблица1[[#This Row],[Столбец1]]*Таблица1[[#This Row],[коэф]])), IF(OR(G25="2/4",G25="3/4"),((база!$I$4*2*Таблица1[[#This Row],[Столбец1]]*Таблица1[[#This Row],[коэф]])), IF((G25="5/8"),((база!$J$6*2*Таблица1[[#This Row],[Столбец1]]*Таблица1[[#This Row],[коэф]])), IF((G25="4/8"),((база!$J$5*2*Таблица1[[#This Row],[Столбец1]]*Таблица1[[#This Row],[коэф]])), IF(OR(G25="3/8",G25="2/8"),((база!$J$4*2*Таблица1[[#This Row],[Столбец1]]*Таблица1[[#This Row],[коэф]])))))))))))))), (IF((G25="5/24"),((база!$M$6*2*Таблица1[[#This Row],[Столбец1]]*Таблица1[[#This Row],[коэф]])), IF(OR(G25="4/24",G25="3/24"),((база!$M$5*2*Таблица1[[#This Row],[Столбец1]]*Таблица1[[#This Row],[коэф]])), IF((G25="5/16"),((база!$L$6*2*Таблица1[[#This Row],[Столбец1]]*Таблица1[[#This Row],[коэф]])), IF(OR(G25="4/16",G25="3/16"),((база!$L$5*2*Таблица1[[#This Row],[Столбец1]]*Таблица1[[#This Row],[коэф]])), IF(OR(G25="2/4",G25="3/4",G25="4/4"),((база!$I$5*2*Таблица1[[#This Row],[Столбец1]]*Таблица1[[#This Row],[коэф]])), IF((G25="5/8"),((база!$J$6*2*Таблица1[[#This Row],[Столбец1]]*Таблица1[[#This Row],[коэф]])), IF(OR(G25="4/8",G25="3/8",G25="2/8"),((база!$J$5*2*Таблица1[[#This Row],[Столбец1]]*Таблица1[[#This Row],[коэф]]))))))))))) -> 6032 | AQ25: =IFERROR(INDEX(база!T:T, MATCH(F25,база!Q:Q,0)),"") -> 1 | AR25: =IFERROR(INDEX(база!D:D, MATCH(F25,база!B:B,0)),"") -> 3
A26: декабрь | B26: 2023 | C26: 7Б7 | D26: 26-23 | E26: 1 | F26: Мработник5 | G26: 3/16 | N26: 7.2 | O26: 7.2 | P26: 7.2 | Q26: 7.2 | T26: 7.2 | U26: 7.2 | V26: 7.2 | W26: 7.2 | AM26: =IF(AQ26=1,SUM(H26:I26,L26:O26,R26:U26,X26:AA26,AD26:AG26,AI26:AK26), IF(AQ26=2,SUM(H26:K26,N26:Q26,T26:W26,Z26:AC26,AF26:AI26), IF(AQ26=3,SUM(J26:M26,P26:S26,V26:Y26,AB26:AE26,AH26:AK26),SUM(Таблица1[[#This Row],[1]:[31]])-Таблица1[[#This Row],[Столбец1]]))) -> 57.6 | AN26: =IF(AQ26=1,SUM(J26:K26,P26:Q26,V26:W26,AB26:AC26,AH26:AI26), IF(AQ26=2,SUM(L26:M26,R26:S26,X26:Y26,AD26:AE26), IF(AQ26=3,SUM(H26:I26,N26:O26,T26:U26,Z26:AA26,AF26:AG26), SUM(IFERROR(WEEKDAY($H$2:$AL$2,2)>5,)*H26:AL26)))) -> 0 | AO26: =IF(AR26<=3,(IF((G26="5/24"),((база!$M$6*Таблица1[[#This Row],[сумма]]*Таблица1[[#This Row],[коэф]])), IF((G26="4/24"),((база!$M$5*Таблица1[[#This Row],[сумма]]*Таблица1[[#This Row],[коэф]])), IF((G26="3/24"),((база!$M$4*Таблица1[[#This Row],[сумма]]*Таблица1[[#This Row],[коэф]])), IF((G26="5/16"),((база!$L$6*Таблица1[[#This Row],[сумма]]*Таблица1[[#This Row],[коэф]])), IF((G26="4/16"),((база!$L$5*Таблица1[[#This Row],[сумма]]*Таблица1[[#This Row],[коэф]])), IF((G26="3/16"),((база!$L$4*Таблица1[[#This Row],[сумма]]*Таблица1[[#This Row],[коэф]])), IF((G26="4/4"),((база!$I$5*Таблица1[[#This Row],[сумма]]*Таблица1[[#This Row],[коэф]])), IF(OR(G26="2/4",G26="3/4"),((база!$I$4*Таблица1[[#This Row],[сумма]]*Таблица1[[#This Row],[коэф]])), IF((G26="5/8"),((база!$J$6*Таблица1[[#This Row],[сумма]]*Таблица1[[#This Row],[коэф]])), IF((G26="4/8"),((база!$J$5*Таблица1[[#This Row],[сумма]]*Таблица1[[#This Row],[коэф]])), IF(OR(G26="3/8",G26="2/8"),((база!$J$4*Таблица1[[#This Row],[сумма]]*Таблица1[[#This Row],[коэф]])))))))))))))), (IF((G26="5/24"),((база!$M$6*Таблица1[[#This Row],[сумма]]*Таблица1[[#This Row],[коэф]])), IF(OR(G26="4/24",G26="3/24"),((база!$M$5*Таблица1[[#This Row],[сумма]]*Таблица1[[#This Row],[коэф]])), IF((G26="5/16"),((база!$L$6*Таблица1[[#This Row],[сумма]]*Таблица1[[#This Row],[коэф]])), IF(OR(G26="4/16",G26="3/16"),((база!$L$5*Таблица1[[#This Row],[сумма]]*Таблица1[[#This Row],[коэф]])), IF(OR(G26="2/4",G26="3/4",G26="4/4"),((база!$I$5*Таблица1[[#This Row],[сумма]]*Таблица1[[#This Row],[коэф]])), IF((G26="5/8"),((база!$J$6*Таблица1[[#This Row],[сумма]]*Таблица1[[#This Row],[коэф]])), IF(OR(G26="4/8",G26="3/8",G26="2/8"),((база!$J$5*Таблица1[[#This Row],[сумма]]*Таблица1[[#This Row],[коэф]]))))))))))) -> 8686.08 | AP26: =IF(AR26<=3,(IF((G26="5/24"),((база!$M$6*2*Таблица1[[#This Row],[Столбец1]]*Таблица1[[#This Row],[коэф]])), IF((G26="4/24"),((база!$M$5*2*Таблица1[[#This Row],[Столбец1]]*Таблица1[[#This Row],[коэф]])), IF((G26="3/24"),((база!$M$4*2*Таблица1[[#This Row],[Столбец1]]*Таблица1[[#This Row],[коэф]])), IF((G26="5/16"),((база!$L$6*2*Таблица1[[#This Row],[Столбец1]]*Таблица1[[#This Row],[коэф]])), IF((G26="4/16"),((база!$L$5*2*Таблица1[[#This Row],[Столбец1]]*Таблица1[[#This Row],[коэф]])), IF((G26="3/16"),((база!$L$4*2*Таблица1[[#This Row],[Столбец1]]*Таблица1[[#This Row],[коэф]])), IF((G26="4/4"),((база!$I$5*2*Таблица1[[#This Row],[Столбец1]]*Таблица1[[#This Row],[коэф]])), IF(OR(G26="2/4",G26="3/4"),((база!$I$4*2*Таблица1[[#This Row],[Столбец1]]*Таблица1[[#This Row],[коэф]])), IF((G26="5/8"),((база!$J$6*2*Таблица1[[#This Row],[Столбец1]]*Таблица1[[#This Row],[коэф]])), IF((G26="4/8"),((база!$J$5*2*Таблица1[[#This Row],[Столбец1]]*Таблица1[[#This Row],[коэф]])), IF(OR(G26="3/8",G26="2/8"),((база!$J$4*2*Таблица1[[#This Row],[Столбец1]]*Таблица1[[#This Row],[коэф]])))))))))))))), (IF((G26="5/24"),((база!$M$6*2*Таблица1[[#This Row],[Столбец1]]*Таблица1[[#This Row],[коэф]])), IF(OR(G26="4/24",G26="3/24"),((база!$M$5*2*Таблица1[[#This Row],[Столбец1]]*Таблица1[[#This Row],[коэф]])), IF((G26="5/16"),((база!$L$6*2*Таблица1[[#This Row],[Столбец1]]*Таблица1[[#This Row],[коэф]])), IF(OR(G26="4/16",G26="3/16"),((база!$L$5*2*Таблица1[[#This Row],[Столбец1]]*Таблица1[[#This Row],[коэф]])), IF(OR(G26="2/4",G26="3/4",G26="4/4"),((база!$I$5*2*Таблица1[[#This Row],[Столбец1]]*Таблица1[[#This Row],[коэф]])), IF((G26="5/8"),((база!$J$6*2*Таблица1[[#This Row],[Столбец1]]*Таблица1[[#This Row],[коэф]])), IF(OR(G26="4/8",G26="3/8",G26="2/8"),((база!$J$5*2*Таблица1[[#This Row],[Столбец1]]*Таблица1[[#This Row],[коэф]]))))))))))) -> 0 | AQ26: =IFERROR(INDEX(база!T:T, MATCH(F26,база!Q:Q,0)),"") -> 2 | AR26: =IFERROR(INDEX(база!D:D, MATCH(F26,база!B:B,0)),"") -> 3
A27: =A26 -> декабрь | B27: 2023 | C27: БО-01 | D27: 1-24 | E27: 1 | F27: Мработник3 | G27: 3/16 | H27: 7 | J27: 7.2 | K27: 7.2 | L27: 7.2 | M27: 7.2 | N27: 7 | P27: 7.2 | Q27: 7.2 | R27: 7.2 | S27: 7.2 | T27: 7 | AM27: =IF(AQ27=1,SUM(H27:I27,L27:O27,R27:U27,X27:AA27,AD27:AG27,AI27:AK27), IF(AQ27=2,SUM(H27:K27,N27:Q27,T27:W27,Z27:AC27,AF27:AI27), IF(AQ27=3,SUM(J27:M27,P27:S27,V27:Y27,AB27:AE27,AH27:AK27),SUM(Таблица1[[#This Row],[1]:[31]])-Таблица1[[#This Row],[Столбец1]]))) -> 57.6 | AN27: =IF(AQ27=1,SUM(J27:K27,P27:Q27,V27:W27,AB27:AC27,AH27:AI27), IF(AQ27=2,SUM(L27:M27,R27:S27,X27:Y27,AD27:AE27), IF(AQ27=3,SUM(H27:I27,N27:O27,T27:U27,Z27:AA27,AF27:AG27), SUM(IFERROR(WEEKDAY($H$2:$AL$2,2)>5,)*H27:AL27)))) -> 21 | AO27: =IF(AR27<=3,(IF((G27="5/24"),((база!$M$6*Таблица1[[#This Row],[сумма]]*Таблица1[[#This Row],[коэф]])), IF((G27="4/24"),((база!$M$5*Таблица1[[#This Row],[сумма]]*Таблица1[[#This Row],[коэф]])), IF((G27="3/24"),((база!$M$4*Таблица1[[#This Row],[сумма]]*Таблица1[[#This Row],[коэф]])), IF((G27="5/16"),((база!$L$6*Таблица1[[#This Row],[сумма]]*Таблица1[[#This Row],[коэф]])), IF((G27="4/16"),((база!$L$5*Таблица1[[#This Row],[сумма]]*Таблица1[[#This Row],[коэф]])), IF((G27="3/16"),((база!$L$4*Таблица1[[#This Row],[сумма]]*Таблица1[[#This Row],[коэф]])), IF((G27="4/4"),((база!$I$5*Таблица1[[#This Row],[сумма]]*Таблица1[[#This Row],[коэф]])), IF(OR(G27="2/4",G27="3/4"),((база!$I$4*Таблица1[[#This Row],[сумма]]*Таблица1[[#This Row],[коэф]])), IF((G27="5/8"),((база!$J$6*Таблица1[[#This Row],[сумма]]*Таблица1[[#This Row],[коэф]])), IF((G27="4/8"),((база!$J$5*Таблица1[[#This Row],[сумма]]*Таблица1[[#This Row],[коэф]])), IF(OR(G27="3/8",G27="2/8"),((база!$J$4*Таблица1[[#This Row],[сумма]]*Таблица1[[#This Row],[коэф]])))))))))))))), (IF((G27="5/24"),((база!$M$6*Таблица1[[#This Row],[сумма]]*Таблица1[[#This Row],[коэф]])), IF(OR(G27="4/24",G27="3/24"),((база!$M$5*Таблица1[[#This Row],[сумма]]*Таблица1[[#This Row],[коэф]])), IF((G27="5/16"),((база!$L$6*Таблица1[[#This Row],[сумма]]*Таблица1[[#This Row],[коэф]])), IF(OR(G27="4/16",G27="3/16"),((база!$L$5*Таблица1[[#This Row],[сумма]]*Таблица1[[#This Row],[коэф]])), IF(OR(G27="2/4",G27="3/4",G27="4/4"),((база!$I$5*Таблица1[[#This Row],[сумма]]*Таблица1[[#This Row],[коэф]])), IF((G27="5/8"),((база!$J$6*Таблица1[[#This Row],[сумма]]*Таблица1[[#This Row],[коэф]])), IF(OR(G27="4/8",G27="3/8",G27="2/8"),((база!$J$5*Таблица1[[#This Row],[сумма]]*Таблица1[[#This Row],[коэф]]))))))))))) -> 8686.08 | AP27: =IF(AR27<=3,(IF((G27="5/24"),((база!$M$6*2*Таблица1[[#This Row],[Столбец1]]*Таблица1[[#This Row],[коэф]])), IF((G27="4/24"),((база!$M$5*2*Таблица1[[#This Row],[Столбец1]]*Таблица1[[#This Row],[коэф]])), IF((G27="3/24"),((база!$M$4*2*Таблица1[[#This Row],[Столбец1]]*Таблица1[[#This Row],[коэф]])), IF((G27="5/16"),((база!$L$6*2*Таблица1[[#This Row],[Столбец1]]*Таблица1[[#This Row],[коэф]])), IF((G27="4/16"),((база!$L$5*2*Таблица1[[#This Row],[Столбец1]]*Таблица1[[#This Row],[коэф]])), IF((G27="3/16"),((база!$L$4*2*Таблица1[[#This Row],[Столбец1]]*Таблица1[[#This Row],[коэф]])), IF((G27="4/4"),((база!$I$5*2*Таблица1[[#This Row],[Столбец1]]*Таблица1[[#This Row],[коэф]])), IF(OR(G27="2/4",G27="3/4"),((база!$I$4*2*Таблица1[[#This Row],[Столбец1]]*Таблица1[[#This Row],[коэф]])), IF((G27="5/8"),((база!$J$6*2*Таблица1[[#This Row],[Столбец1]]*Таблица1[[#This Row],[коэф]])), IF((G27="4/8"),((база!$J$5*2*Таблица1[[#This Row],[Столбец1]]*Таблица1[[#This Row],[коэф]])), IF(OR(G27="3/8",G27="2/8"),((база!$J$4*2*Таблица1[[#This Row],[Столбец1]]*Таблица1[[#This Row],[коэф]])))))))))))))), (IF((G27="5/24"),((база!$M$6*2*Таблица1[[#This Row],[Столбец1]]*Таблица1[[#This Row],[коэф]])), IF(OR(G27="4/24",G27="3/24"),((база!$M$5*2*Таблица1[[#This Row],[Столбец1]]*Таблица1[[#This Row],[коэф]])), IF((G27="5/16"),((база!$L$6*2*Таблица1[[#This Row],[Столбец1]]*Таблица1[[#This Row],[коэф]])), IF(OR(G27="4/16",G27="3/16"),((база!$L$5*2*Таблица1[[#This Row],[Столбец1]]*Таблица1[[#This Row],[коэф]])), IF(OR(G27="2/4",G27="3/4",G27="4/4"),((база!$I$5*2*Таблица1[[#This Row],[Столбец1]]*Таблица1[[#This Row],[коэф]])), IF((G27="5/8"),((база!$J$6*2*Таблица1[[#This Row],[Столбец1]]*Таблица1[[#This Row],[коэф]])), IF(OR(G27="4/8",G27="3/8",G27="2/8"),((база!$J$5*2*Таблица1[[#This Row],[Столбец1]]*Таблица1[[#This Row],[коэф]]))))))))))) -> 6333.6 | AQ27: =IFERROR(INDEX(база!T:T, MATCH(F27,база!Q:Q,0)),"") -> 3 | AR27: =IFERROR(INDEX(база!D:D, MATCH(F27,база!B:B,0)),"") -> 3
A28: декабрь | B28: 2023 | C28: БО-01 | D28: 3-24 | E28: 1 | F28: Мработник4 | G28: 3/16 | H28: 6.7 | K28: 6.7 | L28: 6.7 | M28: 6.7 | N28: 6.7 | O28: 6.7 | AM28: =IF(AQ28=1,SUM(H28:I28,L28:O28,R28:U28,X28:AA28,AD28:AG28,AI28:AK28), IF(AQ28=2,SUM(H28:K28,N28:Q28,T28:W28,Z28:AC28,AF28:AI28), IF(AQ28=3,SUM(J28:M28,P28:S28,V28:Y28,AB28:AE28,AH28:AK28),SUM(Таблица1[[#This Row],[1]:[31]])-Таблица1[[#This Row],[Столбец1]]))) -> 40.2 | AN28: =IF(AQ28=1,SUM(J28:K28,P28:Q28,V28:W28,AB28:AC28,AH28:AI28), IF(AQ28=2,SUM(L28:M28,R28:S28,X28:Y28,AD28:AE28), IF(AQ28=3,SUM(H28:I28,N28:O28,T28:U28,Z28:AA28,AF28:AG28), SUM(IFERROR(WEEKDAY($H$2:$AL$2,2)>5,)*H28:AL28)))) -> 0 | AO28: =IF(AR28<=3,(IF((G28="5/24"),((база!$M$6*Таблица1[[#This Row],[сумма]]*Таблица1[[#This Row],[коэф]])), IF((G28="4/24"),((база!$M$5*Таблица1[[#This Row],[сумма]]*Таблица1[[#This Row],[коэф]])), IF((G28="3/24"),((база!$M$4*Таблица1[[#This Row],[сумма]]*Таблица1[[#This Row],[коэф]])), IF((G28="5/16"),((база!$L$6*Таблица1[[#This Row],[сумма]]*Таблица1[[#This Row],[коэф]])), IF((G28="4/16"),((база!$L$5*Таблица1[[#This Row],[сумма]]*Таблица1[[#This Row],[коэф]])), IF((G28="3/16"),((база!$L$4*Таблица1[[#This Row],[сумма]]*Таблица1[[#This Row],[коэф]])), IF((G28="4/4"),((база!$I$5*Таблица1[[#This Row],[сумма]]*Таблица1[[#This Row],[коэф]])), IF(OR(G28="2/4",G28="3/4"),((база!$I$4*Таблица1[[#This Row],[сумма]]*Таблица1[[#This Row],[коэф]])), IF((G28="5/8"),((база!$J$6*Таблица1[[#This Row],[сумма]]*Таблица1[[#This Row],[коэф]])), IF((G28="4/8"),((база!$J$5*Таблица1[[#This Row],[сумма]]*Таблица1[[#This Row],[коэф]])), IF(OR(G28="3/8",G28="2/8"),((база!$J$4*Таблица1[[#This Row],[сумма]]*Таблица1[[#This Row],[коэф]])))))))))))))), (IF((G28="5/24"),((база!$M$6*Таблица1[[#This Row],[сумма]]*Таблица1[[#This Row],[коэф]])), IF(OR(G28="4/24",G28="3/24"),((база!$M$5*Таблица1[[#This Row],[сумма]]*Таблица1[[#This Row],[коэф]])), IF((G28="5/16"),((база!$L$6*Таблица1[[#This Row],[сумма]]*Таблица1[[#This Row],[коэф]])), IF(OR(G28="4/16",G28="3/16"),((база!$L$5*Таблица1[[#This Row],[сумма]]*Таблица1[[#This Row],[коэф]])), IF(OR(G28="2/4",G28="3/4",G28="4/4"),((база!$I$5*Таблица1[[#This Row],[сумма]]*Таблица1[[#This Row],[коэф]])), IF((G28="5/8"),((база!$J$6*Таблица1[[#This Row],[сумма]]*Таблица1[[#This Row],[коэф]])), IF(OR(G28="4/8",G28="3/8",G28="2/8"),((база!$J$5*Таблица1[[#This Row],[сумма]]*Таблица1[[#This Row],[коэф]]))))))))))) -> 6062.16 | AP28: =IF(AR28<=3,(IF((G28="5/24"),((база!$M$6*2*Таблица1[[#This Row],[Столбец1]]*Таблица1[[#This Row],[коэф]])), IF((G28="4/24"),((база!$M$5*2*Таблица1[[#This Row],[Столбец1]]*Таблица1[[#This Row],[коэф]])), IF((G28="3/24"),((база!$M$4*2*Таблица1[[#This Row],[Столбец1]]*Таблица1[[#This Row],[коэф]])), IF((G28="5/16"),((база!$L$6*2*Таблица1[[#This Row],[Столбец1]]*Таблица1[[#This Row],[коэф]])), IF((G28="4/16"),((база!$L$5*2*Таблица1[[#This Row],[Столбец1]]*Таблица1[[#This Row],[коэф]])), IF((G28="3/16"),((база!$L$4*2*Таблица1[[#This Row],[Столбец1]]*Таблица1[[#This Row],[коэф]])), IF((G28="4/4"),((база!$I$5*2*Таблица1[[#This Row],[Столбец1]]*Таблица1[[#This Row],[коэф]])), IF(OR(G28="2/4",G28="3/4"),((база!$I$4*2*Таблица1[[#This Row],[Столбец1]]*Таблица1[[#This Row],[коэф]])), IF((G28="5/8"),((база!$J$6*2*Таблица1[[#This Row],[Столбец1]]*Таблица1[[#This Row],[коэф]])), IF((G28="4/8"),((база!$J$5*2*Таблица1[[#This Row],[Столбец1]]*Таблица1[[#This Row],[коэф]])), IF(OR(G28="3/8",G28="2/8"),((база!$J$4*2*Таблица1[[#This Row],[Столбец1]]*Таблица1[[#This Row],[коэф]])))))))))))))), (IF((G28="5/24"),((база!$M$6*2*Таблица1[[#This Row],[Столбец1]]*Таблица1[[#This Row],[коэф]])), IF(OR(G28="4/24",G28="3/24"),((база!$M$5*2*Таблица1[[#This Row],[Столбец1]]*Таблица1[[#This Row],[коэф]])), IF((G28="5/16"),((база!$L$6*2*Таблица1[[#This Row],[Столбец1]]*Таблица1[[#This Row],[коэф]])), IF(OR(G28="4/16",G28="3/16"),((база!$L$5*2*Таблица1[[#This Row],[Столбец1]]*Таблица1[[#This Row],[коэф]])), IF(OR(G28="2/4",G28="3/4",G28="4/4"),((база!$I$5*2*Таблица1[[#This Row],[Столбец1]]*Таблица1[[#This Row],[коэф]])), IF((G28="5/8"),((база!$J$6*2*Таблица1[[#This Row],[Столбец1]]*Таблица1[[#This Row],[коэф]])), IF(OR(G28="4/8",G28="3/8",G28="2/8"),((база!$J$5*2*Таблица1[[#This Row],[Столбец1]]*Таблица1[[#This Row],[коэф]]))))))))))) -> 0 | AQ28: =IFERROR(INDEX(база!T:T, MATCH(F28,база!Q:Q,0)),"") -> 0 | AR28: =IFERROR(INDEX(база!D:D, MATCH(F28,база!B:B,0)),"") -> 3
A29: декабрь | B29: 2023 | C29: БО-01 | D29: 1-24 | E29: 1 | F29: Нработник1 | G29: 4/16 | H29: 7.2 | I29: 6 | K29: 7.2 | L29: 7.2 | M29: 7.2 | N29: 7.2 | O29: 7.2 | AM29: =IF(AQ29=1,SUM(H29:I29,L29:O29,R29:U29,X29:AA29,AD29:AG29,AI29:AK29), IF(AQ29=2,SUM(H29:K29,N29:Q29,T29:W29,Z29:AC29,AF29:AI29), IF(AQ29=3,SUM(J29:M29,P29:S29,V29:Y29,AB29:AE29,AH29:AK29),SUM(Таблица1[[#This Row],[1]:[31]])-Таблица1[[#This Row],[Столбец1]]))) -> 49.2 | AN29: =IF(AQ29=1,SUM(J29:K29,P29:Q29,V29:W29,AB29:AC29,AH29:AI29), IF(AQ29=2,SUM(L29:M29,R29:S29,X29:Y29,AD29:AE29), IF(AQ29=3,SUM(H29:I29,N29:O29,T29:U29,Z29:AA29,AF29:AG29), SUM(IFERROR(WEEKDAY($H$2:$AL$2,2)>5,)*H29:AL29)))) -> 0 | AO29: =IF(AR29<=3,(IF((G29="5/24"),((база!$M$6*Таблица1[[#This Row],[сумма]]*Таблица1[[#This Row],[коэф]])), IF((G29="4/24"),((база!$M$5*Таблица1[[#This Row],[сумма]]*Таблица1[[#This Row],[коэф]])), IF((G29="3/24"),((база!$M$4*Таблица1[[#This Row],[сумма]]*Таблица1[[#This Row],[коэф]])), IF((G29="5/16"),((база!$L$6*Таблица1[[#This Row],[сумма]]*Таблица1[[#This Row],[коэф]])), IF((G29="4/16"),((база!$L$5*Таблица1[[#This Row],[сумма]]*Таблица1[[#This Row],[коэф]])), IF((G29="3/16"),((база!$L$4*Таблица1[[#This Row],[сумма]]*Таблица1[[#This Row],[коэф]])), IF((G29="4/4"),((база!$I$5*Таблица1[[#This Row],[сумма]]*Таблица1[[#This Row],[коэф]])), IF(OR(G29="2/4",G29="3/4"),((база!$I$4*Таблица1[[#This Row],[сумма]]*Таблица1[[#This Row],[коэф]])), IF((G29="5/8"),((база!$J$6*Таблица1[[#This Row],[сумма]]*Таблица1[[#This Row],[коэф]])), IF((G29="4/8"),((база!$J$5*Таблица1[[#This Row],[сумма]]*Таблица1[[#This Row],[коэф]])), IF(OR(G29="3/8",G29="2/8"),((база!$J$4*Таблица1[[#This Row],[сумма]]*Таблица1[[#This Row],[коэф]])))))))))))))), (IF((G29="5/24"),((база!$M$6*Таблица1[[#This Row],[сумма]]*Таблица1[[#This Row],[коэф]])), IF(OR(G29="4/24",G29="3/24"),((база!$M$5*Таблица1[[#This Row],[сумма]]*Таблица1[[#This Row],[коэф]])), IF((G29="5/16"),((база!$L$6*Таблица1[[#This Row],[сумма]]*Таблица1[[#This Row],[коэф]])), IF(OR(G29="4/16",G29="3/16"),((база!$L$5*Таблица1[[#This Row],[сумма]]*Таблица1[[#This Row],[коэф]])), IF(OR(G29="2/4",G29="3/4",G29="4/4"),((база!$I$5*Таблица1[[#This Row],[сумма]]*Таблица1[[#This Row],[коэф]])), IF((G29="5/8"),((база!$J$6*Таблица1[[#This Row],[сумма]]*Таблица1[[#This Row],[коэф]])), IF(OR(G29="4/8",G29="3/8",G29="2/8"),((база!$J$5*Таблица1[[#This Row],[сумма]]*Таблица1[[#This Row],[коэф]]))))))))))) -> 8560.8 | AP29: =IF(AR29<=3,(IF((G29="5/24"),((база!$M$6*2*Таблица1[[#This Row],[Столбец1]]*Таблица1[[#This Row],[коэф]])), IF((G29="4/24"),((база!$M$5*2*Таблица1[[#This Row],[Столбец1]]*Таблица1[[#This Row],[коэф]])), IF((G29="3/24"),((база!$M$4*2*Таблица1[[#This Row],[Столбец1]]*Таблица1[[#This Row],[коэф]])), IF((G29="5/16"),((база!$L$6*2*Таблица1[[#This Row],[Столбец1]]*Таблица1[[#This Row],[коэф]])), IF((G29="4/16"),((база!$L$5*2*Таблица1[[#This Row],[Столбец1]]*Таблица1[[#This Row],[коэф]])), IF((G29="3/16"),((база!$L$4*2*Таблица1[[#This Row],[Столбец1]]*Таблица1[[#This Row],[коэф]])), IF((G29="4/4"),((база!$I$5*2*Таблица1[[#This Row],[Столбец1]]*Таблица1[[#This Row],[коэф]])), IF(OR(G29="2/4",G29="3/4"),((база!$I$4*2*Таблица1[[#This Row],[Столбец1]]*Таблица1[[#This Row],[коэф]])), IF((G29="5/8"),((база!$J$6*2*Таблица1[[#This Row],[Столбец1]]*Таблица1[[#This Row],[коэф]])), IF((G29="4/8"),((база!$J$5*2*Таблица1[[#This Row],[Столбец1]]*Таблица1[[#This Row],[коэф]])), IF(OR(G29="3/8",G29="2/8"),((база!$J$4*2*Таблица1[[#This Row],[Столбец1]]*Таблица1[[#This Row],[коэф]])))))))))))))), (IF((G29="5/24"),((база!$M$6*2*Таблица1[[#This Row],[Столбец1]]*Таблица1[[#This Row],[коэф]])), IF(OR(G29="4/24",G29="3/24"),((база!$M$5*2*Таблица1[[#This Row],[Столбец1]]*Таблица1[[#This Row],[коэф]])), IF((G29="5/16"),((база!$L$6*2*Таблица1[[#This Row],[Столбец1]]*Таблица1[[#This Row],[коэф]])), IF(OR(G29="4/16",G29="3/16"),((база!$L$5*2*Таблица1[[#This Row],[Столбец1]]*Таблица1[[#This Row],[коэф]])), IF(OR(G29="2/4",G29="3/4",G29="4/4"),((база!$I$5*2*Таблица1[[#This Row],[Столбец1]]*Таблица1[[#This Row],[коэф]])), IF((G29="5/8"),((база!$J$6*2*Таблица1[[#This Row],[Столбец1]]*Таблица1[[#This Row],[коэф]])), IF(OR(G29="4/8",G29="3/8",G29="2/8"),((база!$J$5*2*Таблица1[[#This Row],[Столбец1]]*Таблица1[[#This Row],[коэф]]))))))))))) -> 0 | AQ29: =IFERROR(INDEX(база!T:T, MATCH(F29,база!Q:Q,0)),"") -> 0 | AR29: =IFERROR(INDEX(база!D:D, MATCH(F29,база!B:B,0)),"") -> 3
A30: декабрь | B30: 2023 | C30: 1В5 | D30: 23-23 | E30: 1,2 | F30: Оработник1 | G30: 3/24 | H30: 7.2 | I30: 6 | P30: 6 | AF30: 7.2 | AG30: 7.2 | AH30: 7.2 | AI30: 7.2 | AM30: =IF(AQ30=1,SUM(H30:I30,L30:O30,R30:U30,X30:AA30,AD30:AG30,AI30:AK30), IF(AQ30=2,SUM(H30:K30,N30:Q30,T30:W30,Z30:AC30,AF30:AI30), IF(AQ30=3,SUM(J30:M30,P30:S30,V30:Y30,AB30:AE30,AH30:AK30),SUM(Таблица1[[#This Row],[1]:[31]])-Таблица1[[#This Row],[Столбец1]]))) -> 48 | AN30: =IF(AQ30=1,SUM(J30:K30,P30:Q30,V30:W30,AB30:AC30,AH30:AI30), IF(AQ30=2,SUM(L30:M30,R30:S30,X30:Y30,AD30:AE30), IF(AQ30=3,SUM(H30:I30,N30:O30,T30:U30,Z30:AA30,AF30:AG30), SUM(IFERROR(WEEKDAY($H$2:$AL$2,2)>5,)*H30:AL30)))) -> 0 | AO30: =IF(AR30<=3,(IF((G30="5/24"),((база!$M$6*Таблица1[[#This Row],[сумма]]*Таблица1[[#This Row],[коэф]])), IF((G30="4/24"),((база!$M$5*Таблица1[[#This Row],[сумма]]*Таблица1[[#This Row],[коэф]])), IF((G30="3/24"),((база!$M$4*Таблица1[[#This Row],[сумма]]*Таблица1[[#This Row],[коэф]])), IF((G30="5/16"),((база!$L$6*Таблица1[[#This Row],[сумма]]*Таблица1[[#This Row],[коэф]])), IF((G30="4/16"),((база!$L$5*Таблица1[[#This Row],[сумма]]*Таблица1[[#This Row],[коэф]])), IF((G30="3/16"),((база!$L$4*Таблица1[[#This Row],[сумма]]*Таблица1[[#This Row],[коэф]])), IF((G30="4/4"),((база!$I$5*Таблица1[[#This Row],[сумма]]*Таблица1[[#This Row],[коэф]])), IF(OR(G30="2/4",G30="3/4"),((база!$I$4*Таблица1[[#This Row],[сумма]]*Таблица1[[#This Row],[коэф]])), IF((G30="5/8"),((база!$J$6*Таблица1[[#This Row],[сумма]]*Таблица1[[#This Row],[коэф]])), IF((G30="4/8"),((база!$J$5*Таблица1[[#This Row],[сумма]]*Таблица1[[#This Row],[коэф]])), IF(OR(G30="3/8",G30="2/8"),((база!$J$4*Таблица1[[#This Row],[сумма]]*Таблица1[[#This Row],[коэф]])))))))))))))), (IF((G30="5/24"),((база!$M$6*Таблица1[[#This Row],[сумма]]*Таблица1[[#This Row],[коэф]])), IF(OR(G30="4/24",G30="3/24"),((база!$M$5*Таблица1[[#This Row],[сумма]]*Таблица1[[#This Row],[коэф]])), IF((G30="5/16"),((база!$L$6*Таблица1[[#This Row],[сумма]]*Таблица1[[#This Row],[коэф]])), IF(OR(G30="4/16",G30="3/16"),((база!$L$5*Таблица1[[#This Row],[сумма]]*Таблица1[[#This Row],[коэф]])), IF(OR(G30="2/4",G30="3/4",G30="4/4"),((база!$I$5*Таблица1[[#This Row],[сумма]]*Таблица1[[#This Row],[коэф]])), IF((G30="5/8"),((база!$J$6*Таблица1[[#This Row],[сумма]]*Таблица1[[#This Row],[коэф]])), IF(OR(G30="4/8",G30="3/8",G30="2/8"),((база!$J$5*Таблица1[[#This Row],[сумма]]*Таблица1[[#This Row],[коэф]]))))))))))) -> 9285.12 | AP30: =IF(AR30<=3,(IF((G30="5/24"),((база!$M$6*2*Таблица1[[#This Row],[Столбец1]]*Таблица1[[#This Row],[коэф]])), IF((G30="4/24"),((база!$M$5*2*Таблица1[[#This Row],[Столбец1]]*Таблица1[[#This Row],[коэф]])), IF((G30="3/24"),((база!$M$4*2*Таблица1[[#This Row],[Столбец1]]*Таблица1[[#This Row],[коэф]])), IF((G30="5/16"),((база!$L$6*2*Таблица1[[#This Row],[Столбец1]]*Таблица1[[#This Row],[коэф]])), IF((G30="4/16"),((база!$L$5*2*Таблица1[[#This Row],[Столбец1]]*Таблица1[[#This Row],[коэф]])), IF((G30="3/16"),((база!$L$4*2*Таблица1[[#This Row],[Столбец1]]*Таблица1[[#This Row],[коэф]])), IF((G30="4/4"),((база!$I$5*2*Таблица1[[#This Row],[Столбец1]]*Таблица1[[#This Row],[коэф]])), IF(OR(G30="2/4",G30="3/4"),((база!$I$4*2*Таблица1[[#This Row],[Столбец1]]*Таблица1[[#This Row],[коэф]])), IF((G30="5/8"),((база!$J$6*2*Таблица1[[#This Row],[Столбец1]]*Таблица1[[#This Row],[коэф]])), IF((G30="4/8"),((база!$J$5*2*Таблица1[[#This Row],[Столбец1]]*Таблица1[[#This Row],[коэф]])), IF(OR(G30="3/8",G30="2/8"),((база!$J$4*2*Таблица1[[#This Row],[Столбец1]]*Таблица1[[#This Row],[коэф]])))))))))))))), (IF((G30="5/24"),((база!$M$6*2*Таблица1[[#This Row],[Столбец1]]*Таблица1[[#This Row],[коэф]])), IF(OR(G30="4/24",G30="3/24"),((база!$M$5*2*Таблица1[[#This Row],[Столбец1]]*Таблица1[[#This Row],[коэф]])), IF((G30="5/16"),((база!$L$6*2*Таблица1[[#This Row],[Столбец1]]*Таблица1[[#This Row],[коэф]])), IF(OR(G30="4/16",G30="3/16"),((база!$L$5*2*Таблица1[[#This Row],[Столбец1]]*Таблица1[[#This Row],[коэф]])), IF(OR(G30="2/4",G30="3/4",G30="4/4"),((база!$I$5*2*Таблица1[[#This Row],[Столбец1]]*Таблица1[[#This Row],[коэф]])), IF((G30="5/8"),((база!$J$6*2*Таблица1[[#This Row],[Столбец1]]*Таблица1[[#This Row],[коэф]])), IF(OR(G30="4/8",G30="3/8",G30="2/8"),((база!$J$5*2*Таблица1[[#This Row],[Столбец1]]*Таблица1[[#This Row],[коэф]]))))))))))) -> 0 | AQ30: =IFERROR(INDEX(база!T:T, MATCH(F30,база!Q:Q,0)),"") -> 0 | AR30: =IFERROR(INDEX(база!D:D, MATCH(F30,база!B:B,0)),"") -> 3
A31: =A30 -> декабрь | B31: 2023 | C31: БО-01 | D31: 1-24 | E31: 1 | F31: Пработник1 | G31: 4/16 | H31: 7.2 | I31: 7 | K31: 7.2 | L31: 7.2 | M31: 7.2 | N31: 7.2 | O31: 7.2 | P31: 7 | Y31: 7.2 | Z31: 7.2 | AA31: 7.2 | AB31: 7.2 | AC31: 7.2 | AD31: 7 | AM31: =IF(AQ31=1,SUM(H31:I31,L31:O31,R31:U31,X31:AA31,AD31:AG31,AI31:AK31), IF(AQ31=2,SUM(H31:K31,N31:Q31,T31:W31,Z31:AC31,AF31:AI31), IF(AQ31=3,SUM(J31:M31,P31:S31,V31:Y31,AB31:AE31,AH31:AK31),SUM(Таблица1[[#This Row],[1]:[31]])-Таблица1[[#This Row],[Столбец1]]))) -> 100.2 | AN31: =IF(AQ31=1,SUM(J31:K31,P31:Q31,V31:W31,AB31:AC31,AH31:AI31), IF(AQ31=2,SUM(L31:M31,R31:S31,X31:Y31,AD31:AE31), IF(AQ31=3,SUM(H31:I31,N31:O31,T31:U31,Z31:AA31,AF31:AG31), SUM(IFERROR(WEEKDAY($H$2:$AL$2,2)>5,)*H31:AL31)))) -> 0 | AO31: =IF(AR31<=3,(IF((G31="5/24"),((база!$M$6*Таблица1[[#This Row],[сумма]]*Таблица1[[#This Row],[коэф]])), IF((G31="4/24"),((база!$M$5*Таблица1[[#This Row],[сумма]]*Таблица1[[#This Row],[коэф]])), IF((G31="3/24"),((база!$M$4*Таблица1[[#This Row],[сумма]]*Таблица1[[#This Row],[коэф]])), IF((G31="5/16"),((база!$L$6*Таблица1[[#This Row],[сумма]]*Таблица1[[#This Row],[коэф]])), IF((G31="4/16"),((база!$L$5*Таблица1[[#This Row],[сумма]]*Таблица1[[#This Row],[коэф]])), IF((G31="3/16"),((база!$L$4*Таблица1[[#This Row],[сумма]]*Таблица1[[#This Row],[коэф]])), IF((G31="4/4"),((база!$I$5*Таблица1[[#This Row],[сумма]]*Таблица1[[#This Row],[коэф]])), IF(OR(G31="2/4",G31="3/4"),((база!$I$4*Таблица1[[#This Row],[сумма]]*Таблица1[[#This Row],[коэф]])), IF((G31="5/8"),((база!$J$6*Таблица1[[#This Row],[сумма]]*Таблица1[[#This Row],[коэф]])), IF((G31="4/8"),((база!$J$5*Таблица1[[#This Row],[сумма]]*Таблица1[[#This Row],[коэф]])), IF(OR(G31="3/8",G31="2/8"),((база!$J$4*Таблица1[[#This Row],[сумма]]*Таблица1[[#This Row],[коэф]])))))))))))))), (IF((G31="5/24"),((база!$M$6*Таблица1[[#This Row],[сумма]]*Таблица1[[#This Row],[коэф]])), IF(OR(G31="4/24",G31="3/24"),((база!$M$5*Таблица1[[#This Row],[сумма]]*Таблица1[[#This Row],[коэф]])), IF((G31="5/16"),((база!$L$6*Таблица1[[#This Row],[сумма]]*Таблица1[[#This Row],[коэф]])), IF(OR(G31="4/16",G31="3/16"),((база!$L$5*Таблица1[[#This Row],[сумма]]*Таблица1[[#This Row],[коэф]])), IF(OR(G31="2/4",G31="3/4",G31="4/4"),((база!$I$5*Таблица1[[#This Row],[сумма]]*Таблица1[[#This Row],[коэф]])), IF((G31="5/8"),((база!$J$6*Таблица1[[#This Row],[сумма]]*Таблица1[[#This Row],[коэф]])), IF(OR(G31="4/8",G31="3/8",G31="2/8"),((база!$J$5*Таблица1[[#This Row],[сумма]]*Таблица1[[#This Row],[коэф]]))))))))))) -> 17434.8 | AP31: =IF(AR31<=3,(IF((G31="5/24"),((база!$M$6*2*Таблица1[[#This Row],[Столбец1]]*Таблица1[[#This Row],[коэф]])), IF((G31="4/24"),((база!$M$5*2*Таблица1[[#This Row],[Столбец1]]*Таблица1[[#This Row],[коэф]])), IF((G31="3/24"),((база!$M$4*2*Таблица1[[#This Row],[Столбец1]]*Таблица1[[#This Row],[коэф]])), IF((G31="5/16"),((база!$L$6*2*Таблица1[[#This Row],[Столбец1]]*Таблица1[[#This Row],[коэф]])), IF((G31="4/16"),((база!$L$5*2*Таблица1[[#This Row],[Столбец1]]*Таблица1[[#This Row],[коэф]])), IF((G31="3/16"),((база!$L$4*2*Таблица1[[#This Row],[Столбец1]]*Таблица1[[#This Row],[коэф]])), IF((G31="4/4"),((база!$I$5*2*Таблица1[[#This Row],[Столбец1]]*Таблица1[[#This Row],[коэф]])), IF(OR(G31="2/4",G31="3/4"),((база!$I$4*2*Таблица1[[#This Row],[Столбец1]]*Таблица1[[#This Row],[коэф]])), IF((G31="5/8"),((база!$J$6*2*Таблица1[[#This Row],[Столбец1]]*Таблица1[[#This Row],[коэф]])), IF((G31="4/8"),((база!$J$5*2*Таблица1[[#This Row],[Столбец1]]*Таблица1[[#This Row],[коэф]])), IF(OR(G31="3/8",G31="2/8"),((база!$J$4*2*Таблица1[[#This Row],[Столбец1]]*Таблица1[[#This Row],[коэф]])))))))))))))), (IF((G31="5/24"),((база!$M$6*2*Таблица1[[#This Row],[Столбец1]]*Таблица1[[#This Row],[коэф]])), IF(OR(G31="4/24",G31="3/24"),((база!$M$5*2*Таблица1[[#This Row],[Столбец1]]*Таблица1[[#This Row],[коэф]])), IF((G31="5/16"),((база!$L$6*2*Таблица1[[#This Row],[Столбец1]]*Таблица1[[#This Row],[коэф]])), IF(OR(G31="4/16",G31="3/16"),((база!$L$5*2*Таблица1[[#This Row],[Столбец1]]*Таблица1[[#This Row],[коэф]])), IF(OR(G31="2/4",G31="3/4",G31="4/4"),((база!$I$5*2*Таблица1[[#This Row],[Столбец1]]*Таблица1[[#This Row],[коэф]])), IF((G31="5/8"),((база!$J$6*2*Таблица1[[#This Row],[Столбец1]]*Таблица1[[#This Row],[коэф]])), IF(OR(G31="4/8",G31="3/8",G31="2/8"),((база!$J$5*2*Таблица1[[#This Row],[Столбец1]]*Таблица1[[#This Row],[коэф]]))))))))))) -> 0 | AQ31: =IFERROR(INDEX(база!T:T, MATCH(F31,база!Q:Q,0)),"") -> 0 | AR31: =IFERROR(INDEX(база!D:D, MATCH(F31,база!B:B,0)),"") -> 3
A32: декабрь | B32: 2023 | C32: 7Б7 | D32: 27-23 | E32: 1 | F32: Пработник2 | G32: 3/16 | H32: 7.2 | I32: 7.2 | J32: 6 | L32: 7.2 | M32: 7.2 | N32: 7.2 | O32: 7.2 | R32: 7.2 | S32: 7.2 | T32: 7.2 | U32: 7.2 | X32: 7.2 | Y32: 7.2 | Z32: 7.2 | AA32: 7.2 | AD32: 7.2 | AE32: 7.2 | AF32: 7.2 | AG32: 7.2 | AJ32: 7.2 | AK32: 7.2 | AM32: =IF(AQ32=1,SUM(H32:I32,L32:O32,R32:U32,X32:AA32,AD32:AG32,AI32:AK32), IF(AQ32=2,SUM(H32:K32,N32:Q32,T32:W32,Z32:AC32,AF32:AI32), IF(AQ32=3,SUM(J32:M32,P32:S32,V32:Y32,AB32:AE32,AH32:AK32),SUM(Таблица1[[#This Row],[1]:[31]])-Таблица1[[#This Row],[Столбец1]]))) -> 144 | AN32: =IF(AQ32=1,SUM(J32:K32,P32:Q32,V32:W32,AB32:AC32,AH32:AI32), IF(AQ32=2,SUM(L32:M32,R32:S32,X32:Y32,AD32:AE32), IF(AQ32=3,SUM(H32:I32,N32:O32,T32:U32,Z32:AA32,AF32:AG32), SUM(IFERROR(WEEKDAY($H$2:$AL$2,2)>5,)*H32:AL32)))) -> 6 | AO32: =IF(AR32<=3,(IF((G32="5/24"),((база!$M$6*Таблица1[[#This Row],[сумма]]*Таблица1[[#This Row],[коэф]])), IF((G32="4/24"),((база!$M$5*Таблица1[[#This Row],[сумма]]*Таблица1[[#This Row],[коэф]])), IF((G32="3/24"),((база!$M$4*Таблица1[[#This Row],[сумма]]*Таблица1[[#This Row],[коэф]])), IF((G32="5/16"),((база!$L$6*Таблица1[[#This Row],[сумма]]*Таблица1[[#This Row],[коэф]])), IF((G32="4/16"),((база!$L$5*Таблица1[[#This Row],[сумма]]*Таблица1[[#This Row],[коэф]])), IF((G32="3/16"),((база!$L$4*Таблица1[[#This Row],[сумма]]*Таблица1[[#This Row],[коэф]])), IF((G32="4/4"),((база!$I$5*Таблица1[[#This Row],[сумма]]*Таблица1[[#This Row],[коэф]])), IF(OR(G32="2/4",G32="3/4"),((база!$I$4*Таблица1[[#This Row],[сумма]]*Таблица1[[#This Row],[коэф]])), IF((G32="5/8"),((база!$J$6*Таблица1[[#This Row],[сумма]]*Таблица1[[#This Row],[коэф]])), IF((G32="4/8"),((база!$J$5*Таблица1[[#This Row],[сумма]]*Таблица1[[#This Row],[коэф]])), IF(OR(G32="3/8",G32="2/8"),((база!$J$4*Таблица1[[#This Row],[сумма]]*Таблица1[[#This Row],[коэф]])))))))))))))), (IF((G32="5/24"),((база!$M$6*Таблица1[[#This Row],[сумма]]*Таблица1[[#This Row],[коэф]])), IF(OR(G32="4/24",G32="3/24"),((база!$M$5*Таблица1[[#This Row],[сумма]]*Таблица1[[#This Row],[коэф]])), IF((G32="5/16"),((база!$L$6*Таблица1[[#This Row],[сумма]]*Таблица1[[#This Row],[коэф]])), IF(OR(G32="4/16",G32="3/16"),((база!$L$5*Таблица1[[#This Row],[сумма]]*Таблица1[[#This Row],[коэф]])), IF(OR(G32="2/4",G32="3/4",G32="4/4"),((база!$I$5*Таблица1[[#This Row],[сумма]]*Таблица1[[#This Row],[коэф]])), IF((G32="5/8"),((база!$J$6*Таблица1[[#This Row],[сумма]]*Таблица1[[#This Row],[коэф]])), IF(OR(G32="4/8",G32="3/8",G32="2/8"),((база!$J$5*Таблица1[[#This Row],[сумма]]*Таблица1[[#This Row],[коэф]]))))))))))) -> 21715.2 | AP32: =IF(AR32<=3,(IF((G32="5/24"),((база!$M$6*2*Таблица1[[#This Row],[Столбец1]]*Таблица1[[#This Row],[коэф]])), IF((G32="4/24"),((база!$M$5*2*Таблица1[[#This Row],[Столбец1]]*Таблица1[[#This Row],[коэф]])), IF((G32="3/24"),((база!$M$4*2*Таблица1[[#This Row],[Столбец1]]*Таблица1[[#This Row],[коэф]])), IF((G32="5/16"),((база!$L$6*2*Таблица1[[#This Row],[Столбец1]]*Таблица1[[#This Row],[коэф]])), IF((G32="4/16"),((база!$L$5*2*Таблица1[[#This Row],[Столбец1]]*Таблица1[[#This Row],[коэф]])), IF((G32="3/16"),((база!$L$4*2*Таблица1[[#This Row],[Столбец1]]*Таблица1[[#This Row],[коэф]])), IF((G32="4/4"),((база!$I$5*2*Таблица1[[#This Row],[Столбец1]]*Таблица1[[#This Row],[коэф]])), IF(OR(G32="2/4",G32="3/4"),((база!$I$4*2*Таблица1[[#This Row],[Столбец1]]*Таблица1[[#This Row],[коэф]])), IF((G32="5/8"),((база!$J$6*2*Таблица1[[#This Row],[Столбец1]]*Таблица1[[#This Row],[коэф]])), IF((G32="4/8"),((база!$J$5*2*Таблица1[[#This Row],[Столбец1]]*Таблица1[[#This Row],[коэф]])), IF(OR(G32="3/8",G32="2/8"),((база!$J$4*2*Таблица1[[#This Row],[Столбец1]]*Таблица1[[#This Row],[коэф]])))))))))))))), (IF((G32="5/24"),((база!$M$6*2*Таблица1[[#This Row],[Столбец1]]*Таблица1[[#This Row],[коэф]])), IF(OR(G32="4/24",G32="3/24"),((база!$M$5*2*Таблица1[[#This Row],[Столбец1]]*Таблица1[[#This Row],[коэф]])), IF((G32="5/16"),((база!$L$6*2*Таблица1[[#This Row],[Столбец1]]*Таблица1[[#This Row],[коэф]])), IF(OR(G32="4/16",G32="3/16"),((база!$L$5*2*Таблица1[[#This Row],[Столбец1]]*Таблица1[[#This Row],[коэф]])), IF(OR(G32="2/4",G32="3/4",G32="4/4"),((база!$I$5*2*Таблица1[[#This Row],[Столбец1]]*Таблица1[[#This Row],[коэф]])), IF((G32="5/8"),((база!$J$6*2*Таблица1[[#This Row],[Столбец1]]*Таблица1[[#This Row],[коэф]])), IF(OR(G32="4/8",G32="3/8",G32="2/8"),((база!$J$5*2*Таблица1[[#This Row],[Столбец1]]*Таблица1[[#This Row],[коэф]]))))))))))) -> 1809.6 | AQ32: =IFERROR(INDEX(база!T:T, MATCH(F32,база!Q:Q,0)),"") -> 1 | AR32: =IFERROR(INDEX(база!D:D, MATCH(F32,база!B:B,0)),"") -> 3
A33: декабрь | B33: 2023 | C33: БО-01 | D33: 2-24 | E33: 1 | F33: Сработник1 | G33: 2/4 | N33: 7.2 | O33: 7.2 | S33: 7.2 | T33: 7.2 | U33: 7.2 | X33: 7.2 | Y33: 7.2 | Z33: 7.2 | AM33: =IF(AQ33=1,SUM(H33:I33,L33:O33,R33:U33,X33:AA33,AD33:AG33,AI33:AK33), IF(AQ33=2,SUM(H33:K33,N33:Q33,T33:W33,Z33:AC33,AF33:AI33), IF(AQ33=3,SUM(J33:M33,P33:S33,V33:Y33,AB33:AE33,AH33:AK33),SUM(Таблица1[[#This Row],[1]:[31]])-Таблица1[[#This Row],[Столбец1]]))) -> 57.6 | AN33: =IF(AQ33=1,SUM(J33:K33,P33:Q33,V33:W33,AB33:AC33,AH33:AI33), IF(AQ33=2,SUM(L33:M33,R33:S33,X33:Y33,AD33:AE33), IF(AQ33=3,SUM(H33:I33,N33:O33,T33:U33,Z33:AA33,AF33:AG33), SUM(IFERROR(WEEKDAY($H$2:$AL$2,2)>5,)*H33:AL33)))) -> 0 | AO33: =IF(AR33<=3,(IF((G33="5/24"),((база!$M$6*Таблица1[[#This Row],[сумма]]*Таблица1[[#This Row],[коэф]])), IF((G33="4/24"),((база!$M$5*Таблица1[[#This Row],[сумма]]*Таблица1[[#This Row],[коэф]])), IF((G33="3/24"),((база!$M$4*Таблица1[[#This Row],[сумма]]*Таблица1[[#This Row],[коэф]])), IF((G33="5/16"),((база!$L$6*Таблица1[[#This Row],[сумма]]*Таблица1[[#This Row],[коэф]])), IF((G33="4/16"),((база!$L$5*Таблица1[[#This Row],[сумма]]*Таблица1[[#This Row],[коэф]])), IF((G33="3/16"),((база!$L$4*Таблица1[[#This Row],[сумма]]*Таблица1[[#This Row],[коэф]])), IF((G33="4/4"),((база!$I$5*Таблица1[[#This Row],[сумма]]*Таблица1[[#This Row],[коэф]])), IF(OR(G33="2/4",G33="3/4"),((база!$I$4*Таблица1[[#This Row],[сумма]]*Таблица1[[#This Row],[коэф]])), IF((G33="5/8"),((база!$J$6*Таблица1[[#This Row],[сумма]]*Таблица1[[#This Row],[коэф]])), IF((G33="4/8"),((база!$J$5*Таблица1[[#This Row],[сумма]]*Таблица1[[#This Row],[коэф]])), IF(OR(G33="3/8",G33="2/8"),((база!$J$4*Таблица1[[#This Row],[сумма]]*Таблица1[[#This Row],[коэф]])))))))))))))), (IF((G33="5/24"),((база!$M$6*Таблица1[[#This Row],[сумма]]*Таблица1[[#This Row],[коэф]])), IF(OR(G33="4/24",G33="3/24"),((база!$M$5*Таблица1[[#This Row],[сумма]]*Таблица1[[#This Row],[коэф]])), IF((G33="5/16"),((база!$L$6*Таблица1[[#This Row],[сумма]]*Таблица1[[#This Row],[коэф]])), IF(OR(G33="4/16",G33="3/16"),((база!$L$5*Таблица1[[#This Row],[сумма]]*Таблица1[[#This Row],[коэф]])), IF(OR(G33="2/4",G33="3/4",G33="4/4"),((база!$I$5*Таблица1[[#This Row],[сумма]]*Таблица1[[#This Row],[коэф]])), IF((G33="5/8"),((база!$J$6*Таблица1[[#This Row],[сумма]]*Таблица1[[#This Row],[коэф]])), IF(OR(G33="4/8",G33="3/8",G33="2/8"),((база!$J$5*Таблица1[[#This Row],[сумма]]*Таблица1[[#This Row],[коэф]]))))))))))) -> 7787.52 | AP33: =IF(AR33<=3,(IF((G33="5/24"),((база!$M$6*2*Таблица1[[#This Row],[Столбец1]]*Таблица1[[#This Row],[коэф]])), IF((G33="4/24"),((база!$M$5*2*Таблица1[[#This Row],[Столбец1]]*Таблица1[[#This Row],[коэф]])), IF((G33="3/24"),((база!$M$4*2*Таблица1[[#This Row],[Столбец1]]*Таблица1[[#This Row],[коэф]])), IF((G33="5/16"),((база!$L$6*2*Таблица1[[#This Row],[Столбец1]]*Таблица1[[#This Row],[коэф]])), IF((G33="4/16"),((база!$L$5*2*Таблица1[[#This Row],[Столбец1]]*Таблица1[[#This Row],[коэф]])), IF((G33="3/16"),((база!$L$4*2*Таблица1[[#This Row],[Столбец1]]*Таблица1[[#This Row],[коэф]])), IF((G33="4/4"),((база!$I$5*2*Таблица1[[#This Row],[Столбец1]]*Таблица1[[#This Row],[коэф]])), IF(OR(G33="2/4",G33="3/4"),((база!$I$4*2*Таблица1[[#This Row],[Столбец1]]*Таблица1[[#This Row],[коэф]])), IF((G33="5/8"),((база!$J$6*2*Таблица1[[#This Row],[Столбец1]]*Таблица1[[#This Row],[коэф]])), IF((G33="4/8"),((база!$J$5*2*Таблица1[[#This Row],[Столбец1]]*Таблица1[[#This Row],[коэф]])), IF(OR(G33="3/8",G33="2/8"),((база!$J$4*2*Таблица1[[#This Row],[Столбец1]]*Таблица1[[#This Row],[коэф]])))))))))))))), (IF((G33="5/24"),((база!$M$6*2*Таблица1[[#This Row],[Столбец1]]*Таблица1[[#This Row],[коэф]])), IF(OR(G33="4/24",G33="3/24"),((база!$M$5*2*Таблица1[[#This Row],[Столбец1]]*Таблица1[[#This Row],[коэф]])), IF((G33="5/16"),((база!$L$6*2*Таблица1[[#This Row],[Столбец1]]*Таблица1[[#This Row],[коэф]])), IF(OR(G33="4/16",G33="3/16"),((база!$L$5*2*Таблица1[[#This Row],[Столбец1]]*Таблица1[[#This Row],[коэф]])), IF(OR(G33="2/4",G33="3/4",G33="4/4"),((база!$I$5*2*Таблица1[[#This Row],[Столбец1]]*Таблица1[[#This Row],[коэф]])), IF((G33="5/8"),((база!$J$6*2*Таблица1[[#This Row],[Столбец1]]*Таблица1[[#This Row],[коэф]])), IF(OR(G33="4/8",G33="3/8",G33="2/8"),((база!$J$5*2*Таблица1[[#This Row],[Столбец1]]*Таблица1[[#This Row],[коэф]]))))))))))) -> 0 | AQ33: =IFERROR(INDEX(база!T:T, MATCH(F33,база!Q:Q,0)),"") -> 1 | AR33: =IFERROR(INDEX(база!D:D, MATCH(F33,база!B:B,0)),"") -> 3
A34: декабрь | B34: 2023 | C34: 1В5 | D34: 23-23 | E34: 1 | F34: Сработник2 | G34: 2/4 | K34: 7.2 | L34: 7.2 | M34: 7.2 | N34: 7.2 | O34: 7.2 | R34: 7.2 | S34: 7.2 | T34: 7.2 | U34: 7.2 | V34: 7.2 | AM34: =IF(AQ34=1,SUM(H34:I34,L34:O34,R34:U34,X34:AA34,AD34:AG34,AI34:AK34), IF(AQ34=2,SUM(H34:K34,N34:Q34,T34:W34,Z34:AC34,AF34:AI34), IF(AQ34=3,SUM(J34:M34,P34:S34,V34:Y34,AB34:AE34,AH34:AK34),SUM(Таблица1[[#This Row],[1]:[31]])-Таблица1[[#This Row],[Столбец1]]))) -> 72 | AN34: =IF(AQ34=1,SUM(J34:K34,P34:Q34,V34:W34,AB34:AC34,AH34:AI34), IF(AQ34=2,SUM(L34:M34,R34:S34,X34:Y34,AD34:AE34), IF(AQ34=3,SUM(H34:I34,N34:O34,T34:U34,Z34:AA34,AF34:AG34), SUM(IFERROR(WEEKDAY($H$2:$AL$2,2)>5,)*H34:AL34)))) -> 0 | AO34: =IF(AR34<=3,(IF((G34="5/24"),((база!$M$6*Таблица1[[#This Row],[сумма]]*Таблица1[[#This Row],[коэф]])), IF((G34="4/24"),((база!$M$5*Таблица1[[#This Row],[сумма]]*Таблица1[[#This Row],[коэф]])), IF((G34="3/24"),((база!$M$4*Таблица1[[#This Row],[сумма]]*Таблица1[[#This Row],[коэф]])), IF((G34="5/16"),((база!$L$6*Таблица1[[#This Row],[сумма]]*Таблица1[[#This Row],[коэф]])), IF((G34="4/16"),((база!$L$5*Таблица1[[#This Row],[сумма]]*Таблица1[[#This Row],[коэф]])), IF((G34="3/16"),((база!$L$4*Таблица1[[#This Row],[сумма]]*Таблица1[[#This Row],[коэф]])), IF((G34="4/4"),((база!$I$5*Таблица1[[#This Row],[сумма]]*Таблица1[[#This Row],[коэф]])), IF(OR(G34="2/4",G34="3/4"),((база!$I$4*Таблица1[[#This Row],[сумма]]*Таблица1[[#This Row],[коэф]])), IF((G34="5/8"),((база!$J$6*Таблица1[[#This Row],[сумма]]*Таблица1[[#This Row],[коэф]])), IF((G34="4/8"),((база!$J$5*Таблица1[[#This Row],[сумма]]*Таблица1[[#This Row],[коэф]])), IF(OR(G34="3/8",G34="2/8"),((база!$J$4*Таблица1[[#This Row],[сумма]]*Таблица1[[#This Row],[коэф]])))))))))))))), (IF((G34="5/24"),((база!$M$6*Таблица1[[#This Row],[сумма]]*Таблица1[[#This Row],[коэф]])), IF(OR(G34="4/24",G34="3/24"),((база!$M$5*Таблица1[[#This Row],[сумма]]*Таблица1[[#This Row],[коэф]])), IF((G34="5/16"),((база!$L$6*Таблица1[[#This Row],[сумма]]*Таблица1[[#This Row],[коэф]])), IF(OR(G34="4/16",G34="3/16"),((база!$L$5*Таблица1[[#This Row],[сумма]]*Таблица1[[#This Row],[коэф]])), IF(OR(G34="2/4",G34="3/4",G34="4/4"),((база!$I$5*Таблица1[[#This Row],[сумма]]*Таблица1[[#This Row],[коэф]])), IF((G34="5/8"),((база!$J$6*Таблица1[[#This Row],[сумма]]*Таблица1[[#This Row],[коэф]])), IF(OR(G34="4/8",G34="3/8",G34="2/8"),((база!$J$5*Таблица1[[#This Row],[сумма]]*Таблица1[[#This Row],[коэф]]))))))))))) -> 9734.4 | AP34: =IF(AR34<=3,(IF((G34="5/24"),((база!$M$6*2*Таблица1[[#This Row],[Столбец1]]*Таблица1[[#This Row],[коэф]])), IF((G34="4/24"),((база!$M$5*2*Таблица1[[#This Row],[Столбец1]]*Таблица1[[#This Row],[коэф]])), IF((G34="3/24"),((база!$M$4*2*Таблица1[[#This Row],[Столбец1]]*Таблица1[[#This Row],[коэф]])), IF((G34="5/16"),((база!$L$6*2*Таблица1[[#This Row],[Столбец1]]*Таблица1[[#This Row],[коэф]])), IF((G34="4/16"),((база!$L$5*2*Таблица1[[#This Row],[Столбец1]]*Таблица1[[#This Row],[коэф]])), IF((G34="3/16"),((база!$L$4*2*Таблица1[[#This Row],[Столбец1]]*Таблица1[[#This Row],[коэф]])), IF((G34="4/4"),((база!$I$5*2*Таблица1[[#This Row],[Столбец1]]*Таблица1[[#This Row],[коэф]])), IF(OR(G34="2/4",G34="3/4"),((база!$I$4*2*Таблица1[[#This Row],[Столбец1]]*Таблица1[[#This Row],[коэф]])), IF((G34="5/8"),((база!$J$6*2*Таблица1[[#This Row],[Столбец1]]*Таблица1[[#This Row],[коэф]])), IF((G34="4/8"),((база!$J$5*2*Таблица1[[#This Row],[Столбец1]]*Таблица1[[#This Row],[коэф]])), IF(OR(G34="3/8",G34="2/8"),((база!$J$4*2*Таблица1[[#This Row],[Столбец1]]*Таблица1[[#This Row],[коэф]])))))))))))))), (IF((G34="5/24"),((база!$M$6*2*Таблица1[[#This Row],[Столбец1]]*Таблица1[[#This Row],[коэф]])), IF(OR(G34="4/24",G34="3/24"),((база!$M$5*2*Таблица1[[#This Row],[Столбец1]]*Таблица1[[#This Row],[коэф]])), IF((G34="5/16"),((база!$L$6*2*Таблица1[[#This Row],[Столбец1]]*Таблица1[[#This Row],[коэф]])), IF(OR(G34="4/16",G34="3/16"),((база!$L$5*2*Таблица1[[#This Row],[Столбец1]]*Таблица1[[#This Row],[коэф]])), IF(OR(G34="2/4",G34="3/4",G34="4/4"),((база!$I$5*2*Таблица1[[#This Row],[Столбец1]]*Таблица1[[#This Row],[коэф]])), IF((G34="5/8"),((база!$J$6*2*Таблица1[[#This Row],[Столбец1]]*Таблица1[[#This Row],[коэф]])), IF(OR(G34="4/8",G34="3/8",G34="2/8"),((база!$J$5*2*Таблица1[[#This Row],[Столбец1]]*Таблица1[[#This Row],[коэф]]))))))))))) -> 0 | AQ34: =IFERROR(INDEX(база!T:T, MATCH(F34,база!Q:Q,0)),"") -> 0 | AR34: =IFERROR(INDEX(база!D:D, MATCH(F34,база!B:B,0)),"") -> 3
A35: декабрь | B35: 2023 | C35: В5 | D35: 12-23 | E35: 1,4 | F35: Тработник1 | G35: 3/24 | K35: 7.2 | L35: 7.2 | M35: 7.2 | N35: 7.2 | O35: 7.2 | R35: 7.2 | S35: 7.2 | T35: 7.2 | U35: 7.2 | V35: 7.2 | W35: 6 | Y35: 7.2 | Z35: 7.2 | AB35: 7.2 | AC35: 7.2 | AF35: 7.2 | AG35: 7.2 | AH35: 7.2 | AI35: 7.2 | AM35: =IF(AQ35=1,SUM(H35:I35,L35:O35,R35:U35,X35:AA35,AD35:AG35,AI35:AK35), IF(AQ35=2,SUM(H35:K35,N35:Q35,T35:W35,Z35:AC35,AF35:AI35), IF(AQ35=3,SUM(J35:M35,P35:S35,V35:Y35,AB35:AE35,AH35:AK35),SUM(Таблица1[[#This Row],[1]:[31]])-Таблица1[[#This Row],[Столбец1]]))) -> 135.6 | AN35: =IF(AQ35=1,SUM(J35:K35,P35:Q35,V35:W35,AB35:AC35,AH35:AI35), IF(AQ35=2,SUM(L35:M35,R35:S35,X35:Y35,AD35:AE35), IF(AQ35=3,SUM(H35:I35,N35:O35,T35:U35,Z35:AA35,AF35:AG35), SUM(IFERROR(WEEKDAY($H$2:$AL$2,2)>5,)*H35:AL35)))) -> 0 | AO35: =IF(AR35<=3,(IF((G35="5/24"),((база!$M$6*Таблица1[[#This Row],[сумма]]*Таблица1[[#This Row],[коэф]])), IF((G35="4/24"),((база!$M$5*Таблица1[[#This Row],[сумма]]*Таблица1[[#This Row],[коэф]])), IF((G35="3/24"),((база!$M$4*Таблица1[[#This Row],[сумма]]*Таблица1[[#This Row],[коэф]])), IF((G35="5/16"),((база!$L$6*Таблица1[[#This Row],[сумма]]*Таблица1[[#This Row],[коэф]])), IF((G35="4/16"),((база!$L$5*Таблица1[[#This Row],[сумма]]*Таблица1[[#This Row],[коэф]])), IF((G35="3/16"),((база!$L$4*Таблица1[[#This Row],[сумма]]*Таблица1[[#This Row],[коэф]])), IF((G35="4/4"),((база!$I$5*Таблица1[[#This Row],[сумма]]*Таблица1[[#This Row],[коэф]])), IF(OR(G35="2/4",G35="3/4"),((база!$I$4*Таблица1[[#This Row],[сумма]]*Таблица1[[#This Row],[коэф]])), IF((G35="5/8"),((база!$J$6*Таблица1[[#This Row],[сумма]]*Таблица1[[#This Row],[коэф]])), IF((G35="4/8"),((база!$J$5*Таблица1[[#This Row],[сумма]]*Таблица1[[#This Row],[коэф]])), IF(OR(G35="3/8",G35="2/8"),((база!$J$4*Таблица1[[#This Row],[сумма]]*Таблица1[[#This Row],[коэф]])))))))))))))), (IF((G35="5/24"),((база!$M$6*Таблица1[[#This Row],[сумма]]*Таблица1[[#This Row],[коэф]])), IF(OR(G35="4/24",G35="3/24"),((база!$M$5*Таблица1[[#This Row],[сумма]]*Таблица1[[#This Row],[коэф]])), IF((G35="5/16"),((база!$L$6*Таблица1[[#This Row],[сумма]]*Таблица1[[#This Row],[коэф]])), IF(OR(G35="4/16",G35="3/16"),((база!$L$5*Таблица1[[#This Row],[сумма]]*Таблица1[[#This Row],[коэф]])), IF(OR(G35="2/4",G35="3/4",G35="4/4"),((база!$I$5*Таблица1[[#This Row],[сумма]]*Таблица1[[#This Row],[коэф]])), IF((G35="5/8"),((база!$J$6*Таблица1[[#This Row],[сумма]]*Таблица1[[#This Row],[коэф]])), IF(OR(G35="4/8",G35="3/8",G35="2/8"),((база!$J$5*Таблица1[[#This Row],[сумма]]*Таблица1[[#This Row],[коэф]]))))))))))) -> 35310.24 | AP35: =IF(AR35<=3,(IF((G35="5/24"),((база!$M$6*2*Таблица1[[#This Row],[Столбец1]]*Таблица1[[#This Row],[коэф]])), IF((G35="4/24"),((база!$M$5*2*Таблица1[[#This Row],[Столбец1]]*Таблица1[[#This Row],[коэф]])), IF((G35="3/24"),((база!$M$4*2*Таблица1[[#This Row],[Столбец1]]*Таблица1[[#This Row],[коэф]])), IF((G35="5/16"),((база!$L$6*2*Таблица1[[#This Row],[Столбец1]]*Таблица1[[#This Row],[коэф]])), IF((G35="4/16"),((база!$L$5*2*Таблица1[[#This Row],[Столбец1]]*Таблица1[[#This Row],[коэф]])), IF((G35="3/16"),((база!$L$4*2*Таблица1[[#This Row],[Столбец1]]*Таблица1[[#This Row],[коэф]])), IF((G35="4/4"),((база!$I$5*2*Таблица1[[#This Row],[Столбец1]]*Таблица1[[#This Row],[коэф]])), IF(OR(G35="2/4",G35="3/4"),((база!$I$4*2*Таблица1[[#This Row],[Столбец1]]*Таблица1[[#This Row],[коэф]])), IF((G35="5/8"),((база!$J$6*2*Таблица1[[#This Row],[Столбец1]]*Таблица1[[#This Row],[коэф]])), IF((G35="4/8"),((база!$J$5*2*Таблица1[[#This Row],[Столбец1]]*Таблица1[[#This Row],[коэф]])), IF(OR(G35="3/8",G35="2/8"),((база!$J$4*2*Таблица1[[#This Row],[Столбец1]]*Таблица1[[#This Row],[коэф]])))))))))))))), (IF((G35="5/24"),((база!$M$6*2*Таблица1[[#This Row],[Столбец1]]*Таблица1[[#This Row],[коэф]])), IF(OR(G35="4/24",G35="3/24"),((база!$M$5*2*Таблица1[[#This Row],[Столбец1]]*Таблица1[[#This Row],[коэф]])), IF((G35="5/16"),((база!$L$6*2*Таблица1[[#This Row],[Столбец1]]*Таблица1[[#This Row],[коэф]])), IF(OR(G35="4/16",G35="3/16"),((база!$L$5*2*Таблица1[[#This Row],[Столбец1]]*Таблица1[[#This Row],[коэф]])), IF(OR(G35="2/4",G35="3/4",G35="4/4"),((база!$I$5*2*Таблица1[[#This Row],[Столбец1]]*Таблица1[[#This Row],[коэф]])), IF((G35="5/8"),((база!$J$6*2*Таблица1[[#This Row],[Столбец1]]*Таблица1[[#This Row],[коэф]])), IF(OR(G35="4/8",G35="3/8",G35="2/8"),((база!$J$5*2*Таблица1[[#This Row],[Столбец1]]*Таблица1[[#This Row],[коэф]]))))))))))) -> 0 | AQ35: =IFERROR(INDEX(база!T:T, MATCH(F35,база!Q:Q,0)),"") -> 0 | AR35: =IFERROR(INDEX(база!D:D, MATCH(F35,база!B:B,0)),"") -> 4
A36: декабрь | B36: 2023 | C36: БО-01дл | D36: 117-23 | E36: 1 | F36: Хработник1 | G36: 3/16 | H36: 7.2 | I36: 5.5 | K36: 7.2 | L36: 7.2 | M36: 7.2 | N36: 7.2 | O36: 7.2 | P36: 5.5 | R36: 7.2 | S36: 7.2 | T36: 7.2 | AM36: =IF(AQ36=1,SUM(H36:I36,L36:O36,R36:U36,X36:AA36,AD36:AG36,AI36:AK36), IF(AQ36=2,SUM(H36:K36,N36:Q36,T36:W36,Z36:AC36,AF36:AI36), IF(AQ36=3,SUM(J36:M36,P36:S36,V36:Y36,AB36:AE36,AH36:AK36),SUM(Таблица1[[#This Row],[1]:[31]])-Таблица1[[#This Row],[Столбец1]]))) -> 75.8 | AN36: =IF(AQ36=1,SUM(J36:K36,P36:Q36,V36:W36,AB36:AC36,AH36:AI36), IF(AQ36=2,SUM(L36:M36,R36:S36,X36:Y36,AD36:AE36), IF(AQ36=3,SUM(H36:I36,N36:O36,T36:U36,Z36:AA36,AF36:AG36), SUM(IFERROR(WEEKDAY($H$2:$AL$2,2)>5,)*H36:AL36)))) -> 0 | AO36: =IF(AR36<=3,(IF((G36="5/24"),((база!$M$6*Таблица1[[#This Row],[сумма]]*Таблица1[[#This Row],[коэф]])), IF((G36="4/24"),((база!$M$5*Таблица1[[#This Row],[сумма]]*Таблица1[[#This Row],[коэф]])), IF((G36="3/24"),((база!$M$4*Таблица1[[#This Row],[сумма]]*Таблица1[[#This Row],[коэф]])), IF((G36="5/16"),((база!$L$6*Таблица1[[#This Row],[сумма]]*Таблица1[[#This Row],[коэф]])), IF((G36="4/16"),((база!$L$5*Таблица1[[#This Row],[сумма]]*Таблица1[[#This Row],[коэф]])), IF((G36="3/16"),((база!$L$4*Таблица1[[#This Row],[сумма]]*Таблица1[[#This Row],[коэф]])), IF((G36="4/4"),((база!$I$5*Таблица1[[#This Row],[сумма]]*Таблица1[[#This Row],[коэф]])), IF(OR(G36="2/4",G36="3/4"),((база!$I$4*Таблица1[[#This Row],[сумма]]*Таблица1[[#This Row],[коэф]])), IF((G36="5/8"),((база!$J$6*Таблица1[[#This Row],[сумма]]*Таблица1[[#This Row],[коэф]])), IF((G36="4/8"),((база!$J$5*Таблица1[[#This Row],[сумма]]*Таблица1[[#This Row],[коэф]])), IF(OR(G36="3/8",G36="2/8"),((база!$J$4*Таблица1[[#This Row],[сумма]]*Таблица1[[#This Row],[коэф]])))))))))))))), (IF((G36="5/24"),((база!$M$6*Таблица1[[#This Row],[сумма]]*Таблица1[[#This Row],[коэф]])), IF(OR(G36="4/24",G36="3/24"),((база!$M$5*Таблица1[[#This Row],[сумма]]*Таблица1[[#This Row],[коэф]])), IF((G36="5/16"),((база!$L$6*Таблица1[[#This Row],[сумма]]*Таблица1[[#This Row],[коэф]])), IF(OR(G36="4/16",G36="3/16"),((база!$L$5*Таблица1[[#This Row],[сумма]]*Таблица1[[#This Row],[коэф]])), IF(OR(G36="2/4",G36="3/4",G36="4/4"),((база!$I$5*Таблица1[[#This Row],[сумма]]*Таблица1[[#This Row],[коэф]])), IF((G36="5/8"),((база!$J$6*Таблица1[[#This Row],[сумма]]*Таблица1[[#This Row],[коэф]])), IF(OR(G36="4/8",G36="3/8",G36="2/8"),((база!$J$5*Таблица1[[#This Row],[сумма]]*Таблица1[[#This Row],[коэф]]))))))))))) -> 11430.64 | AP36: =IF(AR36<=3,(IF((G36="5/24"),((база!$M$6*2*Таблица1[[#This Row],[Столбец1]]*Таблица1[[#This Row],[коэф]])), IF((G36="4/24"),((база!$M$5*2*Таблица1[[#This Row],[Столбец1]]*Таблица1[[#This Row],[коэф]])), IF((G36="3/24"),((база!$M$4*2*Таблица1[[#This Row],[Столбец1]]*Таблица1[[#This Row],[коэф]])), IF((G36="5/16"),((база!$L$6*2*Таблица1[[#This Row],[Столбец1]]*Таблица1[[#This Row],[коэф]])), IF((G36="4/16"),((база!$L$5*2*Таблица1[[#This Row],[Столбец1]]*Таблица1[[#This Row],[коэф]])), IF((G36="3/16"),((база!$L$4*2*Таблица1[[#This Row],[Столбец1]]*Таблица1[[#This Row],[коэф]])), IF((G36="4/4"),((база!$I$5*2*Таблица1[[#This Row],[Столбец1]]*Таблица1[[#This Row],[коэф]])), IF(OR(G36="2/4",G36="3/4"),((база!$I$4*2*Таблица1[[#This Row],[Столбец1]]*Таблица1[[#This Row],[коэф]])), IF((G36="5/8"),((база!$J$6*2*Таблица1[[#This Row],[Столбец1]]*Таблица1[[#This Row],[коэф]])), IF((G36="4/8"),((база!$J$5*2*Таблица1[[#This Row],[Столбец1]]*Таблица1[[#This Row],[коэф]])), IF(OR(G36="3/8",G36="2/8"),((база!$J$4*2*Таблица1[[#This Row],[Столбец1]]*Таблица1[[#This Row],[коэф]])))))))))))))), (IF((G36="5/24"),((база!$M$6*2*Таблица1[[#This Row],[Столбец1]]*Таблица1[[#This Row],[коэф]])), IF(OR(G36="4/24",G36="3/24"),((база!$M$5*2*Таблица1[[#This Row],[Столбец1]]*Таблица1[[#This Row],[коэф]])), IF((G36="5/16"),((база!$L$6*2*Таблица1[[#This Row],[Столбец1]]*Таблица1[[#This Row],[коэф]])), IF(OR(G36="4/16",G36="3/16"),((база!$L$5*2*Таблица1[[#This Row],[Столбец1]]*Таблица1[[#This Row],[коэф]])), IF(OR(G36="2/4",G36="3/4",G36="4/4"),((база!$I$5*2*Таблица1[[#This Row],[Столбец1]]*Таблица1[[#This Row],[коэф]])), IF((G36="5/8"),((база!$J$6*2*Таблица1[[#This Row],[Столбец1]]*Таблица1[[#This Row],[коэф]])), IF(OR(G36="4/8",G36="3/8",G36="2/8"),((база!$J$5*2*Таблица1[[#This Row],[Столбец1]]*Таблица1[[#This Row],[коэф]]))))))))))) -> 0 | AQ36: =IFERROR(INDEX(база!T:T, MATCH(F36,база!Q:Q,0)),"") -> 0 | AR36: =IFERROR(INDEX(база!D:D, MATCH(F36,база!B:B,0)),"") -> 3
A37: декабрь | B37: 2023 | C37: 1В5 | D37: 23-23 | E37: 1 | F37: Шработник2 | G37: 2/8 | H37: 7.2 | I37: 7.2 | J37: 7.2 | K37: 7.2 | N37: 7.2 | O37: 7.2 | P37: 7.2 | Q37: 7.2 | R37: 7 | T37: 7.2 | U37: 7.2 | V37: 7.2 | W37: 7.2 | Y37: 6 | Z37: 7.2 | AA37: 7.2 | AB37: 7.2 | AC37: 7.2 | AF37: 7.2 | AG37: 7.2 | AH37: 7.2 | AI37: 7.2 | AM37: =IF(AQ37=1,SUM(H37:I37,L37:O37,R37:U37,X37:AA37,AD37:AG37,AI37:AK37), IF(AQ37=2,SUM(H37:K37,N37:Q37,T37:W37,Z37:AC37,AF37:AI37), IF(AQ37=3,SUM(J37:M37,P37:S37,V37:Y37,AB37:AE37,AH37:AK37),SUM(Таблица1[[#This Row],[1]:[31]])-Таблица1[[#This Row],[Столбец1]]))) -> 144 | AN37: =IF(AQ37=1,SUM(J37:K37,P37:Q37,V37:W37,AB37:AC37,AH37:AI37), IF(AQ37=2,SUM(L37:M37,R37:S37,X37:Y37,AD37:AE37), IF(AQ37=3,SUM(H37:I37,N37:O37,T37:U37,Z37:AA37,AF37:AG37), SUM(IFERROR(WEEKDAY($H$2:$AL$2,2)>5,)*H37:AL37)))) -> 13 | AO37: =IF(AR37<=3,(IF((G37="5/24"),((база!$M$6*Таблица1[[#This Row],[сумма]]*Таблица1[[#This Row],[коэф]])), IF((G37="4/24"),((база!$M$5*Таблица1[[#This Row],[сумма]]*Таблица1[[#This Row],[коэф]])), IF((G37="3/24"),((база!$M$4*Таблица1[[#This Row],[сумма]]*Таблица1[[#This Row],[коэф]])), IF((G37="5/16"),((база!$L$6*Таблица1[[#This Row],[сумма]]*Таблица1[[#This Row],[коэф]])), IF((G37="4/16"),((база!$L$5*Таблица1[[#This Row],[сумма]]*Таблица1[[#This Row],[коэф]])), IF((G37="3/16"),((база!$L$4*Таблица1[[#This Row],[сумма]]*Таблица1[[#This Row],[коэф]])), IF((G37="4/4"),((база!$I$5*Таблица1[[#This Row],[сумма]]*Таблица1[[#This Row],[коэф]])), IF(OR(G37="2/4",G37="3/4"),((база!$I$4*Таблица1[[#This Row],[сумма]]*Таблица1[[#This Row],[коэф]])), IF((G37="5/8"),((база!$J$6*Таблица1[[#This Row],[сумма]]*Таблица1[[#This Row],[коэф]])), IF((G37="4/8"),((база!$J$5*Таблица1[[#This Row],[сумма]]*Таблица1[[#This Row],[коэф]])), IF(OR(G37="3/8",G37="2/8"),((база!$J$4*Таблица1[[#This Row],[сумма]]*Таблица1[[#This Row],[коэф]])))))))))))))), (IF((G37="5/24"),((база!$M$6*Таблица1[[#This Row],[сумма]]*Таблица1[[#This Row],[коэф]])), IF(OR(G37="4/24",G37="3/24"),((база!$M$5*Таблица1[[#This Row],[сумма]]*Таблица1[[#This Row],[коэф]])), IF((G37="5/16"),((база!$L$6*Таблица1[[#This Row],[сумма]]*Таблица1[[#This Row],[коэф]])), IF(OR(G37="4/16",G37="3/16"),((база!$L$5*Таблица1[[#This Row],[сумма]]*Таблица1[[#This Row],[коэф]])), IF(OR(G37="2/4",G37="3/4",G37="4/4"),((база!$I$5*Таблица1[[#This Row],[сумма]]*Таблица1[[#This Row],[коэф]])), IF((G37="5/8"),((база!$J$6*Таблица1[[#This Row],[сумма]]*Таблица1[[#This Row],[коэф]])), IF(OR(G37="4/8",G37="3/8",G37="2/8"),((база!$J$5*Таблица1[[#This Row],[сумма]]*Таблица1[[#This Row],[коэф]]))))))))))) -> 20217.6 | AP37: =IF(AR37<=3,(IF((G37="5/24"),((база!$M$6*2*Таблица1[[#This Row],[Столбец1]]*Таблица1[[#This Row],[коэф]])), IF((G37="4/24"),((база!$M$5*2*Таблица1[[#This Row],[Столбец1]]*Таблица1[[#This Row],[коэф]])), IF((G37="3/24"),((база!$M$4*2*Таблица1[[#This Row],[Столбец1]]*Таблица1[[#This Row],[коэф]])), IF((G37="5/16"),((база!$L$6*2*Таблица1[[#This Row],[Столбец1]]*Таблица1[[#This Row],[коэф]])), IF((G37="4/16"),((база!$L$5*2*Таблица1[[#This Row],[Столбец1]]*Таблица1[[#This Row],[коэф]])), IF((G37="3/16"),((база!$L$4*2*Таблица1[[#This Row],[Столбец1]]*Таблица1[[#This Row],[коэф]])), IF((G37="4/4"),((база!$I$5*2*Таблица1[[#This Row],[Столбец1]]*Таблица1[[#This Row],[коэф]])), IF(OR(G37="2/4",G37="3/4"),((база!$I$4*2*Таблица1[[#This Row],[Столбец1]]*Таблица1[[#This Row],[коэф]])), IF((G37="5/8"),((база!$J$6*2*Таблица1[[#This Row],[Столбец1]]*Таблица1[[#This Row],[коэф]])), IF((G37="4/8"),((база!$J$5*2*Таблица1[[#This Row],[Столбец1]]*Таблица1[[#This Row],[коэф]])), IF(OR(G37="3/8",G37="2/8"),((база!$J$4*2*Таблица1[[#This Row],[Столбец1]]*Таблица1[[#This Row],[коэф]])))))))))))))), (IF((G37="5/24"),((база!$M$6*2*Таблица1[[#This Row],[Столбец1]]*Таблица1[[#This Row],[коэф]])), IF(OR(G37="4/24",G37="3/24"),((база!$M$5*2*Таблица1[[#This Row],[Столбец1]]*Таблица1[[#This Row],[коэф]])), IF((G37="5/16"),((база!$L$6*2*Таблица1[[#This Row],[Столбец1]]*Таблица1[[#This Row],[коэф]])), IF(OR(G37="4/16",G37="3/16"),((база!$L$5*2*Таблица1[[#This Row],[Столбец1]]*Таблица1[[#This Row],[коэф]])), IF(OR(G37="2/4",G37="3/4",G37="4/4"),((база!$I$5*2*Таблица1[[#This Row],[Столбец1]]*Таблица1[[#This Row],[коэф]])), IF((G37="5/8"),((база!$J$6*2*Таблица1[[#This Row],[Столбец1]]*Таблица1[[#This Row],[коэф]])), IF(OR(G37="4/8",G37="3/8",G37="2/8"),((база!$J$5*2*Таблица1[[#This Row],[Столбец1]]*Таблица1[[#This Row],[коэф]]))))))))))) -> 3650.4 | AQ37: =IFERROR(INDEX(база!T:T, MATCH(F37,база!Q:Q,0)),"") -> 2 | AR37: =IFERROR(INDEX(база!D:D, MATCH(F37,база!B:B,0)),"") -> 3
A38: декабрь | B38: 2023 | C38: 7Б7 | D38: 27-23 | E38: 1 | F38: Шработник1 | G38: 2/4 | H38: 7.2 | I38: 6 | K38: 7.2 | L38: 7.2 | M38: 7.2 | N38: 7.2 | O38: 7.2 | P38: 6 | R38: 7.2 | S38: 7.2 | T38: 7.2 | U38: 7.2 | V38: 7.2 | W38: 6 | Y38: 7.2 | Z38: 7.2 | AA38: 7.2 | AB38: 7.2 | AC38: 7.2 | AF38: 7.2 | AG38: 7.2 | AH38: 7.2 | AI38: 7.2 | AJ38: 7.2 | AM38: =IF(AQ38=1,SUM(H38:I38,L38:O38,R38:U38,X38:AA38,AD38:AG38,AI38:AK38), IF(AQ38=2,SUM(H38:K38,N38:Q38,T38:W38,Z38:AC38,AF38:AI38), IF(AQ38=3,SUM(J38:M38,P38:S38,V38:Y38,AB38:AE38,AH38:AK38),SUM(Таблица1[[#This Row],[1]:[31]])-Таблица1[[#This Row],[Столбец1]]))) -> 169.2 | AN38: =IF(AQ38=1,SUM(J38:K38,P38:Q38,V38:W38,AB38:AC38,AH38:AI38), IF(AQ38=2,SUM(L38:M38,R38:S38,X38:Y38,AD38:AE38), IF(AQ38=3,SUM(H38:I38,N38:O38,T38:U38,Z38:AA38,AF38:AG38), SUM(IFERROR(WEEKDAY($H$2:$AL$2,2)>5,)*H38:AL38)))) -> 0 | AO38: =IF(AR38<=3,(IF((G38="5/24"),((база!$M$6*Таблица1[[#This Row],[сумма]]*Таблица1[[#This Row],[коэф]])), IF((G38="4/24"),((база!$M$5*Таблица1[[#This Row],[сумма]]*Таблица1[[#This Row],[коэф]])), IF((G38="3/24"),((база!$M$4*Таблица1[[#This Row],[сумма]]*Таблица1[[#This Row],[коэф]])), IF((G38="5/16"),((база!$L$6*Таблица1[[#This Row],[сумма]]*Таблица1[[#This Row],[коэф]])), IF((G38="4/16"),((база!$L$5*Таблица1[[#This Row],[сумма]]*Таблица1[[#This Row],[коэф]])), IF((G38="3/16"),((база!$L$4*Таблица1[[#This Row],[сумма]]*Таблица1[[#This Row],[коэф]])), IF((G38="4/4"),((база!$I$5*Таблица1[[#This Row],[сумма]]*Таблица1[[#This Row],[коэф]])), IF(OR(G38="2/4",G38="3/4"),((база!$I$4*Таблица1[[#This Row],[сумма]]*Таблица1[[#This Row],[коэф]])), IF((G38="5/8"),((база!$J$6*Таблица1[[#This Row],[сумма]]*Таблица1[[#This Row],[коэф]])), IF((G38="4/8"),((база!$J$5*Таблица1[[#This Row],[сумма]]*Таблица1[[#This Row],[коэф]])), IF(OR(G38="3/8",G38="2/8"),((база!$J$4*Таблица1[[#This Row],[сумма]]*Таблица1[[#This Row],[коэф]])))))))))))))), (IF((G38="5/24"),((база!$M$6*Таблица1[[#This Row],[сумма]]*Таблица1[[#This Row],[коэф]])), IF(OR(G38="4/24",G38="3/24"),((база!$M$5*Таблица1[[#This Row],[сумма]]*Таблица1[[#This Row],[коэф]])), IF((G38="5/16"),((база!$L$6*Таблица1[[#This Row],[сумма]]*Таблица1[[#This Row],[коэф]])), IF(OR(G38="4/16",G38="3/16"),((база!$L$5*Таблица1[[#This Row],[сумма]]*Таблица1[[#This Row],[коэф]])), IF(OR(G38="2/4",G38="3/4",G38="4/4"),((база!$I$5*Таблица1[[#This Row],[сумма]]*Таблица1[[#This Row],[коэф]])), IF((G38="5/8"),((база!$J$6*Таблица1[[#This Row],[сумма]]*Таблица1[[#This Row],[коэф]])), IF(OR(G38="4/8",G38="3/8",G38="2/8"),((база!$J$5*Таблица1[[#This Row],[сумма]]*Таблица1[[#This Row],[коэф]]))))))))))) -> 26395.2 | AP38: =IF(AR38<=3,(IF((G38="5/24"),((база!$M$6*2*Таблица1[[#This Row],[Столбец1]]*Таблица1[[#This Row],[коэф]])), IF((G38="4/24"),((база!$M$5*2*Таблица1[[#This Row],[Столбец1]]*Таблица1[[#This Row],[коэф]])), IF((G38="3/24"),((база!$M$4*2*Таблица1[[#This Row],[Столбец1]]*Таблица1[[#This Row],[коэф]])), IF((G38="5/16"),((база!$L$6*2*Таблица1[[#This Row],[Столбец1]]*Таблица1[[#This Row],[коэф]])), IF((G38="4/16"),((база!$L$5*2*Таблица1[[#This Row],[Столбец1]]*Таблица1[[#This Row],[коэф]])), IF((G38="3/16"),((база!$L$4*2*Таблица1[[#This Row],[Столбец1]]*Таблица1[[#This Row],[коэф]])), IF((G38="4/4"),((база!$I$5*2*Таблица1[[#This Row],[Столбец1]]*Таблица1[[#This Row],[коэф]])), IF(OR(G38="2/4",G38="3/4"),((база!$I$4*2*Таблица1[[#This Row],[Столбец1]]*Таблица1[[#This Row],[коэф]])), IF((G38="5/8"),((база!$J$6*2*Таблица1[[#This Row],[Столбец1]]*Таблица1[[#This Row],[коэф]])), IF((G38="4/8"),((база!$J$5*2*Таблица1[[#This Row],[Столбец1]]*Таблица1[[#This Row],[коэф]])), IF(OR(G38="3/8",G38="2/8"),((база!$J$4*2*Таблица1[[#This Row],[Столбец1]]*Таблица1[[#This Row],[коэф]])))))))))))))), (IF((G38="5/24"),((база!$M$6*2*Таблица1[[#This Row],[Столбец1]]*Таблица1[[#This Row],[коэф]])), IF(OR(G38="4/24",G38="3/24"),((база!$M$5*2*Таблица1[[#This Row],[Столбец1]]*Таблица1[[#This Row],[коэф]])), IF((G38="5/16"),((база!$L$6*2*Таблица1[[#This Row],[Столбец1]]*Таблица1[[#This Row],[коэф]])), IF(OR(G38="4/16",G38="3/16"),((база!$L$5*2*Таблица1[[#This Row],[Столбец1]]*Таблица1[[#This Row],[коэф]])), IF(OR(G38="2/4",G38="3/4",G38="4/4"),((база!$I$5*2*Таблица1[[#This Row],[Столбец1]]*Таблица1[[#This Row],[коэф]])), IF((G38="5/8"),((база!$J$6*2*Таблица1[[#This Row],[Столбец1]]*Таблица1[[#This Row],[коэф]])), IF(OR(G38="4/8",G38="3/8",G38="2/8"),((база!$J$5*2*Таблица1[[#This Row],[Столбец1]]*Таблица1[[#This Row],[коэф]]))))))))))) -> 0 | AQ38: =IFERROR(INDEX(база!T:T, MATCH(F38,база!Q:Q,0)),"") -> 0 | AR38: =IFERROR(INDEX(база!D:D, MATCH(F38,база!B:B,0)),"") -> 4
A39: декабрь | B39: 2023 | C39: БО-01дл | D39: 130-23 | E39: 1,5 | F39: Аработник1 | G39: 4/8 | Y39: 7 | Z39: 7.2 | AA39: 7.2 | AB39: 7.2 | AM39: =IF(AQ39=1,SUM(H39:I39,L39:O39,R39:U39,X39:AA39,AD39:AG39,AI39:AK39), IF(AQ39=2,SUM(H39:K39,N39:Q39,T39:W39,Z39:AC39,AF39:AI39), IF(AQ39=3,SUM(J39:M39,P39:S39,V39:Y39,AB39:AE39,AH39:AK39),SUM(Таблица1[[#This Row],[1]:[31]])-Таблица1[[#This Row],[Столбец1]]))) -> 21.6 | AN39: =IF(AQ39=1,SUM(J39:K39,P39:Q39,V39:W39,AB39:AC39,AH39:AI39), IF(AQ39=2,SUM(L39:M39,R39:S39,X39:Y39,AD39:AE39), IF(AQ39=3,SUM(H39:I39,N39:O39,T39:U39,Z39:AA39,AF39:AG39), SUM(IFERROR(WEEKDAY($H$2:$AL$2,2)>5,)*H39:AL39)))) -> 7 | AO39: =IF(AR39<=3,(IF((G39="5/24"),((база!$M$6*Таблица1[[#This Row],[сумма]]*Таблица1[[#This Row],[коэф]])), IF((G39="4/24"),((база!$M$5*Таблица1[[#This Row],[сумма]]*Таблица1[[#This Row],[коэф]])), IF((G39="3/24"),((база!$M$4*Таблица1[[#This Row],[сумма]]*Таблица1[[#This Row],[коэф]])), IF((G39="5/16"),((база!$L$6*Таблица1[[#This Row],[сумма]]*Таблица1[[#This Row],[коэф]])), IF((G39="4/16"),((база!$L$5*Таблица1[[#This Row],[сумма]]*Таблица1[[#This Row],[коэф]])), IF((G39="3/16"),((база!$L$4*Таблица1[[#This Row],[сумма]]*Таблица1[[#This Row],[коэф]])), IF((G39="4/4"),((база!$I$5*Таблица1[[#This Row],[сумма]]*Таблица1[[#This Row],[коэф]])), IF(OR(G39="2/4",G39="3/4"),((база!$I$4*Таблица1[[#This Row],[сумма]]*Таблица1[[#This Row],[коэф]])), IF((G39="5/8"),((база!$J$6*Таблица1[[#This Row],[сумма]]*Таблица1[[#This Row],[коэф]])), IF((G39="4/8"),((база!$J$5*Таблица1[[#This Row],[сумма]]*Таблица1[[#This Row],[коэф]])), IF(OR(G39="3/8",G39="2/8"),((база!$J$4*Таблица1[[#This Row],[сумма]]*Таблица1[[#This Row],[коэф]])))))))))))))), (IF((G39="5/24"),((база!$M$6*Таблица1[[#This Row],[сумма]]*Таблица1[[#This Row],[коэф]])), IF(OR(G39="4/24",G39="3/24"),((база!$M$5*Таблица1[[#This Row],[сумма]]*Таблица1[[#This Row],[коэф]])), IF((G39="5/16"),((база!$L$6*Таблица1[[#This Row],[сумма]]*Таблица1[[#This Row],[коэф]])), IF(OR(G39="4/16",G39="3/16"),((база!$L$5*Таблица1[[#This Row],[сумма]]*Таблица1[[#This Row],[коэф]])), IF(OR(G39="2/4",G39="3/4",G39="4/4"),((база!$I$5*Таблица1[[#This Row],[сумма]]*Таблица1[[#This Row],[коэф]])), IF((G39="5/8"),((база!$J$6*Таблица1[[#This Row],[сумма]]*Таблица1[[#This Row],[коэф]])), IF(OR(G39="4/8",G39="3/8",G39="2/8"),((база!$J$5*Таблица1[[#This Row],[сумма]]*Таблица1[[#This Row],[коэф]]))))))))))) -> 5248.8 | AP39: =IF(AR39<=3,(IF((G39="5/24"),((база!$M$6*2*Таблица1[[#This Row],[Столбец1]]*Таблица1[[#This Row],[коэф]])), IF((G39="4/24"),((база!$M$5*2*Таблица1[[#This Row],[Столбец1]]*Таблица1[[#This Row],[коэф]])), IF((G39="3/24"),((база!$M$4*2*Таблица1[[#This Row],[Столбец1]]*Таблица1[[#This Row],[коэф]])), IF((G39="5/16"),((база!$L$6*2*Таблица1[[#This Row],[Столбец1]]*Таблица1[[#This Row],[коэф]])), IF((G39="4/16"),((база!$L$5*2*Таблица1[[#This Row],[Столбец1]]*Таблица1[[#This Row],[коэф]])), IF((G39="3/16"),((база!$L$4*2*Таблица1[[#This Row],[Столбец1]]*Таблица1[[#This Row],[коэф]])), IF((G39="4/4"),((база!$I$5*2*Таблица1[[#This Row],[Столбец1]]*Таблица1[[#This Row],[коэф]])), IF(OR(G39="2/4",G39="3/4"),((база!$I$4*2*Таблица1[[#This Row],[Столбец1]]*Таблица1[[#This Row],[коэф]])), IF((G39="5/8"),((база!$J$6*2*Таблица1[[#This Row],[Столбец1]]*Таблица1[[#This Row],[коэф]])), IF((G39="4/8"),((база!$J$5*2*Таблица1[[#This Row],[Столбец1]]*Таблица1[[#This Row],[коэф]])), IF(OR(G39="3/8",G39="2/8"),((база!$J$4*2*Таблица1[[#This Row],[Столбец1]]*Таблица1[[#This Row],[коэф]])))))))))))))), (IF((G39="5/24"),((база!$M$6*2*Таблица1[[#This Row],[Столбец1]]*Таблица1[[#This Row],[коэф]])), IF(OR(G39="4/24",G39="3/24"),((база!$M$5*2*Таблица1[[#This Row],[Столбец1]]*Таблица1[[#This Row],[коэф]])), IF((G39="5/16"),((база!$L$6*2*Таблица1[[#This Row],[Столбец1]]*Таблица1[[#This Row],[коэф]])), IF(OR(G39="4/16",G39="3/16"),((база!$L$5*2*Таблица1[[#This Row],[Столбец1]]*Таблица1[[#This Row],[коэф]])), IF(OR(G39="2/4",G39="3/4",G39="4/4"),((база!$I$5*2*Таблица1[[#This Row],[Столбец1]]*Таблица1[[#This Row],[коэф]])), IF((G39="5/8"),((база!$J$6*2*Таблица1[[#This Row],[Столбец1]]*Таблица1[[#This Row],[коэф]])), IF(OR(G39="4/8",G39="3/8",G39="2/8"),((база!$J$5*2*Таблица1[[#This Row],[Столбец1]]*Таблица1[[#This Row],[коэф]]))))))))))) -> 3402 | AQ39: =IFERROR(INDEX(база!T:T, MATCH(F39,база!Q:Q,0)),"") -> 2 | AR39: =IFERROR(INDEX(база!D:D, MATCH(F39,база!B:B,0)),"") -> 4
A40: декабрь | B40: 2023 | C40: В5 | D40: 12-23 | E40: 1 | F40: Бработник1 | G40: 3/16 | H40: 7.2 | L40: 7.2 | M40: 7.2 | N40: 7.2 | O40: 7.2 | Y40: 7.2 | Z40: 7.2 | AA40: 7.2 | AB40: 7.2 | AC40: 7.2 | AM40: =IF(AQ40=1,SUM(H40:I40,L40:O40,R40:U40,X40:AA40,AD40:AG40,AI40:AK40), IF(AQ40=2,SUM(H40:K40,N40:Q40,T40:W40,Z40:AC40,AF40:AI40), IF(AQ40=3,SUM(J40:M40,P40:S40,V40:Y40,AB40:AE40,AH40:AK40),SUM(Таблица1[[#This Row],[1]:[31]])-Таблица1[[#This Row],[Столбец1]]))) -> 72 | AN40: =IF(AQ40=1,SUM(J40:K40,P40:Q40,V40:W40,AB40:AC40,AH40:AI40), IF(AQ40=2,SUM(L40:M40,R40:S40,X40:Y40,AD40:AE40), IF(AQ40=3,SUM(H40:I40,N40:O40,T40:U40,Z40:AA40,AF40:AG40), SUM(IFERROR(WEEKDAY($H$2:$AL$2,2)>5,)*H40:AL40)))) -> 0 | AO40: =IF(AR40<=3,(IF((G40="5/24"),((база!$M$6*Таблица1[[#This Row],[сумма]]*Таблица1[[#This Row],[коэф]])), IF((G40="4/24"),((база!$M$5*Таблица1[[#This Row],[сумма]]*Таблица1[[#This Row],[коэф]])), IF((G40="3/24"),((база!$M$4*Таблица1[[#This Row],[сумма]]*Таблица1[[#This Row],[коэф]])), IF((G40="5/16"),((база!$L$6*Таблица1[[#This Row],[сумма]]*Таблица1[[#This Row],[коэф]])), IF((G40="4/16"),((база!$L$5*Таблица1[[#This Row],[сумма]]*Таблица1[[#This Row],[коэф]])), IF((G40="3/16"),((база!$L$4*Таблица1[[#This Row],[сумма]]*Таблица1[[#This Row],[коэф]])), IF((G40="4/4"),((база!$I$5*Таблица1[[#This Row],[сумма]]*Таблица1[[#This Row],[коэф]])), IF(OR(G40="2/4",G40="3/4"),((база!$I$4*Таблица1[[#This Row],[сумма]]*Таблица1[[#This Row],[коэф]])), IF((G40="5/8"),((база!$J$6*Таблица1[[#This Row],[сумма]]*Таблица1[[#This Row],[коэф]])), IF((G40="4/8"),((база!$J$5*Таблица1[[#This Row],[сумма]]*Таблица1[[#This Row],[коэф]])), IF(OR(G40="3/8",G40="2/8"),((база!$J$4*Таблица1[[#This Row],[сумма]]*Таблица1[[#This Row],[коэф]])))))))))))))), (IF((G40="5/24"),((база!$M$6*Таблица1[[#This Row],[сумма]]*Таблица1[[#This Row],[коэф]])), IF(OR(G40="4/24",G40="3/24"),((база!$M$5*Таблица1[[#This Row],[сумма]]*Таблица1[[#This Row],[коэф]])), IF((G40="5/16"),((база!$L$6*Таблица1[[#This Row],[сумма]]*Таблица1[[#This Row],[коэф]])), IF(OR(G40="4/16",G40="3/16"),((база!$L$5*Таблица1[[#This Row],[сумма]]*Таблица1[[#This Row],[коэф]])), IF(OR(G40="2/4",G40="3/4",G40="4/4"),((база!$I$5*Таблица1[[#This Row],[сумма]]*Таблица1[[#This Row],[коэф]])), IF((G40="5/8"),((база!$J$6*Таблица1[[#This Row],[сумма]]*Таблица1[[#This Row],[коэф]])), IF(OR(G40="4/8",G40="3/8",G40="2/8"),((база!$J$5*Таблица1[[#This Row],[сумма]]*Таблица1[[#This Row],[коэф]]))))))))))) -> 10857.6 | AP40: =IF(AR40<=3,(IF((G40="5/24"),((база!$M$6*2*Таблица1[[#This Row],[Столбец1]]*Таблица1[[#This Row],[коэф]])), IF((G40="4/24"),((база!$M$5*2*Таблица1[[#This Row],[Столбец1]]*Таблица1[[#This Row],[коэф]])), IF((G40="3/24"),((база!$M$4*2*Таблица1[[#This Row],[Столбец1]]*Таблица1[[#This Row],[коэф]])), IF((G40="5/16"),((база!$L$6*2*Таблица1[[#This Row],[Столбец1]]*Таблица1[[#This Row],[коэф]])), IF((G40="4/16"),((база!$L$5*2*Таблица1[[#This Row],[Столбец1]]*Таблица1[[#This Row],[коэф]])), IF((G40="3/16"),((база!$L$4*2*Таблица1[[#This Row],[Столбец1]]*Таблица1[[#This Row],[коэф]])), IF((G40="4/4"),((база!$I$5*2*Таблица1[[#This Row],[Столбец1]]*Таблица1[[#This Row],[коэф]])), IF(OR(G40="2/4",G40="3/4"),((база!$I$4*2*Таблица1[[#This Row],[Столбец1]]*Таблица1[[#This Row],[коэф]])), IF((G40="5/8"),((база!$J$6*2*Таблица1[[#This Row],[Столбец1]]*Таблица1[[#This Row],[коэф]])), IF((G40="4/8"),((база!$J$5*2*Таблица1[[#This Row],[Столбец1]]*Таблица1[[#This Row],[коэф]])), IF(OR(G40="3/8",G40="2/8"),((база!$J$4*2*Таблица1[[#This Row],[Столбец1]]*Таблица1[[#This Row],[коэф]])))))))))))))), (IF((G40="5/24"),((база!$M$6*2*Таблица1[[#This Row],[Столбец1]]*Таблица1[[#This Row],[коэф]])), IF(OR(G40="4/24",G40="3/24"),((база!$M$5*2*Таблица1[[#This Row],[Столбец1]]*Таблица1[[#This Row],[коэф]])), IF((G40="5/16"),((база!$L$6*2*Таблица1[[#This Row],[Столбец1]]*Таблица1[[#This Row],[коэф]])), IF(OR(G40="4/16",G40="3/16"),((база!$L$5*2*Таблица1[[#This Row],[Столбец1]]*Таблица1[[#This Row],[коэф]])), IF(OR(G40="2/4",G40="3/4",G40="4/4"),((база!$I$5*2*Таблица1[[#This Row],[Столбец1]]*Таблица1[[#This Row],[коэф]])), IF((G40="5/8"),((база!$J$6*2*Таблица1[[#This Row],[Столбец1]]*Таблица1[[#This Row],[коэф]])), IF(OR(G40="4/8",G40="3/8",G40="2/8"),((база!$J$5*2*Таблица1[[#This Row],[Столбец1]]*Таблица1[[#This Row],[коэф]]))))))))))) -> 0 | AQ40: =IFERROR(INDEX(база!T:T, MATCH(F40,база!Q:Q,0)),"") -> 0 | AR40: =IFERROR(INDEX(база!D:D, MATCH(F40,база!B:B,0)),"") -> 3
A41: декабрь | B41: 2023 | C41: БО-01дл | D41: 130-23 | E41: 1,4 | F41: Бработник2 | G41: 3/16 | N41: 6 | V41: 7.2 | W41: 7.2 | X41: 7.2 | AM41: =IF(AQ41=1,SUM(H41:I41,L41:O41,R41:U41,X41:AA41,AD41:AG41,AI41:AK41), IF(AQ41=2,SUM(H41:K41,N41:Q41,T41:W41,Z41:AC41,AF41:AI41), IF(AQ41=3,SUM(J41:M41,P41:S41,V41:Y41,AB41:AE41,AH41:AK41),SUM(Таблица1[[#This Row],[1]:[31]])-Таблица1[[#This Row],[Столбец1]]))) -> 21.6 | AN41: =IF(AQ41=1,SUM(J41:K41,P41:Q41,V41:W41,AB41:AC41,AH41:AI41), IF(AQ41=2,SUM(L41:M41,R41:S41,X41:Y41,AD41:AE41), IF(AQ41=3,SUM(H41:I41,N41:O41,T41:U41,Z41:AA41,AF41:AG41), SUM(IFERROR(WEEKDAY($H$2:$AL$2,2)>5,)*H41:AL41)))) -> 6 | AO41: =IF(AR41<=3,(IF((G41="5/24"),((база!$M$6*Таблица1[[#This Row],[сумма]]*Таблица1[[#This Row],[коэф]])), IF((G41="4/24"),((база!$M$5*Таблица1[[#This Row],[сумма]]*Таблица1[[#This Row],[коэф]])), IF((G41="3/24"),((база!$M$4*Таблица1[[#This Row],[сумма]]*Таблица1[[#This Row],[коэф]])), IF((G41="5/16"),((база!$L$6*Таблица1[[#This Row],[сумма]]*Таблица1[[#This Row],[коэф]])), IF((G41="4/16"),((база!$L$5*Таблица1[[#This Row],[сумма]]*Таблица1[[#This Row],[коэф]])), IF((G41="3/16"),((база!$L$4*Таблица1[[#This Row],[сумма]]*Таблица1[[#This Row],[коэф]])), IF((G41="4/4"),((база!$I$5*Таблица1[[#This Row],[сумма]]*Таблица1[[#This Row],[коэф]])), IF(OR(G41="2/4",G41="3/4"),((база!$I$4*Таблица1[[#This Row],[сумма]]*Таблица1[[#This Row],[коэф]])), IF((G41="5/8"),((база!$J$6*Таблица1[[#This Row],[сумма]]*Таблица1[[#This Row],[коэф]])), IF((G41="4/8"),((база!$J$5*Таблица1[[#This Row],[сумма]]*Таблица1[[#This Row],[коэф]])), IF(OR(G41="3/8",G41="2/8"),((база!$J$4*Таблица1[[#This Row],[сумма]]*Таблица1[[#This Row],[коэф]])))))))))))))), (IF((G41="5/24"),((база!$M$6*Таблица1[[#This Row],[сумма]]*Таблица1[[#This Row],[коэф]])), IF(OR(G41="4/24",G41="3/24"),((база!$M$5*Таблица1[[#This Row],[сумма]]*Таблица1[[#This Row],[коэф]])), IF((G41="5/16"),((база!$L$6*Таблица1[[#This Row],[сумма]]*Таблица1[[#This Row],[коэф]])), IF(OR(G41="4/16",G41="3/16"),((база!$L$5*Таблица1[[#This Row],[сумма]]*Таблица1[[#This Row],[коэф]])), IF(OR(G41="2/4",G41="3/4",G41="4/4"),((база!$I$5*Таблица1[[#This Row],[сумма]]*Таблица1[[#This Row],[коэф]])), IF((G41="5/8"),((база!$J$6*Таблица1[[#This Row],[сумма]]*Таблица1[[#This Row],[коэф]])), IF(OR(G41="4/8",G41="3/8",G41="2/8"),((база!$J$5*Таблица1[[#This Row],[сумма]]*Таблица1[[#This Row],[коэф]]))))))))))) -> 4560.192 | AP41: =IF(AR41<=3,(IF((G41="5/24"),((база!$M$6*2*Таблица1[[#This Row],[Столбец1]]*Таблица1[[#This Row],[коэф]])), IF((G41="4/24"),((база!$M$5*2*Таблица1[[#This Row],[Столбец1]]*Таблица1[[#This Row],[коэф]])), IF((G41="3/24"),((база!$M$4*2*Таблица1[[#This Row],[Столбец1]]*Таблица1[[#This Row],[коэф]])), IF((G41="5/16"),((база!$L$6*2*Таблица1[[#This Row],[Столбец1]]*Таблица1[[#This Row],[коэф]])), IF((G41="4/16"),((база!$L$5*2*Таблица1[[#This Row],[Столбец1]]*Таблица1[[#This Row],[коэф]])), IF((G41="3/16"),((база!$L$4*2*Таблица1[[#This Row],[Столбец1]]*Таблица1[[#This Row],[коэф]])), IF((G41="4/4"),((база!$I$5*2*Таблица1[[#This Row],[Столбец1]]*Таблица1[[#This Row],[коэф]])), IF(OR(G41="2/4",G41="3/4"),((база!$I$4*2*Таблица1[[#This Row],[Столбец1]]*Таблица1[[#This Row],[коэф]])), IF((G41="5/8"),((база!$J$6*2*Таблица1[[#This Row],[Столбец1]]*Таблица1[[#This Row],[коэф]])), IF((G41="4/8"),((база!$J$5*2*Таблица1[[#This Row],[Столбец1]]*Таблица1[[#This Row],[коэф]])), IF(OR(G41="3/8",G41="2/8"),((база!$J$4*2*Таблица1[[#This Row],[Столбец1]]*Таблица1[[#This Row],[коэф]])))))))))))))), (IF((G41="5/24"),((база!$M$6*2*Таблица1[[#This Row],[Столбец1]]*Таблица1[[#This Row],[коэф]])), IF(OR(G41="4/24",G41="3/24"),((база!$M$5*2*Таблица1[[#This Row],[Столбец1]]*Таблица1[[#This Row],[коэф]])), IF((G41="5/16"),((база!$L$6*2*Таблица1[[#This Row],[Столбец1]]*Таблица1[[#This Row],[коэф]])), IF(OR(G41="4/16",G41="3/16"),((база!$L$5*2*Таблица1[[#This Row],[Столбец1]]*Таблица1[[#This Row],[коэф]])), IF(OR(G41="2/4",G41="3/4",G41="4/4"),((база!$I$5*2*Таблица1[[#This Row],[Столбец1]]*Таблица1[[#This Row],[коэф]])), IF((G41="5/8"),((база!$J$6*2*Таблица1[[#This Row],[Столбец1]]*Таблица1[[#This Row],[коэф]])), IF(OR(G41="4/8",G41="3/8",G41="2/8"),((база!$J$5*2*Таблица1[[#This Row],[Столбец1]]*Таблица1[[#This Row],[коэф]]))))))))))) -> 2533.44 | AQ41: =IFERROR(INDEX(база!T:T, MATCH(F41,база!Q:Q,0)),"") -> 3 | AR41: =IFERROR(INDEX(база!D:D, MATCH(F41,база!B:B,0)),"") -> 3
A42: декабрь | B42: 2023 | C42: 7Б7 | D42: 28-23 | E42: 1,4 | F42: Бработник2 | G42: 3/16 | AB42: 7.2 | AC42: 7.2 | AD42: 7.2 | AE42: 7.2 | AM42: =IF(AQ42=1,SUM(H42:I42,L42:O42,R42:U42,X42:AA42,AD42:AG42,AI42:AK42), IF(AQ42=2,SUM(H42:K42,N42:Q42,T42:W42,Z42:AC42,AF42:AI42), IF(AQ42=3,SUM(J42:M42,P42:S42,V42:Y42,AB42:AE42,AH42:AK42),SUM(Таблица1[[#This Row],[1]:[31]])-Таблица1[[#This Row],[Столбец1]]))) -> 28.8 | AN42: =IF(AQ42=1,SUM(J42:K42,P42:Q42,V42:W42,AB42:AC42,AH42:AI42), IF(AQ42=2,SUM(L42:M42,R42:S42,X42:Y42,AD42:AE42), IF(AQ42=3,SUM(H42:I42,N42:O42,T42:U42,Z42:AA42,AF42:AG42), SUM(IFERROR(WEEKDAY($H$2:$AL$2,2)>5,)*H42:AL42)))) -> 0 | AO42: =IF(AR42<=3,(IF((G42="5/24"),((база!$M$6*Таблица1[[#This Row],[сумма]]*Таблица1[[#This Row],[коэф]])), IF((G42="4/24"),((база!$M$5*Таблица1[[#This Row],[сумма]]*Таблица1[[#This Row],[коэф]])), IF((G42="3/24"),((база!$M$4*Таблица1[[#This Row],[сумма]]*Таблица1[[#This Row],[коэф]])), IF((G42="5/16"),((база!$L$6*Таблица1[[#This Row],[сумма]]*Таблица1[[#This Row],[коэф]])), IF((G42="4/16"),((база!$L$5*Таблица1[[#This Row],[сумма]]*Таблица1[[#This Row],[коэф]])), IF((G42="3/16"),((база!$L$4*Таблица1[[#This Row],[сумма]]*Таблица1[[#This Row],[коэф]])), IF((G42="4/4"),((база!$I$5*Таблица1[[#This Row],[сумма]]*Таблица1[[#This Row],[коэф]])), IF(OR(G42="2/4",G42="3/4"),((база!$I$4*Таблица1[[#This Row],[сумма]]*Таблица1[[#This Row],[коэф]])), IF((G42="5/8"),((база!$J$6*Таблица1[[#This Row],[сумма]]*Таблица1[[#This Row],[коэф]])), IF((G42="4/8"),((база!$J$5*Таблица1[[#This Row],[сумма]]*Таблица1[[#This Row],[коэф]])), IF(OR(G42="3/8",G42="2/8"),((база!$J$4*Таблица1[[#This Row],[сумма]]*Таблица1[[#This Row],[коэф]])))))))))))))), (IF((G42="5/24"),((база!$M$6*Таблица1[[#This Row],[сумма]]*Таблица1[[#This Row],[коэф]])), IF(OR(G42="4/24",G42="3/24"),((база!$M$5*Таблица1[[#This Row],[сумма]]*Таблица1[[#This Row],[коэф]])), IF((G42="5/16"),((база!$L$6*Таблица1[[#This Row],[сумма]]*Таблица1[[#This Row],[коэф]])), IF(OR(G42="4/16",G42="3/16"),((база!$L$5*Таблица1[[#This Row],[сумма]]*Таблица1[[#This Row],[коэф]])), IF(OR(G42="2/4",G42="3/4",G42="4/4"),((база!$I$5*Таблица1[[#This Row],[сумма]]*Таблица1[[#This Row],[коэф]])), IF((G42="5/8"),((база!$J$6*Таблица1[[#This Row],[сумма]]*Таблица1[[#This Row],[коэф]])), IF(OR(G42="4/8",G42="3/8",G42="2/8"),((база!$J$5*Таблица1[[#This Row],[сумма]]*Таблица1[[#This Row],[коэф]]))))))))))) -> 6080.256 | AP42: =IF(AR42<=3,(IF((G42="5/24"),((база!$M$6*2*Таблица1[[#This Row],[Столбец1]]*Таблица1[[#This Row],[коэф]])), IF((G42="4/24"),((база!$M$5*2*Таблица1[[#This Row],[Столбец1]]*Таблица1[[#This Row],[коэф]])), IF((G42="3/24"),((база!$M$4*2*Таблица1[[#This Row],[Столбец1]]*Таблица1[[#This Row],[коэф]])), IF((G42="5/16"),((база!$L$6*2*Таблица1[[#This Row],[Столбец1]]*Таблица1[[#This Row],[коэф]])), IF((G42="4/16"),((база!$L$5*2*Таблица1[[#This Row],[Столбец1]]*Таблица1[[#This Row],[коэф]])), IF((G42="3/16"),((база!$L$4*2*Таблица1[[#This Row],[Столбец1]]*Таблица1[[#This Row],[коэф]])), IF((G42="4/4"),((база!$I$5*2*Таблица1[[#This Row],[Столбец1]]*Таблица1[[#This Row],[коэф]])), IF(OR(G42="2/4",G42="3/4"),((база!$I$4*2*Таблица1[[#This Row],[Столбец1]]*Таблица1[[#This Row],[коэф]])), IF((G42="5/8"),((база!$J$6*2*Таблица1[[#This Row],[Столбец1]]*Таблица1[[#This Row],[коэф]])), IF((G42="4/8"),((база!$J$5*2*Таблица1[[#This Row],[Столбец1]]*Таблица1[[#This Row],[коэф]])), IF(OR(G42="3/8",G42="2/8"),((база!$J$4*2*Таблица1[[#This Row],[Столбец1]]*Таблица1[[#This Row],[коэф]])))))))))))))), (IF((G42="5/24"),((база!$M$6*2*Таблица1[[#This Row],[Столбец1]]*Таблица1[[#This Row],[коэф]])), IF(OR(G42="4/24",G42="3/24"),((база!$M$5*2*Таблица1[[#This Row],[Столбец1]]*Таблица1[[#This Row],[коэф]])), IF((G42="5/16"),((база!$L$6*2*Таблица1[[#This Row],[Столбец1]]*Таблица1[[#This Row],[коэф]])), IF(OR(G42="4/16",G42="3/16"),((база!$L$5*2*Таблица1[[#This Row],[Столбец1]]*Таблица1[[#This Row],[коэф]])), IF(OR(G42="2/4",G42="3/4",G42="4/4"),((база!$I$5*2*Таблица1[[#This Row],[Столбец1]]*Таблица1[[#This Row],[коэф]])), IF((G42="5/8"),((база!$J$6*2*Таблица1[[#This Row],[Столбец1]]*Таблица1[[#This Row],[коэф]])), IF(OR(G42="4/8",G42="3/8",G42="2/8"),((база!$J$5*2*Таблица1[[#This Row],[Столбец1]]*Таблица1[[#This Row],[коэф]]))))))))))) -> 0 | AQ42: =IFERROR(INDEX(база!T:T, MATCH(F42,база!Q:Q,0)),"") -> 3 | AR42: =IFERROR(INDEX(база!D:D, MATCH(F42,база!B:B,0)),"") -> 3
A43: декабрь | B43: 2023 | C43: БО-01 | D43: 5-24 | E43: 1,4 | F43: Бработник2 | G43: 3/16 | AH43: 7.2 | AI43: 7.2 | AJ43: 7.2 | AK43: 7.2 | AM43: =IF(AQ43=1,SUM(H43:I43,L43:O43,R43:U43,X43:AA43,AD43:AG43,AI43:AK43), IF(AQ43=2,SUM(H43:K43,N43:Q43,T43:W43,Z43:AC43,AF43:AI43), IF(AQ43=3,SUM(J43:M43,P43:S43,V43:Y43,AB43:AE43,AH43:AK43),SUM(Таблица1[[#This Row],[1]:[31]])-Таблица1[[#This Row],[Столбец1]]))) -> 28.8 | AN43: =IF(AQ43=1,SUM(J43:K43,P43:Q43,V43:W43,AB43:AC43,AH43:AI43), IF(AQ43=2,SUM(L43:M43,R43:S43,X43:Y43,AD43:AE43), IF(AQ43=3,SUM(H43:I43,N43:O43,T43:U43,Z43:AA43,AF43:AG43), SUM(IFERROR(WEEKDAY($H$2:$AL$2,2)>5,)*H43:AL43)))) -> 0 | AO43: =IF(AR43<=3,(IF((G43="5/24"),((база!$M$6*Таблица1[[#This Row],[сумма]]*Таблица1[[#This Row],[коэф]])), IF((G43="4/24"),((база!$M$5*Таблица1[[#This Row],[сумма]]*Таблица1[[#This Row],[коэф]])), IF((G43="3/24"),((база!$M$4*Таблица1[[#This Row],[сумма]]*Таблица1[[#This Row],[коэф]])), IF((G43="5/16"),((база!$L$6*Таблица1[[#This Row],[сумма]]*Таблица1[[#This Row],[коэф]])), IF((G43="4/16"),((база!$L$5*Таблица1[[#This Row],[сумма]]*Таблица1[[#This Row],[коэф]])), IF((G43="3/16"),((база!$L$4*Таблица1[[#This Row],[сумма]]*Таблица1[[#This Row],[коэф]])), IF((G43="4/4"),((база!$I$5*Таблица1[[#This Row],[сумма]]*Таблица1[[#This Row],[коэф]])), IF(OR(G43="2/4",G43="3/4"),((база!$I$4*Таблица1[[#This Row],[сумма]]*Таблица1[[#This Row],[коэф]])), IF((G43="5/8"),((база!$J$6*Таблица1[[#This Row],[сумма]]*Таблица1[[#This Row],[коэф]])), IF((G43="4/8"),((база!$J$5*Таблица1[[#This Row],[сумма]]*Таблица1[[#This Row],[коэф]])), IF(OR(G43="3/8",G43="2/8"),((база!$J$4*Таблица1[[#This Row],[сумма]]*Таблица1[[#This Row],[коэф]])))))))))))))), (IF((G43="5/24"),((база!$M$6*Таблица1[[#This Row],[сумма]]*Таблица1[[#This Row],[коэф]])), IF(OR(G43="4/24",G43="3/24"),((база!$M$5*Таблица1[[#This Row],[сумма]]*Таблица1[[#This Row],[коэф]])), IF((G43="5/16"),((база!$L$6*Таблица1[[#This Row],[сумма]]*Таблица1[[#This Row],[коэф]])), IF(OR(G43="4/16",G43="3/16"),((база!$L$5*Таблица1[[#This Row],[сумма]]*Таблица1[[#This Row],[коэф]])), IF(OR(G43="2/4",G43="3/4",G43="4/4"),((база!$I$5*Таблица1[[#This Row],[сумма]]*Таблица1[[#This Row],[коэф]])), IF((G43="5/8"),((база!$J$6*Таблица1[[#This Row],[сумма]]*Таблица1[[#This Row],[коэф]])), IF(OR(G43="4/8",G43="3/8",G43="2/8"),((база!$J$5*Таблица1[[#This Row],[сумма]]*Таблица1[[#This Row],[коэф]]))))))))))) -> 6080.256 | AP43: =IF(AR43<=3,(IF((G43="5/24"),((база!$M$6*2*Таблица1[[#This Row],[Столбец1]]*Таблица1[[#This Row],[коэф]])), IF((G43="4/24"),((база!$M$5*2*Таблица1[[#This Row],[Столбец1]]*Таблица1[[#This Row],[коэф]])), IF((G43="3/24"),((база!$M$4*2*Таблица1[[#This Row],[Столбец1]]*Таблица1[[#This Row],[коэф]])), IF((G43="5/16"),((база!$L$6*2*Таблица1[[#This Row],[Столбец1]]*Таблица1[[#This Row],[коэф]])), IF((G43="4/16"),((база!$L$5*2*Таблица1[[#This Row],[Столбец1]]*Таблица1[[#This Row],[коэф]])), IF((G43="3/16"),((база!$L$4*2*Таблица1[[#This Row],[Столбец1]]*Таблица1[[#This Row],[коэф]])), IF((G43="4/4"),((база!$I$5*2*Таблица1[[#This Row],[Столбец1]]*Таблица1[[#This Row],[коэф]])), IF(OR(G43="2/4",G43="3/4"),((база!$I$4*2*Таблица1[[#This Row],[Столбец1]]*Таблица1[[#This Row],[коэф]])), IF((G43="5/8"),((база!$J$6*2*Таблица1[[#This Row],[Столбец1]]*Таблица1[[#This Row],[коэф]])), IF((G43="4/8"),((база!$J$5*2*Таблица1[[#This Row],[Столбец1]]*Таблица1[[#This Row],[коэф]])), IF(OR(G43="3/8",G43="2/8"),((база!$J$4*2*Таблица1[[#This Row],[Столбец1]]*Таблица1[[#This Row],[коэф]])))))))))))))), (IF((G43="5/24"),((база!$M$6*2*Таблица1[[#This Row],[Столбец1]]*Таблица1[[#This Row],[коэф]])), IF(OR(G43="4/24",G43="3/24"),((база!$M$5*2*Таблица1[[#This Row],[Столбец1]]*Таблица1[[#This Row],[коэф]])), IF((G43="5/16"),((база!$L$6*2*Таблица1[[#This Row],[Столбец1]]*Таблица1[[#This Row],[коэф]])), IF(OR(G43="4/16",G43="3/16"),((база!$L$5*2*Таблица1[[#This Row],[Столбец1]]*Таблица1[[#This Row],[коэф]])), IF(OR(G43="2/4",G43="3/4",G43="4/4"),((база!$I$5*2*Таблица1[[#This Row],[Столбец1]]*Таблица1[[#This Row],[коэф]])), IF((G43="5/8"),((база!$J$6*2*Таблица1[[#This Row],[Столбец1]]*Таблица1[[#This Row],[коэф]])), IF(OR(G43="4/8",G43="3/8",G43="2/8"),((база!$J$5*2*Таблица1[[#This Row],[Столбец1]]*Таблица1[[#This Row],[коэф]]))))))))))) -> 0 | AQ43: =IFERROR(INDEX(база!T:T, MATCH(F43,база!Q:Q,0)),"") -> 3 | AR43: =IFERROR(INDEX(база!D:D, MATCH(F43,база!B:B,0)),"") -> 3
A44: декабрь | B44: 2023 | C44: 7Б7 | D44: 29-23 | E44: 1,4 | F44: Дработник1 | G44: 3/16 | J44: 7.2 | K44: 7.2 | AF44: 7.2 | AG44: 7.2 | AH44: 7.2 | AI44: 7.2 | AM44: =IF(AQ44=1,SUM(H44:I44,L44:O44,R44:U44,X44:AA44,AD44:AG44,AI44:AK44), IF(AQ44=2,SUM(H44:K44,N44:Q44,T44:W44,Z44:AC44,AF44:AI44), IF(AQ44=3,SUM(J44:M44,P44:S44,V44:Y44,AB44:AE44,AH44:AK44),SUM(Таблица1[[#This Row],[1]:[31]])-Таблица1[[#This Row],[Столбец1]]))) -> 43.2 | AN44: =IF(AQ44=1,SUM(J44:K44,P44:Q44,V44:W44,AB44:AC44,AH44:AI44), IF(AQ44=2,SUM(L44:M44,R44:S44,X44:Y44,AD44:AE44), IF(AQ44=3,SUM(H44:I44,N44:O44,T44:U44,Z44:AA44,AF44:AG44), SUM(IFERROR(WEEKDAY($H$2:$AL$2,2)>5,)*H44:AL44)))) -> 0 | AO44: =IF(AR44<=3,(IF((G44="5/24"),((база!$M$6*Таблица1[[#This Row],[сумма]]*Таблица1[[#This Row],[коэф]])), IF((G44="4/24"),((база!$M$5*Таблица1[[#This Row],[сумма]]*Таблица1[[#This Row],[коэф]])), IF((G44="3/24"),((база!$M$4*Таблица1[[#This Row],[сумма]]*Таблица1[[#This Row],[коэф]])), IF((G44="5/16"),((база!$L$6*Таблица1[[#This Row],[сумма]]*Таблица1[[#This Row],[коэф]])), IF((G44="4/16"),((база!$L$5*Таблица1[[#This Row],[сумма]]*Таблица1[[#This Row],[коэф]])), IF((G44="3/16"),((база!$L$4*Таблица1[[#This Row],[сумма]]*Таблица1[[#This Row],[коэф]])), IF((G44="4/4"),((база!$I$5*Таблица1[[#This Row],[сумма]]*Таблица1[[#This Row],[коэф]])), IF(OR(G44="2/4",G44="3/4"),((база!$I$4*Таблица1[[#This Row],[сумма]]*Таблица1[[#This Row],[коэф]])), IF((G44="5/8"),((база!$J$6*Таблица1[[#This Row],[сумма]]*Таблица1[[#This Row],[коэф]])), IF((G44="4/8"),((база!$J$5*Таблица1[[#This Row],[сумма]]*Таблица1[[#This Row],[коэф]])), IF(OR(G44="3/8",G44="2/8"),((база!$J$4*Таблица1[[#This Row],[сумма]]*Таблица1[[#This Row],[коэф]])))))))))))))), (IF((G44="5/24"),((база!$M$6*Таблица1[[#This Row],[сумма]]*Таблица1[[#This Row],[коэф]])), IF(OR(G44="4/24",G44="3/24"),((база!$M$5*Таблица1[[#This Row],[сумма]]*Таблица1[[#This Row],[коэф]])), IF((G44="5/16"),((база!$L$6*Таблица1[[#This Row],[сумма]]*Таблица1[[#This Row],[коэф]])), IF(OR(G44="4/16",G44="3/16"),((база!$L$5*Таблица1[[#This Row],[сумма]]*Таблица1[[#This Row],[коэф]])), IF(OR(G44="2/4",G44="3/4",G44="4/4"),((база!$I$5*Таблица1[[#This Row],[сумма]]*Таблица1[[#This Row],[коэф]])), IF((G44="5/8"),((база!$J$6*Таблица1[[#This Row],[сумма]]*Таблица1[[#This Row],[коэф]])), IF(OR(G44="4/8",G44="3/8",G44="2/8"),((база!$J$5*Таблица1[[#This Row],[сумма]]*Таблица1[[#This Row],[коэф]]))))))))))) -> 9120.384 | AP44: =IF(AR44<=3,(IF((G44="5/24"),((база!$M$6*2*Таблица1[[#This Row],[Столбец1]]*Таблица1[[#This Row],[коэф]])), IF((G44="4/24"),((база!$M$5*2*Таблица1[[#This Row],[Столбец1]]*Таблица1[[#This Row],[коэф]])), IF((G44="3/24"),((база!$M$4*2*Таблица1[[#This Row],[Столбец1]]*Таблица1[[#This Row],[коэф]])), IF((G44="5/16"),((база!$L$6*2*Таблица1[[#This Row],[Столбец1]]*Таблица1[[#This Row],[коэф]])), IF((G44="4/16"),((база!$L$5*2*Таблица1[[#This Row],[Столбец1]]*Таблица1[[#This Row],[коэф]])), IF((G44="3/16"),((база!$L$4*2*Таблица1[[#This Row],[Столбец1]]*Таблица1[[#This Row],[коэф]])), IF((G44="4/4"),((база!$I$5*2*Таблица1[[#This Row],[Столбец1]]*Таблица1[[#This Row],[коэф]])), IF(OR(G44="2/4",G44="3/4"),((база!$I$4*2*Таблица1[[#This Row],[Столбец1]]*Таблица1[[#This Row],[коэф]])), IF((G44="5/8"),((база!$J$6*2*Таблица1[[#This Row],[Столбец1]]*Таблица1[[#This Row],[коэф]])), IF((G44="4/8"),((база!$J$5*2*Таблица1[[#This Row],[Столбец1]]*Таблица1[[#This Row],[коэф]])), IF(OR(G44="3/8",G44="2/8"),((база!$J$4*2*Таблица1[[#This Row],[Столбец1]]*Таблица1[[#This Row],[коэф]])))))))))))))), (IF((G44="5/24"),((база!$M$6*2*Таблица1[[#This Row],[Столбец1]]*Таблица1[[#This Row],[коэф]])), IF(OR(G44="4/24",G44="3/24"),((база!$M$5*2*Таблица1[[#This Row],[Столбец1]]*Таблица1[[#This Row],[коэф]])), IF((G44="5/16"),((база!$L$6*2*Таблица1[[#This Row],[Столбец1]]*Таблица1[[#This Row],[коэф]])), IF(OR(G44="4/16",G44="3/16"),((база!$L$5*2*Таблица1[[#This Row],[Столбец1]]*Таблица1[[#This Row],[коэф]])), IF(OR(G44="2/4",G44="3/4",G44="4/4"),((база!$I$5*2*Таблица1[[#This Row],[Столбец1]]*Таблица1[[#This Row],[коэф]])), IF((G44="5/8"),((база!$J$6*2*Таблица1[[#This Row],[Столбец1]]*Таблица1[[#This Row],[коэф]])), IF(OR(G44="4/8",G44="3/8",G44="2/8"),((база!$J$5*2*Таблица1[[#This Row],[Столбец1]]*Таблица1[[#This Row],[коэф]]))))))))))) -> 0 | AQ44: =IFERROR(INDEX(база!T:T, MATCH(F44,база!Q:Q,0)),"") -> 2 | AR44: =IFERROR(INDEX(база!D:D, MATCH(F44,база!B:B,0)),"") -> 3
A45: =A44 -> декабрь | B45: 2023 | C45: БО-01дл | D45: 116-23 | E45: 1,4 | F45: Дработник1 | G45: 3/16 | T45: 7.2 | U45: 7.2 | V45: 7.2 | W45: 7.2 | AM45: =IF(AQ45=1,SUM(H45:I45,L45:O45,R45:U45,X45:AA45,AD45:AG45,AI45:AK45), IF(AQ45=2,SUM(H45:K45,N45:Q45,T45:W45,Z45:AC45,AF45:AI45), IF(AQ45=3,SUM(J45:M45,P45:S45,V45:Y45,AB45:AE45,AH45:AK45),SUM(Таблица1[[#This Row],[1]:[31]])-Таблица1[[#This Row],[Столбец1]]))) -> 28.8 | AN45: =IF(AQ45=1,SUM(J45:K45,P45:Q45,V45:W45,AB45:AC45,AH45:AI45), IF(AQ45=2,SUM(L45:M45,R45:S45,X45:Y45,AD45:AE45), IF(AQ45=3,SUM(H45:I45,N45:O45,T45:U45,Z45:AA45,AF45:AG45), SUM(IFERROR(WEEKDAY($H$2:$AL$2,2)>5,)*H45:AL45)))) -> 0 | AO45: =IF(AR45<=3,(IF((G45="5/24"),((база!$M$6*Таблица1[[#This Row],[сумма]]*Таблица1[[#This Row],[коэф]])), IF((G45="4/24"),((база!$M$5*Таблица1[[#This Row],[сумма]]*Таблица1[[#This Row],[коэф]])), IF((G45="3/24"),((база!$M$4*Таблица1[[#This Row],[сумма]]*Таблица1[[#This Row],[коэф]])), IF((G45="5/16"),((база!$L$6*Таблица1[[#This Row],[сумма]]*Таблица1[[#This Row],[коэф]])), IF((G45="4/16"),((база!$L$5*Таблица1[[#This Row],[сумма]]*Таблица1[[#This Row],[коэф]])), IF((G45="3/16"),((база!$L$4*Таблица1[[#This Row],[сумма]]*Таблица1[[#This Row],[коэф]])), IF((G45="4/4"),((база!$I$5*Таблица1[[#This Row],[сумма]]*Таблица1[[#This Row],[коэф]])), IF(OR(G45="2/4",G45="3/4"),((база!$I$4*Таблица1[[#This Row],[сумма]]*Таблица1[[#This Row],[коэф]])), IF((G45="5/8"),((база!$J$6*Таблица1[[#This Row],[сумма]]*Таблица1[[#This Row],[коэф]])), IF((G45="4/8"),((база!$J$5*Таблица1[[#This Row],[сумма]]*Таблица1[[#This Row],[коэф]])), IF(OR(G45="3/8",G45="2/8"),((база!$J$4*Таблица1[[#This Row],[сумма]]*Таблица1[[#This Row],[коэф]])))))))))))))), (IF((G45="5/24"),((база!$M$6*Таблица1[[#This Row],[сумма]]*Таблица1[[#This Row],[коэф]])), IF(OR(G45="4/24",G45="3/24"),((база!$M$5*Таблица1[[#This Row],[сумма]]*Таблица1[[#This Row],[коэф]])), IF((G45="5/16"),((база!$L$6*Таблица1[[#This Row],[сумма]]*Таблица1[[#This Row],[коэф]])), IF(OR(G45="4/16",G45="3/16"),((база!$L$5*Таблица1[[#This Row],[сумма]]*Таблица1[[#This Row],[коэф]])), IF(OR(G45="2/4",G45="3/4",G45="4/4"),((база!$I$5*Таблица1[[#This Row],[сумма]]*Таблица1[[#This Row],[коэф]])), IF((G45="5/8"),((база!$J$6*Таблица1[[#This Row],[сумма]]*Таблица1[[#This Row],[коэф]])), IF(OR(G45="4/8",G45="3/8",G45="2/8"),((база!$J$5*Таблица1[[#This Row],[сумма]]*Таблица1[[#This Row],[коэф]]))))))))))) -> 6080.256 | AP45: =IF(AR45<=3,(IF((G45="5/24"),((база!$M$6*2*Таблица1[[#This Row],[Столбец1]]*Таблица1[[#This Row],[коэф]])), IF((G45="4/24"),((база!$M$5*2*Таблица1[[#This Row],[Столбец1]]*Таблица1[[#This Row],[коэф]])), IF((G45="3/24"),((база!$M$4*2*Таблица1[[#This Row],[Столбец1]]*Таблица1[[#This Row],[коэф]])), IF((G45="5/16"),((база!$L$6*2*Таблица1[[#This Row],[Столбец1]]*Таблица1[[#This Row],[коэф]])), IF((G45="4/16"),((база!$L$5*2*Таблица1[[#This Row],[Столбец1]]*Таблица1[[#This Row],[коэф]])), IF((G45="3/16"),((база!$L$4*2*Таблица1[[#This Row],[Столбец1]]*Таблица1[[#This Row],[коэф]])), IF((G45="4/4"),((база!$I$5*2*Таблица1[[#This Row],[Столбец1]]*Таблица1[[#This Row],[коэф]])), IF(OR(G45="2/4",G45="3/4"),((база!$I$4*2*Таблица1[[#This Row],[Столбец1]]*Таблица1[[#This Row],[коэф]])), IF((G45="5/8"),((база!$J$6*2*Таблица1[[#This Row],[Столбец1]]*Таблица1[[#This Row],[коэф]])), IF((G45="4/8"),((база!$J$5*2*Таблица1[[#This Row],[Столбец1]]*Таблица1[[#This Row],[коэф]])), IF(OR(G45="3/8",G45="2/8"),((база!$J$4*2*Таблица1[[#This Row],[Столбец1]]*Таблица1[[#This Row],[коэф]])))))))))))))), (IF((G45="5/24"),((база!$M$6*2*Таблица1[[#This Row],[Столбец1]]*Таблица1[[#This Row],[коэф]])), IF(OR(G45="4/24",G45="3/24"),((база!$M$5*2*Таблица1[[#This Row],[Столбец1]]*Таблица1[[#This Row],[коэф]])), IF((G45="5/16"),((база!$L$6*2*Таблица1[[#This Row],[Столбец1]]*Таблица1[[#This Row],[коэф]])), IF(OR(G45="4/16",G45="3/16"),((база!$L$5*2*Таблица1[[#This Row],[Столбец1]]*Таблица1[[#This Row],[коэф]])), IF(OR(G45="2/4",G45="3/4",G45="4/4"),((база!$I$5*2*Таблица1[[#This Row],[Столбец1]]*Таблица1[[#This Row],[коэф]])), IF((G45="5/8"),((база!$J$6*2*Таблица1[[#This Row],[Столбец1]]*Таблица1[[#This Row],[коэф]])), IF(OR(G45="4/8",G45="3/8",G45="2/8"),((база!$J$5*2*Таблица1[[#This Row],[Столбец1]]*Таблица1[[#This Row],[коэф]]))))))))))) -> 0 | AQ45: =IFERROR(INDEX(база!T:T, MATCH(F45,база!Q:Q,0)),"") -> 2 | AR45: =IFERROR(INDEX(база!D:D, MATCH(F45,база!B:B,0)),"") -> 3
A46: =A45 -> декабрь | B46: 2023 | C46: БО-01 | D46: 5-24 | E46: 1,4 | F46: Дработник1 | G46: 3/16 | Z46: 7.2 | AA46: 7.2 | AB46: 7.2 | AC46: 7.2 | AM46: =IF(AQ46=1,SUM(H46:I46,L46:O46,R46:U46,X46:AA46,AD46:AG46,AI46:AK46), IF(AQ46=2,SUM(H46:K46,N46:Q46,T46:W46,Z46:AC46,AF46:AI46), IF(AQ46=3,SUM(J46:M46,P46:S46,V46:Y46,AB46:AE46,AH46:AK46),SUM(Таблица1[[#This Row],[1]:[31]])-Таблица1[[#This Row],[Столбец1]]))) -> 28.8 | AN46: =IF(AQ46=1,SUM(J46:K46,P46:Q46,V46:W46,AB46:AC46,AH46:AI46), IF(AQ46=2,SUM(L46:M46,R46:S46,X46:Y46,AD46:AE46), IF(AQ46=3,SUM(H46:I46,N46:O46,T46:U46,Z46:AA46,AF46:AG46), SUM(IFERROR(WEEKDAY($H$2:$AL$2,2)>5,)*H46:AL46)))) -> 0 | AO46: =IF(AR46<=3,(IF((G46="5/24"),((база!$M$6*Таблица1[[#This Row],[сумма]]*Таблица1[[#This Row],[коэф]])), IF((G46="4/24"),((база!$M$5*Таблица1[[#This Row],[сумма]]*Таблица1[[#This Row],[коэф]])), IF((G46="3/24"),((база!$M$4*Таблица1[[#This Row],[сумма]]*Таблица1[[#This Row],[коэф]])), IF((G46="5/16"),((база!$L$6*Таблица1[[#This Row],[сумма]]*Таблица1[[#This Row],[коэф]])), IF((G46="4/16"),((база!$L$5*Таблица1[[#This Row],[сумма]]*Таблица1[[#This Row],[коэф]])), IF((G46="3/16"),((база!$L$4*Таблица1[[#This Row],[сумма]]*Таблица1[[#This Row],[коэф]])), IF((G46="4/4"),((база!$I$5*Таблица1[[#This Row],[сумма]]*Таблица1[[#This Row],[коэф]])), IF(OR(G46="2/4",G46="3/4"),((база!$I$4*Таблица1[[#This Row],[сумма]]*Таблица1[[#This Row],[коэф]])), IF((G46="5/8"),((база!$J$6*Таблица1[[#This Row],[сумма]]*Таблица1[[#This Row],[коэф]])), IF((G46="4/8"),((база!$J$5*Таблица1[[#This Row],[сумма]]*Таблица1[[#This Row],[коэф]])), IF(OR(G46="3/8",G46="2/8"),((база!$J$4*Таблица1[[#This Row],[сумма]]*Таблица1[[#This Row],[коэф]])))))))))))))), (IF((G46="5/24"),((база!$M$6*Таблица1[[#This Row],[сумма]]*Таблица1[[#This Row],[коэф]])), IF(OR(G46="4/24",G46="3/24"),((база!$M$5*Таблица1[[#This Row],[сумма]]*Таблица1[[#This Row],[коэф]])), IF((G46="5/16"),((база!$L$6*Таблица1[[#This Row],[сумма]]*Таблица1[[#This Row],[коэф]])), IF(OR(G46="4/16",G46="3/16"),((база!$L$5*Таблица1[[#This Row],[сумма]]*Таблица1[[#This Row],[коэф]])), IF(OR(G46="2/4",G46="3/4",G46="4/4"),((база!$I$5*Таблица1[[#This Row],[сумма]]*Таблица1[[#This Row],[коэф]])), IF((G46="5/8"),((база!$J$6*Таблица1[[#This Row],[сумма]]*Таблица1[[#This Row],[коэф]])), IF(OR(G46="4/8",G46="3/8",G46="2/8"),((база!$J$5*Таблица1[[#This Row],[сумма]]*Таблица1[[#This Row],[коэф]]))))))))))) -> 6080.256 | AP46: =IF(AR46<=3,(IF((G46="5/24"),((база!$M$6*2*Таблица1[[#This Row],[Столбец1]]*Таблица1[[#This Row],[коэф]])), IF((G46="4/24"),((база!$M$5*2*Таблица1[[#This Row],[Столбец1]]*Таблица1[[#This Row],[коэф]])), IF((G46="3/24"),((база!$M$4*2*Таблица1[[#This Row],[Столбец1]]*Таблица1[[#This Row],[коэф]])), IF((G46="5/16"),((база!$L$6*2*Таблица1[[#This Row],[Столбец1]]*Таблица1[[#This Row],[коэф]])), IF((G46="4/16"),((база!$L$5*2*Таблица1[[#This Row],[Столбец1]]*Таблица1[[#This Row],[коэф]])), IF((G46="3/16"),((база!$L$4*2*Таблица1[[#This Row],[Столбец1]]*Таблица1[[#This Row],[коэф]])), IF((G46="4/4"),((база!$I$5*2*Таблица1[[#This Row],[Столбец1]]*Таблица1[[#This Row],[коэф]])), IF(OR(G46="2/4",G46="3/4"),((база!$I$4*2*Таблица1[[#This Row],[Столбец1]]*Таблица1[[#This Row],[коэф]])), IF((G46="5/8"),((база!$J$6*2*Таблица1[[#This Row],[Столбец1]]*Таблица1[[#This Row],[коэф]])), IF((G46="4/8"),((база!$J$5*2*Таблица1[[#This Row],[Столбец1]]*Таблица1[[#This Row],[коэф]])), IF(OR(G46="3/8",G46="2/8"),((база!$J$4*2*Таблица1[[#This Row],[Столбец1]]*Таблица1[[#This Row],[коэф]])))))))))))))), (IF((G46="5/24"),((база!$M$6*2*Таблица1[[#This Row],[Столбец1]]*Таблица1[[#This Row],[коэф]])), IF(OR(G46="4/24",G46="3/24"),((база!$M$5*2*Таблица1[[#This Row],[Столбец1]]*Таблица1[[#This Row],[коэф]])), IF((G46="5/16"),((база!$L$6*2*Таблица1[[#This Row],[Столбец1]]*Таблица1[[#This Row],[коэф]])), IF(OR(G46="4/16",G46="3/16"),((база!$L$5*2*Таблица1[[#This Row],[Столбец1]]*Таблица1[[#This Row],[коэф]])), IF(OR(G46="2/4",G46="3/4",G46="4/4"),((база!$I$5*2*Таблица1[[#This Row],[Столбец1]]*Таблица1[[#This Row],[коэф]])), IF((G46="5/8"),((база!$J$6*2*Таблица1[[#This Row],[Столбец1]]*Таблица1[[#This Row],[коэф]])), IF(OR(G46="4/8",G46="3/8",G46="2/8"),((база!$J$5*2*Таблица1[[#This Row],[Столбец1]]*Таблица1[[#This Row],[коэф]]))))))))))) -> 0 | AQ46: =IFERROR(INDEX(база!T:T, MATCH(F46,база!Q:Q,0)),"") -> 2 | AR46: =IFERROR(INDEX(база!D:D, MATCH(F46,база!B:B,0)),"") -> 3
A47: декабрь | B47: 2023 | C47: 1В5 | D47: 23-23 | E47: 1 | F47: Еработник2 | G47: 3/24 | U47: 7.2 | V47: 7.2 | Y47: 7.2 | Z47: 7.2 | AA47: 7.2 | AB47: 7.2 | AC47: 7.2 | AM47: =IF(AQ47=1,SUM(H47:I47,L47:O47,R47:U47,X47:AA47,AD47:AG47,AI47:AK47), IF(AQ47=2,SUM(H47:K47,N47:Q47,T47:W47,Z47:AC47,AF47:AI47), IF(AQ47=3,SUM(J47:M47,P47:S47,V47:Y47,AB47:AE47,AH47:AK47),SUM(Таблица1[[#This Row],[1]:[31]])-Таблица1[[#This Row],[Столбец1]]))) -> 50.4 | AN47: =IF(AQ47=1,SUM(J47:K47,P47:Q47,V47:W47,AB47:AC47,AH47:AI47), IF(AQ47=2,SUM(L47:M47,R47:S47,X47:Y47,AD47:AE47), IF(AQ47=3,SUM(H47:I47,N47:O47,T47:U47,Z47:AA47,AF47:AG47), SUM(IFERROR(WEEKDAY($H$2:$AL$2,2)>5,)*H47:AL47)))) -> 0 | AO47: =IF(AR47<=3,(IF((G47="5/24"),((база!$M$6*Таблица1[[#This Row],[сумма]]*Таблица1[[#This Row],[коэф]])), IF((G47="4/24"),((база!$M$5*Таблица1[[#This Row],[сумма]]*Таблица1[[#This Row],[коэф]])), IF((G47="3/24"),((база!$M$4*Таблица1[[#This Row],[сумма]]*Таблица1[[#This Row],[коэф]])), IF((G47="5/16"),((база!$L$6*Таблица1[[#This Row],[сумма]]*Таблица1[[#This Row],[коэф]])), IF((G47="4/16"),((база!$L$5*Таблица1[[#This Row],[сумма]]*Таблица1[[#This Row],[коэф]])), IF((G47="3/16"),((база!$L$4*Таблица1[[#This Row],[сумма]]*Таблица1[[#This Row],[коэф]])), IF((G47="4/4"),((база!$I$5*Таблица1[[#This Row],[сумма]]*Таблица1[[#This Row],[коэф]])), IF(OR(G47="2/4",G47="3/4"),((база!$I$4*Таблица1[[#This Row],[сумма]]*Таблица1[[#This Row],[коэф]])), IF((G47="5/8"),((база!$J$6*Таблица1[[#This Row],[сумма]]*Таблица1[[#This Row],[коэф]])), IF((G47="4/8"),((база!$J$5*Таблица1[[#This Row],[сумма]]*Таблица1[[#This Row],[коэф]])), IF(OR(G47="3/8",G47="2/8"),((база!$J$4*Таблица1[[#This Row],[сумма]]*Таблица1[[#This Row],[коэф]])))))))))))))), (IF((G47="5/24"),((база!$M$6*Таблица1[[#This Row],[сумма]]*Таблица1[[#This Row],[коэф]])), IF(OR(G47="4/24",G47="3/24"),((база!$M$5*Таблица1[[#This Row],[сумма]]*Таблица1[[#This Row],[коэф]])), IF((G47="5/16"),((база!$L$6*Таблица1[[#This Row],[сумма]]*Таблица1[[#This Row],[коэф]])), IF(OR(G47="4/16",G47="3/16"),((база!$L$5*Таблица1[[#This Row],[сумма]]*Таблица1[[#This Row],[коэф]])), IF(OR(G47="2/4",G47="3/4",G47="4/4"),((база!$I$5*Таблица1[[#This Row],[сумма]]*Таблица1[[#This Row],[коэф]])), IF((G47="5/8"),((база!$J$6*Таблица1[[#This Row],[сумма]]*Таблица1[[#This Row],[коэф]])), IF(OR(G47="4/8",G47="3/8",G47="2/8"),((база!$J$5*Таблица1[[#This Row],[сумма]]*Таблица1[[#This Row],[коэф]]))))))))))) -> 8124.48 | AP47: =IF(AR47<=3,(IF((G47="5/24"),((база!$M$6*2*Таблица1[[#This Row],[Столбец1]]*Таблица1[[#This Row],[коэф]])), IF((G47="4/24"),((база!$M$5*2*Таблица1[[#This Row],[Столбец1]]*Таблица1[[#This Row],[коэф]])), IF((G47="3/24"),((база!$M$4*2*Таблица1[[#This Row],[Столбец1]]*Таблица1[[#This Row],[коэф]])), IF((G47="5/16"),((база!$L$6*2*Таблица1[[#This Row],[Столбец1]]*Таблица1[[#This Row],[коэф]])), IF((G47="4/16"),((база!$L$5*2*Таблица1[[#This Row],[Столбец1]]*Таблица1[[#This Row],[коэф]])), IF((G47="3/16"),((база!$L$4*2*Таблица1[[#This Row],[Столбец1]]*Таблица1[[#This Row],[коэф]])), IF((G47="4/4"),((база!$I$5*2*Таблица1[[#This Row],[Столбец1]]*Таблица1[[#This Row],[коэф]])), IF(OR(G47="2/4",G47="3/4"),((база!$I$4*2*Таблица1[[#This Row],[Столбец1]]*Таблица1[[#This Row],[коэф]])), IF((G47="5/8"),((база!$J$6*2*Таблица1[[#This Row],[Столбец1]]*Таблица1[[#This Row],[коэф]])), IF((G47="4/8"),((база!$J$5*2*Таблица1[[#This Row],[Столбец1]]*Таблица1[[#This Row],[коэф]])), IF(OR(G47="3/8",G47="2/8"),((база!$J$4*2*Таблица1[[#This Row],[Столбец1]]*Таблица1[[#This Row],[коэф]])))))))))))))), (IF((G47="5/24"),((база!$M$6*2*Таблица1[[#This Row],[Столбец1]]*Таблица1[[#This Row],[коэф]])), IF(OR(G47="4/24",G47="3/24"),((база!$M$5*2*Таблица1[[#This Row],[Столбец1]]*Таблица1[[#This Row],[коэф]])), IF((G47="5/16"),((база!$L$6*2*Таблица1[[#This Row],[Столбец1]]*Таблица1[[#This Row],[коэф]])), IF(OR(G47="4/16",G47="3/16"),((база!$L$5*2*Таблица1[[#This Row],[Столбец1]]*Таблица1[[#This Row],[коэф]])), IF(OR(G47="2/4",G47="3/4",G47="4/4"),((база!$I$5*2*Таблица1[[#This Row],[Столбец1]]*Таблица1[[#This Row],[коэф]])), IF((G47="5/8"),((база!$J$6*2*Таблица1[[#This Row],[Столбец1]]*Таблица1[[#This Row],[коэф]])), IF(OR(G47="4/8",G47="3/8",G47="2/8"),((база!$J$5*2*Таблица1[[#This Row],[Столбец1]]*Таблица1[[#This Row],[коэф]]))))))))))) -> 0 | AQ47: =IFERROR(INDEX(база!T:T, MATCH(F47,база!Q:Q,0)),"") -> 0 | AR47: =IFERROR(INDEX(база!D:D, MATCH(F47,база!B:B,0)),"") -> 3
A48: =A47 -> декабрь | B48: 2023 | C48: БО-01 | D48: 4-24 | E48: 1 | F48: Еработник3 | G48: 3/16 | X48: 7.2 | Y48: 7.2 | Z48: 7.2 | AA48: 7.2 | AD48: 7.2 | AE48: 7.2 | AF48: 7.2 | AG48: 7.2 | AJ48: 7.2 | AK48: 7.2 | AM48: =IF(AQ48=1,SUM(H48:I48,L48:O48,R48:U48,X48:AA48,AD48:AG48,AI48:AK48), IF(AQ48=2,SUM(H48:K48,N48:Q48,T48:W48,Z48:AC48,AF48:AI48), IF(AQ48=3,SUM(J48:M48,P48:S48,V48:Y48,AB48:AE48,AH48:AK48),SUM(Таблица1[[#This Row],[1]:[31]])-Таблица1[[#This Row],[Столбец1]]))) -> 72 | AN48: =IF(AQ48=1,SUM(J48:K48,P48:Q48,V48:W48,AB48:AC48,AH48:AI48), IF(AQ48=2,SUM(L48:M48,R48:S48,X48:Y48,AD48:AE48), IF(AQ48=3,SUM(H48:I48,N48:O48,T48:U48,Z48:AA48,AF48:AG48), SUM(IFERROR(WEEKDAY($H$2:$AL$2,2)>5,)*H48:AL48)))) -> 0 | AO48: =IF(AR48<=3,(IF((G48="5/24"),((база!$M$6*Таблица1[[#This Row],[сумма]]*Таблица1[[#This Row],[коэф]])), IF((G48="4/24"),((база!$M$5*Таблица1[[#This Row],[сумма]]*Таблица1[[#This Row],[коэф]])), IF((G48="3/24"),((база!$M$4*Таблица1[[#This Row],[сумма]]*Таблица1[[#This Row],[коэф]])), IF((G48="5/16"),((база!$L$6*Таблица1[[#This Row],[сумма]]*Таблица1[[#This Row],[коэф]])), IF((G48="4/16"),((база!$L$5*Таблица1[[#This Row],[сумма]]*Таблица1[[#This Row],[коэф]])), IF((G48="3/16"),((база!$L$4*Таблица1[[#This Row],[сумма]]*Таблица1[[#This Row],[коэф]])), IF((G48="4/4"),((база!$I$5*Таблица1[[#This Row],[сумма]]*Таблица1[[#This Row],[коэф]])), IF(OR(G48="2/4",G48="3/4"),((база!$I$4*Таблица1[[#This Row],[сумма]]*Таблица1[[#This Row],[коэф]])), IF((G48="5/8"),((база!$J$6*Таблица1[[#This Row],[сумма]]*Таблица1[[#This Row],[коэф]])), IF((G48="4/8"),((база!$J$5*Таблица1[[#This Row],[сумма]]*Таблица1[[#This Row],[коэф]])), IF(OR(G48="3/8",G48="2/8"),((база!$J$4*Таблица1[[#This Row],[сумма]]*Таблица1[[#This Row],[коэф]])))))))))))))), (IF((G48="5/24"),((база!$M$6*Таблица1[[#This Row],[сумма]]*Таблица1[[#This Row],[коэф]])), IF(OR(G48="4/24",G48="3/24"),((база!$M$5*Таблица1[[#This Row],[сумма]]*Таблица1[[#This Row],[коэф]])), IF((G48="5/16"),((база!$L$6*Таблица1[[#This Row],[сумма]]*Таблица1[[#This Row],[коэф]])), IF(OR(G48="4/16",G48="3/16"),((база!$L$5*Таблица1[[#This Row],[сумма]]*Таблица1[[#This Row],[коэф]])), IF(OR(G48="2/4",G48="3/4",G48="4/4"),((база!$I$5*Таблица1[[#This Row],[сумма]]*Таблица1[[#This Row],[коэф]])), IF((G48="5/8"),((база!$J$6*Таблица1[[#This Row],[сумма]]*Таблица1[[#This Row],[коэф]])), IF(OR(G48="4/8",G48="3/8",G48="2/8"),((база!$J$5*Таблица1[[#This Row],[сумма]]*Таблица1[[#This Row],[коэф]]))))))))))) -> 10857.6 | AP48: =IF(AR48<=3,(IF((G48="5/24"),((база!$M$6*2*Таблица1[[#This Row],[Столбец1]]*Таблица1[[#This Row],[коэф]])), IF((G48="4/24"),((база!$M$5*2*Таблица1[[#This Row],[Столбец1]]*Таблица1[[#This Row],[коэф]])), IF((G48="3/24"),((база!$M$4*2*Таблица1[[#This Row],[Столбец1]]*Таблица1[[#This Row],[коэф]])), IF((G48="5/16"),((база!$L$6*2*Таблица1[[#This Row],[Столбец1]]*Таблица1[[#This Row],[коэф]])), IF((G48="4/16"),((база!$L$5*2*Таблица1[[#This Row],[Столбец1]]*Таблица1[[#This Row],[коэф]])), IF((G48="3/16"),((база!$L$4*2*Таблица1[[#This Row],[Столбец1]]*Таблица1[[#This Row],[коэф]])), IF((G48="4/4"),((база!$I$5*2*Таблица1[[#This Row],[Столбец1]]*Таблица1[[#This Row],[коэф]])), IF(OR(G48="2/4",G48="3/4"),((база!$I$4*2*Таблица1[[#This Row],[Столбец1]]*Таблица1[[#This Row],[коэф]])), IF((G48="5/8"),((база!$J$6*2*Таблица1[[#This Row],[Столбец1]]*Таблица1[[#This Row],[коэф]])), IF((G48="4/8"),((база!$J$5*2*Таблица1[[#This Row],[Столбец1]]*Таблица1[[#This Row],[коэф]])), IF(OR(G48="3/8",G48="2/8"),((база!$J$4*2*Таблица1[[#This Row],[Столбец1]]*Таблица1[[#This Row],[коэф]])))))))))))))), (IF((G48="5/24"),((база!$M$6*2*Таблица1[[#This Row],[Столбец1]]*Таблица1[[#This Row],[коэф]])), IF(OR(G48="4/24",G48="3/24"),((база!$M$5*2*Таблица1[[#This Row],[Столбец1]]*Таблица1[[#This Row],[коэф]])), IF((G48="5/16"),((база!$L$6*2*Таблица1[[#This Row],[Столбец1]]*Таблица1[[#This Row],[коэф]])), IF(OR(G48="4/16",G48="3/16"),((база!$L$5*2*Таблица1[[#This Row],[Столбец1]]*Таблица1[[#This Row],[коэф]])), IF(OR(G48="2/4",G48="3/4",G48="4/4"),((база!$I$5*2*Таблица1[[#This Row],[Столбец1]]*Таблица1[[#This Row],[коэф]])), IF((G48="5/8"),((база!$J$6*2*Таблица1[[#This Row],[Столбец1]]*Таблица1[[#This Row],[коэф]])), IF(OR(G48="4/8",G48="3/8",G48="2/8"),((база!$J$5*2*Таблица1[[#This Row],[Столбец1]]*Таблица1[[#This Row],[коэф]]))))))))))) -> 0 | AQ48: =IFERROR(INDEX(база!T:T, MATCH(F48,база!Q:Q,0)),"") -> 1 | AR48: =IFERROR(INDEX(база!D:D, MATCH(F48,база!B:B,0)),"") -> 3
A49: =A48 -> декабрь | B49: 2023 | C49: 7Б7 | D49: 26-23 | E49: 1 | F49: Зработник1 | G49: 3/16 | R49: 7.2 | S49: 7.2 | T49: 7 | V49: 7.2 | W49: 7.2 | X49: 7.2 | Y49: 7.2 | AM49: =IF(AQ49=1,SUM(H49:I49,L49:O49,R49:U49,X49:AA49,AD49:AG49,AI49:AK49), IF(AQ49=2,SUM(H49:K49,N49:Q49,T49:W49,Z49:AC49,AF49:AI49), IF(AQ49=3,SUM(J49:M49,P49:S49,V49:Y49,AB49:AE49,AH49:AK49),SUM(Таблица1[[#This Row],[1]:[31]])-Таблица1[[#This Row],[Столбец1]]))) -> 43.2 | AN49: =IF(AQ49=1,SUM(J49:K49,P49:Q49,V49:W49,AB49:AC49,AH49:AI49), IF(AQ49=2,SUM(L49:M49,R49:S49,X49:Y49,AD49:AE49), IF(AQ49=3,SUM(H49:I49,N49:O49,T49:U49,Z49:AA49,AF49:AG49), SUM(IFERROR(WEEKDAY($H$2:$AL$2,2)>5,)*H49:AL49)))) -> 7 | AO49: =IF(AR49<=3,(IF((G49="5/24"),((база!$M$6*Таблица1[[#This Row],[сумма]]*Таблица1[[#This Row],[коэф]])), IF((G49="4/24"),((база!$M$5*Таблица1[[#This Row],[сумма]]*Таблица1[[#This Row],[коэф]])), IF((G49="3/24"),((база!$M$4*Таблица1[[#This Row],[сумма]]*Таблица1[[#This Row],[коэф]])), IF((G49="5/16"),((база!$L$6*Таблица1[[#This Row],[сумма]]*Таблица1[[#This Row],[коэф]])), IF((G49="4/16"),((база!$L$5*Таблица1[[#This Row],[сумма]]*Таблица1[[#This Row],[коэф]])), IF((G49="3/16"),((база!$L$4*Таблица1[[#This Row],[сумма]]*Таблица1[[#This Row],[коэф]])), IF((G49="4/4"),((база!$I$5*Таблица1[[#This Row],[сумма]]*Таблица1[[#This Row],[коэф]])), IF(OR(G49="2/4",G49="3/4"),((база!$I$4*Таблица1[[#This Row],[сумма]]*Таблица1[[#This Row],[коэф]])), IF((G49="5/8"),((база!$J$6*Таблица1[[#This Row],[сумма]]*Таблица1[[#This Row],[коэф]])), IF((G49="4/8"),((база!$J$5*Таблица1[[#This Row],[сумма]]*Таблица1[[#This Row],[коэф]])), IF(OR(G49="3/8",G49="2/8"),((база!$J$4*Таблица1[[#This Row],[сумма]]*Таблица1[[#This Row],[коэф]])))))))))))))), (IF((G49="5/24"),((база!$M$6*Таблица1[[#This Row],[сумма]]*Таблица1[[#This Row],[коэф]])), IF(OR(G49="4/24",G49="3/24"),((база!$M$5*Таблица1[[#This Row],[сумма]]*Таблица1[[#This Row],[коэф]])), IF((G49="5/16"),((база!$L$6*Таблица1[[#This Row],[сумма]]*Таблица1[[#This Row],[коэф]])), IF(OR(G49="4/16",G49="3/16"),((база!$L$5*Таблица1[[#This Row],[сумма]]*Таблица1[[#This Row],[коэф]])), IF(OR(G49="2/4",G49="3/4",G49="4/4"),((база!$I$5*Таблица1[[#This Row],[сумма]]*Таблица1[[#This Row],[коэф]])), IF((G49="5/8"),((база!$J$6*Таблица1[[#This Row],[сумма]]*Таблица1[[#This Row],[коэф]])), IF(OR(G49="4/8",G49="3/8",G49="2/8"),((база!$J$5*Таблица1[[#This Row],[сумма]]*Таблица1[[#This Row],[коэф]]))))))))))) -> 6514.56 | AP49: =IF(AR49<=3,(IF((G49="5/24"),((база!$M$6*2*Таблица1[[#This Row],[Столбец1]]*Таблица1[[#This Row],[коэф]])), IF((G49="4/24"),((база!$M$5*2*Таблица1[[#This Row],[Столбец1]]*Таблица1[[#This Row],[коэф]])), IF((G49="3/24"),((база!$M$4*2*Таблица1[[#This Row],[Столбец1]]*Таблица1[[#This Row],[коэф]])), IF((G49="5/16"),((база!$L$6*2*Таблица1[[#This Row],[Столбец1]]*Таблица1[[#This Row],[коэф]])), IF((G49="4/16"),((база!$L$5*2*Таблица1[[#This Row],[Столбец1]]*Таблица1[[#This Row],[коэф]])), IF((G49="3/16"),((база!$L$4*2*Таблица1[[#This Row],[Столбец1]]*Таблица1[[#This Row],[коэф]])), IF((G49="4/4"),((база!$I$5*2*Таблица1[[#This Row],[Столбец1]]*Таблица1[[#This Row],[коэф]])), IF(OR(G49="2/4",G49="3/4"),((база!$I$4*2*Таблица1[[#This Row],[Столбец1]]*Таблица1[[#This Row],[коэф]])), IF((G49="5/8"),((база!$J$6*2*Таблица1[[#This Row],[Столбец1]]*Таблица1[[#This Row],[коэф]])), IF((G49="4/8"),((база!$J$5*2*Таблица1[[#This Row],[Столбец1]]*Таблица1[[#This Row],[коэф]])), IF(OR(G49="3/8",G49="2/8"),((база!$J$4*2*Таблица1[[#This Row],[Столбец1]]*Таблица1[[#This Row],[коэф]])))))))))))))), (IF((G49="5/24"),((база!$M$6*2*Таблица1[[#This Row],[Столбец1]]*Таблица1[[#This Row],[коэф]])), IF(OR(G49="4/24",G49="3/24"),((база!$M$5*2*Таблица1[[#This Row],[Столбец1]]*Таблица1[[#This Row],[коэф]])), IF((G49="5/16"),((база!$L$6*2*Таблица1[[#This Row],[Столбец1]]*Таблица1[[#This Row],[коэф]])), IF(OR(G49="4/16",G49="3/16"),((база!$L$5*2*Таблица1[[#This Row],[Столбец1]]*Таблица1[[#This Row],[коэф]])), IF(OR(G49="2/4",G49="3/4",G49="4/4"),((база!$I$5*2*Таблица1[[#This Row],[Столбец1]]*Таблица1[[#This Row],[коэф]])), IF((G49="5/8"),((база!$J$6*2*Таблица1[[#This Row],[Столбец1]]*Таблица1[[#This Row],[коэф]])), IF(OR(G49="4/8",G49="3/8",G49="2/8"),((база!$J$5*2*Таблица1[[#This Row],[Столбец1]]*Таблица1[[#This Row],[коэф]]))))))))))) -> 2111.2 | AQ49: =IFERROR(INDEX(база!T:T, MATCH(F49,база!Q:Q,0)),"") -> 3 | AR49: =IFERROR(INDEX(база!D:D, MATCH(F49,база!B:B,0)),"") -> 3
A50: декабрь | B50: 2023 | C50: БО-01дл | D50: 117-23 | E50: 1 | F50: Зработник1 | G50: 3/16 | Z50: 7 | AB50: 7.2 | AC50: 7.2 | AD50: 7.2 | AE50: 7.2 | AH50: 7.2 | AI50: 7.2 | AJ50: 7.2 | AK50: 4 | AM50: =IF(AQ50=1,SUM(H50:I50,L50:O50,R50:U50,X50:AA50,AD50:AG50,AI50:AK50), IF(AQ50=2,SUM(H50:K50,N50:Q50,T50:W50,Z50:AC50,AF50:AI50), IF(AQ50=3,SUM(J50:M50,P50:S50,V50:Y50,AB50:AE50,AH50:AK50),SUM(Таблица1[[#This Row],[1]:[31]])-Таблица1[[#This Row],[Столбец1]]))) -> 54.4 | AN50: =IF(AQ50=1,SUM(J50:K50,P50:Q50,V50:W50,AB50:AC50,AH50:AI50), IF(AQ50=2,SUM(L50:M50,R50:S50,X50:Y50,AD50:AE50), IF(AQ50=3,SUM(H50:I50,N50:O50,T50:U50,Z50:AA50,AF50:AG50), SUM(IFERROR(WEEKDAY($H$2:$AL$2,2)>5,)*H50:AL50)))) -> 7 | AO50: =IF(AR50<=3,(IF((G50="5/24"),((база!$M$6*Таблица1[[#This Row],[сумма]]*Таблица1[[#This Row],[коэф]])), IF((G50="4/24"),((база!$M$5*Таблица1[[#This Row],[сумма]]*Таблица1[[#This Row],[коэф]])), IF((G50="3/24"),((база!$M$4*Таблица1[[#This Row],[сумма]]*Таблица1[[#This Row],[коэф]])), IF((G50="5/16"),((база!$L$6*Таблица1[[#This Row],[сумма]]*Таблица1[[#This Row],[коэф]])), IF((G50="4/16"),((база!$L$5*Таблица1[[#This Row],[сумма]]*Таблица1[[#This Row],[коэф]])), IF((G50="3/16"),((база!$L$4*Таблица1[[#This Row],[сумма]]*Таблица1[[#This Row],[коэф]])), IF((G50="4/4"),((база!$I$5*Таблица1[[#This Row],[сумма]]*Таблица1[[#This Row],[коэф]])), IF(OR(G50="2/4",G50="3/4"),((база!$I$4*Таблица1[[#This Row],[сумма]]*Таблица1[[#This Row],[коэф]])), IF((G50="5/8"),((база!$J$6*Таблица1[[#This Row],[сумма]]*Таблица1[[#This Row],[коэф]])), IF((G50="4/8"),((база!$J$5*Таблица1[[#This Row],[сумма]]*Таблица1[[#This Row],[коэф]])), IF(OR(G50="3/8",G50="2/8"),((база!$J$4*Таблица1[[#This Row],[сумма]]*Таблица1[[#This Row],[коэф]])))))))))))))), (IF((G50="5/24"),((база!$M$6*Таблица1[[#This Row],[сумма]]*Таблица1[[#This Row],[коэф]])), IF(OR(G50="4/24",G50="3/24"),((база!$M$5*Таблица1[[#This Row],[сумма]]*Таблица1[[#This Row],[коэф]])), IF((G50="5/16"),((база!$L$6*Таблица1[[#This Row],[сумма]]*Таблица1[[#This Row],[коэф]])), IF(OR(G50="4/16",G50="3/16"),((база!$L$5*Таблица1[[#This Row],[сумма]]*Таблица1[[#This Row],[коэф]])), IF(OR(G50="2/4",G50="3/4",G50="4/4"),((база!$I$5*Таблица1[[#This Row],[сумма]]*Таблица1[[#This Row],[коэф]])), IF((G50="5/8"),((база!$J$6*Таблица1[[#This Row],[сумма]]*Таблица1[[#This Row],[коэф]])), IF(OR(G50="4/8",G50="3/8",G50="2/8"),((база!$J$5*Таблица1[[#This Row],[сумма]]*Таблица1[[#This Row],[коэф]]))))))))))) -> 8203.52 | AP50: =IF(AR50<=3,(IF((G50="5/24"),((база!$M$6*2*Таблица1[[#This Row],[Столбец1]]*Таблица1[[#This Row],[коэф]])), IF((G50="4/24"),((база!$M$5*2*Таблица1[[#This Row],[Столбец1]]*Таблица1[[#This Row],[коэф]])), IF((G50="3/24"),((база!$M$4*2*Таблица1[[#This Row],[Столбец1]]*Таблица1[[#This Row],[коэф]])), IF((G50="5/16"),((база!$L$6*2*Таблица1[[#This Row],[Столбец1]]*Таблица1[[#This Row],[коэф]])), IF((G50="4/16"),((база!$L$5*2*Таблица1[[#This Row],[Столбец1]]*Таблица1[[#This Row],[коэф]])), IF((G50="3/16"),((база!$L$4*2*Таблица1[[#This Row],[Столбец1]]*Таблица1[[#This Row],[коэф]])), IF((G50="4/4"),((база!$I$5*2*Таблица1[[#This Row],[Столбец1]]*Таблица1[[#This Row],[коэф]])), IF(OR(G50="2/4",G50="3/4"),((база!$I$4*2*Таблица1[[#This Row],[Столбец1]]*Таблица1[[#This Row],[коэф]])), IF((G50="5/8"),((база!$J$6*2*Таблица1[[#This Row],[Столбец1]]*Таблица1[[#This Row],[коэф]])), IF((G50="4/8"),((база!$J$5*2*Таблица1[[#This Row],[Столбец1]]*Таблица1[[#This Row],[коэф]])), IF(OR(G50="3/8",G50="2/8"),((база!$J$4*2*Таблица1[[#This Row],[Столбец1]]*Таблица1[[#This Row],[коэф]])))))))))))))), (IF((G50="5/24"),((база!$M$6*2*Таблица1[[#This Row],[Столбец1]]*Таблица1[[#This Row],[коэф]])), IF(OR(G50="4/24",G50="3/24"),((база!$M$5*2*Таблица1[[#This Row],[Столбец1]]*Таблица1[[#This Row],[коэф]])), IF((G50="5/16"),((база!$L$6*2*Таблица1[[#This Row],[Столбец1]]*Таблица1[[#This Row],[коэф]])), IF(OR(G50="4/16",G50="3/16"),((база!$L$5*2*Таблица1[[#This Row],[Столбец1]]*Таблица1[[#This Row],[коэф]])), IF(OR(G50="2/4",G50="3/4",G50="4/4"),((база!$I$5*2*Таблица1[[#This Row],[Столбец1]]*Таблица1[[#This Row],[коэф]])), IF((G50="5/8"),((база!$J$6*2*Таблица1[[#This Row],[Столбец1]]*Таблица1[[#This Row],[коэф]])), IF(OR(G50="4/8",G50="3/8",G50="2/8"),((база!$J$5*2*Таблица1[[#This Row],[Столбец1]]*Таблица1[[#This Row],[коэф]]))))))))))) -> 2111.2 | AQ50: =IFERROR(INDEX(база!T:T, MATCH(F50,база!Q:Q,0)),"") -> 3 | AR50: =IFERROR(INDEX(база!D:D, MATCH(F50,база!B:B,0)),"") -> 3
A51: декабрь | B51: 2023 | C51: 7Б7 | D51: 26-23 | E51: 1 | F51: Иработник1 | G51: 3/16 | R51: 7.2 | S51: 7.2 | T51: 7 | AM51: =IF(AQ51=1,SUM(H51:I51,L51:O51,R51:U51,X51:AA51,AD51:AG51,AI51:AK51), IF(AQ51=2,SUM(H51:K51,N51:Q51,T51:W51,Z51:AC51,AF51:AI51), IF(AQ51=3,SUM(J51:M51,P51:S51,V51:Y51,AB51:AE51,AH51:AK51),SUM(Таблица1[[#This Row],[1]:[31]])-Таблица1[[#This Row],[Столбец1]]))) -> 14.4 | AN51: =IF(AQ51=1,SUM(J51:K51,P51:Q51,V51:W51,AB51:AC51,AH51:AI51), IF(AQ51=2,SUM(L51:M51,R51:S51,X51:Y51,AD51:AE51), IF(AQ51=3,SUM(H51:I51,N51:O51,T51:U51,Z51:AA51,AF51:AG51), SUM(IFERROR(WEEKDAY($H$2:$AL$2,2)>5,)*H51:AL51)))) -> 7 | AO51: =IF(AR51<=3,(IF((G51="5/24"),((база!$M$6*Таблица1[[#This Row],[сумма]]*Таблица1[[#This Row],[коэф]])), IF((G51="4/24"),((база!$M$5*Таблица1[[#This Row],[сумма]]*Таблица1[[#This Row],[коэф]])), IF((G51="3/24"),((база!$M$4*Таблица1[[#This Row],[сумма]]*Таблица1[[#This Row],[коэф]])), IF((G51="5/16"),((база!$L$6*Таблица1[[#This Row],[сумма]]*Таблица1[[#This Row],[коэф]])), IF((G51="4/16"),((база!$L$5*Таблица1[[#This Row],[сумма]]*Таблица1[[#This Row],[коэф]])), IF((G51="3/16"),((база!$L$4*Таблица1[[#This Row],[сумма]]*Таблица1[[#This Row],[коэф]])), IF((G51="4/4"),((база!$I$5*Таблица1[[#This Row],[сумма]]*Таблица1[[#This Row],[коэф]])), IF(OR(G51="2/4",G51="3/4"),((база!$I$4*Таблица1[[#This Row],[сумма]]*Таблица1[[#This Row],[коэф]])), IF((G51="5/8"),((база!$J$6*Таблица1[[#This Row],[сумма]]*Таблица1[[#This Row],[коэф]])), IF((G51="4/8"),((база!$J$5*Таблица1[[#This Row],[сумма]]*Таблица1[[#This Row],[коэф]])), IF(OR(G51="3/8",G51="2/8"),((база!$J$4*Таблица1[[#This Row],[сумма]]*Таблица1[[#This Row],[коэф]])))))))))))))), (IF((G51="5/24"),((база!$M$6*Таблица1[[#This Row],[сумма]]*Таблица1[[#This Row],[коэф]])), IF(OR(G51="4/24",G51="3/24"),((база!$M$5*Таблица1[[#This Row],[сумма]]*Таблица1[[#This Row],[коэф]])), IF((G51="5/16"),((база!$L$6*Таблица1[[#This Row],[сумма]]*Таблица1[[#This Row],[коэф]])), IF(OR(G51="4/16",G51="3/16"),((база!$L$5*Таблица1[[#This Row],[сумма]]*Таблица1[[#This Row],[коэф]])), IF(OR(G51="2/4",G51="3/4",G51="4/4"),((база!$I$5*Таблица1[[#This Row],[сумма]]*Таблица1[[#This Row],[коэф]])), IF((G51="5/8"),((база!$J$6*Таблица1[[#This Row],[сумма]]*Таблица1[[#This Row],[коэф]])), IF(OR(G51="4/8",G51="3/8",G51="2/8"),((база!$J$5*Таблица1[[#This Row],[сумма]]*Таблица1[[#This Row],[коэф]]))))))))))) -> 2171.52 | AP51: =IF(AR51<=3,(IF((G51="5/24"),((база!$M$6*2*Таблица1[[#This Row],[Столбец1]]*Таблица1[[#This Row],[коэф]])), IF((G51="4/24"),((база!$M$5*2*Таблица1[[#This Row],[Столбец1]]*Таблица1[[#This Row],[коэф]])), IF((G51="3/24"),((база!$M$4*2*Таблица1[[#This Row],[Столбец1]]*Таблица1[[#This Row],[коэф]])), IF((G51="5/16"),((база!$L$6*2*Таблица1[[#This Row],[Столбец1]]*Таблица1[[#This Row],[коэф]])), IF((G51="4/16"),((база!$L$5*2*Таблица1[[#This Row],[Столбец1]]*Таблица1[[#This Row],[коэф]])), IF((G51="3/16"),((база!$L$4*2*Таблица1[[#This Row],[Столбец1]]*Таблица1[[#This Row],[коэф]])), IF((G51="4/4"),((база!$I$5*2*Таблица1[[#This Row],[Столбец1]]*Таблица1[[#This Row],[коэф]])), IF(OR(G51="2/4",G51="3/4"),((база!$I$4*2*Таблица1[[#This Row],[Столбец1]]*Таблица1[[#This Row],[коэф]])), IF((G51="5/8"),((база!$J$6*2*Таблица1[[#This Row],[Столбец1]]*Таблица1[[#This Row],[коэф]])), IF((G51="4/8"),((база!$J$5*2*Таблица1[[#This Row],[Столбец1]]*Таблица1[[#This Row],[коэф]])), IF(OR(G51="3/8",G51="2/8"),((база!$J$4*2*Таблица1[[#This Row],[Столбец1]]*Таблица1[[#This Row],[коэф]])))))))))))))), (IF((G51="5/24"),((база!$M$6*2*Таблица1[[#This Row],[Столбец1]]*Таблица1[[#This Row],[коэф]])), IF(OR(G51="4/24",G51="3/24"),((база!$M$5*2*Таблица1[[#This Row],[Столбец1]]*Таблица1[[#This Row],[коэф]])), IF((G51="5/16"),((база!$L$6*2*Таблица1[[#This Row],[Столбец1]]*Таблица1[[#This Row],[коэф]])), IF(OR(G51="4/16",G51="3/16"),((база!$L$5*2*Таблица1[[#This Row],[Столбец1]]*Таблица1[[#This Row],[коэф]])), IF(OR(G51="2/4",G51="3/4",G51="4/4"),((база!$I$5*2*Таблица1[[#This Row],[Столбец1]]*Таблица1[[#This Row],[коэф]])), IF((G51="5/8"),((база!$J$6*2*Таблица1[[#This Row],[Столбец1]]*Таблица1[[#This Row],[коэф]])), IF(OR(G51="4/8",G51="3/8",G51="2/8"),((база!$J$5*2*Таблица1[[#This Row],[Столбец1]]*Таблица1[[#This Row],[коэф]]))))))))))) -> 2111.2 | AQ51: =IFERROR(INDEX(база!T:T, MATCH(F51,база!Q:Q,0)),"") -> 3 | AR51: =IFERROR(INDEX(база!D:D, MATCH(F51,база!B:B,0)),"") -> 3
A52: декабрь | B52: 2023 | C52: БО-01 | D52: 4-24 | E52: 1 | F52: Иработник1 | G52: 3/16 | J52: 7.2 | L52: 7.2 | M52: 7.2 | N52: 7 | P52: 7.2 | Q52: 7.2 | AB52: 7.2 | AC52: 7.2 | AD52: 7.2 | AM52: =IF(AQ52=1,SUM(H52:I52,L52:O52,R52:U52,X52:AA52,AD52:AG52,AI52:AK52), IF(AQ52=2,SUM(H52:K52,N52:Q52,T52:W52,Z52:AC52,AF52:AI52), IF(AQ52=3,SUM(J52:M52,P52:S52,V52:Y52,AB52:AE52,AH52:AK52),SUM(Таблица1[[#This Row],[1]:[31]])-Таблица1[[#This Row],[Столбец1]]))) -> 57.6 | AN52: =IF(AQ52=1,SUM(J52:K52,P52:Q52,V52:W52,AB52:AC52,AH52:AI52), IF(AQ52=2,SUM(L52:M52,R52:S52,X52:Y52,AD52:AE52), IF(AQ52=3,SUM(H52:I52,N52:O52,T52:U52,Z52:AA52,AF52:AG52), SUM(IFERROR(WEEKDAY($H$2:$AL$2,2)>5,)*H52:AL52)))) -> 7 | AO52: =IF(AR52<=3,(IF((G52="5/24"),((база!$M$6*Таблица1[[#This Row],[сумма]]*Таблица1[[#This Row],[коэф]])), IF((G52="4/24"),((база!$M$5*Таблица1[[#This Row],[сумма]]*Таблица1[[#This Row],[коэф]])), IF((G52="3/24"),((база!$M$4*Таблица1[[#This Row],[сумма]]*Таблица1[[#This Row],[коэф]])), IF((G52="5/16"),((база!$L$6*Таблица1[[#This Row],[сумма]]*Таблица1[[#This Row],[коэф]])), IF((G52="4/16"),((база!$L$5*Таблица1[[#This Row],[сумма]]*Таблица1[[#This Row],[коэф]])), IF((G52="3/16"),((база!$L$4*Таблица1[[#This Row],[сумма]]*Таблица1[[#This Row],[коэф]])), IF((G52="4/4"),((база!$I$5*Таблица1[[#This Row],[сумма]]*Таблица1[[#This Row],[коэф]])), IF(OR(G52="2/4",G52="3/4"),((база!$I$4*Таблица1[[#This Row],[сумма]]*Таблица1[[#This Row],[коэф]])), IF((G52="5/8"),((база!$J$6*Таблица1[[#This Row],[сумма]]*Таблица1[[#This Row],[коэф]])), IF((G52="4/8"),((база!$J$5*Таблица1[[#This Row],[сумма]]*Таблица1[[#This Row],[коэф]])), IF(OR(G52="3/8",G52="2/8"),((база!$J$4*Таблица1[[#This Row],[сумма]]*Таблица1[[#This Row],[коэф]])))))))))))))), (IF((G52="5/24"),((база!$M$6*Таблица1[[#This Row],[сумма]]*Таблица1[[#This Row],[коэф]])), IF(OR(G52="4/24",G52="3/24"),((база!$M$5*Таблица1[[#This Row],[сумма]]*Таблица1[[#This Row],[коэф]])), IF((G52="5/16"),((база!$L$6*Таблица1[[#This Row],[сумма]]*Таблица1[[#This Row],[коэф]])), IF(OR(G52="4/16",G52="3/16"),((база!$L$5*Таблица1[[#This Row],[сумма]]*Таблица1[[#This Row],[коэф]])), IF(OR(G52="2/4",G52="3/4",G52="4/4"),((база!$I$5*Таблица1[[#This Row],[сумма]]*Таблица1[[#This Row],[коэф]])), IF((G52="5/8"),((база!$J$6*Таблица1[[#This Row],[сумма]]*Таблица1[[#This Row],[коэф]])), IF(OR(G52="4/8",G52="3/8",G52="2/8"),((база!$J$5*Таблица1[[#This Row],[сумма]]*Таблица1[[#This Row],[коэф]]))))))))))) -> 8686.08 | AP52: =IF(AR52<=3,(IF((G52="5/24"),((база!$M$6*2*Таблица1[[#This Row],[Столбец1]]*Таблица1[[#This Row],[коэф]])), IF((G52="4/24"),((база!$M$5*2*Таблица1[[#This Row],[Столбец1]]*Таблица1[[#This Row],[коэф]])), IF((G52="3/24"),((база!$M$4*2*Таблица1[[#This Row],[Столбец1]]*Таблица1[[#This Row],[коэф]])), IF((G52="5/16"),((база!$L$6*2*Таблица1[[#This Row],[Столбец1]]*Таблица1[[#This Row],[коэф]])), IF((G52="4/16"),((база!$L$5*2*Таблица1[[#This Row],[Столбец1]]*Таблица1[[#This Row],[коэф]])), IF((G52="3/16"),((база!$L$4*2*Таблица1[[#This Row],[Столбец1]]*Таблица1[[#This Row],[коэф]])), IF((G52="4/4"),((база!$I$5*2*Таблица1[[#This Row],[Столбец1]]*Таблица1[[#This Row],[коэф]])), IF(OR(G52="2/4",G52="3/4"),((база!$I$4*2*Таблица1[[#This Row],[Столбец1]]*Таблица1[[#This Row],[коэф]])), IF((G52="5/8"),((база!$J$6*2*Таблица1[[#This Row],[Столбец1]]*Таблица1[[#This Row],[коэф]])), IF((G52="4/8"),((база!$J$5*2*Таблица1[[#This Row],[Столбец1]]*Таблица1[[#This Row],[коэф]])), IF(OR(G52="3/8",G52="2/8"),((база!$J$4*2*Таблица1[[#This Row],[Столбец1]]*Таблица1[[#This Row],[коэф]])))))))))))))), (IF((G52="5/24"),((база!$M$6*2*Таблица1[[#This Row],[Столбец1]]*Таблица1[[#This Row],[коэф]])), IF(OR(G52="4/24",G52="3/24"),((база!$M$5*2*Таблица1[[#This Row],[Столбец1]]*Таблица1[[#This Row],[коэф]])), IF((G52="5/16"),((база!$L$6*2*Таблица1[[#This Row],[Столбец1]]*Таблица1[[#This Row],[коэф]])), IF(OR(G52="4/16",G52="3/16"),((база!$L$5*2*Таблица1[[#This Row],[Столбец1]]*Таблица1[[#This Row],[коэф]])), IF(OR(G52="2/4",G52="3/4",G52="4/4"),((база!$I$5*2*Таблица1[[#This Row],[Столбец1]]*Таблица1[[#This Row],[коэф]])), IF((G52="5/8"),((база!$J$6*2*Таблица1[[#This Row],[Столбец1]]*Таблица1[[#This Row],[коэф]])), IF(OR(G52="4/8",G52="3/8",G52="2/8"),((база!$J$5*2*Таблица1[[#This Row],[Столбец1]]*Таблица1[[#This Row],[коэф]]))))))))))) -> 2111.2 | AQ52: =IFERROR(INDEX(база!T:T, MATCH(F52,база!Q:Q,0)),"") -> 3 | AR52: =IFERROR(INDEX(база!D:D, MATCH(F52,база!B:B,0)),"") -> 3
A53: декабрь | B53: 2023 | C53: 1В5 | D53: 24-23 | E53: 1 | F53: Иработник2 | G53: 3/16 | Y53: 7.2 | AA53: 7.2 | AB53: 7.2 | AC53: 7.2 | AF53: 7.2 | AG53: 7.2 | AH53: 7.2 | AJ53: 7.2 | AM53: =IF(AQ53=1,SUM(H53:I53,L53:O53,R53:U53,X53:AA53,AD53:AG53,AI53:AK53), IF(AQ53=2,SUM(H53:K53,N53:Q53,T53:W53,Z53:AC53,AF53:AI53), IF(AQ53=3,SUM(J53:M53,P53:S53,V53:Y53,AB53:AE53,AH53:AK53),SUM(Таблица1[[#This Row],[1]:[31]])-Таблица1[[#This Row],[Столбец1]]))) -> 57.6 | AN53: =IF(AQ53=1,SUM(J53:K53,P53:Q53,V53:W53,AB53:AC53,AH53:AI53), IF(AQ53=2,SUM(L53:M53,R53:S53,X53:Y53,AD53:AE53), IF(AQ53=3,SUM(H53:I53,N53:O53,T53:U53,Z53:AA53,AF53:AG53), SUM(IFERROR(WEEKDAY($H$2:$AL$2,2)>5,)*H53:AL53)))) -> 0 | AO53: =IF(AR53<=3,(IF((G53="5/24"),((база!$M$6*Таблица1[[#This Row],[сумма]]*Таблица1[[#This Row],[коэф]])), IF((G53="4/24"),((база!$M$5*Таблица1[[#This Row],[сумма]]*Таблица1[[#This Row],[коэф]])), IF((G53="3/24"),((база!$M$4*Таблица1[[#This Row],[сумма]]*Таблица1[[#This Row],[коэф]])), IF((G53="5/16"),((база!$L$6*Таблица1[[#This Row],[сумма]]*Таблица1[[#This Row],[коэф]])), IF((G53="4/16"),((база!$L$5*Таблица1[[#This Row],[сумма]]*Таблица1[[#This Row],[коэф]])), IF((G53="3/16"),((база!$L$4*Таблица1[[#This Row],[сумма]]*Таблица1[[#This Row],[коэф]])), IF((G53="4/4"),((база!$I$5*Таблица1[[#This Row],[сумма]]*Таблица1[[#This Row],[коэф]])), IF(OR(G53="2/4",G53="3/4"),((база!$I$4*Таблица1[[#This Row],[сумма]]*Таблица1[[#This Row],[коэф]])), IF((G53="5/8"),((база!$J$6*Таблица1[[#This Row],[сумма]]*Таблица1[[#This Row],[коэф]])), IF((G53="4/8"),((база!$J$5*Таблица1[[#This Row],[сумма]]*Таблица1[[#This Row],[коэф]])), IF(OR(G53="3/8",G53="2/8"),((база!$J$4*Таблица1[[#This Row],[сумма]]*Таблица1[[#This Row],[коэф]])))))))))))))), (IF((G53="5/24"),((база!$M$6*Таблица1[[#This Row],[сумма]]*Таблица1[[#This Row],[коэф]])), IF(OR(G53="4/24",G53="3/24"),((база!$M$5*Таблица1[[#This Row],[сумма]]*Таблица1[[#This Row],[коэф]])), IF((G53="5/16"),((база!$L$6*Таблица1[[#This Row],[сумма]]*Таблица1[[#This Row],[коэф]])), IF(OR(G53="4/16",G53="3/16"),((база!$L$5*Таблица1[[#This Row],[сумма]]*Таблица1[[#This Row],[коэф]])), IF(OR(G53="2/4",G53="3/4",G53="4/4"),((база!$I$5*Таблица1[[#This Row],[сумма]]*Таблица1[[#This Row],[коэф]])), IF((G53="5/8"),((база!$J$6*Таблица1[[#This Row],[сумма]]*Таблица1[[#This Row],[коэф]])), IF(OR(G53="4/8",G53="3/8",G53="2/8"),((база!$J$5*Таблица1[[#This Row],[сумма]]*Таблица1[[#This Row],[коэф]]))))))))))) -> 8686.08 | AP53: =IF(AR53<=3,(IF((G53="5/24"),((база!$M$6*2*Таблица1[[#This Row],[Столбец1]]*Таблица1[[#This Row],[коэф]])), IF((G53="4/24"),((база!$M$5*2*Таблица1[[#This Row],[Столбец1]]*Таблица1[[#This Row],[коэф]])), IF((G53="3/24"),((база!$M$4*2*Таблица1[[#This Row],[Столбец1]]*Таблица1[[#This Row],[коэф]])), IF((G53="5/16"),((база!$L$6*2*Таблица1[[#This Row],[Столбец1]]*Таблица1[[#This Row],[коэф]])), IF((G53="4/16"),((база!$L$5*2*Таблица1[[#This Row],[Столбец1]]*Таблица1[[#This Row],[коэф]])), IF((G53="3/16"),((база!$L$4*2*Таблица1[[#This Row],[Столбец1]]*Таблица1[[#This Row],[коэф]])), IF((G53="4/4"),((база!$I$5*2*Таблица1[[#This Row],[Столбец1]]*Таблица1[[#This Row],[коэф]])), IF(OR(G53="2/4",G53="3/4"),((база!$I$4*2*Таблица1[[#This Row],[Столбец1]]*Таблица1[[#This Row],[коэф]])), IF((G53="5/8"),((база!$J$6*2*Таблица1[[#This Row],[Столбец1]]*Таблица1[[#This Row],[коэф]])), IF((G53="4/8"),((база!$J$5*2*Таблица1[[#This Row],[Столбец1]]*Таблица1[[#This Row],[коэф]])), IF(OR(G53="3/8",G53="2/8"),((база!$J$4*2*Таблица1[[#This Row],[Столбец1]]*Таблица1[[#This Row],[коэф]])))))))))))))), (IF((G53="5/24"),((база!$M$6*2*Таблица1[[#This Row],[Столбец1]]*Таблица1[[#This Row],[коэф]])), IF(OR(G53="4/24",G53="3/24"),((база!$M$5*2*Таблица1[[#This Row],[Столбец1]]*Таблица1[[#This Row],[коэф]])), IF((G53="5/16"),((база!$L$6*2*Таблица1[[#This Row],[Столбец1]]*Таблица1[[#This Row],[коэф]])), IF(OR(G53="4/16",G53="3/16"),((база!$L$5*2*Таблица1[[#This Row],[Столбец1]]*Таблица1[[#This Row],[коэф]])), IF(OR(G53="2/4",G53="3/4",G53="4/4"),((база!$I$5*2*Таблица1[[#This Row],[Столбец1]]*Таблица1[[#This Row],[коэф]])), IF((G53="5/8"),((база!$J$6*2*Таблица1[[#This Row],[Столбец1]]*Таблица1[[#This Row],[коэф]])), IF(OR(G53="4/8",G53="3/8",G53="2/8"),((база!$J$5*2*Таблица1[[#This Row],[Столбец1]]*Таблица1[[#This Row],[коэф]]))))))))))) -> 0 | AQ53: =IFERROR(INDEX(база!T:T, MATCH(F53,база!Q:Q,0)),"") -> 0 | AR53: =IFERROR(INDEX(база!D:D, MATCH(F53,база!B:B,0)),"") -> 3
A54: декабрь | B54: 2023 | C54: В5 | D54: 12-23 | E54: 1 | F54: Кработник3 | G54: 3/16 | Y54: 7.2 | Z54: 7.2 | AA54: 7.2 | AB54: 7.2 | AC54: 7.2 | AF54: 7.2 | AG54: 7.2 | AH54: 7.2 | AI54: 7.2 | AJ54: 7.2 | AM54: =IF(AQ54=1,SUM(H54:I54,L54:O54,R54:U54,X54:AA54,AD54:AG54,AI54:AK54), IF(AQ54=2,SUM(H54:K54,N54:Q54,T54:W54,Z54:AC54,AF54:AI54), IF(AQ54=3,SUM(J54:M54,P54:S54,V54:Y54,AB54:AE54,AH54:AK54),SUM(Таблица1[[#This Row],[1]:[31]])-Таблица1[[#This Row],[Столбец1]]))) -> 72 | AN54: =IF(AQ54=1,SUM(J54:K54,P54:Q54,V54:W54,AB54:AC54,AH54:AI54), IF(AQ54=2,SUM(L54:M54,R54:S54,X54:Y54,AD54:AE54), IF(AQ54=3,SUM(H54:I54,N54:O54,T54:U54,Z54:AA54,AF54:AG54), SUM(IFERROR(WEEKDAY($H$2:$AL$2,2)>5,)*H54:AL54)))) -> 0 | AO54: =IF(AR54<=3,(IF((G54="5/24"),((база!$M$6*Таблица1[[#This Row],[сумма]]*Таблица1[[#This Row],[коэф]])), IF((G54="4/24"),((база!$M$5*Таблица1[[#This Row],[сумма]]*Таблица1[[#This Row],[коэф]])), IF((G54="3/24"),((база!$M$4*Таблица1[[#This Row],[сумма]]*Таблица1[[#This Row],[коэф]])), IF((G54="5/16"),((база!$L$6*Таблица1[[#This Row],[сумма]]*Таблица1[[#This Row],[коэф]])), IF((G54="4/16"),((база!$L$5*Таблица1[[#This Row],[сумма]]*Таблица1[[#This Row],[коэф]])), IF((G54="3/16"),((база!$L$4*Таблица1[[#This Row],[сумма]]*Таблица1[[#This Row],[коэф]])), IF((G54="4/4"),((база!$I$5*Таблица1[[#This Row],[сумма]]*Таблица1[[#This Row],[коэф]])), IF(OR(G54="2/4",G54="3/4"),((база!$I$4*Таблица1[[#This Row],[сумма]]*Таблица1[[#This Row],[коэф]])), IF((G54="5/8"),((база!$J$6*Таблица1[[#This Row],[сумма]]*Таблица1[[#This Row],[коэф]])), IF((G54="4/8"),((база!$J$5*Таблица1[[#This Row],[сумма]]*Таблица1[[#This Row],[коэф]])), IF(OR(G54="3/8",G54="2/8"),((база!$J$4*Таблица1[[#This Row],[сумма]]*Таблица1[[#This Row],[коэф]])))))))))))))), (IF((G54="5/24"),((база!$M$6*Таблица1[[#This Row],[сумма]]*Таблица1[[#This Row],[коэф]])), IF(OR(G54="4/24",G54="3/24"),((база!$M$5*Таблица1[[#This Row],[сумма]]*Таблица1[[#This Row],[коэф]])), IF((G54="5/16"),((база!$L$6*Таблица1[[#This Row],[сумма]]*Таблица1[[#This Row],[коэф]])), IF(OR(G54="4/16",G54="3/16"),((база!$L$5*Таблица1[[#This Row],[сумма]]*Таблица1[[#This Row],[коэф]])), IF(OR(G54="2/4",G54="3/4",G54="4/4"),((база!$I$5*Таблица1[[#This Row],[сумма]]*Таблица1[[#This Row],[коэф]])), IF((G54="5/8"),((база!$J$6*Таблица1[[#This Row],[сумма]]*Таблица1[[#This Row],[коэф]])), IF(OR(G54="4/8",G54="3/8",G54="2/8"),((база!$J$5*Таблица1[[#This Row],[сумма]]*Таблица1[[#This Row],[коэф]]))))))))))) -> 10857.6 | AP54: =IF(AR54<=3,(IF((G54="5/24"),((база!$M$6*2*Таблица1[[#This Row],[Столбец1]]*Таблица1[[#This Row],[коэф]])), IF((G54="4/24"),((база!$M$5*2*Таблица1[[#This Row],[Столбец1]]*Таблица1[[#This Row],[коэф]])), IF((G54="3/24"),((база!$M$4*2*Таблица1[[#This Row],[Столбец1]]*Таблица1[[#This Row],[коэф]])), IF((G54="5/16"),((база!$L$6*2*Таблица1[[#This Row],[Столбец1]]*Таблица1[[#This Row],[коэф]])), IF((G54="4/16"),((база!$L$5*2*Таблица1[[#This Row],[Столбец1]]*Таблица1[[#This Row],[коэф]])), IF((G54="3/16"),((база!$L$4*2*Таблица1[[#This Row],[Столбец1]]*Таблица1[[#This Row],[коэф]])), IF((G54="4/4"),((база!$I$5*2*Таблица1[[#This Row],[Столбец1]]*Таблица1[[#This Row],[коэф]])), IF(OR(G54="2/4",G54="3/4"),((база!$I$4*2*Таблица1[[#This Row],[Столбец1]]*Таблица1[[#This Row],[коэф]])), IF((G54="5/8"),((база!$J$6*2*Таблица1[[#This Row],[Столбец1]]*Таблица1[[#This Row],[коэф]])), IF((G54="4/8"),((база!$J$5*2*Таблица1[[#This Row],[Столбец1]]*Таблица1[[#This Row],[коэф]])), IF(OR(G54="3/8",G54="2/8"),((база!$J$4*2*Таблица1[[#This Row],[Столбец1]]*Таблица1[[#This Row],[коэф]])))))))))))))), (IF((G54="5/24"),((база!$M$6*2*Таблица1[[#This Row],[Столбец1]]*Таблица1[[#This Row],[коэф]])), IF(OR(G54="4/24",G54="3/24"),((база!$M$5*2*Таблица1[[#This Row],[Столбец1]]*Таблица1[[#This Row],[коэф]])), IF((G54="5/16"),((база!$L$6*2*Таблица1[[#This Row],[Столбец1]]*Таблица1[[#This Row],[коэф]])), IF(OR(G54="4/16",G54="3/16"),((база!$L$5*2*Таблица1[[#This Row],[Столбец1]]*Таблица1[[#This Row],[коэф]])), IF(OR(G54="2/4",G54="3/4",G54="4/4"),((база!$I$5*2*Таблица1[[#This Row],[Столбец1]]*Таблица1[[#This Row],[коэф]])), IF((G54="5/8"),((база!$J$6*2*Таблица1[[#This Row],[Столбец1]]*Таблица1[[#This Row],[коэф]])), IF(OR(G54="4/8",G54="3/8",G54="2/8"),((база!$J$5*2*Таблица1[[#This Row],[Столбец1]]*Таблица1[[#This Row],[коэф]]))))))))))) -> 0 | AQ54: =IFERROR(INDEX(база!T:T, MATCH(F54,база!Q:Q,0)),"") -> 0 | AR54: =IFERROR(INDEX(база!D:D, MATCH(F54,база!B:B,0)),"") -> 3
A55: декабрь | B55: 2023 | C55: БО-01дл | D55: 116-23 | E55: 1 | F55: Бработник1 | G55: 3/16 | R55: 7.2 | S55: 7.2 | T55: 7.2 | U55: 7.2 | V55: 7.2 | AM55: =IF(AQ55=1,SUM(H55:I55,L55:O55,R55:U55,X55:AA55,AD55:AG55,AI55:AK55), IF(AQ55=2,SUM(H55:K55,N55:Q55,T55:W55,Z55:AC55,AF55:AI55), IF(AQ55=3,SUM(J55:M55,P55:S55,V55:Y55,AB55:AE55,AH55:AK55),SUM(Таблица1[[#This Row],[1]:[31]])-Таблица1[[#This Row],[Столбец1]]))) -> 36 | AN55: =IF(AQ55=1,SUM(J55:K55,P55:Q55,V55:W55,AB55:AC55,AH55:AI55), IF(AQ55=2,SUM(L55:M55,R55:S55,X55:Y55,AD55:AE55), IF(AQ55=3,SUM(H55:I55,N55:O55,T55:U55,Z55:AA55,AF55:AG55), SUM(IFERROR(WEEKDAY($H$2:$AL$2,2)>5,)*H55:AL55)))) -> 0 | AO55: =IF(AR55<=3,(IF((G55="5/24"),((база!$M$6*Таблица1[[#This Row],[сумма]]*Таблица1[[#This Row],[коэф]])), IF((G55="4/24"),((база!$M$5*Таблица1[[#This Row],[сумма]]*Таблица1[[#This Row],[коэф]])), IF((G55="3/24"),((база!$M$4*Таблица1[[#This Row],[сумма]]*Таблица1[[#This Row],[коэф]])), IF((G55="5/16"),((база!$L$6*Таблица1[[#This Row],[сумма]]*Таблица1[[#This Row],[коэф]])), IF((G55="4/16"),((база!$L$5*Таблица1[[#This Row],[сумма]]*Таблица1[[#This Row],[коэф]])), IF((G55="3/16"),((база!$L$4*Таблица1[[#This Row],[сумма]]*Таблица1[[#This Row],[коэф]])), IF((G55="4/4"),((база!$I$5*Таблица1[[#This Row],[сумма]]*Таблица1[[#This Row],[коэф]])), IF(OR(G55="2/4",G55="3/4"),((база!$I$4*Таблица1[[#This Row],[сумма]]*Таблица1[[#This Row],[коэф]])), IF((G55="5/8"),((база!$J$6*Таблица1[[#This Row],[сумма]]*Таблица1[[#This Row],[коэф]])), IF((G55="4/8"),((база!$J$5*Таблица1[[#This Row],[сумма]]*Таблица1[[#This Row],[коэф]])), IF(OR(G55="3/8",G55="2/8"),((база!$J$4*Таблица1[[#This Row],[сумма]]*Таблица1[[#This Row],[коэф]])))))))))))))), (IF((G55="5/24"),((база!$M$6*Таблица1[[#This Row],[сумма]]*Таблица1[[#This Row],[коэф]])), IF(OR(G55="4/24",G55="3/24"),((база!$M$5*Таблица1[[#This Row],[сумма]]*Таблица1[[#This Row],[коэф]])), IF((G55="5/16"),((база!$L$6*Таблица1[[#This Row],[сумма]]*Таблица1[[#This Row],[коэф]])), IF(OR(G55="4/16",G55="3/16"),((база!$L$5*Таблица1[[#This Row],[сумма]]*Таблица1[[#This Row],[коэф]])), IF(OR(G55="2/4",G55="3/4",G55="4/4"),((база!$I$5*Таблица1[[#This Row],[сумма]]*Таблица1[[#This Row],[коэф]])), IF((G55="5/8"),((база!$J$6*Таблица1[[#This Row],[сумма]]*Таблица1[[#This Row],[коэф]])), IF(OR(G55="4/8",G55="3/8",G55="2/8"),((база!$J$5*Таблица1[[#This Row],[сумма]]*Таблица1[[#This Row],[коэф]]))))))))))) -> 5428.8 | AP55: =IF(AR55<=3,(IF((G55="5/24"),((база!$M$6*2*Таблица1[[#This Row],[Столбец1]]*Таблица1[[#This Row],[коэф]])), IF((G55="4/24"),((база!$M$5*2*Таблица1[[#This Row],[Столбец1]]*Таблица1[[#This Row],[коэф]])), IF((G55="3/24"),((база!$M$4*2*Таблица1[[#This Row],[Столбец1]]*Таблица1[[#This Row],[коэф]])), IF((G55="5/16"),((база!$L$6*2*Таблица1[[#This Row],[Столбец1]]*Таблица1[[#This Row],[коэф]])), IF((G55="4/16"),((база!$L$5*2*Таблица1[[#This Row],[Столбец1]]*Таблица1[[#This Row],[коэф]])), IF((G55="3/16"),((база!$L$4*2*Таблица1[[#This Row],[Столбец1]]*Таблица1[[#This Row],[коэф]])), IF((G55="4/4"),((база!$I$5*2*Таблица1[[#This Row],[Столбец1]]*Таблица1[[#This Row],[коэф]])), IF(OR(G55="2/4",G55="3/4"),((база!$I$4*2*Таблица1[[#This Row],[Столбец1]]*Таблица1[[#This Row],[коэф]])), IF((G55="5/8"),((база!$J$6*2*Таблица1[[#This Row],[Столбец1]]*Таблица1[[#This Row],[коэф]])), IF((G55="4/8"),((база!$J$5*2*Таблица1[[#This Row],[Столбец1]]*Таблица1[[#This Row],[коэф]])), IF(OR(G55="3/8",G55="2/8"),((база!$J$4*2*Таблица1[[#This Row],[Столбец1]]*Таблица1[[#This Row],[коэф]])))))))))))))), (IF((G55="5/24"),((база!$M$6*2*Таблица1[[#This Row],[Столбец1]]*Таблица1[[#This Row],[коэф]])), IF(OR(G55="4/24",G55="3/24"),((база!$M$5*2*Таблица1[[#This Row],[Столбец1]]*Таблица1[[#This Row],[коэф]])), IF((G55="5/16"),((база!$L$6*2*Таблица1[[#This Row],[Столбец1]]*Таблица1[[#This Row],[коэф]])), IF(OR(G55="4/16",G55="3/16"),((база!$L$5*2*Таблица1[[#This Row],[Столбец1]]*Таблица1[[#This Row],[коэф]])), IF(OR(G55="2/4",G55="3/4",G55="4/4"),((база!$I$5*2*Таблица1[[#This Row],[Столбец1]]*Таблица1[[#This Row],[коэф]])), IF((G55="5/8"),((база!$J$6*2*Таблица1[[#This Row],[Столбец1]]*Таблица1[[#This Row],[коэф]])), IF(OR(G55="4/8",G55="3/8",G55="2/8"),((база!$J$5*2*Таблица1[[#This Row],[Столбец1]]*Таблица1[[#This Row],[коэф]]))))))))))) -> 0 | AQ55: =IFERROR(INDEX(база!T:T, MATCH(F55,база!Q:Q,0)),"") -> 0 | AR55: =IFERROR(INDEX(база!D:D, MATCH(F55,база!B:B,0)),"") -> 3
A56: декабрь | B56: 2023 | C56: БО-01 | D56: 4-24 | E56: 1 | F56: Лработник1 | G56: 3/16 | P56: 4.2 | Q56: 7.2 | AM56: =IF(AQ56=1,SUM(H56:I56,L56:O56,R56:U56,X56:AA56,AD56:AG56,AI56:AK56), IF(AQ56=2,SUM(H56:K56,N56:Q56,T56:W56,Z56:AC56,AF56:AI56), IF(AQ56=3,SUM(J56:M56,P56:S56,V56:Y56,AB56:AE56,AH56:AK56),SUM(Таблица1[[#This Row],[1]:[31]])-Таблица1[[#This Row],[Столбец1]]))) -> 11.4 | AN56: =IF(AQ56=1,SUM(J56:K56,P56:Q56,V56:W56,AB56:AC56,AH56:AI56), IF(AQ56=2,SUM(L56:M56,R56:S56,X56:Y56,AD56:AE56), IF(AQ56=3,SUM(H56:I56,N56:O56,T56:U56,Z56:AA56,AF56:AG56), SUM(IFERROR(WEEKDAY($H$2:$AL$2,2)>5,)*H56:AL56)))) -> 0 | AO56: =IF(AR56<=3,(IF((G56="5/24"),((база!$M$6*Таблица1[[#This Row],[сумма]]*Таблица1[[#This Row],[коэф]])), IF((G56="4/24"),((база!$M$5*Таблица1[[#This Row],[сумма]]*Таблица1[[#This Row],[коэф]])), IF((G56="3/24"),((база!$M$4*Таблица1[[#This Row],[сумма]]*Таблица1[[#This Row],[коэф]])), IF((G56="5/16"),((база!$L$6*Таблица1[[#This Row],[сумма]]*Таблица1[[#This Row],[коэф]])), IF((G56="4/16"),((база!$L$5*Таблица1[[#This Row],[сумма]]*Таблица1[[#This Row],[коэф]])), IF((G56="3/16"),((база!$L$4*Таблица1[[#This Row],[сумма]]*Таблица1[[#This Row],[коэф]])), IF((G56="4/4"),((база!$I$5*Таблица1[[#This Row],[сумма]]*Таблица1[[#This Row],[коэф]])), IF(OR(G56="2/4",G56="3/4"),((база!$I$4*Таблица1[[#This Row],[сумма]]*Таблица1[[#This Row],[коэф]])), IF((G56="5/8"),((база!$J$6*Таблица1[[#This Row],[сумма]]*Таблица1[[#This Row],[коэф]])), IF((G56="4/8"),((база!$J$5*Таблица1[[#This Row],[сумма]]*Таблица1[[#This Row],[коэф]])), IF(OR(G56="3/8",G56="2/8"),((база!$J$4*Таблица1[[#This Row],[сумма]]*Таблица1[[#This Row],[коэф]])))))))))))))), (IF((G56="5/24"),((база!$M$6*Таблица1[[#This Row],[сумма]]*Таблица1[[#This Row],[коэф]])), IF(OR(G56="4/24",G56="3/24"),((база!$M$5*Таблица1[[#This Row],[сумма]]*Таблица1[[#This Row],[коэф]])), IF((G56="5/16"),((база!$L$6*Таблица1[[#This Row],[сумма]]*Таблица1[[#This Row],[коэф]])), IF(OR(G56="4/16",G56="3/16"),((база!$L$5*Таблица1[[#This Row],[сумма]]*Таблица1[[#This Row],[коэф]])), IF(OR(G56="2/4",G56="3/4",G56="4/4"),((база!$I$5*Таблица1[[#This Row],[сумма]]*Таблица1[[#This Row],[коэф]])), IF((G56="5/8"),((база!$J$6*Таблица1[[#This Row],[сумма]]*Таблица1[[#This Row],[коэф]])), IF(OR(G56="4/8",G56="3/8",G56="2/8"),((база!$J$5*Таблица1[[#This Row],[сумма]]*Таблица1[[#This Row],[коэф]]))))))))))) -> 1719.12 | AP56: =IF(AR56<=3,(IF((G56="5/24"),((база!$M$6*2*Таблица1[[#This Row],[Столбец1]]*Таблица1[[#This Row],[коэф]])), IF((G56="4/24"),((база!$M$5*2*Таблица1[[#This Row],[Столбец1]]*Таблица1[[#This Row],[коэф]])), IF((G56="3/24"),((база!$M$4*2*Таблица1[[#This Row],[Столбец1]]*Таблица1[[#This Row],[коэф]])), IF((G56="5/16"),((база!$L$6*2*Таблица1[[#This Row],[Столбец1]]*Таблица1[[#This Row],[коэф]])), IF((G56="4/16"),((база!$L$5*2*Таблица1[[#This Row],[Столбец1]]*Таблица1[[#This Row],[коэф]])), IF((G56="3/16"),((база!$L$4*2*Таблица1[[#This Row],[Столбец1]]*Таблица1[[#This Row],[коэф]])), IF((G56="4/4"),((база!$I$5*2*Таблица1[[#This Row],[Столбец1]]*Таблица1[[#This Row],[коэф]])), IF(OR(G56="2/4",G56="3/4"),((база!$I$4*2*Таблица1[[#This Row],[Столбец1]]*Таблица1[[#This Row],[коэф]])), IF((G56="5/8"),((база!$J$6*2*Таблица1[[#This Row],[Столбец1]]*Таблица1[[#This Row],[коэф]])), IF((G56="4/8"),((база!$J$5*2*Таблица1[[#This Row],[Столбец1]]*Таблица1[[#This Row],[коэф]])), IF(OR(G56="3/8",G56="2/8"),((база!$J$4*2*Таблица1[[#This Row],[Столбец1]]*Таблица1[[#This Row],[коэф]])))))))))))))), (IF((G56="5/24"),((база!$M$6*2*Таблица1[[#This Row],[Столбец1]]*Таблица1[[#This Row],[коэф]])), IF(OR(G56="4/24",G56="3/24"),((база!$M$5*2*Таблица1[[#This Row],[Столбец1]]*Таблица1[[#This Row],[коэф]])), IF((G56="5/16"),((база!$L$6*2*Таблица1[[#This Row],[Столбец1]]*Таблица1[[#This Row],[коэф]])), IF(OR(G56="4/16",G56="3/16"),((база!$L$5*2*Таблица1[[#This Row],[Столбец1]]*Таблица1[[#This Row],[коэф]])), IF(OR(G56="2/4",G56="3/4",G56="4/4"),((база!$I$5*2*Таблица1[[#This Row],[Столбец1]]*Таблица1[[#This Row],[коэф]])), IF((G56="5/8"),((база!$J$6*2*Таблица1[[#This Row],[Столбец1]]*Таблица1[[#This Row],[коэф]])), IF(OR(G56="4/8",G56="3/8",G56="2/8"),((база!$J$5*2*Таблица1[[#This Row],[Столбец1]]*Таблица1[[#This Row],[коэф]]))))))))))) -> 0 | AQ56: =IFERROR(INDEX(база!T:T, MATCH(F56,база!Q:Q,0)),"") -> 2 | AR56: =IFERROR(INDEX(база!D:D, MATCH(F56,база!B:B,0)),"") -> 3
A57: декабрь | B57: 2023 | C57: 7Б7 | D57: 26-23 | E57: 1 | F57: Лработник1 | G57: 3/16 | T57: 7.2 | U57: 7.2 | V57: 7.2 | W57: 7.2 | AM57: =IF(AQ57=1,SUM(H57:I57,L57:O57,R57:U57,X57:AA57,AD57:AG57,AI57:AK57), IF(AQ57=2,SUM(H57:K57,N57:Q57,T57:W57,Z57:AC57,AF57:AI57), IF(AQ57=3,SUM(J57:M57,P57:S57,V57:Y57,AB57:AE57,AH57:AK57),SUM(Таблица1[[#This Row],[1]:[31]])-Таблица1[[#This Row],[Столбец1]]))) -> 28.8 | AN57: =IF(AQ57=1,SUM(J57:K57,P57:Q57,V57:W57,AB57:AC57,AH57:AI57), IF(AQ57=2,SUM(L57:M57,R57:S57,X57:Y57,AD57:AE57), IF(AQ57=3,SUM(H57:I57,N57:O57,T57:U57,Z57:AA57,AF57:AG57), SUM(IFERROR(WEEKDAY($H$2:$AL$2,2)>5,)*H57:AL57)))) -> 0 | AO57: =IF(AR57<=3,(IF((G57="5/24"),((база!$M$6*Таблица1[[#This Row],[сумма]]*Таблица1[[#This Row],[коэф]])), IF((G57="4/24"),((база!$M$5*Таблица1[[#This Row],[сумма]]*Таблица1[[#This Row],[коэф]])), IF((G57="3/24"),((база!$M$4*Таблица1[[#This Row],[сумма]]*Таблица1[[#This Row],[коэф]])), IF((G57="5/16"),((база!$L$6*Таблица1[[#This Row],[сумма]]*Таблица1[[#This Row],[коэф]])), IF((G57="4/16"),((база!$L$5*Таблица1[[#This Row],[сумма]]*Таблица1[[#This Row],[коэф]])), IF((G57="3/16"),((база!$L$4*Таблица1[[#This Row],[сумма]]*Таблица1[[#This Row],[коэф]])), IF((G57="4/4"),((база!$I$5*Таблица1[[#This Row],[сумма]]*Таблица1[[#This Row],[коэф]])), IF(OR(G57="2/4",G57="3/4"),((база!$I$4*Таблица1[[#This Row],[сумма]]*Таблица1[[#This Row],[коэф]])), IF((G57="5/8"),((база!$J$6*Таблица1[[#This Row],[сумма]]*Таблица1[[#This Row],[коэф]])), IF((G57="4/8"),((база!$J$5*Таблица1[[#This Row],[сумма]]*Таблица1[[#This Row],[коэф]])), IF(OR(G57="3/8",G57="2/8"),((база!$J$4*Таблица1[[#This Row],[сумма]]*Таблица1[[#This Row],[коэф]])))))))))))))), (IF((G57="5/24"),((база!$M$6*Таблица1[[#This Row],[сумма]]*Таблица1[[#This Row],[коэф]])), IF(OR(G57="4/24",G57="3/24"),((база!$M$5*Таблица1[[#This Row],[сумма]]*Таблица1[[#This Row],[коэф]])), IF((G57="5/16"),((база!$L$6*Таблица1[[#This Row],[сумма]]*Таблица1[[#This Row],[коэф]])), IF(OR(G57="4/16",G57="3/16"),((база!$L$5*Таблица1[[#This Row],[сумма]]*Таблица1[[#This Row],[коэф]])), IF(OR(G57="2/4",G57="3/4",G57="4/4"),((база!$I$5*Таблица1[[#This Row],[сумма]]*Таблица1[[#This Row],[коэф]])), IF((G57="5/8"),((база!$J$6*Таблица1[[#This Row],[сумма]]*Таблица1[[#This Row],[коэф]])), IF(OR(G57="4/8",G57="3/8",G57="2/8"),((база!$J$5*Таблица1[[#This Row],[сумма]]*Таблица1[[#This Row],[коэф]]))))))))))) -> 4343.04 | AP57: =IF(AR57<=3,(IF((G57="5/24"),((база!$M$6*2*Таблица1[[#This Row],[Столбец1]]*Таблица1[[#This Row],[коэф]])), IF((G57="4/24"),((база!$M$5*2*Таблица1[[#This Row],[Столбец1]]*Таблица1[[#This Row],[коэф]])), IF((G57="3/24"),((база!$M$4*2*Таблица1[[#This Row],[Столбец1]]*Таблица1[[#This Row],[коэф]])), IF((G57="5/16"),((база!$L$6*2*Таблица1[[#This Row],[Столбец1]]*Таблица1[[#This Row],[коэф]])), IF((G57="4/16"),((база!$L$5*2*Таблица1[[#This Row],[Столбец1]]*Таблица1[[#This Row],[коэф]])), IF((G57="3/16"),((база!$L$4*2*Таблица1[[#This Row],[Столбец1]]*Таблица1[[#This Row],[коэф]])), IF((G57="4/4"),((база!$I$5*2*Таблица1[[#This Row],[Столбец1]]*Таблица1[[#This Row],[коэф]])), IF(OR(G57="2/4",G57="3/4"),((база!$I$4*2*Таблица1[[#This Row],[Столбец1]]*Таблица1[[#This Row],[коэф]])), IF((G57="5/8"),((база!$J$6*2*Таблица1[[#This Row],[Столбец1]]*Таблица1[[#This Row],[коэф]])), IF((G57="4/8"),((база!$J$5*2*Таблица1[[#This Row],[Столбец1]]*Таблица1[[#This Row],[коэф]])), IF(OR(G57="3/8",G57="2/8"),((база!$J$4*2*Таблица1[[#This Row],[Столбец1]]*Таблица1[[#This Row],[коэф]])))))))))))))), (IF((G57="5/24"),((база!$M$6*2*Таблица1[[#This Row],[Столбец1]]*Таблица1[[#This Row],[коэф]])), IF(OR(G57="4/24",G57="3/24"),((база!$M$5*2*Таблица1[[#This Row],[Столбец1]]*Таблица1[[#This Row],[коэф]])), IF((G57="5/16"),((база!$L$6*2*Таблица1[[#This Row],[Столбец1]]*Таблица1[[#This Row],[коэф]])), IF(OR(G57="4/16",G57="3/16"),((база!$L$5*2*Таблица1[[#This Row],[Столбец1]]*Таблица1[[#This Row],[коэф]])), IF(OR(G57="2/4",G57="3/4",G57="4/4"),((база!$I$5*2*Таблица1[[#This Row],[Столбец1]]*Таблица1[[#This Row],[коэф]])), IF((G57="5/8"),((база!$J$6*2*Таблица1[[#This Row],[Столбец1]]*Таблица1[[#This Row],[коэф]])), IF(OR(G57="4/8",G57="3/8",G57="2/8"),((база!$J$5*2*Таблица1[[#This Row],[Столбец1]]*Таблица1[[#This Row],[коэф]]))))))))))) -> 0 | AQ57: =IFERROR(INDEX(база!T:T, MATCH(F57,база!Q:Q,0)),"") -> 2 | AR57: =IFERROR(INDEX(база!D:D, MATCH(F57,база!B:B,0)),"") -> 3
A58: декабрь | B58: 2023 | C58: 1В5 | D58: 24-23 | E58: 1 | F58: Лработник1 | G58: 3/16 | R58: 7 | Z58: 7.2 | AA58: 7.2 | AB58: 7.2 | AC58: 7.2 | AM58: =IF(AQ58=1,SUM(H58:I58,L58:O58,R58:U58,X58:AA58,AD58:AG58,AI58:AK58), IF(AQ58=2,SUM(H58:K58,N58:Q58,T58:W58,Z58:AC58,AF58:AI58), IF(AQ58=3,SUM(J58:M58,P58:S58,V58:Y58,AB58:AE58,AH58:AK58),SUM(Таблица1[[#This Row],[1]:[31]])-Таблица1[[#This Row],[Столбец1]]))) -> 28.8 | AN58: =IF(AQ58=1,SUM(J58:K58,P58:Q58,V58:W58,AB58:AC58,AH58:AI58), IF(AQ58=2,SUM(L58:M58,R58:S58,X58:Y58,AD58:AE58), IF(AQ58=3,SUM(H58:I58,N58:O58,T58:U58,Z58:AA58,AF58:AG58), SUM(IFERROR(WEEKDAY($H$2:$AL$2,2)>5,)*H58:AL58)))) -> 7 | AO58: =IF(AR58<=3,(IF((G58="5/24"),((база!$M$6*Таблица1[[#This Row],[сумма]]*Таблица1[[#This Row],[коэф]])), IF((G58="4/24"),((база!$M$5*Таблица1[[#This Row],[сумма]]*Таблица1[[#This Row],[коэф]])), IF((G58="3/24"),((база!$M$4*Таблица1[[#This Row],[сумма]]*Таблица1[[#This Row],[коэф]])), IF((G58="5/16"),((база!$L$6*Таблица1[[#This Row],[сумма]]*Таблица1[[#This Row],[коэф]])), IF((G58="4/16"),((база!$L$5*Таблица1[[#This Row],[сумма]]*Таблица1[[#This Row],[коэф]])), IF((G58="3/16"),((база!$L$4*Таблица1[[#This Row],[сумма]]*Таблица1[[#This Row],[коэф]])), IF((G58="4/4"),((база!$I$5*Таблица1[[#This Row],[сумма]]*Таблица1[[#This Row],[коэф]])), IF(OR(G58="2/4",G58="3/4"),((база!$I$4*Таблица1[[#This Row],[сумма]]*Таблица1[[#This Row],[коэф]])), IF((G58="5/8"),((база!$J$6*Таблица1[[#This Row],[сумма]]*Таблица1[[#This Row],[коэф]])), IF((G58="4/8"),((база!$J$5*Таблица1[[#This Row],[сумма]]*Таблица1[[#This Row],[коэф]])), IF(OR(G58="3/8",G58="2/8"),((база!$J$4*Таблица1[[#This Row],[сумма]]*Таблица1[[#This Row],[коэф]])))))))))))))), (IF((G58="5/24"),((база!$M$6*Таблица1[[#This Row],[сумма]]*Таблица1[[#This Row],[коэф]])), IF(OR(G58="4/24",G58="3/24"),((база!$M$5*Таблица1[[#This Row],[сумма]]*Таблица1[[#This Row],[коэф]])), IF((G58="5/16"),((база!$L$6*Таблица1[[#This Row],[сумма]]*Таблица1[[#This Row],[коэф]])), IF(OR(G58="4/16",G58="3/16"),((база!$L$5*Таблица1[[#This Row],[сумма]]*Таблица1[[#This Row],[коэф]])), IF(OR(G58="2/4",G58="3/4",G58="4/4"),((база!$I$5*Таблица1[[#This Row],[сумма]]*Таблица1[[#This Row],[коэф]])), IF((G58="5/8"),((база!$J$6*Таблица1[[#This Row],[сумма]]*Таблица1[[#This Row],[коэф]])), IF(OR(G58="4/8",G58="3/8",G58="2/8"),((база!$J$5*Таблица1[[#This Row],[сумма]]*Таблица1[[#This Row],[коэф]]))))))))))) -> 4343.04 | AP58: =IF(AR58<=3,(IF((G58="5/24"),((база!$M$6*2*Таблица1[[#This Row],[Столбец1]]*Таблица1[[#This Row],[коэф]])), IF((G58="4/24"),((база!$M$5*2*Таблица1[[#This Row],[Столбец1]]*Таблица1[[#This Row],[коэф]])), IF((G58="3/24"),((база!$M$4*2*Таблица1[[#This Row],[Столбец1]]*Таблица1[[#This Row],[коэф]])), IF((G58="5/16"),((база!$L$6*2*Таблица1[[#This Row],[Столбец1]]*Таблица1[[#This Row],[коэф]])), IF((G58="4/16"),((база!$L$5*2*Таблица1[[#This Row],[Столбец1]]*Таблица1[[#This Row],[коэф]])), IF((G58="3/16"),((база!$L$4*2*Таблица1[[#This Row],[Столбец1]]*Таблица1[[#This Row],[коэф]])), IF((G58="4/4"),((база!$I$5*2*Таблица1[[#This Row],[Столбец1]]*Таблица1[[#This Row],[коэф]])), IF(OR(G58="2/4",G58="3/4"),((база!$I$4*2*Таблица1[[#This Row],[Столбец1]]*Таблица1[[#This Row],[коэф]])), IF((G58="5/8"),((база!$J$6*2*Таблица1[[#This Row],[Столбец1]]*Таблица1[[#This Row],[коэф]])), IF((G58="4/8"),((база!$J$5*2*Таблица1[[#This Row],[Столбец1]]*Таблица1[[#This Row],[коэф]])), IF(OR(G58="3/8",G58="2/8"),((база!$J$4*2*Таблица1[[#This Row],[Столбец1]]*Таблица1[[#This Row],[коэф]])))))))))))))), (IF((G58="5/24"),((база!$M$6*2*Таблица1[[#This Row],[Столбец1]]*Таблица1[[#This Row],[коэф]])), IF(OR(G58="4/24",G58="3/24"),((база!$M$5*2*Таблица1[[#This Row],[Столбец1]]*Таблица1[[#This Row],[коэф]])), IF((G58="5/16"),((база!$L$6*2*Таблица1[[#This Row],[Столбец1]]*Таблица1[[#This Row],[коэф]])), IF(OR(G58="4/16",G58="3/16"),((база!$L$5*2*Таблица1[[#This Row],[Столбец1]]*Таблица1[[#This Row],[коэф]])), IF(OR(G58="2/4",G58="3/4",G58="4/4"),((база!$I$5*2*Таблица1[[#This Row],[Столбец1]]*Таблица1[[#This Row],[коэф]])), IF((G58="5/8"),((база!$J$6*2*Таблица1[[#This Row],[Столбец1]]*Таблица1[[#This Row],[коэф]])), IF(OR(G58="4/8",G58="3/8",G58="2/8"),((база!$J$5*2*Таблица1[[#This Row],[Столбец1]]*Таблица1[[#This Row],[коэф]]))))))))))) -> 2111.2 | AQ58: =IFERROR(INDEX(база!T:T, MATCH(F58,база!Q:Q,0)),"") -> 2 | AR58: =IFERROR(INDEX(база!D:D, MATCH(F58,база!B:B,0)),"") -> 3
A59: декабрь | B59: 2023 | C59: БО-01дл | D59: 117-23 | E59: 1 | F59: Лработник1 | G59: 3/16 | AF59: 7.2 | AG59: 7.2 | AH59: 7.2 | AI59: 7.2 | AM59: =IF(AQ59=1,SUM(H59:I59,L59:O59,R59:U59,X59:AA59,AD59:AG59,AI59:AK59), IF(AQ59=2,SUM(H59:K59,N59:Q59,T59:W59,Z59:AC59,AF59:AI59), IF(AQ59=3,SUM(J59:M59,P59:S59,V59:Y59,AB59:AE59,AH59:AK59),SUM(Таблица1[[#This Row],[1]:[31]])-Таблица1[[#This Row],[Столбец1]]))) -> 28.8 | AN59: =IF(AQ59=1,SUM(J59:K59,P59:Q59,V59:W59,AB59:AC59,AH59:AI59), IF(AQ59=2,SUM(L59:M59,R59:S59,X59:Y59,AD59:AE59), IF(AQ59=3,SUM(H59:I59,N59:O59,T59:U59,Z59:AA59,AF59:AG59), SUM(IFERROR(WEEKDAY($H$2:$AL$2,2)>5,)*H59:AL59)))) -> 0 | AO59: =IF(AR59<=3,(IF((G59="5/24"),((база!$M$6*Таблица1[[#This Row],[сумма]]*Таблица1[[#This Row],[коэф]])), IF((G59="4/24"),((база!$M$5*Таблица1[[#This Row],[сумма]]*Таблица1[[#This Row],[коэф]])), IF((G59="3/24"),((база!$M$4*Таблица1[[#This Row],[сумма]]*Таблица1[[#This Row],[коэф]])), IF((G59="5/16"),((база!$L$6*Таблица1[[#This Row],[сумма]]*Таблица1[[#This Row],[коэф]])), IF((G59="4/16"),((база!$L$5*Таблица1[[#This Row],[сумма]]*Таблица1[[#This Row],[коэф]])), IF((G59="3/16"),((база!$L$4*Таблица1[[#This Row],[сумма]]*Таблица1[[#This Row],[коэф]])), IF((G59="4/4"),((база!$I$5*Таблица1[[#This Row],[сумма]]*Таблица1[[#This Row],[коэф]])), IF(OR(G59="2/4",G59="3/4"),((база!$I$4*Таблица1[[#This Row],[сумма]]*Таблица1[[#This Row],[коэф]])), IF((G59="5/8"),((база!$J$6*Таблица1[[#This Row],[сумма]]*Таблица1[[#This Row],[коэф]])), IF((G59="4/8"),((база!$J$5*Таблица1[[#This Row],[сумма]]*Таблица1[[#This Row],[коэф]])), IF(OR(G59="3/8",G59="2/8"),((база!$J$4*Таблица1[[#This Row],[сумма]]*Таблица1[[#This Row],[коэф]])))))))))))))), (IF((G59="5/24"),((база!$M$6*Таблица1[[#This Row],[сумма]]*Таблица1[[#This Row],[коэф]])), IF(OR(G59="4/24",G59="3/24"),((база!$M$5*Таблица1[[#This Row],[сумма]]*Таблица1[[#This Row],[коэф]])), IF((G59="5/16"),((база!$L$6*Таблица1[[#This Row],[сумма]]*Таблица1[[#This Row],[коэф]])), IF(OR(G59="4/16",G59="3/16"),((база!$L$5*Таблица1[[#This Row],[сумма]]*Таблица1[[#This Row],[коэф]])), IF(OR(G59="2/4",G59="3/4",G59="4/4"),((база!$I$5*Таблица1[[#This Row],[сумма]]*Таблица1[[#This Row],[коэф]])), IF((G59="5/8"),((база!$J$6*Таблица1[[#This Row],[сумма]]*Таблица1[[#This Row],[коэф]])), IF(OR(G59="4/8",G59="3/8",G59="2/8"),((база!$J$5*Таблица1[[#This Row],[сумма]]*Таблица1[[#This Row],[коэф]]))))))))))) -> 4343.04 | AP59: =IF(AR59<=3,(IF((G59="5/24"),((база!$M$6*2*Таблица1[[#This Row],[Столбец1]]*Таблица1[[#This Row],[коэф]])), IF((G59="4/24"),((база!$M$5*2*Таблица1[[#This Row],[Столбец1]]*Таблица1[[#This Row],[коэф]])), IF((G59="3/24"),((база!$M$4*2*Таблица1[[#This Row],[Столбец1]]*Таблица1[[#This Row],[коэф]])), IF((G59="5/16"),((база!$L$6*2*Таблица1[[#This Row],[Столбец1]]*Таблица1[[#This Row],[коэф]])), IF((G59="4/16"),((база!$L$5*2*Таблица1[[#This Row],[Столбец1]]*Таблица1[[#This Row],[коэф]])), IF((G59="3/16"),((база!$L$4*2*Таблица1[[#This Row],[Столбец1]]*Таблица1[[#This Row],[коэф]])), IF((G59="4/4"),((база!$I$5*2*Таблица1[[#This Row],[Столбец1]]*Таблица1[[#This Row],[коэф]])), IF(OR(G59="2/4",G59="3/4"),((база!$I$4*2*Таблица1[[#This Row],[Столбец1]]*Таблица1[[#This Row],[коэф]])), IF((G59="5/8"),((база!$J$6*2*Таблица1[[#This Row],[Столбец1]]*Таблица1[[#This Row],[коэф]])), IF((G59="4/8"),((база!$J$5*2*Таблица1[[#This Row],[Столбец1]]*Таблица1[[#This Row],[коэф]])), IF(OR(G59="3/8",G59="2/8"),((база!$J$4*2*Таблица1[[#This Row],[Столбец1]]*Таблица1[[#This Row],[коэф]])))))))))))))), (IF((G59="5/24"),((база!$M$6*2*Таблица1[[#This Row],[Столбец1]]*Таблица1[[#This Row],[коэф]])), IF(OR(G59="4/24",G59="3/24"),((база!$M$5*2*Таблица1[[#This Row],[Столбец1]]*Таблица1[[#This Row],[коэф]])), IF((G59="5/16"),((база!$L$6*2*Таблица1[[#This Row],[Столбец1]]*Таблица1[[#This Row],[коэф]])), IF(OR(G59="4/16",G59="3/16"),((база!$L$5*2*Таблица1[[#This Row],[Столбец1]]*Таблица1[[#This Row],[коэф]])), IF(OR(G59="2/4",G59="3/4",G59="4/4"),((база!$I$5*2*Таблица1[[#This Row],[Столбец1]]*Таблица1[[#This Row],[коэф]])), IF((G59="5/8"),((база!$J$6*2*Таблица1[[#This Row],[Столбец1]]*Таблица1[[#This Row],[коэф]])), IF(OR(G59="4/8",G59="3/8",G59="2/8"),((база!$J$5*2*Таблица1[[#This Row],[Столбец1]]*Таблица1[[#This Row],[коэф]]))))))))))) -> 0 | AQ59: =IFERROR(INDEX(база!T:T, MATCH(F59,база!Q:Q,0)),"") -> 2 | AR59: =IFERROR(INDEX(база!D:D, MATCH(F59,база!B:B,0)),"") -> 3
A60: декабрь | B60: 2023 | C60: БО-01 | D60: 5-24 | E60: 1 | F60: Мработник1 | G60: 3/16 | AM60: =IF(AQ60=1,SUM(H60:I60,L60:O60,R60:U60,X60:AA60,AD60:AG60,AI60:AK60), IF(AQ60=2,SUM(H60:K60,N60:Q60,T60:W60,Z60:AC60,AF60:AI60), IF(AQ60=3,SUM(J60:M60,P60:S60,V60:Y60,AB60:AE60,AH60:AK60),SUM(Таблица1[[#This Row],[1]:[31]])-Таблица1[[#This Row],[Столбец1]]))) -> 0 | AN60: =IF(AQ60=1,SUM(J60:K60,P60:Q60,V60:W60,AB60:AC60,AH60:AI60), IF(AQ60=2,SUM(L60:M60,R60:S60,X60:Y60,AD60:AE60), IF(AQ60=3,SUM(H60:I60,N60:O60,T60:U60,Z60:AA60,AF60:AG60), SUM(IFERROR(WEEKDAY($H$2:$AL$2,2)>5,)*H60:AL60)))) -> 0 | AO60: =IF(AR60<=3,(IF((G60="5/24"),((база!$M$6*Таблица1[[#This Row],[сумма]]*Таблица1[[#This Row],[коэф]])), IF((G60="4/24"),((база!$M$5*Таблица1[[#This Row],[сумма]]*Таблица1[[#This Row],[коэф]])), IF((G60="3/24"),((база!$M$4*Таблица1[[#This Row],[сумма]]*Таблица1[[#This Row],[коэф]])), IF((G60="5/16"),((база!$L$6*Таблица1[[#This Row],[сумма]]*Таблица1[[#This Row],[коэф]])), IF((G60="4/16"),((база!$L$5*Таблица1[[#This Row],[сумма]]*Таблица1[[#This Row],[коэф]])), IF((G60="3/16"),((база!$L$4*Таблица1[[#This Row],[сумма]]*Таблица1[[#This Row],[коэф]])), IF((G60="4/4"),((база!$I$5*Таблица1[[#This Row],[сумма]]*Таблица1[[#This Row],[коэф]])), IF(OR(G60="2/4",G60="3/4"),((база!$I$4*Таблица1[[#This Row],[сумма]]*Таблица1[[#This Row],[коэф]])), IF((G60="5/8"),((база!$J$6*Таблица1[[#This Row],[сумма]]*Таблица1[[#This Row],[коэф]])), IF((G60="4/8"),((база!$J$5*Таблица1[[#This Row],[сумма]]*Таблица1[[#This Row],[коэф]])), IF(OR(G60="3/8",G60="2/8"),((база!$J$4*Таблица1[[#This Row],[сумма]]*Таблица1[[#This Row],[коэф]])))))))))))))), (IF((G60="5/24"),((база!$M$6*Таблица1[[#This Row],[сумма]]*Таблица1[[#This Row],[коэф]])), IF(OR(G60="4/24",G60="3/24"),((база!$M$5*Таблица1[[#This Row],[сумма]]*Таблица1[[#This Row],[коэф]])), IF((G60="5/16"),((база!$L$6*Таблица1[[#This Row],[сумма]]*Таблица1[[#This Row],[коэф]])), IF(OR(G60="4/16",G60="3/16"),((база!$L$5*Таблица1[[#This Row],[сумма]]*Таблица1[[#This Row],[коэф]])), IF(OR(G60="2/4",G60="3/4",G60="4/4"),((база!$I$5*Таблица1[[#This Row],[сумма]]*Таблица1[[#This Row],[коэф]])), IF((G60="5/8"),((база!$J$6*Таблица1[[#This Row],[сумма]]*Таблица1[[#This Row],[коэф]])), IF(OR(G60="4/8",G60="3/8",G60="2/8"),((база!$J$5*Таблица1[[#This Row],[сумма]]*Таблица1[[#This Row],[коэф]]))))))))))) -> 0 | AP60: =IF(AR60<=3,(IF((G60="5/24"),((база!$M$6*2*Таблица1[[#This Row],[Столбец1]]*Таблица1[[#This Row],[коэф]])), IF((G60="4/24"),((база!$M$5*2*Таблица1[[#This Row],[Столбец1]]*Таблица1[[#This Row],[коэф]])), IF((G60="3/24"),((база!$M$4*2*Таблица1[[#This Row],[Столбец1]]*Таблица1[[#This Row],[коэф]])), IF((G60="5/16"),((база!$L$6*2*Таблица1[[#This Row],[Столбец1]]*Таблица1[[#This Row],[коэф]])), IF((G60="4/16"),((база!$L$5*2*Таблица1[[#This Row],[Столбец1]]*Таблица1[[#This Row],[коэф]])), IF((G60="3/16"),((база!$L$4*2*Таблица1[[#This Row],[Столбец1]]*Таблица1[[#This Row],[коэф]])), IF((G60="4/4"),((база!$I$5*2*Таблица1[[#This Row],[Столбец1]]*Таблица1[[#This Row],[коэф]])), IF(OR(G60="2/4",G60="3/4"),((база!$I$4*2*Таблица1[[#This Row],[Столбец1]]*Таблица1[[#This Row],[коэф]])), IF((G60="5/8"),((база!$J$6*2*Таблица1[[#This Row],[Столбец1]]*Таблица1[[#This Row],[коэф]])), IF((G60="4/8"),((база!$J$5*2*Таблица1[[#This Row],[Столбец1]]*Таблица1[[#This Row],[коэф]])), IF(OR(G60="3/8",G60="2/8"),((база!$J$4*2*Таблица1[[#This Row],[Столбец1]]*Таблица1[[#This Row],[коэф]])))))))))))))), (IF((G60="5/24"),((база!$M$6*2*Таблица1[[#This Row],[Столбец1]]*Таблица1[[#This Row],[коэф]])), IF(OR(G60="4/24",G60="3/24"),((база!$M$5*2*Таблица1[[#This Row],[Столбец1]]*Таблица1[[#This Row],[коэф]])), IF((G60="5/16"),((база!$L$6*2*Таблица1[[#This Row],[Столбец1]]*Таблица1[[#This Row],[коэф]])), IF(OR(G60="4/16",G60="3/16"),((база!$L$5*2*Таблица1[[#This Row],[Столбец1]]*Таблица1[[#This Row],[коэф]])), IF(OR(G60="2/4",G60="3/4",G60="4/4"),((база!$I$5*2*Таблица1[[#This Row],[Столбец1]]*Таблица1[[#This Row],[коэф]])), IF((G60="5/8"),((база!$J$6*2*Таблица1[[#This Row],[Столбец1]]*Таблица1[[#This Row],[коэф]])), IF(OR(G60="4/8",G60="3/8",G60="2/8"),((база!$J$5*2*Таблица1[[#This Row],[Столбец1]]*Таблица1[[#This Row],[коэф]]))))))))))) -> 0 | AQ60: =IFERROR(INDEX(база!T:T, MATCH(F60,база!Q:Q,0)),"") -> 0 | AR60: =IFERROR(INDEX(база!D:D, MATCH(F60,база!B:B,0)),"") -> 3
A61: декабрь | B61: 2023 | C61: 7Б7 | D61: 29-23 | E61: 1 | F61: Мработник1 | G61: 3/16 | AM61: =IF(AQ61=1,SUM(H61:I61,L61:O61,R61:U61,X61:AA61,AD61:AG61,AI61:AK61), IF(AQ61=2,SUM(H61:K61,N61:Q61,T61:W61,Z61:AC61,AF61:AI61), IF(AQ61=3,SUM(J61:M61,P61:S61,V61:Y61,AB61:AE61,AH61:AK61),SUM(Таблица1[[#This Row],[1]:[31]])-Таблица1[[#This Row],[Столбец1]]))) -> 0 | AN61: =IF(AQ61=1,SUM(J61:K61,P61:Q61,V61:W61,AB61:AC61,AH61:AI61), IF(AQ61=2,SUM(L61:M61,R61:S61,X61:Y61,AD61:AE61), IF(AQ61=3,SUM(H61:I61,N61:O61,T61:U61,Z61:AA61,AF61:AG61), SUM(IFERROR(WEEKDAY($H$2:$AL$2,2)>5,)*H61:AL61)))) -> 0 | AO61: =IF(AR61<=3,(IF((G61="5/24"),((база!$M$6*Таблица1[[#This Row],[сумма]]*Таблица1[[#This Row],[коэф]])), IF((G61="4/24"),((база!$M$5*Таблица1[[#This Row],[сумма]]*Таблица1[[#This Row],[коэф]])), IF((G61="3/24"),((база!$M$4*Таблица1[[#This Row],[сумма]]*Таблица1[[#This Row],[коэф]])), IF((G61="5/16"),((база!$L$6*Таблица1[[#This Row],[сумма]]*Таблица1[[#This Row],[коэф]])), IF((G61="4/16"),((база!$L$5*Таблица1[[#This Row],[сумма]]*Таблица1[[#This Row],[коэф]])), IF((G61="3/16"),((база!$L$4*Таблица1[[#This Row],[сумма]]*Таблица1[[#This Row],[коэф]])), IF((G61="4/4"),((база!$I$5*Таблица1[[#This Row],[сумма]]*Таблица1[[#This Row],[коэф]])), IF(OR(G61="2/4",G61="3/4"),((база!$I$4*Таблица1[[#This Row],[сумма]]*Таблица1[[#This Row],[коэф]])), IF((G61="5/8"),((база!$J$6*Таблица1[[#This Row],[сумма]]*Таблица1[[#This Row],[коэф]])), IF((G61="4/8"),((база!$J$5*Таблица1[[#This Row],[сумма]]*Таблица1[[#This Row],[коэф]])), IF(OR(G61="3/8",G61="2/8"),((база!$J$4*Таблица1[[#This Row],[сумма]]*Таблица1[[#This Row],[коэф]])))))))))))))), (IF((G61="5/24"),((база!$M$6*Таблица1[[#This Row],[сумма]]*Таблица1[[#This Row],[коэф]])), IF(OR(G61="4/24",G61="3/24"),((база!$M$5*Таблица1[[#This Row],[сумма]]*Таблица1[[#This Row],[коэф]])), IF((G61="5/16"),((база!$L$6*Таблица1[[#This Row],[сумма]]*Таблица1[[#This Row],[коэф]])), IF(OR(G61="4/16",G61="3/16"),((база!$L$5*Таблица1[[#This Row],[сумма]]*Таблица1[[#This Row],[коэф]])), IF(OR(G61="2/4",G61="3/4",G61="4/4"),((база!$I$5*Таблица1[[#This Row],[сумма]]*Таблица1[[#This Row],[коэф]])), IF((G61="5/8"),((база!$J$6*Таблица1[[#This Row],[сумма]]*Таблица1[[#This Row],[коэф]])), IF(OR(G61="4/8",G61="3/8",G61="2/8"),((база!$J$5*Таблица1[[#This Row],[сумма]]*Таблица1[[#This Row],[коэф]]))))))))))) -> 0 | AP61: =IF(AR61<=3,(IF((G61="5/24"),((база!$M$6*2*Таблица1[[#This Row],[Столбец1]]*Таблица1[[#This Row],[коэф]])), IF((G61="4/24"),((база!$M$5*2*Таблица1[[#This Row],[Столбец1]]*Таблица1[[#This Row],[коэф]])), IF((G61="3/24"),((база!$M$4*2*Таблица1[[#This Row],[Столбец1]]*Таблица1[[#This Row],[коэф]])), IF((G61="5/16"),((база!$L$6*2*Таблица1[[#This Row],[Столбец1]]*Таблица1[[#This Row],[коэф]])), IF((G61="4/16"),((база!$L$5*2*Таблица1[[#This Row],[Столбец1]]*Таблица1[[#This Row],[коэф]])), IF((G61="3/16"),((база!$L$4*2*Таблица1[[#This Row],[Столбец1]]*Таблица1[[#This Row],[коэф]])), IF((G61="4/4"),((база!$I$5*2*Таблица1[[#This Row],[Столбец1]]*Таблица1[[#This Row],[коэф]])), IF(OR(G61="2/4",G61="3/4"),((база!$I$4*2*Таблица1[[#This Row],[Столбец1]]*Таблица1[[#This Row],[коэф]])), IF((G61="5/8"),((база!$J$6*2*Таблица1[[#This Row],[Столбец1]]*Таблица1[[#This Row],[коэф]])), IF((G61="4/8"),((база!$J$5*2*Таблица1[[#This Row],[Столбец1]]*Таблица1[[#This Row],[коэф]])), IF(OR(G61="3/8",G61="2/8"),((база!$J$4*2*Таблица1[[#This Row],[Столбец1]]*Таблица1[[#This Row],[коэф]])))))))))))))), (IF((G61="5/24"),((база!$M$6*2*Таблица1[[#This Row],[Столбец1]]*Таблица1[[#This Row],[коэф]])), IF(OR(G61="4/24",G61="3/24"),((база!$M$5*2*Таблица1[[#This Row],[Столбец1]]*Таблица1[[#This Row],[коэф]])), IF((G61="5/16"),((база!$L$6*2*Таблица1[[#This Row],[Столбец1]]*Таблица1[[#This Row],[коэф]])), IF(OR(G61="4/16",G61="3/16"),((база!$L$5*2*Таблица1[[#This Row],[Столбец1]]*Таблица1[[#This Row],[коэф]])), IF(OR(G61="2/4",G61="3/4",G61="4/4"),((база!$I$5*2*Таблица1[[#This Row],[Столбец1]]*Таблица1[[#This Row],[коэф]])), IF((G61="5/8"),((база!$J$6*2*Таблица1[[#This Row],[Столбец1]]*Таблица1[[#This Row],[коэф]])), IF(OR(G61="4/8",G61="3/8",G61="2/8"),((база!$J$5*2*Таблица1[[#This Row],[Столбец1]]*Таблица1[[#This Row],[коэф]]))))))))))) -> 0 | AQ61: =IFERROR(INDEX(база!T:T, MATCH(F61,база!Q:Q,0)),"") -> 0 | AR61: =IFERROR(INDEX(база!D:D, MATCH(F61,база!B:B,0)),"") -> 3
A62: декабрь | B62: 2023 | C62: БО-01 | D62: 1-24 | E62: 1 | F62: Мработник2 | G62: 3/16 | X62: 7.2 | Y62: 7.2 | Z62: 7.2 | AA62: 7.2 | AD62: 7.2 | AE62: 7.2 | AM62: =IF(AQ62=1,SUM(H62:I62,L62:O62,R62:U62,X62:AA62,AD62:AG62,AI62:AK62), IF(AQ62=2,SUM(H62:K62,N62:Q62,T62:W62,Z62:AC62,AF62:AI62), IF(AQ62=3,SUM(J62:M62,P62:S62,V62:Y62,AB62:AE62,AH62:AK62),SUM(Таблица1[[#This Row],[1]:[31]])-Таблица1[[#This Row],[Столбец1]]))) -> 43.2 | AN62: =IF(AQ62=1,SUM(J62:K62,P62:Q62,V62:W62,AB62:AC62,AH62:AI62), IF(AQ62=2,SUM(L62:M62,R62:S62,X62:Y62,AD62:AE62), IF(AQ62=3,SUM(H62:I62,N62:O62,T62:U62,Z62:AA62,AF62:AG62), SUM(IFERROR(WEEKDAY($H$2:$AL$2,2)>5,)*H62:AL62)))) -> 0 | AO62: =IF(AR62<=3,(IF((G62="5/24"),((база!$M$6*Таблица1[[#This Row],[сумма]]*Таблица1[[#This Row],[коэф]])), IF((G62="4/24"),((база!$M$5*Таблица1[[#This Row],[сумма]]*Таблица1[[#This Row],[коэф]])), IF((G62="3/24"),((база!$M$4*Таблица1[[#This Row],[сумма]]*Таблица1[[#This Row],[коэф]])), IF((G62="5/16"),((база!$L$6*Таблица1[[#This Row],[сумма]]*Таблица1[[#This Row],[коэф]])), IF((G62="4/16"),((база!$L$5*Таблица1[[#This Row],[сумма]]*Таблица1[[#This Row],[коэф]])), IF((G62="3/16"),((база!$L$4*Таблица1[[#This Row],[сумма]]*Таблица1[[#This Row],[коэф]])), IF((G62="4/4"),((база!$I$5*Таблица1[[#This Row],[сумма]]*Таблица1[[#This Row],[коэф]])), IF(OR(G62="2/4",G62="3/4"),((база!$I$4*Таблица1[[#This Row],[сумма]]*Таблица1[[#This Row],[коэф]])), IF((G62="5/8"),((база!$J$6*Таблица1[[#This Row],[сумма]]*Таблица1[[#This Row],[коэф]])), IF((G62="4/8"),((база!$J$5*Таблица1[[#This Row],[сумма]]*Таблица1[[#This Row],[коэф]])), IF(OR(G62="3/8",G62="2/8"),((база!$J$4*Таблица1[[#This Row],[сумма]]*Таблица1[[#This Row],[коэф]])))))))))))))), (IF((G62="5/24"),((база!$M$6*Таблица1[[#This Row],[сумма]]*Таблица1[[#This Row],[коэф]])), IF(OR(G62="4/24",G62="3/24"),((база!$M$5*Таблица1[[#This Row],[сумма]]*Таблица1[[#This Row],[коэф]])), IF((G62="5/16"),((база!$L$6*Таблица1[[#This Row],[сумма]]*Таблица1[[#This Row],[коэф]])), IF(OR(G62="4/16",G62="3/16"),((база!$L$5*Таблица1[[#This Row],[сумма]]*Таблица1[[#This Row],[коэф]])), IF(OR(G62="2/4",G62="3/4",G62="4/4"),((база!$I$5*Таблица1[[#This Row],[сумма]]*Таблица1[[#This Row],[коэф]])), IF((G62="5/8"),((база!$J$6*Таблица1[[#This Row],[сумма]]*Таблица1[[#This Row],[коэф]])), IF(OR(G62="4/8",G62="3/8",G62="2/8"),((база!$J$5*Таблица1[[#This Row],[сумма]]*Таблица1[[#This Row],[коэф]]))))))))))) -> 6514.56 | AP62: =IF(AR62<=3,(IF((G62="5/24"),((база!$M$6*2*Таблица1[[#This Row],[Столбец1]]*Таблица1[[#This Row],[коэф]])), IF((G62="4/24"),((база!$M$5*2*Таблица1[[#This Row],[Столбец1]]*Таблица1[[#This Row],[коэф]])), IF((G62="3/24"),((база!$M$4*2*Таблица1[[#This Row],[Столбец1]]*Таблица1[[#This Row],[коэф]])), IF((G62="5/16"),((база!$L$6*2*Таблица1[[#This Row],[Столбец1]]*Таблица1[[#This Row],[коэф]])), IF((G62="4/16"),((база!$L$5*2*Таблица1[[#This Row],[Столбец1]]*Таблица1[[#This Row],[коэф]])), IF((G62="3/16"),((база!$L$4*2*Таблица1[[#This Row],[Столбец1]]*Таблица1[[#This Row],[коэф]])), IF((G62="4/4"),((база!$I$5*2*Таблица1[[#This Row],[Столбец1]]*Таблица1[[#This Row],[коэф]])), IF(OR(G62="2/4",G62="3/4"),((база!$I$4*2*Таблица1[[#This Row],[Столбец1]]*Таблица1[[#This Row],[коэф]])), IF((G62="5/8"),((база!$J$6*2*Таблица1[[#This Row],[Столбец1]]*Таблица1[[#This Row],[коэф]])), IF((G62="4/8"),((база!$J$5*2*Таблица1[[#This Row],[Столбец1]]*Таблица1[[#This Row],[коэф]])), IF(OR(G62="3/8",G62="2/8"),((база!$J$4*2*Таблица1[[#This Row],[Столбец1]]*Таблица1[[#This Row],[коэф]])))))))))))))), (IF((G62="5/24"),((база!$M$6*2*Таблица1[[#This Row],[Столбец1]]*Таблица1[[#This Row],[коэф]])), IF(OR(G62="4/24",G62="3/24"),((база!$M$5*2*Таблица1[[#This Row],[Столбец1]]*Таблица1[[#This Row],[коэф]])), IF((G62="5/16"),((база!$L$6*2*Таблица1[[#This Row],[Столбец1]]*Таблица1[[#This Row],[коэф]])), IF(OR(G62="4/16",G62="3/16"),((база!$L$5*2*Таблица1[[#This Row],[Столбец1]]*Таблица1[[#This Row],[коэф]])), IF(OR(G62="2/4",G62="3/4",G62="4/4"),((база!$I$5*2*Таблица1[[#This Row],[Столбец1]]*Таблица1[[#This Row],[коэф]])), IF((G62="5/8"),((база!$J$6*2*Таблица1[[#This Row],[Столбец1]]*Таблица1[[#This Row],[коэф]])), IF(OR(G62="4/8",G62="3/8",G62="2/8"),((база!$J$5*2*Таблица1[[#This Row],[Столбец1]]*Таблица1[[#This Row],[коэф]]))))))))))) -> 0 | AQ62: =IFERROR(INDEX(база!T:T, MATCH(F62,база!Q:Q,0)),"") -> 1 | AR62: =IFERROR(INDEX(база!D:D, MATCH(F62,база!B:B,0)),"") -> 3
A63: декабрь | B63: 2023 | C63: 7Б7 | D63: 29-23 | E63: 1 | F63: Мработник5 | G63: 3/16 | Z63: 7.2 | AA63: 7.2 | AB63: 7.2 | AC63: 7.2 | AF63: 7.2 | AG63: 7.2 | AH63: 7.2 | AI63: 7.2 | AM63: =IF(AQ63=1,SUM(H63:I63,L63:O63,R63:U63,X63:AA63,AD63:AG63,AI63:AK63), IF(AQ63=2,SUM(H63:K63,N63:Q63,T63:W63,Z63:AC63,AF63:AI63), IF(AQ63=3,SUM(J63:M63,P63:S63,V63:Y63,AB63:AE63,AH63:AK63),SUM(Таблица1[[#This Row],[1]:[31]])-Таблица1[[#This Row],[Столбец1]]))) -> 57.6 | AN63: =IF(AQ63=1,SUM(J63:K63,P63:Q63,V63:W63,AB63:AC63,AH63:AI63), IF(AQ63=2,SUM(L63:M63,R63:S63,X63:Y63,AD63:AE63), IF(AQ63=3,SUM(H63:I63,N63:O63,T63:U63,Z63:AA63,AF63:AG63), SUM(IFERROR(WEEKDAY($H$2:$AL$2,2)>5,)*H63:AL63)))) -> 0 | AO63: =IF(AR63<=3,(IF((G63="5/24"),((база!$M$6*Таблица1[[#This Row],[сумма]]*Таблица1[[#This Row],[коэф]])), IF((G63="4/24"),((база!$M$5*Таблица1[[#This Row],[сумма]]*Таблица1[[#This Row],[коэф]])), IF((G63="3/24"),((база!$M$4*Таблица1[[#This Row],[сумма]]*Таблица1[[#This Row],[коэф]])), IF((G63="5/16"),((база!$L$6*Таблица1[[#This Row],[сумма]]*Таблица1[[#This Row],[коэф]])), IF((G63="4/16"),((база!$L$5*Таблица1[[#This Row],[сумма]]*Таблица1[[#This Row],[коэф]])), IF((G63="3/16"),((база!$L$4*Таблица1[[#This Row],[сумма]]*Таблица1[[#This Row],[коэф]])), IF((G63="4/4"),((база!$I$5*Таблица1[[#This Row],[сумма]]*Таблица1[[#This Row],[коэф]])), IF(OR(G63="2/4",G63="3/4"),((база!$I$4*Таблица1[[#This Row],[сумма]]*Таблица1[[#This Row],[коэф]])), IF((G63="5/8"),((база!$J$6*Таблица1[[#This Row],[сумма]]*Таблица1[[#This Row],[коэф]])), IF((G63="4/8"),((база!$J$5*Таблица1[[#This Row],[сумма]]*Таблица1[[#This Row],[коэф]])), IF(OR(G63="3/8",G63="2/8"),((база!$J$4*Таблица1[[#This Row],[сумма]]*Таблица1[[#This Row],[коэф]])))))))))))))), (IF((G63="5/24"),((база!$M$6*Таблица1[[#This Row],[сумма]]*Таблица1[[#This Row],[коэф]])), IF(OR(G63="4/24",G63="3/24"),((база!$M$5*Таблица1[[#This Row],[сумма]]*Таблица1[[#This Row],[коэф]])), IF((G63="5/16"),((база!$L$6*Таблица1[[#This Row],[сумма]]*Таблица1[[#This Row],[коэф]])), IF(OR(G63="4/16",G63="3/16"),((база!$L$5*Таблица1[[#This Row],[сумма]]*Таблица1[[#This Row],[коэф]])), IF(OR(G63="2/4",G63="3/4",G63="4/4"),((база!$I$5*Таблица1[[#This Row],[сумма]]*Таблица1[[#This Row],[коэф]])), IF((G63="5/8"),((база!$J$6*Таблица1[[#This Row],[сумма]]*Таблица1[[#This Row],[коэф]])), IF(OR(G63="4/8",G63="3/8",G63="2/8"),((база!$J$5*Таблица1[[#This Row],[сумма]]*Таблица1[[#This Row],[коэф]]))))))))))) -> 8686.08 | AP63: =IF(AR63<=3,(IF((G63="5/24"),((база!$M$6*2*Таблица1[[#This Row],[Столбец1]]*Таблица1[[#This Row],[коэф]])), IF((G63="4/24"),((база!$M$5*2*Таблица1[[#This Row],[Столбец1]]*Таблица1[[#This Row],[коэф]])), IF((G63="3/24"),((база!$M$4*2*Таблица1[[#This Row],[Столбец1]]*Таблица1[[#This Row],[коэф]])), IF((G63="5/16"),((база!$L$6*2*Таблица1[[#This Row],[Столбец1]]*Таблица1[[#This Row],[коэф]])), IF((G63="4/16"),((база!$L$5*2*Таблица1[[#This Row],[Столбец1]]*Таблица1[[#This Row],[коэф]])), IF((G63="3/16"),((база!$L$4*2*Таблица1[[#This Row],[Столбец1]]*Таблица1[[#This Row],[коэф]])), IF((G63="4/4"),((база!$I$5*2*Таблица1[[#This Row],[Столбец1]]*Таблица1[[#This Row],[коэф]])), IF(OR(G63="2/4",G63="3/4"),((база!$I$4*2*Таблица1[[#This Row],[Столбец1]]*Таблица1[[#This Row],[коэф]])), IF((G63="5/8"),((база!$J$6*2*Таблица1[[#This Row],[Столбец1]]*Таблица1[[#This Row],[коэф]])), IF((G63="4/8"),((база!$J$5*2*Таблица1[[#This Row],[Столбец1]]*Таблица1[[#This Row],[коэф]])), IF(OR(G63="3/8",G63="2/8"),((база!$J$4*2*Таблица1[[#This Row],[Столбец1]]*Таблица1[[#This Row],[коэф]])))))))))))))), (IF((G63="5/24"),((база!$M$6*2*Таблица1[[#This Row],[Столбец1]]*Таблица1[[#This Row],[коэф]])), IF(OR(G63="4/24",G63="3/24"),((база!$M$5*2*Таблица1[[#This Row],[Столбец1]]*Таблица1[[#This Row],[коэф]])), IF((G63="5/16"),((база!$L$6*2*Таблица1[[#This Row],[Столбец1]]*Таблица1[[#This Row],[коэф]])), IF(OR(G63="4/16",G63="3/16"),((база!$L$5*2*Таблица1[[#This Row],[Столбец1]]*Таблица1[[#This Row],[коэф]])), IF(OR(G63="2/4",G63="3/4",G63="4/4"),((база!$I$5*2*Таблица1[[#This Row],[Столбец1]]*Таблица1[[#This Row],[коэф]])), IF((G63="5/8"),((база!$J$6*2*Таблица1[[#This Row],[Столбец1]]*Таблица1[[#This Row],[коэф]])), IF(OR(G63="4/8",G63="3/8",G63="2/8"),((база!$J$5*2*Таблица1[[#This Row],[Столбец1]]*Таблица1[[#This Row],[коэф]]))))))))))) -> 0 | AQ63: =IFERROR(INDEX(база!T:T, MATCH(F63,база!Q:Q,0)),"") -> 2 | AR63: =IFERROR(INDEX(база!D:D, MATCH(F63,база!B:B,0)),"") -> 3
A64: декабрь | B64: 2023 | C64: 7Б7 | D64: 28-23 | E64: 1 | F64: Мработник3 | G64: 3/16 | V64: 7.2 | W64: 7.2 | X64: 7.2 | Y64: 7.2 | Z64: 7 | AB64: 7.2 | AC64: 7.2 | AD64: 7.2 | AE64: 7.2 | AM64: =IF(AQ64=1,SUM(H64:I64,L64:O64,R64:U64,X64:AA64,AD64:AG64,AI64:AK64), IF(AQ64=2,SUM(H64:K64,N64:Q64,T64:W64,Z64:AC64,AF64:AI64), IF(AQ64=3,SUM(J64:M64,P64:S64,V64:Y64,AB64:AE64,AH64:AK64),SUM(Таблица1[[#This Row],[1]:[31]])-Таблица1[[#This Row],[Столбец1]]))) -> 57.6 | AN64: =IF(AQ64=1,SUM(J64:K64,P64:Q64,V64:W64,AB64:AC64,AH64:AI64), IF(AQ64=2,SUM(L64:M64,R64:S64,X64:Y64,AD64:AE64), IF(AQ64=3,SUM(H64:I64,N64:O64,T64:U64,Z64:AA64,AF64:AG64), SUM(IFERROR(WEEKDAY($H$2:$AL$2,2)>5,)*H64:AL64)))) -> 7 | AO64: =IF(AR64<=3,(IF((G64="5/24"),((база!$M$6*Таблица1[[#This Row],[сумма]]*Таблица1[[#This Row],[коэф]])), IF((G64="4/24"),((база!$M$5*Таблица1[[#This Row],[сумма]]*Таблица1[[#This Row],[коэф]])), IF((G64="3/24"),((база!$M$4*Таблица1[[#This Row],[сумма]]*Таблица1[[#This Row],[коэф]])), IF((G64="5/16"),((база!$L$6*Таблица1[[#This Row],[сумма]]*Таблица1[[#This Row],[коэф]])), IF((G64="4/16"),((база!$L$5*Таблица1[[#This Row],[сумма]]*Таблица1[[#This Row],[коэф]])), IF((G64="3/16"),((база!$L$4*Таблица1[[#This Row],[сумма]]*Таблица1[[#This Row],[коэф]])), IF((G64="4/4"),((база!$I$5*Таблица1[[#This Row],[сумма]]*Таблица1[[#This Row],[коэф]])), IF(OR(G64="2/4",G64="3/4"),((база!$I$4*Таблица1[[#This Row],[сумма]]*Таблица1[[#This Row],[коэф]])), IF((G64="5/8"),((база!$J$6*Таблица1[[#This Row],[сумма]]*Таблица1[[#This Row],[коэф]])), IF((G64="4/8"),((база!$J$5*Таблица1[[#This Row],[сумма]]*Таблица1[[#This Row],[коэф]])), IF(OR(G64="3/8",G64="2/8"),((база!$J$4*Таблица1[[#This Row],[сумма]]*Таблица1[[#This Row],[коэф]])))))))))))))), (IF((G64="5/24"),((база!$M$6*Таблица1[[#This Row],[сумма]]*Таблица1[[#This Row],[коэф]])), IF(OR(G64="4/24",G64="3/24"),((база!$M$5*Таблица1[[#This Row],[сумма]]*Таблица1[[#This Row],[коэф]])), IF((G64="5/16"),((база!$L$6*Таблица1[[#This Row],[сумма]]*Таблица1[[#This Row],[коэф]])), IF(OR(G64="4/16",G64="3/16"),((база!$L$5*Таблица1[[#This Row],[сумма]]*Таблица1[[#This Row],[коэф]])), IF(OR(G64="2/4",G64="3/4",G64="4/4"),((база!$I$5*Таблица1[[#This Row],[сумма]]*Таблица1[[#This Row],[коэф]])), IF((G64="5/8"),((база!$J$6*Таблица1[[#This Row],[сумма]]*Таблица1[[#This Row],[коэф]])), IF(OR(G64="4/8",G64="3/8",G64="2/8"),((база!$J$5*Таблица1[[#This Row],[сумма]]*Таблица1[[#This Row],[коэф]]))))))))))) -> 8686.08 | AP64: =IF(AR64<=3,(IF((G64="5/24"),((база!$M$6*2*Таблица1[[#This Row],[Столбец1]]*Таблица1[[#This Row],[коэф]])), IF((G64="4/24"),((база!$M$5*2*Таблица1[[#This Row],[Столбец1]]*Таблица1[[#This Row],[коэф]])), IF((G64="3/24"),((база!$M$4*2*Таблица1[[#This Row],[Столбец1]]*Таблица1[[#This Row],[коэф]])), IF((G64="5/16"),((база!$L$6*2*Таблица1[[#This Row],[Столбец1]]*Таблица1[[#This Row],[коэф]])), IF((G64="4/16"),((база!$L$5*2*Таблица1[[#This Row],[Столбец1]]*Таблица1[[#This Row],[коэф]])), IF((G64="3/16"),((база!$L$4*2*Таблица1[[#This Row],[Столбец1]]*Таблица1[[#This Row],[коэф]])), IF((G64="4/4"),((база!$I$5*2*Таблица1[[#This Row],[Столбец1]]*Таблица1[[#This Row],[коэф]])), IF(OR(G64="2/4",G64="3/4"),((база!$I$4*2*Таблица1[[#This Row],[Столбец1]]*Таблица1[[#This Row],[коэф]])), IF((G64="5/8"),((база!$J$6*2*Таблица1[[#This Row],[Столбец1]]*Таблица1[[#This Row],[коэф]])), IF((G64="4/8"),((база!$J$5*2*Таблица1[[#This Row],[Столбец1]]*Таблица1[[#This Row],[коэф]])), IF(OR(G64="3/8",G64="2/8"),((база!$J$4*2*Таблица1[[#This Row],[Столбец1]]*Таблица1[[#This Row],[коэф]])))))))))))))), (IF((G64="5/24"),((база!$M$6*2*Таблица1[[#This Row],[Столбец1]]*Таблица1[[#This Row],[коэф]])), IF(OR(G64="4/24",G64="3/24"),((база!$M$5*2*Таблица1[[#This Row],[Столбец1]]*Таблица1[[#This Row],[коэф]])), IF((G64="5/16"),((база!$L$6*2*Таблица1[[#This Row],[Столбец1]]*Таблица1[[#This Row],[коэф]])), IF(OR(G64="4/16",G64="3/16"),((база!$L$5*2*Таблица1[[#This Row],[Столбец1]]*Таблица1[[#This Row],[коэф]])), IF(OR(G64="2/4",G64="3/4",G64="4/4"),((база!$I$5*2*Таблица1[[#This Row],[Столбец1]]*Таблица1[[#This Row],[коэф]])), IF((G64="5/8"),((база!$J$6*2*Таблица1[[#This Row],[Столбец1]]*Таблица1[[#This Row],[коэф]])), IF(OR(G64="4/8",G64="3/8",G64="2/8"),((база!$J$5*2*Таблица1[[#This Row],[Столбец1]]*Таблица1[[#This Row],[коэф]]))))))))))) -> 2111.2 | AQ64: =IFERROR(INDEX(база!T:T, MATCH(F64,база!Q:Q,0)),"") -> 3 | AR64: =IFERROR(INDEX(база!D:D, MATCH(F64,база!B:B,0)),"") -> 3
A65: декабрь | B65: 2023 | C65: 7Б7 | D65: 28-23 | E65: 1 | F65: Мработник4 | G65: 3/16 | Y65: 6.7 | Z65: 6.7 | AA65: 6.7 | AB65: 6.7 | AC65: 6.7 | AM65: =IF(AQ65=1,SUM(H65:I65,L65:O65,R65:U65,X65:AA65,AD65:AG65,AI65:AK65), IF(AQ65=2,SUM(H65:K65,N65:Q65,T65:W65,Z65:AC65,AF65:AI65), IF(AQ65=3,SUM(J65:M65,P65:S65,V65:Y65,AB65:AE65,AH65:AK65),SUM(Таблица1[[#This Row],[1]:[31]])-Таблица1[[#This Row],[Столбец1]]))) -> 33.5 | AN65: =IF(AQ65=1,SUM(J65:K65,P65:Q65,V65:W65,AB65:AC65,AH65:AI65), IF(AQ65=2,SUM(L65:M65,R65:S65,X65:Y65,AD65:AE65), IF(AQ65=3,SUM(H65:I65,N65:O65,T65:U65,Z65:AA65,AF65:AG65), SUM(IFERROR(WEEKDAY($H$2:$AL$2,2)>5,)*H65:AL65)))) -> 0 | AO65: =IF(AR65<=3,(IF((G65="5/24"),((база!$M$6*Таблица1[[#This Row],[сумма]]*Таблица1[[#This Row],[коэф]])), IF((G65="4/24"),((база!$M$5*Таблица1[[#This Row],[сумма]]*Таблица1[[#This Row],[коэф]])), IF((G65="3/24"),((база!$M$4*Таблица1[[#This Row],[сумма]]*Таблица1[[#This Row],[коэф]])), IF((G65="5/16"),((база!$L$6*Таблица1[[#This Row],[сумма]]*Таблица1[[#This Row],[коэф]])), IF((G65="4/16"),((база!$L$5*Таблица1[[#This Row],[сумма]]*Таблица1[[#This Row],[коэф]])), IF((G65="3/16"),((база!$L$4*Таблица1[[#This Row],[сумма]]*Таблица1[[#This Row],[коэф]])), IF((G65="4/4"),((база!$I$5*Таблица1[[#This Row],[сумма]]*Таблица1[[#This Row],[коэф]])), IF(OR(G65="2/4",G65="3/4"),((база!$I$4*Таблица1[[#This Row],[сумма]]*Таблица1[[#This Row],[коэф]])), IF((G65="5/8"),((база!$J$6*Таблица1[[#This Row],[сумма]]*Таблица1[[#This Row],[коэф]])), IF((G65="4/8"),((база!$J$5*Таблица1[[#This Row],[сумма]]*Таблица1[[#This Row],[коэф]])), IF(OR(G65="3/8",G65="2/8"),((база!$J$4*Таблица1[[#This Row],[сумма]]*Таблица1[[#This Row],[коэф]])))))))))))))), (IF((G65="5/24"),((база!$M$6*Таблица1[[#This Row],[сумма]]*Таблица1[[#This Row],[коэф]])), IF(OR(G65="4/24",G65="3/24"),((база!$M$5*Таблица1[[#This Row],[сумма]]*Таблица1[[#This Row],[коэф]])), IF((G65="5/16"),((база!$L$6*Таблица1[[#This Row],[сумма]]*Таблица1[[#This Row],[коэф]])), IF(OR(G65="4/16",G65="3/16"),((база!$L$5*Таблица1[[#This Row],[сумма]]*Таблица1[[#This Row],[коэф]])), IF(OR(G65="2/4",G65="3/4",G65="4/4"),((база!$I$5*Таблица1[[#This Row],[сумма]]*Таблица1[[#This Row],[коэф]])), IF((G65="5/8"),((база!$J$6*Таблица1[[#This Row],[сумма]]*Таблица1[[#This Row],[коэф]])), IF(OR(G65="4/8",G65="3/8",G65="2/8"),((база!$J$5*Таблица1[[#This Row],[сумма]]*Таблица1[[#This Row],[коэф]]))))))))))) -> 5051.8 | AP65: =IF(AR65<=3,(IF((G65="5/24"),((база!$M$6*2*Таблица1[[#This Row],[Столбец1]]*Таблица1[[#This Row],[коэф]])), IF((G65="4/24"),((база!$M$5*2*Таблица1[[#This Row],[Столбец1]]*Таблица1[[#This Row],[коэф]])), IF((G65="3/24"),((база!$M$4*2*Таблица1[[#This Row],[Столбец1]]*Таблица1[[#This Row],[коэф]])), IF((G65="5/16"),((база!$L$6*2*Таблица1[[#This Row],[Столбец1]]*Таблица1[[#This Row],[коэф]])), IF((G65="4/16"),((база!$L$5*2*Таблица1[[#This Row],[Столбец1]]*Таблица1[[#This Row],[коэф]])), IF((G65="3/16"),((база!$L$4*2*Таблица1[[#This Row],[Столбец1]]*Таблица1[[#This Row],[коэф]])), IF((G65="4/4"),((база!$I$5*2*Таблица1[[#This Row],[Столбец1]]*Таблица1[[#This Row],[коэф]])), IF(OR(G65="2/4",G65="3/4"),((база!$I$4*2*Таблица1[[#This Row],[Столбец1]]*Таблица1[[#This Row],[коэф]])), IF((G65="5/8"),((база!$J$6*2*Таблица1[[#This Row],[Столбец1]]*Таблица1[[#This Row],[коэф]])), IF((G65="4/8"),((база!$J$5*2*Таблица1[[#This Row],[Столбец1]]*Таблица1[[#This Row],[коэф]])), IF(OR(G65="3/8",G65="2/8"),((база!$J$4*2*Таблица1[[#This Row],[Столбец1]]*Таблица1[[#This Row],[коэф]])))))))))))))), (IF((G65="5/24"),((база!$M$6*2*Таблица1[[#This Row],[Столбец1]]*Таблица1[[#This Row],[коэф]])), IF(OR(G65="4/24",G65="3/24"),((база!$M$5*2*Таблица1[[#This Row],[Столбец1]]*Таблица1[[#This Row],[коэф]])), IF((G65="5/16"),((база!$L$6*2*Таблица1[[#This Row],[Столбец1]]*Таблица1[[#This Row],[коэф]])), IF(OR(G65="4/16",G65="3/16"),((база!$L$5*2*Таблица1[[#This Row],[Столбец1]]*Таблица1[[#This Row],[коэф]])), IF(OR(G65="2/4",G65="3/4",G65="4/4"),((база!$I$5*2*Таблица1[[#This Row],[Столбец1]]*Таблица1[[#This Row],[коэф]])), IF((G65="5/8"),((база!$J$6*2*Таблица1[[#This Row],[Столбец1]]*Таблица1[[#This Row],[коэф]])), IF(OR(G65="4/8",G65="3/8",G65="2/8"),((база!$J$5*2*Таблица1[[#This Row],[Столбец1]]*Таблица1[[#This Row],[коэф]]))))))))))) -> 0 | AQ65: =IFERROR(INDEX(база!T:T, MATCH(F65,база!Q:Q,0)),"") -> 0 | AR65: =IFERROR(INDEX(база!D:D, MATCH(F65,база!B:B,0)),"") -> 3
A66: декабрь | B66: 2023 | C66: 1В5 | D66: 24-23 | E66: 1 | F66: Мработник4 | G66: 3/16 | R66: 6.7 | S66: 6.7 | T66: 6.7 | U66: 6.7 | V66: 6.7 | AM66: =IF(AQ66=1,SUM(H66:I66,L66:O66,R66:U66,X66:AA66,AD66:AG66,AI66:AK66), IF(AQ66=2,SUM(H66:K66,N66:Q66,T66:W66,Z66:AC66,AF66:AI66), IF(AQ66=3,SUM(J66:M66,P66:S66,V66:Y66,AB66:AE66,AH66:AK66),SUM(Таблица1[[#This Row],[1]:[31]])-Таблица1[[#This Row],[Столбец1]]))) -> 33.5 | AN66: =IF(AQ66=1,SUM(J66:K66,P66:Q66,V66:W66,AB66:AC66,AH66:AI66), IF(AQ66=2,SUM(L66:M66,R66:S66,X66:Y66,AD66:AE66), IF(AQ66=3,SUM(H66:I66,N66:O66,T66:U66,Z66:AA66,AF66:AG66), SUM(IFERROR(WEEKDAY($H$2:$AL$2,2)>5,)*H66:AL66)))) -> 0 | AO66: =IF(AR66<=3,(IF((G66="5/24"),((база!$M$6*Таблица1[[#This Row],[сумма]]*Таблица1[[#This Row],[коэф]])), IF((G66="4/24"),((база!$M$5*Таблица1[[#This Row],[сумма]]*Таблица1[[#This Row],[коэф]])), IF((G66="3/24"),((база!$M$4*Таблица1[[#This Row],[сумма]]*Таблица1[[#This Row],[коэф]])), IF((G66="5/16"),((база!$L$6*Таблица1[[#This Row],[сумма]]*Таблица1[[#This Row],[коэф]])), IF((G66="4/16"),((база!$L$5*Таблица1[[#This Row],[сумма]]*Таблица1[[#This Row],[коэф]])), IF((G66="3/16"),((база!$L$4*Таблица1[[#This Row],[сумма]]*Таблица1[[#This Row],[коэф]])), IF((G66="4/4"),((база!$I$5*Таблица1[[#This Row],[сумма]]*Таблица1[[#This Row],[коэф]])), IF(OR(G66="2/4",G66="3/4"),((база!$I$4*Таблица1[[#This Row],[сумма]]*Таблица1[[#This Row],[коэф]])), IF((G66="5/8"),((база!$J$6*Таблица1[[#This Row],[сумма]]*Таблица1[[#This Row],[коэф]])), IF((G66="4/8"),((база!$J$5*Таблица1[[#This Row],[сумма]]*Таблица1[[#This Row],[коэф]])), IF(OR(G66="3/8",G66="2/8"),((база!$J$4*Таблица1[[#This Row],[сумма]]*Таблица1[[#This Row],[коэф]])))))))))))))), (IF((G66="5/24"),((база!$M$6*Таблица1[[#This Row],[сумма]]*Таблица1[[#This Row],[коэф]])), IF(OR(G66="4/24",G66="3/24"),((база!$M$5*Таблица1[[#This Row],[сумма]]*Таблица1[[#This Row],[коэф]])), IF((G66="5/16"),((база!$L$6*Таблица1[[#This Row],[сумма]]*Таблица1[[#This Row],[коэф]])), IF(OR(G66="4/16",G66="3/16"),((база!$L$5*Таблица1[[#This Row],[сумма]]*Таблица1[[#This Row],[коэф]])), IF(OR(G66="2/4",G66="3/4",G66="4/4"),((база!$I$5*Таблица1[[#This Row],[сумма]]*Таблица1[[#This Row],[коэф]])), IF((G66="5/8"),((база!$J$6*Таблица1[[#This Row],[сумма]]*Таблица1[[#This Row],[коэф]])), IF(OR(G66="4/8",G66="3/8",G66="2/8"),((база!$J$5*Таблица1[[#This Row],[сумма]]*Таблица1[[#This Row],[коэф]]))))))))))) -> 5051.8 | AP66: =IF(AR66<=3,(IF((G66="5/24"),((база!$M$6*2*Таблица1[[#This Row],[Столбец1]]*Таблица1[[#This Row],[коэф]])), IF((G66="4/24"),((база!$M$5*2*Таблица1[[#This Row],[Столбец1]]*Таблица1[[#This Row],[коэф]])), IF((G66="3/24"),((база!$M$4*2*Таблица1[[#This Row],[Столбец1]]*Таблица1[[#This Row],[коэф]])), IF((G66="5/16"),((база!$L$6*2*Таблица1[[#This Row],[Столбец1]]*Таблица1[[#This Row],[коэф]])), IF((G66="4/16"),((база!$L$5*2*Таблица1[[#This Row],[Столбец1]]*Таблица1[[#This Row],[коэф]])), IF((G66="3/16"),((база!$L$4*2*Таблица1[[#This Row],[Столбец1]]*Таблица1[[#This Row],[коэф]])), IF((G66="4/4"),((база!$I$5*2*Таблица1[[#This Row],[Столбец1]]*Таблица1[[#This Row],[коэф]])), IF(OR(G66="2/4",G66="3/4"),((база!$I$4*2*Таблица1[[#This Row],[Столбец1]]*Таблица1[[#This Row],[коэф]])), IF((G66="5/8"),((база!$J$6*2*Таблица1[[#This Row],[Столбец1]]*Таблица1[[#This Row],[коэф]])), IF((G66="4/8"),((база!$J$5*2*Таблица1[[#This Row],[Столбец1]]*Таблица1[[#This Row],[коэф]])), IF(OR(G66="3/8",G66="2/8"),((база!$J$4*2*Таблица1[[#This Row],[Столбец1]]*Таблица1[[#This Row],[коэф]])))))))))))))), (IF((G66="5/24"),((база!$M$6*2*Таблица1[[#This Row],[Столбец1]]*Таблица1[[#This Row],[коэф]])), IF(OR(G66="4/24",G66="3/24"),((база!$M$5*2*Таблица1[[#This Row],[Столбец1]]*Таблица1[[#This Row],[коэф]])), IF((G66="5/16"),((база!$L$6*2*Таблица1[[#This Row],[Столбец1]]*Таблица1[[#This Row],[коэф]])), IF(OR(G66="4/16",G66="3/16"),((база!$L$5*2*Таблица1[[#This Row],[Столбец1]]*Таблица1[[#This Row],[коэф]])), IF(OR(G66="2/4",G66="3/4",G66="4/4"),((база!$I$5*2*Таблица1[[#This Row],[Столбец1]]*Таблица1[[#This Row],[коэф]])), IF((G66="5/8"),((база!$J$6*2*Таблица1[[#This Row],[Столбец1]]*Таблица1[[#This Row],[коэф]])), IF(OR(G66="4/8",G66="3/8",G66="2/8"),((база!$J$5*2*Таблица1[[#This Row],[Столбец1]]*Таблица1[[#This Row],[коэф]]))))))))))) -> 0 | AQ66: =IFERROR(INDEX(база!T:T, MATCH(F66,база!Q:Q,0)),"") -> 0 | AR66: =IFERROR(INDEX(база!D:D, MATCH(F66,база!B:B,0)),"") -> 3
A67: декабрь | B67: 2023 | C67: 7Б7 | D67: 28-23 | E67: 1 | F67: Мработник4 | G67: 3/16 | AF67: 6.7 | AG67: 6.7 | AH67: 6.7 | AI67: 6.7 | AJ67: 6.7 | AM67: =IF(AQ67=1,SUM(H67:I67,L67:O67,R67:U67,X67:AA67,AD67:AG67,AI67:AK67), IF(AQ67=2,SUM(H67:K67,N67:Q67,T67:W67,Z67:AC67,AF67:AI67), IF(AQ67=3,SUM(J67:M67,P67:S67,V67:Y67,AB67:AE67,AH67:AK67),SUM(Таблица1[[#This Row],[1]:[31]])-Таблица1[[#This Row],[Столбец1]]))) -> 33.5 | AN67: =IF(AQ67=1,SUM(J67:K67,P67:Q67,V67:W67,AB67:AC67,AH67:AI67), IF(AQ67=2,SUM(L67:M67,R67:S67,X67:Y67,AD67:AE67), IF(AQ67=3,SUM(H67:I67,N67:O67,T67:U67,Z67:AA67,AF67:AG67), SUM(IFERROR(WEEKDAY($H$2:$AL$2,2)>5,)*H67:AL67)))) -> 0 | AO67: =IF(AR67<=3,(IF((G67="5/24"),((база!$M$6*Таблица1[[#This Row],[сумма]]*Таблица1[[#This Row],[коэф]])), IF((G67="4/24"),((база!$M$5*Таблица1[[#This Row],[сумма]]*Таблица1[[#This Row],[коэф]])), IF((G67="3/24"),((база!$M$4*Таблица1[[#This Row],[сумма]]*Таблица1[[#This Row],[коэф]])), IF((G67="5/16"),((база!$L$6*Таблица1[[#This Row],[сумма]]*Таблица1[[#This Row],[коэф]])), IF((G67="4/16"),((база!$L$5*Таблица1[[#This Row],[сумма]]*Таблица1[[#This Row],[коэф]])), IF((G67="3/16"),((база!$L$4*Таблица1[[#This Row],[сумма]]*Таблица1[[#This Row],[коэф]])), IF((G67="4/4"),((база!$I$5*Таблица1[[#This Row],[сумма]]*Таблица1[[#This Row],[коэф]])), IF(OR(G67="2/4",G67="3/4"),((база!$I$4*Таблица1[[#This Row],[сумма]]*Таблица1[[#This Row],[коэф]])), IF((G67="5/8"),((база!$J$6*Таблица1[[#This Row],[сумма]]*Таблица1[[#This Row],[коэф]])), IF((G67="4/8"),((база!$J$5*Таблица1[[#This Row],[сумма]]*Таблица1[[#This Row],[коэф]])), IF(OR(G67="3/8",G67="2/8"),((база!$J$4*Таблица1[[#This Row],[сумма]]*Таблица1[[#This Row],[коэф]])))))))))))))), (IF((G67="5/24"),((база!$M$6*Таблица1[[#This Row],[сумма]]*Таблица1[[#This Row],[коэф]])), IF(OR(G67="4/24",G67="3/24"),((база!$M$5*Таблица1[[#This Row],[сумма]]*Таблица1[[#This Row],[коэф]])), IF((G67="5/16"),((база!$L$6*Таблица1[[#This Row],[сумма]]*Таблица1[[#This Row],[коэф]])), IF(OR(G67="4/16",G67="3/16"),((база!$L$5*Таблица1[[#This Row],[сумма]]*Таблица1[[#This Row],[коэф]])), IF(OR(G67="2/4",G67="3/4",G67="4/4"),((база!$I$5*Таблица1[[#This Row],[сумма]]*Таблица1[[#This Row],[коэф]])), IF((G67="5/8"),((база!$J$6*Таблица1[[#This Row],[сумма]]*Таблица1[[#This Row],[коэф]])), IF(OR(G67="4/8",G67="3/8",G67="2/8"),((база!$J$5*Таблица1[[#This Row],[сумма]]*Таблица1[[#This Row],[коэф]]))))))))))) -> 5051.8 | AP67: =IF(AR67<=3,(IF((G67="5/24"),((база!$M$6*2*Таблица1[[#This Row],[Столбец1]]*Таблица1[[#This Row],[коэф]])), IF((G67="4/24"),((база!$M$5*2*Таблица1[[#This Row],[Столбец1]]*Таблица1[[#This Row],[коэф]])), IF((G67="3/24"),((база!$M$4*2*Таблица1[[#This Row],[Столбец1]]*Таблица1[[#This Row],[коэф]])), IF((G67="5/16"),((база!$L$6*2*Таблица1[[#This Row],[Столбец1]]*Таблица1[[#This Row],[коэф]])), IF((G67="4/16"),((база!$L$5*2*Таблица1[[#This Row],[Столбец1]]*Таблица1[[#This Row],[коэф]])), IF((G67="3/16"),((база!$L$4*2*Таблица1[[#This Row],[Столбец1]]*Таблица1[[#This Row],[коэф]])), IF((G67="4/4"),((база!$I$5*2*Таблица1[[#This Row],[Столбец1]]*Таблица1[[#This Row],[коэф]])), IF(OR(G67="2/4",G67="3/4"),((база!$I$4*2*Таблица1[[#This Row],[Столбец1]]*Таблица1[[#This Row],[коэф]])), IF((G67="5/8"),((база!$J$6*2*Таблица1[[#This Row],[Столбец1]]*Таблица1[[#This Row],[коэф]])), IF((G67="4/8"),((база!$J$5*2*Таблица1[[#This Row],[Столбец1]]*Таблица1[[#This Row],[коэф]])), IF(OR(G67="3/8",G67="2/8"),((база!$J$4*2*Таблица1[[#This Row],[Столбец1]]*Таблица1[[#This Row],[коэф]])))))))))))))), (IF((G67="5/24"),((база!$M$6*2*Таблица1[[#This Row],[Столбец1]]*Таблица1[[#This Row],[коэф]])), IF(OR(G67="4/24",G67="3/24"),((база!$M$5*2*Таблица1[[#This Row],[Столбец1]]*Таблица1[[#This Row],[коэф]])), IF((G67="5/16"),((база!$L$6*2*Таблица1[[#This Row],[Столбец1]]*Таблица1[[#This Row],[коэф]])), IF(OR(G67="4/16",G67="3/16"),((база!$L$5*2*Таблица1[[#This Row],[Столбец1]]*Таблица1[[#This Row],[коэф]])), IF(OR(G67="2/4",G67="3/4",G67="4/4"),((база!$I$5*2*Таблица1[[#This Row],[Столбец1]]*Таблица1[[#This Row],[коэф]])), IF((G67="5/8"),((база!$J$6*2*Таблица1[[#This Row],[Столбец1]]*Таблица1[[#This Row],[коэф]])), IF(OR(G67="4/8",G67="3/8",G67="2/8"),((база!$J$5*2*Таблица1[[#This Row],[Столбец1]]*Таблица1[[#This Row],[коэф]]))))))))))) -> 0 | AQ67: =IFERROR(INDEX(база!T:T, MATCH(F67,база!Q:Q,0)),"") -> 0 | AR67: =IFERROR(INDEX(база!D:D, MATCH(F67,база!B:B,0)),"") -> 3
A68: декабрь | B68: 2023 | C68: БО-01 | D68: 2-24 | E68: 1 | F68: Нработник1 | G68: 4/16 | R68: 7.2 | S68: 7.2 | T68: 7.2 | U68: 7.2 | V68: 7.2 | W68: 6 | AM68: =IF(AQ68=1,SUM(H68:I68,L68:O68,R68:U68,X68:AA68,AD68:AG68,AI68:AK68), IF(AQ68=2,SUM(H68:K68,N68:Q68,T68:W68,Z68:AC68,AF68:AI68), IF(AQ68=3,SUM(J68:M68,P68:S68,V68:Y68,AB68:AE68,AH68:AK68),SUM(Таблица1[[#This Row],[1]:[31]])-Таблица1[[#This Row],[Столбец1]]))) -> 42 | AN68: =IF(AQ68=1,SUM(J68:K68,P68:Q68,V68:W68,AB68:AC68,AH68:AI68), IF(AQ68=2,SUM(L68:M68,R68:S68,X68:Y68,AD68:AE68), IF(AQ68=3,SUM(H68:I68,N68:O68,T68:U68,Z68:AA68,AF68:AG68), SUM(IFERROR(WEEKDAY($H$2:$AL$2,2)>5,)*H68:AL68)))) -> 0 | AO68: =IF(AR68<=3,(IF((G68="5/24"),((база!$M$6*Таблица1[[#This Row],[сумма]]*Таблица1[[#This Row],[коэф]])), IF((G68="4/24"),((база!$M$5*Таблица1[[#This Row],[сумма]]*Таблица1[[#This Row],[коэф]])), IF((G68="3/24"),((база!$M$4*Таблица1[[#This Row],[сумма]]*Таблица1[[#This Row],[коэф]])), IF((G68="5/16"),((база!$L$6*Таблица1[[#This Row],[сумма]]*Таблица1[[#This Row],[коэф]])), IF((G68="4/16"),((база!$L$5*Таблица1[[#This Row],[сумма]]*Таблица1[[#This Row],[коэф]])), IF((G68="3/16"),((база!$L$4*Таблица1[[#This Row],[сумма]]*Таблица1[[#This Row],[коэф]])), IF((G68="4/4"),((база!$I$5*Таблица1[[#This Row],[сумма]]*Таблица1[[#This Row],[коэф]])), IF(OR(G68="2/4",G68="3/4"),((база!$I$4*Таблица1[[#This Row],[сумма]]*Таблица1[[#This Row],[коэф]])), IF((G68="5/8"),((база!$J$6*Таблица1[[#This Row],[сумма]]*Таблица1[[#This Row],[коэф]])), IF((G68="4/8"),((база!$J$5*Таблица1[[#This Row],[сумма]]*Таблица1[[#This Row],[коэф]])), IF(OR(G68="3/8",G68="2/8"),((база!$J$4*Таблица1[[#This Row],[сумма]]*Таблица1[[#This Row],[коэф]])))))))))))))), (IF((G68="5/24"),((база!$M$6*Таблица1[[#This Row],[сумма]]*Таблица1[[#This Row],[коэф]])), IF(OR(G68="4/24",G68="3/24"),((база!$M$5*Таблица1[[#This Row],[сумма]]*Таблица1[[#This Row],[коэф]])), IF((G68="5/16"),((база!$L$6*Таблица1[[#This Row],[сумма]]*Таблица1[[#This Row],[коэф]])), IF(OR(G68="4/16",G68="3/16"),((база!$L$5*Таблица1[[#This Row],[сумма]]*Таблица1[[#This Row],[коэф]])), IF(OR(G68="2/4",G68="3/4",G68="4/4"),((база!$I$5*Таблица1[[#This Row],[сумма]]*Таблица1[[#This Row],[коэф]])), IF((G68="5/8"),((база!$J$6*Таблица1[[#This Row],[сумма]]*Таблица1[[#This Row],[коэф]])), IF(OR(G68="4/8",G68="3/8",G68="2/8"),((база!$J$5*Таблица1[[#This Row],[сумма]]*Таблица1[[#This Row],[коэф]]))))))))))) -> 7308 | AP68: =IF(AR68<=3,(IF((G68="5/24"),((база!$M$6*2*Таблица1[[#This Row],[Столбец1]]*Таблица1[[#This Row],[коэф]])), IF((G68="4/24"),((база!$M$5*2*Таблица1[[#This Row],[Столбец1]]*Таблица1[[#This Row],[коэф]])), IF((G68="3/24"),((база!$M$4*2*Таблица1[[#This Row],[Столбец1]]*Таблица1[[#This Row],[коэф]])), IF((G68="5/16"),((база!$L$6*2*Таблица1[[#This Row],[Столбец1]]*Таблица1[[#This Row],[коэф]])), IF((G68="4/16"),((база!$L$5*2*Таблица1[[#This Row],[Столбец1]]*Таблица1[[#This Row],[коэф]])), IF((G68="3/16"),((база!$L$4*2*Таблица1[[#This Row],[Столбец1]]*Таблица1[[#This Row],[коэф]])), IF((G68="4/4"),((база!$I$5*2*Таблица1[[#This Row],[Столбец1]]*Таблица1[[#This Row],[коэф]])), IF(OR(G68="2/4",G68="3/4"),((база!$I$4*2*Таблица1[[#This Row],[Столбец1]]*Таблица1[[#This Row],[коэф]])), IF((G68="5/8"),((база!$J$6*2*Таблица1[[#This Row],[Столбец1]]*Таблица1[[#This Row],[коэф]])), IF((G68="4/8"),((база!$J$5*2*Таблица1[[#This Row],[Столбец1]]*Таблица1[[#This Row],[коэф]])), IF(OR(G68="3/8",G68="2/8"),((база!$J$4*2*Таблица1[[#This Row],[Столбец1]]*Таблица1[[#This Row],[коэф]])))))))))))))), (IF((G68="5/24"),((база!$M$6*2*Таблица1[[#This Row],[Столбец1]]*Таблица1[[#This Row],[коэф]])), IF(OR(G68="4/24",G68="3/24"),((база!$M$5*2*Таблица1[[#This Row],[Столбец1]]*Таблица1[[#This Row],[коэф]])), IF((G68="5/16"),((база!$L$6*2*Таблица1[[#This Row],[Столбец1]]*Таблица1[[#This Row],[коэф]])), IF(OR(G68="4/16",G68="3/16"),((база!$L$5*2*Таблица1[[#This Row],[Столбец1]]*Таблица1[[#This Row],[коэф]])), IF(OR(G68="2/4",G68="3/4",G68="4/4"),((база!$I$5*2*Таблица1[[#This Row],[Столбец1]]*Таблица1[[#This Row],[коэф]])), IF((G68="5/8"),((база!$J$6*2*Таблица1[[#This Row],[Столбец1]]*Таблица1[[#This Row],[коэф]])), IF(OR(G68="4/8",G68="3/8",G68="2/8"),((база!$J$5*2*Таблица1[[#This Row],[Столбец1]]*Таблица1[[#This Row],[коэф]]))))))))))) -> 0 | AQ68: =IFERROR(INDEX(база!T:T, MATCH(F68,база!Q:Q,0)),"") -> 0 | AR68: =IFERROR(INDEX(база!D:D, MATCH(F68,база!B:B,0)),"") -> 3
A69: декабрь | B69: 2023 | C69: БО-01дл | D69: 117-23 | E69: 1 | F69: Нработник1 | G69: 4/16 | Y69: 7.2 | Z69: 7.2 | AA69: 7.2 | AB69: 7.2 | AC69: 7.2 | AD69: 6 | AM69: =IF(AQ69=1,SUM(H69:I69,L69:O69,R69:U69,X69:AA69,AD69:AG69,AI69:AK69), IF(AQ69=2,SUM(H69:K69,N69:Q69,T69:W69,Z69:AC69,AF69:AI69), IF(AQ69=3,SUM(J69:M69,P69:S69,V69:Y69,AB69:AE69,AH69:AK69),SUM(Таблица1[[#This Row],[1]:[31]])-Таблица1[[#This Row],[Столбец1]]))) -> 42 | AN69: =IF(AQ69=1,SUM(J69:K69,P69:Q69,V69:W69,AB69:AC69,AH69:AI69), IF(AQ69=2,SUM(L69:M69,R69:S69,X69:Y69,AD69:AE69), IF(AQ69=3,SUM(H69:I69,N69:O69,T69:U69,Z69:AA69,AF69:AG69), SUM(IFERROR(WEEKDAY($H$2:$AL$2,2)>5,)*H69:AL69)))) -> 0 | AO69: =IF(AR69<=3,(IF((G69="5/24"),((база!$M$6*Таблица1[[#This Row],[сумма]]*Таблица1[[#This Row],[коэф]])), IF((G69="4/24"),((база!$M$5*Таблица1[[#This Row],[сумма]]*Таблица1[[#This Row],[коэф]])), IF((G69="3/24"),((база!$M$4*Таблица1[[#This Row],[сумма]]*Таблица1[[#This Row],[коэф]])), IF((G69="5/16"),((база!$L$6*Таблица1[[#This Row],[сумма]]*Таблица1[[#This Row],[коэф]])), IF((G69="4/16"),((база!$L$5*Таблица1[[#This Row],[сумма]]*Таблица1[[#This Row],[коэф]])), IF((G69="3/16"),((база!$L$4*Таблица1[[#This Row],[сумма]]*Таблица1[[#This Row],[коэф]])), IF((G69="4/4"),((база!$I$5*Таблица1[[#This Row],[сумма]]*Таблица1[[#This Row],[коэф]])), IF(OR(G69="2/4",G69="3/4"),((база!$I$4*Таблица1[[#This Row],[сумма]]*Таблица1[[#This Row],[коэф]])), IF((G69="5/8"),((база!$J$6*Таблица1[[#This Row],[сумма]]*Таблица1[[#This Row],[коэф]])), IF((G69="4/8"),((база!$J$5*Таблица1[[#This Row],[сумма]]*Таблица1[[#This Row],[коэф]])), IF(OR(G69="3/8",G69="2/8"),((база!$J$4*Таблица1[[#This Row],[сумма]]*Таблица1[[#This Row],[коэф]])))))))))))))), (IF((G69="5/24"),((база!$M$6*Таблица1[[#This Row],[сумма]]*Таблица1[[#This Row],[коэф]])), IF(OR(G69="4/24",G69="3/24"),((база!$M$5*Таблица1[[#This Row],[сумма]]*Таблица1[[#This Row],[коэф]])), IF((G69="5/16"),((база!$L$6*Таблица1[[#This Row],[сумма]]*Таблица1[[#This Row],[коэф]])), IF(OR(G69="4/16",G69="3/16"),((база!$L$5*Таблица1[[#This Row],[сумма]]*Таблица1[[#This Row],[коэф]])), IF(OR(G69="2/4",G69="3/4",G69="4/4"),((база!$I$5*Таблица1[[#This Row],[сумма]]*Таблица1[[#This Row],[коэф]])), IF((G69="5/8"),((база!$J$6*Таблица1[[#This Row],[сумма]]*Таблица1[[#This Row],[коэф]])), IF(OR(G69="4/8",G69="3/8",G69="2/8"),((база!$J$5*Таблица1[[#This Row],[сумма]]*Таблица1[[#This Row],[коэф]]))))))))))) -> 7308 | AP69: =IF(AR69<=3,(IF((G69="5/24"),((база!$M$6*2*Таблица1[[#This Row],[Столбец1]]*Таблица1[[#This Row],[коэф]])), IF((G69="4/24"),((база!$M$5*2*Таблица1[[#This Row],[Столбец1]]*Таблица1[[#This Row],[коэф]])), IF((G69="3/24"),((база!$M$4*2*Таблица1[[#This Row],[Столбец1]]*Таблица1[[#This Row],[коэф]])), IF((G69="5/16"),((база!$L$6*2*Таблица1[[#This Row],[Столбец1]]*Таблица1[[#This Row],[коэф]])), IF((G69="4/16"),((база!$L$5*2*Таблица1[[#This Row],[Столбец1]]*Таблица1[[#This Row],[коэф]])), IF((G69="3/16"),((база!$L$4*2*Таблица1[[#This Row],[Столбец1]]*Таблица1[[#This Row],[коэф]])), IF((G69="4/4"),((база!$I$5*2*Таблица1[[#This Row],[Столбец1]]*Таблица1[[#This Row],[коэф]])), IF(OR(G69="2/4",G69="3/4"),((база!$I$4*2*Таблица1[[#This Row],[Столбец1]]*Таблица1[[#This Row],[коэф]])), IF((G69="5/8"),((база!$J$6*2*Таблица1[[#This Row],[Столбец1]]*Таблица1[[#This Row],[коэф]])), IF((G69="4/8"),((база!$J$5*2*Таблица1[[#This Row],[Столбец1]]*Таблица1[[#This Row],[коэф]])), IF(OR(G69="3/8",G69="2/8"),((база!$J$4*2*Таблица1[[#This Row],[Столбец1]]*Таблица1[[#This Row],[коэф]])))))))))))))), (IF((G69="5/24"),((база!$M$6*2*Таблица1[[#This Row],[Столбец1]]*Таблица1[[#This Row],[коэф]])), IF(OR(G69="4/24",G69="3/24"),((база!$M$5*2*Таблица1[[#This Row],[Столбец1]]*Таблица1[[#This Row],[коэф]])), IF((G69="5/16"),((база!$L$6*2*Таблица1[[#This Row],[Столбец1]]*Таблица1[[#This Row],[коэф]])), IF(OR(G69="4/16",G69="3/16"),((база!$L$5*2*Таблица1[[#This Row],[Столбец1]]*Таблица1[[#This Row],[коэф]])), IF(OR(G69="2/4",G69="3/4",G69="4/4"),((база!$I$5*2*Таблица1[[#This Row],[Столбец1]]*Таблица1[[#This Row],[коэф]])), IF((G69="5/8"),((база!$J$6*2*Таблица1[[#This Row],[Столбец1]]*Таблица1[[#This Row],[коэф]])), IF(OR(G69="4/8",G69="3/8",G69="2/8"),((база!$J$5*2*Таблица1[[#This Row],[Столбец1]]*Таблица1[[#This Row],[коэф]]))))))))))) -> 0 | AQ69: =IFERROR(INDEX(база!T:T, MATCH(F69,база!Q:Q,0)),"") -> 0 | AR69: =IFERROR(INDEX(база!D:D, MATCH(F69,база!B:B,0)),"") -> 3
